Workbook

Sheet Overview

Sheet Select School
B3: =VLOOKUP(C3,SchList!$I$1:$J$499,2,FALSE) -> 9999 | C3: 1

Sheet Grade 6 Report
A2: Click here to return to the school and sheet selection interface
A3: =VALUE('Select School'!B3) -> 9999
A4: =TEXT(A3,"0000")&"-"&VLOOKUP(A3,SchList!$A$2:$B$504,2,FALSE) -> 9999-District
A5: Reading - Grade 6
A6: Level of Proficiency at 70% or above | B6: Total # of Students | C6: % of Students Tested | D6: ='G6-8 Matrix'!C2&" ["&'G6-8 Matrix'!C3&"]" -> Overall [33] | F6: ='G6-8 Matrix'!D2&" ["&'G6-8 Matrix'!D3&"]" -> Vocabulary [5] | H6: ='G6-8 Matrix'!E2&" ["&'G6-8 Matrix'!E3&"]" -> Reading Application [14] | J6: ='G6-8 Matrix'!F2&" ["&'G6-8 Matrix'!F3&"]" -> Literary Analysis Fiction/Nonfiction [7] | L6: ='G6-8 Matrix'!G2&" ["&'G6-8 Matrix'!G3&"]" -> Informational Text/ Research Process [7]
D7: Average Score | E7: % Proficient | F7: Average Score | G7: % Proficient | H7: Average Score | I7: % Proficient | J7: Average Score | K7: % Proficient | L7: Average Score | M7: % Proficient
A8: All students | B8: =IFERROR(VLOOKUP(TEXT($A$3,"0000"),Mem_All!$A$2:$O$500,10,FALSE),"NA") -> 25690 | C8: =IFERROR((IF(OR(B8<10,B8="",B8="NA"),"NA",((IF(VLOOKUP($A$3,'G6-RALL'!$A$6:$AM$500,3,FALSE)>=B8,"100% ("&VLOOKUP($A$3,'G6-RALL'!$A$6:$AM$500,3,FALSE)&")",(ROUND((VLOOKUP($A$3,'G6-RALL'!$A$6:$AM$500,3,FALSE)/B8*100),0))&"% ("&IF(VLOOKUP($A$3,'G6-RALL'!$A$6:$AM$500,3,FALSE)="",0,VLOOKUP($A$3,'G6-RALL'!$A$6:$AM$500,3,FALSE))&")"))))),"0% (0)") -> 92% (23639) | D8: =IFERROR((IF($C8="NA","NA",VLOOKUP($A$3,'G6-RALL'!$A$6:$AM$500,4,FALSE))),"NA") -> 18.93695588 | E8: =IFERROR((IF($C8="NA","NA",ROUND(VLOOKUP($A$3,'G6-RALL'!$A$6:$AM$500,6,FALSE),0)&"% ("&IF(VLOOKUP($A$3,'G6-RALL'!$A$6:$AM$500,5,FALSE)="",0,VLOOKUP($A$3,'G6-RALL'!$A$6:$AM$500,5,FALSE))&")")),"NA") -> 34% (8088) | F8: =IFERROR((IF($C8="NA","NA",VLOOKUP($A$3,'G6-RALL'!$A$6:$AM$500,7,FALSE))),"NA") -> 3.01721731 | G8: =IFERROR((IF($C8="NA","NA",ROUND(VLOOKUP($A$3,'G6-RALL'!$A$6:$AM$500,9,FALSE),0)&"% ("&IF(VLOOKUP($A$3,'G6-RALL'!$A$6:$AM$500,8,FALSE)="",0,VLOOKUP($A$3,'G6-RALL'!$A$6:$AM$500,8,FALSE))&")")),"NA") -> 40% (9486) | H8: =IFERROR((IF($C8="NA","NA",VLOOKUP($A$3,'G6-RALL'!$A$6:$AM$500,10,FALSE))),"NA") -> 8.078455095 | I8: =IFERROR((IF($C8="NA","NA",ROUND(VLOOKUP($A$3,'G6-RALL'!$A$6:$AM$500,12,FALSE),0)&"% ("&IF(VLOOKUP($A$3,'G6-RALL'!$A$6:$AM$500,11,FALSE)="",0,VLOOKUP($A$3,'G6-RALL'!$A$6:$AM$500,11,FALSE))&")")),"NA") -> 36% (8589) | J8: =IFERROR((IF($C8="NA","NA",VLOOKUP($A$3,'G6-RALL'!$A$6:$AM$500,13,FALSE))),"NA") -> 4.319264774 | K8: =IFERROR((IF($C8="NA","NA",ROUND(VLOOKUP($A$3,'G6-RALL'!$A$6:$AM$500,15,FALSE),0)&"% ("&IF(VLOOKUP($A$3,'G6-RALL'!$A$6:$AM$500,14,FALSE)="",0,VLOOKUP($A$3,'G6-RALL'!$A$6:$AM$500,14,FALSE))&")")),"NA") -> 51% (11938) | L8: =IFERROR((IF($C8="NA","NA",VLOOKUP($A$3,'G6-RALL'!$A$6:$AM$500,16,FALSE))),"NA") -> 3.519924701 | M8: =IFERROR((IF($C8="NA","NA",ROUND(VLOOKUP($A$3,'G6-RALL'!$A$6:$AM$500,18,FALSE),0)&"% ("&IF(VLOOKUP($A$3,'G6-RALL'!$A$6:$AM$500,17,FALSE)="",0,VLOOKUP($A$3,'G6-RALL'!$A$6:$AM$500,17,FALSE))&")")),"NA") -> 30% (7038)
A9: FCAT Level 1 | B9: =IFERROR(VLOOKUP(TEXT($A$3,"0000"),MEM_RL1!$A$2:$M$500,7,FALSE),"NA") -> 4059 | C9: =IFERROR((IF(OR(B9<10,B9="",B9="NA"),"NA",((IF(VLOOKUP($A$3,'G6-RL1'!$A$6:$AM$500,3,FALSE)>=B9,"100% ("&VLOOKUP($A$3,'G6-RL1'!$A$6:$AM$500,3,FALSE)&")",(ROUND((VLOOKUP($A$3,'G6-RL1'!$A$6:$AM$500,3,FALSE)/B9*100),0))&"% ("&IF(VLOOKUP($A$3,'G6-RL1'!$A$6:$AM$500,3,FALSE)="",0,VLOOKUP($A$3,'G6-RL1'!$A$6:$AM$500,3,FALSE))&")"))))),"0% (0)") -> 92% (3754) | D9: =IFERROR((IF($C9="NA","NA",VLOOKUP($A$3,'G6-RL1'!$A$6:$AM$500,4,FALSE))),"NA") -> 11.37450719 | E9: =IFERROR((IF($C9="NA","NA",ROUND(VLOOKUP($A$3,'G6-RL1'!$A$6:$AM$500,6,FALSE),0)&"% ("&IF(VLOOKUP($A$3,'G6-RL1'!$A$6:$AM$500,5,FALSE)="",0,VLOOKUP($A$3,'G6-RL1'!$A$6:$AM$500,5,FALSE))&")")),"NA") -> 1% (19) | F9: =IFERROR((IF($C9="NA","NA",VLOOKUP($A$3,'G6-RL1'!$A$6:$AM$500,7,FALSE))),"NA") -> 1.826265317 | G9: =IFERROR((IF($C9="NA","NA",ROUND(VLOOKUP($A$3,'G6-RL1'!$A$6:$AM$500,9,FALSE),0)&"% ("&IF(VLOOKUP($A$3,'G6-RL1'!$A$6:$AM$500,8,FALSE)="",0,VLOOKUP($A$3,'G6-RL1'!$A$6:$AM$500,8,FALSE))&")")),"NA") -> 8% (310) | H9: =IFERROR((IF($C9="NA","NA",VLOOKUP($A$3,'G6-RL1'!$A$6:$AM$500,10,FALSE))),"NA") -> 4.861401172 | I9: =IFERROR((IF($C9="NA","NA",ROUND(VLOOKUP($A$3,'G6-RL1'!$A$6:$AM$500,12,FALSE),0)&"% ("&IF(VLOOKUP($A$3,'G6-RL1'!$A$6:$AM$500,11,FALSE)="",0,VLOOKUP($A$3,'G6-RL1'!$A$6:$AM$500,11,FALSE))&")")),"NA") -> 2% (79) | J9: =IFERROR((IF($C9="NA","NA",VLOOKUP($A$3,'G6-RL1'!$A$6:$AM$500,13,FALSE))),"NA") -> 2.585855088 | K9: =IFERROR((IF($C9="NA","NA",ROUND(VLOOKUP($A$3,'G6-RL1'!$A$6:$AM$500,15,FALSE),0)&"% ("&IF(VLOOKUP($A$3,'G6-RL1'!$A$6:$AM$500,14,FALSE)="",0,VLOOKUP($A$3,'G6-RL1'!$A$6:$AM$500,14,FALSE))&")")),"NA") -> 9% (351) | L9: =IFERROR((IF($C9="NA","NA",VLOOKUP($A$3,'G6-RL1'!$A$6:$AM$500,16,FALSE))),"NA") -> 2.10761854 | M9: =IFERROR((IF($C9="NA","NA",ROUND(VLOOKUP($A$3,'G6-RL1'!$A$6:$AM$500,18,FALSE),0)&"% ("&IF(VLOOKUP($A$3,'G6-RL1'!$A$6:$AM$500,17,FALSE)="",0,VLOOKUP($A$3,'G6-RL1'!$A$6:$AM$500,17,FALSE))&")")),"NA") -> 3% (120)
A10: FCAT Level 2 | B10: =IFERROR(VLOOKUP(TEXT($A$3,"0000"),MEM_RL2!$A$2:$O$500,7,FALSE),"NA") -> 5755 | C10: =IFERROR((IF(OR(B10<10,B10="",B10="NA"),"NA",((IF(VLOOKUP($A$3,'G6-RL2'!$A$6:$AM$500,3,FALSE)>=B10,"100% ("&VLOOKUP($A$3,'G6-RL2'!$A$6:$AM$500,3,FALSE)&")",(ROUND((VLOOKUP($A$3,'G6-RL2'!$A$6:$AM$500,3,FALSE)/B10*100),0))&"% ("&IF(VLOOKUP($A$3,'G6-RL2'!$A$6:$AM$500,3,FALSE)="",0,VLOOKUP($A$3,'G6-RL2'!$A$6:$AM$500,3,FALSE))&")"))))),"0% (0)") -> 97% (5576) | D10: =IFERROR((IF($C10="NA","NA",VLOOKUP($A$3,'G6-RL2'!$A$6:$AM$500,4,FALSE))),"NA") -> 15.8097561 | E10: =IFERROR((IF($C10="NA","NA",ROUND(VLOOKUP($A$3,'G6-RL2'!$A$6:$AM$500,6,FALSE),0)&"% ("&IF(VLOOKUP($A$3,'G6-RL2'!$A$6:$AM$500,5,FALSE)="",0,VLOOKUP($A$3,'G6-RL2'!$A$6:$AM$500,5,FALSE))&")")),"NA") -> 7% (367) | F10: =IFERROR((IF($C10="NA","NA",VLOOKUP($A$3,'G6-RL2'!$A$6:$AM$500,7,FALSE))),"NA") -> 2.504375897 | G10: =IFERROR((IF($C10="NA","NA",ROUND(VLOOKUP($A$3,'G6-RL2'!$A$6:$AM$500,9,FALSE),0)&"% ("&IF(VLOOKUP($A$3,'G6-RL2'!$A$6:$AM$500,8,FALSE)="",0,VLOOKUP($A$3,'G6-RL2'!$A$6:$AM$500,8,FALSE))&")")),"NA") -> 21% (1159) | H10: =IFERROR((IF($C10="NA","NA",VLOOKUP($A$3,'G6-RL2'!$A$6:$AM$500,10,FALSE))),"NA") -> 6.71384505 | I10: =IFERROR((IF($C10="NA","NA",ROUND(VLOOKUP($A$3,'G6-RL2'!$A$6:$AM$500,12,FALSE),0)&"% ("&IF(VLOOKUP($A$3,'G6-RL2'!$A$6:$AM$500,11,FALSE)="",0,VLOOKUP($A$3,'G6-RL2'!$A$6:$AM$500,11,FALSE))&")")),"NA") -> 12% (655) | J10: =IFERROR((IF($C10="NA","NA",VLOOKUP($A$3,'G6-RL2'!$A$6:$AM$500,13,FALSE))),"NA") -> 3.69054878 | K10: =IFERROR((IF($C10="NA","NA",ROUND(VLOOKUP($A$3,'G6-RL2'!$A$6:$AM$500,15,FALSE),0)&"% ("&IF(VLOOKUP($A$3,'G6-RL2'!$A$6:$AM$500,14,FALSE)="",0,VLOOKUP($A$3,'G6-RL2'!$A$6:$AM$500,14,FALSE))&")")),"NA") -> 31% (1744) | L10: =IFERROR((IF($C10="NA","NA",VLOOKUP($A$3,'G6-RL2'!$A$6:$AM$500,16,FALSE))),"NA") -> 2.898134864 | M10: =IFERROR((IF($C10="NA","NA",ROUND(VLOOKUP($A$3,'G6-RL2'!$A$6:$AM$500,18,FALSE),0)&"% ("&IF(VLOOKUP($A$3,'G6-RL2'!$A$6:$AM$500,17,FALSE)="",0,VLOOKUP($A$3,'G6-RL2'!$A$6:$AM$500,17,FALSE))&")")),"NA") -> 13% (723)
A11: FCAT Level 3 | B11: =IFERROR(VLOOKUP(TEXT($A$3,"0000"),MEM_RL3!$A$2:$O$500,7,FALSE),"NA") -> 6827 | C11: =IFERROR((IF(OR(B11<10,B11="",B11="NA"),"NA",((IF(VLOOKUP($A$3,'G6-RL3'!$A$6:$AM$500,3,FALSE)>=B11,"100% ("&VLOOKUP($A$3,'G6-RL3'!$A$6:$AM$500,3,FALSE)&")",(ROUND((VLOOKUP($A$3,'G6-RL3'!$A$6:$AM$500,3,FALSE)/B11*100),0))&"% ("&IF(VLOOKUP($A$3,'G6-RL3'!$A$6:$AM$500,3,FALSE)="",0,VLOOKUP($A$3,'G6-RL3'!$A$6:$AM$500,3,FALSE))&")"))))),"0% (0)") -> 94% (6430) | D11: =IFERROR((IF($C11="NA","NA",VLOOKUP($A$3,'G6-RL3'!$A$6:$AM$500,4,FALSE))),"NA") -> 20.07351477 | E11: =IFERROR((IF($C11="NA","NA",ROUND(VLOOKUP($A$3,'G6-RL3'!$A$6:$AM$500,6,FALSE),0)&"% ("&IF(VLOOKUP($A$3,'G6-RL3'!$A$6:$AM$500,5,FALSE)="",0,VLOOKUP($A$3,'G6-RL3'!$A$6:$AM$500,5,FALSE))&")")),"NA") -> 33% (2125) | F11: =IFERROR((IF($C11="NA","NA",VLOOKUP($A$3,'G6-RL3'!$A$6:$AM$500,7,FALSE))),"NA") -> 3.197013997 | G11: =IFERROR((IF($C11="NA","NA",ROUND(VLOOKUP($A$3,'G6-RL3'!$A$6:$AM$500,9,FALSE),0)&"% ("&IF(VLOOKUP($A$3,'G6-RL3'!$A$6:$AM$500,8,FALSE)="",0,VLOOKUP($A$3,'G6-RL3'!$A$6:$AM$500,8,FALSE))&")")),"NA") -> 43% (2747) | H11: =IFERROR((IF($C11="NA","NA",VLOOKUP($A$3,'G6-RL3'!$A$6:$AM$500,10,FALSE))),"NA") -> 8.560606532 | I11: =IFERROR((IF($C11="NA","NA",ROUND(VLOOKUP($A$3,'G6-RL3'!$A$6:$AM$500,12,FALSE),0)&"% ("&IF(VLOOKUP($A$3,'G6-RL3'!$A$6:$AM$500,11,FALSE)="",0,VLOOKUP($A$3,'G6-RL3'!$A$6:$AM$500,11,FALSE))&")")),"NA") -> 38% (2434) | J11: =IFERROR((IF($C11="NA","NA",VLOOKUP($A$3,'G6-RL3'!$A$6:$AM$500,13,FALSE))),"NA") -> 4.638320373 | K11: =IFERROR((IF($C11="NA","NA",ROUND(VLOOKUP($A$3,'G6-RL3'!$A$6:$AM$500,15,FALSE),0)&"% ("&IF(VLOOKUP($A$3,'G6-RL3'!$A$6:$AM$500,14,FALSE)="",0,VLOOKUP($A$3,'G6-RL3'!$A$6:$AM$500,14,FALSE))&")")),"NA") -> 58% (3726) | L11: =IFERROR((IF($C11="NA","NA",VLOOKUP($A$3,'G6-RL3'!$A$6:$AM$500,16,FALSE))),"NA") -> 3.677309487 | M11: =IFERROR((IF($C11="NA","NA",ROUND(VLOOKUP($A$3,'G6-RL3'!$A$6:$AM$500,18,FALSE),0)&"% ("&IF(VLOOKUP($A$3,'G6-RL3'!$A$6:$AM$500,17,FALSE)="",0,VLOOKUP($A$3,'G6-RL3'!$A$6:$AM$500,17,FALSE))&")")),"NA") -> 29% (1886)
A12: FCAT Level 4 | B12: =IFERROR(VLOOKUP(TEXT($A$3,"0000"),MEM_RL4!$A$2:$P$500,7,FALSE),"NA") -> 5222 | C12: =IFERROR((IF(OR(B12<10,B12="",B12="NA"),"NA",((IF(VLOOKUP($A$3,'G6-RL4'!$A$6:$AM$500,3,FALSE)>=B12,"100% ("&VLOOKUP($A$3,'G6-RL4'!$A$6:$AM$500,3,FALSE)&")",(ROUND((VLOOKUP($A$3,'G6-RL4'!$A$6:$AM$500,3,FALSE)/B12*100),0))&"% ("&IF(VLOOKUP($A$3,'G6-RL4'!$A$6:$AM$500,3,FALSE)="",0,VLOOKUP($A$3,'G6-RL4'!$A$6:$AM$500,3,FALSE))&")"))))),"0% (0)") -> 94% (4923) | D12: =IFERROR((IF($C12="NA","NA",VLOOKUP($A$3,'G6-RL4'!$A$6:$AM$500,4,FALSE))),"NA") -> 23.92971765 | E12: =IFERROR((IF($C12="NA","NA",ROUND(VLOOKUP($A$3,'G6-RL4'!$A$6:$AM$500,6,FALSE),0)&"% ("&IF(VLOOKUP($A$3,'G6-RL4'!$A$6:$AM$500,5,FALSE)="",0,VLOOKUP($A$3,'G6-RL4'!$A$6:$AM$500,5,FALSE))&")")),"NA") -> 70% (3465) | F12: =IFERROR((IF($C12="NA","NA",VLOOKUP($A$3,'G6-RL4'!$A$6:$AM$500,7,FALSE))),"NA") -> 3.814970546 | G12: =IFERROR((IF($C12="NA","NA",ROUND(VLOOKUP($A$3,'G6-RL4'!$A$6:$AM$500,9,FALSE),0)&"% ("&IF(VLOOKUP($A$3,'G6-RL4'!$A$6:$AM$500,8,FALSE)="",0,VLOOKUP($A$3,'G6-RL4'!$A$6:$AM$500,8,FALSE))&")")),"NA") -> 66% (3239) | H12: =IFERROR((IF($C12="NA","NA",VLOOKUP($A$3,'G6-RL4'!$A$6:$AM$500,10,FALSE))),"NA") -> 10.23577087 | I12: =IFERROR((IF($C12="NA","NA",ROUND(VLOOKUP($A$3,'G6-RL4'!$A$6:$AM$500,12,FALSE),0)&"% ("&IF(VLOOKUP($A$3,'G6-RL4'!$A$6:$AM$500,11,FALSE)="",0,VLOOKUP($A$3,'G6-RL4'!$A$6:$AM$500,11,FALSE))&")")),"NA") -> 68% (3367) | J12: =IFERROR((IF($C12="NA","NA",VLOOKUP($A$3,'G6-RL4'!$A$6:$AM$500,13,FALSE))),"NA") -> 5.390087345 | K12: =IFERROR((IF($C12="NA","NA",ROUND(VLOOKUP($A$3,'G6-RL4'!$A$6:$AM$500,15,FALSE),0)&"% ("&IF(VLOOKUP($A$3,'G6-RL4'!$A$6:$AM$500,14,FALSE)="",0,VLOOKUP($A$3,'G6-RL4'!$A$6:$AM$500,14,FALSE))&")")),"NA") -> 79% (3891) | L12: =IFERROR((IF($C12="NA","NA",VLOOKUP($A$3,'G6-RL4'!$A$6:$AM$500,16,FALSE))),"NA") -> 4.490676417 | M12: =IFERROR((IF($C12="NA","NA",ROUND(VLOOKUP($A$3,'G6-RL4'!$A$6:$AM$500,18,FALSE),0)&"% ("&IF(VLOOKUP($A$3,'G6-RL4'!$A$6:$AM$500,17,FALSE)="",0,VLOOKUP($A$3,'G6-RL4'!$A$6:$AM$500,17,FALSE))&")")),"NA") -> 52% (2571)
A13: FCAT Level 5 | B13: =IFERROR(VLOOKUP(TEXT($A$3,"0000"),MEM_RL5!$A$2:$P$500,6,FALSE),"NA") -> 2173 | C13: =IFERROR((IF(OR(B13<10,B13="",B13="NA"),"NA",((IF(VLOOKUP($A$3,'G6-RL5'!$A$6:$AM$500,3,FALSE)>=B13,"100% ("&VLOOKUP($A$3,'G6-RL5'!$A$6:$AM$500,3,FALSE)&")",(ROUND((VLOOKUP($A$3,'G6-RL5'!$A$6:$AM$500,3,FALSE)/B13*100),0))&"% ("&IF(VLOOKUP($A$3,'G6-RL5'!$A$6:$AM$500,3,FALSE)="",0,VLOOKUP($A$3,'G6-RL5'!$A$6:$AM$500,3,FALSE))&")"))))),"0% (0)") -> 96% (2081) | D13: =IFERROR((IF($C13="NA","NA",VLOOKUP($A$3,'G6-RL5'!$A$6:$AM$500,4,FALSE))),"NA") -> 26.89985584 | E13: =IFERROR((IF($C13="NA","NA",ROUND(VLOOKUP($A$3,'G6-RL5'!$A$6:$AM$500,6,FALSE),0)&"% ("&IF(VLOOKUP($A$3,'G6-RL5'!$A$6:$AM$500,5,FALSE)="",0,VLOOKUP($A$3,'G6-RL5'!$A$6:$AM$500,5,FALSE))&")")),"NA") -> 92% (1917) | F13: =IFERROR((IF($C13="NA","NA",VLOOKUP($A$3,'G6-RL5'!$A$6:$AM$500,7,FALSE))),"NA") -> 4.295434887 | G13: =IFERROR((IF($C13="NA","NA",ROUND(VLOOKUP($A$3,'G6-RL5'!$A$6:$AM$500,9,FALSE),0)&"% ("&IF(VLOOKUP($A$3,'G6-RL5'!$A$6:$AM$500,8,FALSE)="",0,VLOOKUP($A$3,'G6-RL5'!$A$6:$AM$500,8,FALSE))&")")),"NA") -> 85% (1768) | H13: =IFERROR((IF($C13="NA","NA",VLOOKUP($A$3,'G6-RL5'!$A$6:$AM$500,10,FALSE))),"NA") -> 11.45939452 | I13: =IFERROR((IF($C13="NA","NA",ROUND(VLOOKUP($A$3,'G6-RL5'!$A$6:$AM$500,12,FALSE),0)&"% ("&IF(VLOOKUP($A$3,'G6-RL5'!$A$6:$AM$500,11,FALSE)="",0,VLOOKUP($A$3,'G6-RL5'!$A$6:$AM$500,11,FALSE))&")")),"NA") -> 88% (1839) | J13: =IFERROR((IF($C13="NA","NA",VLOOKUP($A$3,'G6-RL5'!$A$6:$AM$500,13,FALSE))),"NA") -> 5.948149928 | K13: =IFERROR((IF($C13="NA","NA",ROUND(VLOOKUP($A$3,'G6-RL5'!$A$6:$AM$500,15,FALSE),0)&"% ("&IF(VLOOKUP($A$3,'G6-RL5'!$A$6:$AM$500,14,FALSE)="",0,VLOOKUP($A$3,'G6-RL5'!$A$6:$AM$500,14,FALSE))&")")),"NA") -> 92% (1922) | L13: =IFERROR((IF($C13="NA","NA",VLOOKUP($A$3,'G6-RL5'!$A$6:$AM$500,16,FALSE))),"NA") -> 5.208505526 | M13: =IFERROR((IF($C13="NA","NA",ROUND(VLOOKUP($A$3,'G6-RL5'!$A$6:$AM$500,18,FALSE),0)&"% ("&IF(VLOOKUP($A$3,'G6-RL5'!$A$6:$AM$500,17,FALSE)="",0,VLOOKUP($A$3,'G6-RL5'!$A$6:$AM$500,17,FALSE))&")")),"NA") -> 75% (1566)
A14: White | B14: =IFERROR(VLOOKUP(TEXT($A$3,"0000"),MEM_W!$A$2:$O$500,10,FALSE),"NA") -> 2110 | C14: =IFERROR((IF(OR(B14<10,B14="",B14="NA"),"NA",((IF(VLOOKUP($A$3,'G6-RW'!$A$6:$AM$500,3,FALSE)>=B14,"100% ("&VLOOKUP($A$3,'G6-RW'!$A$6:$AM$500,3,FALSE)&")",(ROUND((VLOOKUP($A$3,'G6-RW'!$A$6:$AM$500,3,FALSE)/B14*100),0))&"% ("&IF(VLOOKUP($A$3,'G6-RW'!$A$6:$AM$500,3,FALSE)="",0,VLOOKUP($A$3,'G6-RW'!$A$6:$AM$500,3,FALSE))&")"))))),"0% (0)") -> 91% (1921) | D14: =IFERROR((IF($C14="NA","NA",VLOOKUP($A$3,'G6-RW'!$A$6:$AM$500,4,FALSE))),"NA") -> 21.92264446 | E14: =IFERROR((IF($C14="NA","NA",ROUND(VLOOKUP($A$3,'G6-RW'!$A$6:$AM$500,6,FALSE),0)&"% ("&IF(VLOOKUP($A$3,'G6-RW'!$A$6:$AM$500,5,FALSE)="",0,VLOOKUP($A$3,'G6-RW'!$A$6:$AM$500,5,FALSE))&")")),"NA") -> 54% (1033) | F14: =IFERROR((IF($C14="NA","NA",VLOOKUP($A$3,'G6-RW'!$A$6:$AM$500,7,FALSE))),"NA") -> 3.606350859 | G14: =IFERROR((IF($C14="NA","NA",ROUND(VLOOKUP($A$3,'G6-RW'!$A$6:$AM$500,9,FALSE),0)&"% ("&IF(VLOOKUP($A$3,'G6-RW'!$A$6:$AM$500,8,FALSE)="",0,VLOOKUP($A$3,'G6-RW'!$A$6:$AM$500,8,FALSE))&")")),"NA") -> 60% (1144) | H14: =IFERROR((IF($C14="NA","NA",VLOOKUP($A$3,'G6-RW'!$A$6:$AM$500,10,FALSE))),"NA") -> 9.284122853 | I14: =IFERROR((IF($C14="NA","NA",ROUND(VLOOKUP($A$3,'G6-RW'!$A$6:$AM$500,12,FALSE),0)&"% ("&IF(VLOOKUP($A$3,'G6-RW'!$A$6:$AM$500,11,FALSE)="",0,VLOOKUP($A$3,'G6-RW'!$A$6:$AM$500,11,FALSE))&")")),"NA") -> 52% (995) | J14: =IFERROR((IF($C14="NA","NA",VLOOKUP($A$3,'G6-RW'!$A$6:$AM$500,13,FALSE))),"NA") -> 4.922696512 | K14: =IFERROR((IF($C14="NA","NA",ROUND(VLOOKUP($A$3,'G6-RW'!$A$6:$AM$500,15,FALSE),0)&"% ("&IF(VLOOKUP($A$3,'G6-RW'!$A$6:$AM$500,14,FALSE)="",0,VLOOKUP($A$3,'G6-RW'!$A$6:$AM$500,14,FALSE))&")")),"NA") -> 65% (1256) | L14: =IFERROR((IF($C14="NA","NA",VLOOKUP($A$3,'G6-RW'!$A$6:$AM$500,16,FALSE))),"NA") -> 4.117855284 | M14: =IFERROR((IF($C14="NA","NA",ROUND(VLOOKUP($A$3,'G6-RW'!$A$6:$AM$500,18,FALSE),0)&"% ("&IF(VLOOKUP($A$3,'G6-RW'!$A$6:$AM$500,17,FALSE)="",0,VLOOKUP($A$3,'G6-RW'!$A$6:$AM$500,17,FALSE))&")")),"NA") -> 45% (870)
A15: Black | B15: =IFERROR(VLOOKUP(TEXT($A$3,"0000"),MEM_B!$A$2:$O$500,10,FALSE),"NA") -> 5766 | C15: =IFERROR((IF(OR(B15<10,B15="",B15="NA"),"NA",((IF(VLOOKUP($A$3,'G6-RB'!$A$6:$AM$500,3,FALSE)>=B15,"100% ("&VLOOKUP($A$3,'G6-RB'!$A$6:$AM$500,3,FALSE)&")",(ROUND((VLOOKUP($A$3,'G6-RB'!$A$6:$AM$500,3,FALSE)/B15*100),0))&"% ("&IF(VLOOKUP($A$3,'G6-RB'!$A$6:$AM$500,3,FALSE)="",0,VLOOKUP($A$3,'G6-RB'!$A$6:$AM$500,3,FALSE))&")"))))),"0% (0)") -> 92% (5294) | D15: =IFERROR((IF($C15="NA","NA",VLOOKUP($A$3,'G6-RB'!$A$6:$AM$500,4,FALSE))),"NA") -> 16.8678504 | E15: =IFERROR((IF($C15="NA","NA",ROUND(VLOOKUP($A$3,'G6-RB'!$A$6:$AM$500,6,FALSE),0)&"% ("&IF(VLOOKUP($A$3,'G6-RB'!$A$6:$AM$500,5,FALSE)="",0,VLOOKUP($A$3,'G6-RB'!$A$6:$AM$500,5,FALSE))&")")),"NA") -> 20% (1073) | F15: =IFERROR((IF($C15="NA","NA",VLOOKUP($A$3,'G6-RB'!$A$6:$AM$500,7,FALSE))),"NA") -> 2.652304496 | G15: =IFERROR((IF($C15="NA","NA",ROUND(VLOOKUP($A$3,'G6-RB'!$A$6:$AM$500,9,FALSE),0)&"% ("&IF(VLOOKUP($A$3,'G6-RB'!$A$6:$AM$500,8,FALSE)="",0,VLOOKUP($A$3,'G6-RB'!$A$6:$AM$500,8,FALSE))&")")),"NA") -> 29% (1514) | H15: =IFERROR((IF($C15="NA","NA",VLOOKUP($A$3,'G6-RB'!$A$6:$AM$500,10,FALSE))),"NA") -> 7.218700416 | I15: =IFERROR((IF($C15="NA","NA",ROUND(VLOOKUP($A$3,'G6-RB'!$A$6:$AM$500,12,FALSE),0)&"% ("&IF(VLOOKUP($A$3,'G6-RB'!$A$6:$AM$500,11,FALSE)="",0,VLOOKUP($A$3,'G6-RB'!$A$6:$AM$500,11,FALSE))&")")),"NA") -> 24% (1259) | J15: =IFERROR((IF($C15="NA","NA",VLOOKUP($A$3,'G6-RB'!$A$6:$AM$500,13,FALSE))),"NA") -> 3.89535323 | K15: =IFERROR((IF($C15="NA","NA",ROUND(VLOOKUP($A$3,'G6-RB'!$A$6:$AM$500,15,FALSE),0)&"% ("&IF(VLOOKUP($A$3,'G6-RB'!$A$6:$AM$500,14,FALSE)="",0,VLOOKUP($A$3,'G6-RB'!$A$6:$AM$500,14,FALSE))&")")),"NA") -> 39% (2071) | L15: =IFERROR((IF($C15="NA","NA",VLOOKUP($A$3,'G6-RB'!$A$6:$AM$500,16,FALSE))),"NA") -> 3.117718172 | M15: =IFERROR((IF($C15="NA","NA",ROUND(VLOOKUP($A$3,'G6-RB'!$A$6:$AM$500,18,FALSE),0)&"% ("&IF(VLOOKUP($A$3,'G6-RB'!$A$6:$AM$500,17,FALSE)="",0,VLOOKUP($A$3,'G6-RB'!$A$6:$AM$500,17,FALSE))&")")),"NA") -> 20% (1049)
A16: Hispanic | B16: =IFERROR(VLOOKUP(TEXT($A$3,"0000"),MEM_H!$A$2:$O$500,10,FALSE),"NA") -> 17366 | C16: =IFERROR((IF(OR(B16<10,B16="",B16="NA"),"NA",((IF(VLOOKUP($A$3,'G6-RH'!$A$6:$AM$500,3,FALSE)>=B16,"100% ("&VLOOKUP($A$3,'G6-RH'!$A$6:$AM$500,3,FALSE)&")",(ROUND((VLOOKUP($A$3,'G6-RH'!$A$6:$AM$500,3,FALSE)/B16*100),0))&"% ("&IF(VLOOKUP($A$3,'G6-RH'!$A$6:$AM$500,3,FALSE)="",0,VLOOKUP($A$3,'G6-RH'!$A$6:$AM$500,3,FALSE))&")"))))),"0% (0)") -> 92% (16010) | D16: =IFERROR((IF($C16="NA","NA",VLOOKUP($A$3,'G6-RH'!$A$6:$AM$500,4,FALSE))),"NA") -> 19.17458463 | E16: =IFERROR((IF($C16="NA","NA",ROUND(VLOOKUP($A$3,'G6-RH'!$A$6:$AM$500,6,FALSE),0)&"% ("&IF(VLOOKUP($A$3,'G6-RH'!$A$6:$AM$500,5,FALSE)="",0,VLOOKUP($A$3,'G6-RH'!$A$6:$AM$500,5,FALSE))&")")),"NA") -> 36% (5749) | F16: =IFERROR((IF($C16="NA","NA",VLOOKUP($A$3,'G6-RH'!$A$6:$AM$500,7,FALSE))),"NA") -> 3.05945659 | G16: =IFERROR((IF($C16="NA","NA",ROUND(VLOOKUP($A$3,'G6-RH'!$A$6:$AM$500,9,FALSE),0)&"% ("&IF(VLOOKUP($A$3,'G6-RH'!$A$6:$AM$500,8,FALSE)="",0,VLOOKUP($A$3,'G6-RH'!$A$6:$AM$500,8,FALSE))&")")),"NA") -> 41% (6592) | H16: =IFERROR((IF($C16="NA","NA",VLOOKUP($A$3,'G6-RH'!$A$6:$AM$500,10,FALSE))),"NA") -> 8.177938788 | I16: =IFERROR((IF($C16="NA","NA",ROUND(VLOOKUP($A$3,'G6-RH'!$A$6:$AM$500,12,FALSE),0)&"% ("&IF(VLOOKUP($A$3,'G6-RH'!$A$6:$AM$500,11,FALSE)="",0,VLOOKUP($A$3,'G6-RH'!$A$6:$AM$500,11,FALSE))&")")),"NA") -> 38% (6095) | J16: =IFERROR((IF($C16="NA","NA",VLOOKUP($A$3,'G6-RH'!$A$6:$AM$500,13,FALSE))),"NA") -> 4.369081824 | K16: =IFERROR((IF($C16="NA","NA",ROUND(VLOOKUP($A$3,'G6-RH'!$A$6:$AM$500,15,FALSE),0)&"% ("&IF(VLOOKUP($A$3,'G6-RH'!$A$6:$AM$500,14,FALSE)="",0,VLOOKUP($A$3,'G6-RH'!$A$6:$AM$500,14,FALSE))&")")),"NA") -> 52% (8320) | L16: =IFERROR((IF($C16="NA","NA",VLOOKUP($A$3,'G6-RH'!$A$6:$AM$500,16,FALSE))),"NA") -> 3.561761399 | M16: =IFERROR((IF($C16="NA","NA",ROUND(VLOOKUP($A$3,'G6-RH'!$A$6:$AM$500,18,FALSE),0)&"% ("&IF(VLOOKUP($A$3,'G6-RH'!$A$6:$AM$500,17,FALSE)="",0,VLOOKUP($A$3,'G6-RH'!$A$6:$AM$500,17,FALSE))&")")),"NA") -> 31% (4915)
A17: Asian | B17: =IFERROR(VLOOKUP(TEXT($A$3,"0000"),MEM_A!$A$2:$O$500,10,FALSE),"NA") -> 326 | C17: =IFERROR((IF(OR(B17<10,B17="",B17="NA"),"NA",((IF(VLOOKUP($A$3,'G6-RA'!$A$6:$AM$500,3,FALSE)>=B17,"100% ("&VLOOKUP($A$3,'G6-RA'!$A$6:$AM$500,3,FALSE)&")",(ROUND((VLOOKUP($A$3,'G6-RA'!$A$6:$AM$500,3,FALSE)/B17*100),0))&"% ("&IF(VLOOKUP($A$3,'G6-RA'!$A$6:$AM$500,3,FALSE)="",0,VLOOKUP($A$3,'G6-RA'!$A$6:$AM$500,3,FALSE))&")"))))),"0% (0)") -> 91% (297) | D17: =IFERROR((IF($C17="NA","NA",VLOOKUP($A$3,'G6-RA'!$A$6:$AM$500,4,FALSE))),"NA") -> 23.25521886 | E17: =IFERROR((IF($C17="NA","NA",ROUND(VLOOKUP($A$3,'G6-RA'!$A$6:$AM$500,6,FALSE),0)&"% ("&IF(VLOOKUP($A$3,'G6-RA'!$A$6:$AM$500,5,FALSE)="",0,VLOOKUP($A$3,'G6-RA'!$A$6:$AM$500,5,FALSE))&")")),"NA") -> 61% (181) | F17: =IFERROR((IF($C17="NA","NA",VLOOKUP($A$3,'G6-RA'!$A$6:$AM$500,7,FALSE))),"NA") -> 3.643097643 | G17: =IFERROR((IF($C17="NA","NA",ROUND(VLOOKUP($A$3,'G6-RA'!$A$6:$AM$500,9,FALSE),0)&"% ("&IF(VLOOKUP($A$3,'G6-RA'!$A$6:$AM$500,8,FALSE)="",0,VLOOKUP($A$3,'G6-RA'!$A$6:$AM$500,8,FALSE))&")")),"NA") -> 60% (177) | H17: =IFERROR((IF($C17="NA","NA",VLOOKUP($A$3,'G6-RA'!$A$6:$AM$500,10,FALSE))),"NA") -> 9.922558923 | I17: =IFERROR((IF($C17="NA","NA",ROUND(VLOOKUP($A$3,'G6-RA'!$A$6:$AM$500,12,FALSE),0)&"% ("&IF(VLOOKUP($A$3,'G6-RA'!$A$6:$AM$500,11,FALSE)="",0,VLOOKUP($A$3,'G6-RA'!$A$6:$AM$500,11,FALSE))&")")),"NA") -> 62% (185) | J17: =IFERROR((IF($C17="NA","NA",VLOOKUP($A$3,'G6-RA'!$A$6:$AM$500,13,FALSE))),"NA") -> 5.295959596 | K17: =IFERROR((IF($C17="NA","NA",ROUND(VLOOKUP($A$3,'G6-RA'!$A$6:$AM$500,15,FALSE),0)&"% ("&IF(VLOOKUP($A$3,'G6-RA'!$A$6:$AM$500,14,FALSE)="",0,VLOOKUP($A$3,'G6-RA'!$A$6:$AM$500,14,FALSE))&")")),"NA") -> 74% (221) | L17: =IFERROR((IF($C17="NA","NA",VLOOKUP($A$3,'G6-RA'!$A$6:$AM$500,16,FALSE))),"NA") -> 4.433333333 | M17: =IFERROR((IF($C17="NA","NA",ROUND(VLOOKUP($A$3,'G6-RA'!$A$6:$AM$500,18,FALSE),0)&"% ("&IF(VLOOKUP($A$3,'G6-RA'!$A$6:$AM$500,17,FALSE)="",0,VLOOKUP($A$3,'G6-RA'!$A$6:$AM$500,17,FALSE))&")")),"NA") -> 52% (153)
A18: Am. Indian | B18: =IFERROR(VLOOKUP(TEXT($A$3,"0000"),MEM_I!$A$2:$O$500,10,FALSE),"NA") -> 22 | C18: =IFERROR((IF(OR(B18<10,B18="",B18="NA"),"NA",((IF(VLOOKUP($A$3,'G6-RI'!$A$6:$AM$500,3,FALSE)>=B18,"100% ("&VLOOKUP($A$3,'G6-RI'!$A$6:$AM$500,3,FALSE)&")",(ROUND((VLOOKUP($A$3,'G6-RI'!$A$6:$AM$500,3,FALSE)/B18*100),0))&"% ("&IF(VLOOKUP($A$3,'G6-RI'!$A$6:$AM$500,3,FALSE)="",0,VLOOKUP($A$3,'G6-RI'!$A$6:$AM$500,3,FALSE))&")"))))),"0% (0)") -> 86% (19) | D18: =IFERROR((IF($C18="NA","NA",VLOOKUP($A$3,'G6-RI'!$A$6:$AM$500,4,FALSE))),"NA") -> 21.25789474 | E18: =IFERROR((IF($C18="NA","NA",ROUND(VLOOKUP($A$3,'G6-RI'!$A$6:$AM$500,6,FALSE),0)&"% ("&IF(VLOOKUP($A$3,'G6-RI'!$A$6:$AM$500,5,FALSE)="",0,VLOOKUP($A$3,'G6-RI'!$A$6:$AM$500,5,FALSE))&")")),"NA") -> 47% (9) | F18: =IFERROR((IF($C18="NA","NA",VLOOKUP($A$3,'G6-RI'!$A$6:$AM$500,7,FALSE))),"NA") -> 3.210526316 | G18: =IFERROR((IF($C18="NA","NA",ROUND(VLOOKUP($A$3,'G6-RI'!$A$6:$AM$500,9,FALSE),0)&"% ("&IF(VLOOKUP($A$3,'G6-RI'!$A$6:$AM$500,8,FALSE)="",0,VLOOKUP($A$3,'G6-RI'!$A$6:$AM$500,8,FALSE))&")")),"NA") -> 53% (10) | H18: =IFERROR((IF($C18="NA","NA",VLOOKUP($A$3,'G6-RI'!$A$6:$AM$500,10,FALSE))),"NA") -> 9.268421053 | I18: =IFERROR((IF($C18="NA","NA",ROUND(VLOOKUP($A$3,'G6-RI'!$A$6:$AM$500,12,FALSE),0)&"% ("&IF(VLOOKUP($A$3,'G6-RI'!$A$6:$AM$500,11,FALSE)="",0,VLOOKUP($A$3,'G6-RI'!$A$6:$AM$500,11,FALSE))&")")),"NA") -> 53% (10) | J18: =IFERROR((IF($C18="NA","NA",VLOOKUP($A$3,'G6-RI'!$A$6:$AM$500,13,FALSE))),"NA") -> 4.731578947 | K18: =IFERROR((IF($C18="NA","NA",ROUND(VLOOKUP($A$3,'G6-RI'!$A$6:$AM$500,15,FALSE),0)&"% ("&IF(VLOOKUP($A$3,'G6-RI'!$A$6:$AM$500,14,FALSE)="",0,VLOOKUP($A$3,'G6-RI'!$A$6:$AM$500,14,FALSE))&")")),"NA") -> 58% (11) | L18: =IFERROR((IF($C18="NA","NA",VLOOKUP($A$3,'G6-RI'!$A$6:$AM$500,16,FALSE))),"NA") -> 4.047368421 | M18: =IFERROR((IF($C18="NA","NA",ROUND(VLOOKUP($A$3,'G6-RI'!$A$6:$AM$500,18,FALSE),0)&"% ("&IF(VLOOKUP($A$3,'G6-RI'!$A$6:$AM$500,17,FALSE)="",0,VLOOKUP($A$3,'G6-RI'!$A$6:$AM$500,17,FALSE))&")")),"NA") -> 47% (9)
A19: ED | B19: =IFERROR(VLOOKUP(TEXT($A$3,"0000"),MEM_ED!$A$2:$O$500,10,FALSE),"NA") -> 19942 | C19: =IFERROR((IF(OR(B19<10,B19="",B19="NA"),"NA",((IF(VLOOKUP($A$3,'G6-RED'!$A$6:$AM$500,3,FALSE)>=B19,"100% ("&VLOOKUP($A$3,'G6-RED'!$A$6:$AM$500,3,FALSE)&")",(ROUND((VLOOKUP($A$3,'G6-RED'!$A$6:$AM$500,3,FALSE)/B19*100),0))&"% ("&IF(VLOOKUP($A$3,'G6-RED'!$A$6:$AM$500,3,FALSE)="",0,VLOOKUP($A$3,'G6-RED'!$A$6:$AM$500,3,FALSE))&")"))))),"0% (0)") -> 93% (18627) | D19: =IFERROR((IF($C19="NA","NA",VLOOKUP($A$3,'G6-RED'!$A$6:$AM$500,4,FALSE))),"NA") -> 18.06150212 | E19: =IFERROR((IF($C19="NA","NA",ROUND(VLOOKUP($A$3,'G6-RED'!$A$6:$AM$500,6,FALSE),0)&"% ("&IF(VLOOKUP($A$3,'G6-RED'!$A$6:$AM$500,5,FALSE)="",0,VLOOKUP($A$3,'G6-RED'!$A$6:$AM$500,5,FALSE))&")")),"NA") -> 28% (5297) | F19: =IFERROR((IF($C19="NA","NA",VLOOKUP($A$3,'G6-RED'!$A$6:$AM$500,7,FALSE))),"NA") -> 2.865947281 | G19: =IFERROR((IF($C19="NA","NA",ROUND(VLOOKUP($A$3,'G6-RED'!$A$6:$AM$500,9,FALSE),0)&"% ("&IF(VLOOKUP($A$3,'G6-RED'!$A$6:$AM$500,8,FALSE)="",0,VLOOKUP($A$3,'G6-RED'!$A$6:$AM$500,8,FALSE))&")")),"NA") -> 35% (6523) | H19: =IFERROR((IF($C19="NA","NA",VLOOKUP($A$3,'G6-RED'!$A$6:$AM$500,10,FALSE))),"NA") -> 7.707934718 | I19: =IFERROR((IF($C19="NA","NA",ROUND(VLOOKUP($A$3,'G6-RED'!$A$6:$AM$500,12,FALSE),0)&"% ("&IF(VLOOKUP($A$3,'G6-RED'!$A$6:$AM$500,11,FALSE)="",0,VLOOKUP($A$3,'G6-RED'!$A$6:$AM$500,11,FALSE))&")")),"NA") -> 31% (5822) | J19: =IFERROR((IF($C19="NA","NA",VLOOKUP($A$3,'G6-RED'!$A$6:$AM$500,13,FALSE))),"NA") -> 4.141418371 | K19: =IFERROR((IF($C19="NA","NA",ROUND(VLOOKUP($A$3,'G6-RED'!$A$6:$AM$500,15,FALSE),0)&"% ("&IF(VLOOKUP($A$3,'G6-RED'!$A$6:$AM$500,14,FALSE)="",0,VLOOKUP($A$3,'G6-RED'!$A$6:$AM$500,14,FALSE))&")")),"NA") -> 46% (8554) | L19: =IFERROR((IF($C19="NA","NA",VLOOKUP($A$3,'G6-RED'!$A$6:$AM$500,16,FALSE))),"NA") -> 3.348070006 | M19: =IFERROR((IF($C19="NA","NA",ROUND(VLOOKUP($A$3,'G6-RED'!$A$6:$AM$500,18,FALSE),0)&"% ("&IF(VLOOKUP($A$3,'G6-RED'!$A$6:$AM$500,17,FALSE)="",0,VLOOKUP($A$3,'G6-RED'!$A$6:$AM$500,17,FALSE))&")")),"NA") -> 26% (4756)
A20: ELL | B20: =IFERROR(VLOOKUP(TEXT($A$3,"0000"),MEM_ELL!$A$2:$O$500,10,FALSE),"NA") -> 5895 | C20: =IFERROR((IF(OR(B20<10,B20="",B20="NA"),"NA",((IF(VLOOKUP($A$3,'G6-RELL'!$A$6:$AM$500,3,FALSE)>=B20,"100% ("&VLOOKUP($A$3,'G6-RELL'!$A$6:$AM$500,3,FALSE)&")",(ROUND((VLOOKUP($A$3,'G6-RELL'!$A$6:$AM$500,3,FALSE)/B20*100),0))&"% ("&IF(VLOOKUP($A$3,'G6-RELL'!$A$6:$AM$500,3,FALSE)="",0,VLOOKUP($A$3,'G6-RELL'!$A$6:$AM$500,3,FALSE))&")"))))),"0% (0)") -> 92% (5424) | D20: =IFERROR((IF($C20="NA","NA",VLOOKUP($A$3,'G6-RELL'!$A$6:$AM$500,4,FALSE))),"NA") -> 14.79701327 | E20: =IFERROR((IF($C20="NA","NA",ROUND(VLOOKUP($A$3,'G6-RELL'!$A$6:$AM$500,6,FALSE),0)&"% ("&IF(VLOOKUP($A$3,'G6-RELL'!$A$6:$AM$500,5,FALSE)="",0,VLOOKUP($A$3,'G6-RELL'!$A$6:$AM$500,5,FALSE))&")")),"NA") -> 11% (591) | F20: =IFERROR((IF($C20="NA","NA",VLOOKUP($A$3,'G6-RELL'!$A$6:$AM$500,7,FALSE))),"NA") -> 2.317477876 | G20: =IFERROR((IF($C20="NA","NA",ROUND(VLOOKUP($A$3,'G6-RELL'!$A$6:$AM$500,9,FALSE),0)&"% ("&IF(VLOOKUP($A$3,'G6-RELL'!$A$6:$AM$500,8,FALSE)="",0,VLOOKUP($A$3,'G6-RELL'!$A$6:$AM$500,8,FALSE))&")")),"NA") -> 19% (1021) | H20: =IFERROR((IF($C20="NA","NA",VLOOKUP($A$3,'G6-RELL'!$A$6:$AM$500,10,FALSE))),"NA") -> 6.349926254 | I20: =IFERROR((IF($C20="NA","NA",ROUND(VLOOKUP($A$3,'G6-RELL'!$A$6:$AM$500,12,FALSE),0)&"% ("&IF(VLOOKUP($A$3,'G6-RELL'!$A$6:$AM$500,11,FALSE)="",0,VLOOKUP($A$3,'G6-RELL'!$A$6:$AM$500,11,FALSE))&")")),"NA") -> 15% (817) | J20: =IFERROR((IF($C20="NA","NA",VLOOKUP($A$3,'G6-RELL'!$A$6:$AM$500,13,FALSE))),"NA") -> 3.416482301 | K20: =IFERROR((IF($C20="NA","NA",ROUND(VLOOKUP($A$3,'G6-RELL'!$A$6:$AM$500,15,FALSE),0)&"% ("&IF(VLOOKUP($A$3,'G6-RELL'!$A$6:$AM$500,14,FALSE)="",0,VLOOKUP($A$3,'G6-RELL'!$A$6:$AM$500,14,FALSE))&")")),"NA") -> 28% (1533) | L20: =IFERROR((IF($C20="NA","NA",VLOOKUP($A$3,'G6-RELL'!$A$6:$AM$500,16,FALSE))),"NA") -> 2.713126844 | M20: =IFERROR((IF($C20="NA","NA",ROUND(VLOOKUP($A$3,'G6-RELL'!$A$6:$AM$500,18,FALSE),0)&"% ("&IF(VLOOKUP($A$3,'G6-RELL'!$A$6:$AM$500,17,FALSE)="",0,VLOOKUP($A$3,'G6-RELL'!$A$6:$AM$500,17,FALSE))&")")),"NA") -> 12% (677)
A21: SWD | B21: =IFERROR(VLOOKUP(TEXT($A$3,"0000"),MEM_SWD!$A$2:$O$500,10,FALSE),"NA") -> 2433 | C21: =IFERROR((IF(OR(B21<10,B21="",B21="NA"),"NA",((IF(VLOOKUP($A$3,'G6-RSWD'!$A$6:$AM$500,3,FALSE)>=B21,"100% ("&VLOOKUP($A$3,'G6-RSWD'!$A$6:$AM$500,3,FALSE)&")",(ROUND((VLOOKUP($A$3,'G6-RSWD'!$A$6:$AM$500,3,FALSE)/B21*100),0))&"% ("&IF(VLOOKUP($A$3,'G6-RSWD'!$A$6:$AM$500,3,FALSE)="",0,VLOOKUP($A$3,'G6-RSWD'!$A$6:$AM$500,3,FALSE))&")"))))),"0% (0)") -> 89% (2167) | D21: =IFERROR((IF($C21="NA","NA",VLOOKUP($A$3,'G6-RSWD'!$A$6:$AM$500,4,FALSE))),"NA") -> 13.66806645 | E21: =IFERROR((IF($C21="NA","NA",ROUND(VLOOKUP($A$3,'G6-RSWD'!$A$6:$AM$500,6,FALSE),0)&"% ("&IF(VLOOKUP($A$3,'G6-RSWD'!$A$6:$AM$500,5,FALSE)="",0,VLOOKUP($A$3,'G6-RSWD'!$A$6:$AM$500,5,FALSE))&")")),"NA") -> 9% (205) | F21: =IFERROR((IF($C21="NA","NA",VLOOKUP($A$3,'G6-RSWD'!$A$6:$AM$500,7,FALSE))),"NA") -> 2.181172127 | G21: =IFERROR((IF($C21="NA","NA",ROUND(VLOOKUP($A$3,'G6-RSWD'!$A$6:$AM$500,9,FALSE),0)&"% ("&IF(VLOOKUP($A$3,'G6-RSWD'!$A$6:$AM$500,8,FALSE)="",0,VLOOKUP($A$3,'G6-RSWD'!$A$6:$AM$500,8,FALSE))&")")),"NA") -> 18% (384) | H21: =IFERROR((IF($C21="NA","NA",VLOOKUP($A$3,'G6-RSWD'!$A$6:$AM$500,10,FALSE))),"NA") -> 5.867005076 | I21: =IFERROR((IF($C21="NA","NA",ROUND(VLOOKUP($A$3,'G6-RSWD'!$A$6:$AM$500,12,FALSE),0)&"% ("&IF(VLOOKUP($A$3,'G6-RSWD'!$A$6:$AM$500,11,FALSE)="",0,VLOOKUP($A$3,'G6-RSWD'!$A$6:$AM$500,11,FALSE))&")")),"NA") -> 12% (265) | J21: =IFERROR((IF($C21="NA","NA",VLOOKUP($A$3,'G6-RSWD'!$A$6:$AM$500,13,FALSE))),"NA") -> 3.110013844 | K21: =IFERROR((IF($C21="NA","NA",ROUND(VLOOKUP($A$3,'G6-RSWD'!$A$6:$AM$500,15,FALSE),0)&"% ("&IF(VLOOKUP($A$3,'G6-RSWD'!$A$6:$AM$500,14,FALSE)="",0,VLOOKUP($A$3,'G6-RSWD'!$A$6:$AM$500,14,FALSE))&")")),"NA") -> 22% (473) | L21: =IFERROR((IF($C21="NA","NA",VLOOKUP($A$3,'G6-RSWD'!$A$6:$AM$500,16,FALSE))),"NA") -> 2.518412552 | M21: =IFERROR((IF($C21="NA","NA",ROUND(VLOOKUP($A$3,'G6-RSWD'!$A$6:$AM$500,18,FALSE),0)&"% ("&IF(VLOOKUP($A$3,'G6-RSWD'!$A$6:$AM$500,17,FALSE)="",0,VLOOKUP($A$3,'G6-RSWD'!$A$6:$AM$500,17,FALSE))&")")),"NA") -> 10% (217)
A22: Math - Grade 6
A23: Level of Proficiency at 70% or above | B23: Total # of Students | C23: % of Students Tested | D23: ='G6-8 Matrix'!C10&" ["&'G6-8 Matrix'!C11&"]" -> Overall [35] | F23: ='G6-8 Matrix'!D10&" ["&'G6-8 Matrix'!D11&"]" -> Fractions, Ratios/ Proportional Relationships, and Statistics [20] | H23: ='G6-8 Matrix'!E10&" ["&'G6-8 Matrix'!E11&"]" -> Expressions and Equations [8] | J23: ='G6-8 Matrix'!F10&" ["&'G6-8 Matrix'!F11&"]" -> Geometry and Measurement [7]
D24: Average Score | E24: % Proficient | F24: Average Score | G24: % Proficient | H24: Average Score | I24: % Proficient | J24: Average Score | K24: % Proficient
A25: All students | B25: =IFERROR(VLOOKUP(TEXT($A$3,"0000"),Mem_All!$A$2:$O$500,10,FALSE),"NA") -> 25690 | C25: =IFERROR((IF(OR(B25<10,B25="",B25="NA"),"NA",((IF(VLOOKUP($A$3,'G6-MALL'!$A$6:$AM$500,3,FALSE)>=B25,"100% ("&VLOOKUP($A$3,'G6-MALL'!$A$6:$AM$500,3,FALSE)&")",(ROUND((VLOOKUP($A$3,'G6-MALL'!$A$6:$AM$500,3,FALSE)/B25*100),0))&"% ("&IF(VLOOKUP($A$3,'G6-MALL'!$A$6:$AM$500,3,FALSE)="",0,VLOOKUP($A$3,'G6-MALL'!$A$6:$AM$500,3,FALSE))&")"))))),"0% (0)") -> 92% (23690) | D25: =IFERROR((IF($C25="NA","NA",VLOOKUP($A$3,'G6-MALL'!$A$6:$AM$500,4,FALSE))),"NA") -> 10.84155762 | E25: =IFERROR((IF($C25="NA","NA",ROUND(VLOOKUP($A$3,'G6-MALL'!$A$6:$AM$500,6,FALSE),0)&"% ("&IF(VLOOKUP($A$3,'G6-MALL'!$A$6:$AM$500,5,FALSE)="",0,VLOOKUP($A$3,'G6-MALL'!$A$6:$AM$500,5,FALSE))&")")),"NA") -> 1% (189) | F25: =IFERROR((IF($C25="NA","NA",VLOOKUP($A$3,'G6-MALL'!$A$6:$AM$500,7,FALSE))),"NA") -> 5.789392149 | G25: =IFERROR((IF($C25="NA","NA",ROUND(VLOOKUP($A$3,'G6-MALL'!$A$6:$AM$500,9,FALSE),0)&"% ("&IF(VLOOKUP($A$3,'G6-MALL'!$A$6:$AM$500,8,FALSE)="",0,VLOOKUP($A$3,'G6-MALL'!$A$6:$AM$500,8,FALSE))&")")),"NA") -> 1% (237) | H25: =IFERROR((IF($C25="NA","NA",VLOOKUP($A$3,'G6-MALL'!$A$6:$AM$500,10,FALSE))),"NA") -> 3.405512875 | I25: =IFERROR((IF($C25="NA","NA",ROUND(VLOOKUP($A$3,'G6-MALL'!$A$6:$AM$500,12,FALSE),0)&"% ("&IF(VLOOKUP($A$3,'G6-MALL'!$A$6:$AM$500,11,FALSE)="",0,VLOOKUP($A$3,'G6-MALL'!$A$6:$AM$500,11,FALSE))&")")),"NA") -> 13% (3145) | J25: =IFERROR((IF($C25="NA","NA",VLOOKUP($A$3,'G6-MALL'!$A$6:$AM$500,13,FALSE))),"NA") -> 1.655365133 | K25: =IFERROR((IF($C25="NA","NA",ROUND(VLOOKUP($A$3,'G6-MALL'!$A$6:$AM$500,15,FALSE),0)&"% ("&IF(VLOOKUP($A$3,'G6-MALL'!$A$6:$AM$500,14,FALSE)="",0,VLOOKUP($A$3,'G6-MALL'!$A$6:$AM$500,14,FALSE))&")")),"NA") -> 2% (445)
A26: FCAT Level 1 | B26: =IFERROR(VLOOKUP(TEXT($A$3,"0000"),MEM_ML1!$A$2:$M$500,7,FALSE),"NA") -> 4992 | C26: =IFERROR((IF(OR(B26<10,B26="",B26="NA"),"NA",((IF(VLOOKUP($A$3,'G6-ML1'!$A$6:$AM$500,3,FALSE)>=B26,"100% ("&VLOOKUP($A$3,'G6-ML1'!$A$6:$AM$500,3,FALSE)&")",(ROUND((VLOOKUP($A$3,'G6-ML1'!$A$6:$AM$500,3,FALSE)/B26*100),0))&"% ("&IF(VLOOKUP($A$3,'G6-ML1'!$A$6:$AM$500,3,FALSE)="",0,VLOOKUP($A$3,'G6-ML1'!$A$6:$AM$500,3,FALSE))&")"))))),"0% (0)") -> 93% (4633) | D26: =IFERROR((IF($C26="NA","NA",VLOOKUP($A$3,'G6-ML1'!$A$6:$AM$500,4,FALSE))),"NA") -> 7.880401468 | E26: =IFERROR((IF($C26="NA","NA",ROUND(VLOOKUP($A$3,'G6-ML1'!$A$6:$AM$500,6,FALSE),0)&"% ("&IF(VLOOKUP($A$3,'G6-ML1'!$A$6:$AM$500,5,FALSE)="",0,VLOOKUP($A$3,'G6-ML1'!$A$6:$AM$500,5,FALSE))&")")),"NA") -> 0% (2) | F26: =IFERROR((IF($C26="NA","NA",VLOOKUP($A$3,'G6-ML1'!$A$6:$AM$500,7,FALSE))),"NA") -> 4.367580401 | G26: =IFERROR((IF($C26="NA","NA",ROUND(VLOOKUP($A$3,'G6-ML1'!$A$6:$AM$500,9,FALSE),0)&"% ("&IF(VLOOKUP($A$3,'G6-ML1'!$A$6:$AM$500,8,FALSE)="",0,VLOOKUP($A$3,'G6-ML1'!$A$6:$AM$500,8,FALSE))&")")),"NA") -> 0% (2) | H26: =IFERROR((IF($C26="NA","NA",VLOOKUP($A$3,'G6-ML1'!$A$6:$AM$500,10,FALSE))),"NA") -> 2.290567667 | I26: =IFERROR((IF($C26="NA","NA",ROUND(VLOOKUP($A$3,'G6-ML1'!$A$6:$AM$500,12,FALSE),0)&"% ("&IF(VLOOKUP($A$3,'G6-ML1'!$A$6:$AM$500,11,FALSE)="",0,VLOOKUP($A$3,'G6-ML1'!$A$6:$AM$500,11,FALSE))&")")),"NA") -> 1% (48) | J26: =IFERROR((IF($C26="NA","NA",VLOOKUP($A$3,'G6-ML1'!$A$6:$AM$500,13,FALSE))),"NA") -> 1.218260306 | K26: =IFERROR((IF($C26="NA","NA",ROUND(VLOOKUP($A$3,'G6-ML1'!$A$6:$AM$500,15,FALSE),0)&"% ("&IF(VLOOKUP($A$3,'G6-ML1'!$A$6:$AM$500,14,FALSE)="",0,VLOOKUP($A$3,'G6-ML1'!$A$6:$AM$500,14,FALSE))&")")),"NA") -> 0% (23)
A27: FCAT Level 2 | B27: =IFERROR(VLOOKUP(TEXT($A$3,"0000"),MEM_ML2!$A$2:$O$500,7,FALSE),"NA") -> 5835 | C27: =IFERROR((IF(OR(B27<10,B27="",B27="NA"),"NA",((IF(VLOOKUP($A$3,'G6-ML2'!$A$6:$AM$500,3,FALSE)>=B27,"100% ("&VLOOKUP($A$3,'G6-ML2'!$A$6:$AM$500,3,FALSE)&")",(ROUND((VLOOKUP($A$3,'G6-ML2'!$A$6:$AM$500,3,FALSE)/B27*100),0))&"% ("&IF(VLOOKUP($A$3,'G6-ML2'!$A$6:$AM$500,3,FALSE)="",0,VLOOKUP($A$3,'G6-ML2'!$A$6:$AM$500,3,FALSE))&")"))))),"0% (0)") -> 94% (5458) | D27: =IFERROR((IF($C27="NA","NA",VLOOKUP($A$3,'G6-ML2'!$A$6:$AM$500,4,FALSE))),"NA") -> 8.626914621 | E27: =IFERROR((IF($C27="NA","NA",ROUND(VLOOKUP($A$3,'G6-ML2'!$A$6:$AM$500,6,FALSE),0)&"% ("&IF(VLOOKUP($A$3,'G6-ML2'!$A$6:$AM$500,5,FALSE)="",0,VLOOKUP($A$3,'G6-ML2'!$A$6:$AM$500,5,FALSE))&")")),"NA") -> 0% (8) | F27: =IFERROR((IF($C27="NA","NA",VLOOKUP($A$3,'G6-ML2'!$A$6:$AM$500,7,FALSE))),"NA") -> 4.542982778 | G27: =IFERROR((IF($C27="NA","NA",ROUND(VLOOKUP($A$3,'G6-ML2'!$A$6:$AM$500,9,FALSE),0)&"% ("&IF(VLOOKUP($A$3,'G6-ML2'!$A$6:$AM$500,8,FALSE)="",0,VLOOKUP($A$3,'G6-ML2'!$A$6:$AM$500,8,FALSE))&")")),"NA") -> 0% (9) | H27: =IFERROR((IF($C27="NA","NA",VLOOKUP($A$3,'G6-ML2'!$A$6:$AM$500,10,FALSE))),"NA") -> 2.774807622 | I27: =IFERROR((IF($C27="NA","NA",ROUND(VLOOKUP($A$3,'G6-ML2'!$A$6:$AM$500,12,FALSE),0)&"% ("&IF(VLOOKUP($A$3,'G6-ML2'!$A$6:$AM$500,11,FALSE)="",0,VLOOKUP($A$3,'G6-ML2'!$A$6:$AM$500,11,FALSE))&")")),"NA") -> 3% (190) | J27: =IFERROR((IF($C27="NA","NA",VLOOKUP($A$3,'G6-ML2'!$A$6:$AM$500,13,FALSE))),"NA") -> 1.319311103 | K27: =IFERROR((IF($C27="NA","NA",ROUND(VLOOKUP($A$3,'G6-ML2'!$A$6:$AM$500,15,FALSE),0)&"% ("&IF(VLOOKUP($A$3,'G6-ML2'!$A$6:$AM$500,14,FALSE)="",0,VLOOKUP($A$3,'G6-ML2'!$A$6:$AM$500,14,FALSE))&")")),"NA") -> 1% (34)
A28: FCAT Level 3 | B28: =IFERROR(VLOOKUP(TEXT($A$3,"0000"),MEM_ML3!$A$2:$O$500,7,FALSE),"NA") -> 6551 | C28: =IFERROR((IF(OR(B28<10,B28="",B28="NA"),"NA",((IF(VLOOKUP($A$3,'G6-ML3'!$A$6:$AM$500,3,FALSE)>=B28,"100% ("&VLOOKUP($A$3,'G6-ML3'!$A$6:$AM$500,3,FALSE)&")",(ROUND((VLOOKUP($A$3,'G6-ML3'!$A$6:$AM$500,3,FALSE)/B28*100),0))&"% ("&IF(VLOOKUP($A$3,'G6-ML3'!$A$6:$AM$500,3,FALSE)="",0,VLOOKUP($A$3,'G6-ML3'!$A$6:$AM$500,3,FALSE))&")"))))),"0% (0)") -> 94% (6163) | D28: =IFERROR((IF($C28="NA","NA",VLOOKUP($A$3,'G6-ML3'!$A$6:$AM$500,4,FALSE))),"NA") -> 10.66096057 | E28: =IFERROR((IF($C28="NA","NA",ROUND(VLOOKUP($A$3,'G6-ML3'!$A$6:$AM$500,6,FALSE),0)&"% ("&IF(VLOOKUP($A$3,'G6-ML3'!$A$6:$AM$500,5,FALSE)="",0,VLOOKUP($A$3,'G6-ML3'!$A$6:$AM$500,5,FALSE))&")")),"NA") -> 0% (9) | F28: =IFERROR((IF($C28="NA","NA",VLOOKUP($A$3,'G6-ML3'!$A$6:$AM$500,7,FALSE))),"NA") -> 5.560360214 | G28: =IFERROR((IF($C28="NA","NA",ROUND(VLOOKUP($A$3,'G6-ML3'!$A$6:$AM$500,9,FALSE),0)&"% ("&IF(VLOOKUP($A$3,'G6-ML3'!$A$6:$AM$500,8,FALSE)="",0,VLOOKUP($A$3,'G6-ML3'!$A$6:$AM$500,8,FALSE))&")")),"NA") -> 0% (11) | H28: =IFERROR((IF($C28="NA","NA",VLOOKUP($A$3,'G6-ML3'!$A$6:$AM$500,10,FALSE))),"NA") -> 3.491010871 | I28: =IFERROR((IF($C28="NA","NA",ROUND(VLOOKUP($A$3,'G6-ML3'!$A$6:$AM$500,12,FALSE),0)&"% ("&IF(VLOOKUP($A$3,'G6-ML3'!$A$6:$AM$500,11,FALSE)="",0,VLOOKUP($A$3,'G6-ML3'!$A$6:$AM$500,11,FALSE))&")")),"NA") -> 9% (567) | J28: =IFERROR((IF($C28="NA","NA",VLOOKUP($A$3,'G6-ML3'!$A$6:$AM$500,13,FALSE))),"NA") -> 1.616031154 | K28: =IFERROR((IF($C28="NA","NA",ROUND(VLOOKUP($A$3,'G6-ML3'!$A$6:$AM$500,15,FALSE),0)&"% ("&IF(VLOOKUP($A$3,'G6-ML3'!$A$6:$AM$500,14,FALSE)="",0,VLOOKUP($A$3,'G6-ML3'!$A$6:$AM$500,14,FALSE))&")")),"NA") -> 1% (61)
A29: FCAT Level 4 | B29: =IFERROR(VLOOKUP(TEXT($A$3,"0000"),MEM_ML4!$A$2:$P$500,7,FALSE),"NA") -> 4498 | C29: =IFERROR((IF(OR(B29<10,B29="",B29="NA"),"NA",((IF(VLOOKUP($A$3,'G6-ML4'!$A$6:$AM$500,3,FALSE)>=B29,"100% ("&VLOOKUP($A$3,'G6-ML4'!$A$6:$AM$500,3,FALSE)&")",(ROUND((VLOOKUP($A$3,'G6-ML4'!$A$6:$AM$500,3,FALSE)/B29*100),0))&"% ("&IF(VLOOKUP($A$3,'G6-ML4'!$A$6:$AM$500,3,FALSE)="",0,VLOOKUP($A$3,'G6-ML4'!$A$6:$AM$500,3,FALSE))&")"))))),"0% (0)") -> 95% (4270) | D29: =IFERROR((IF($C29="NA","NA",VLOOKUP($A$3,'G6-ML4'!$A$6:$AM$500,4,FALSE))),"NA") -> 13.74676815 | E29: =IFERROR((IF($C29="NA","NA",ROUND(VLOOKUP($A$3,'G6-ML4'!$A$6:$AM$500,6,FALSE),0)&"% ("&IF(VLOOKUP($A$3,'G6-ML4'!$A$6:$AM$500,5,FALSE)="",0,VLOOKUP($A$3,'G6-ML4'!$A$6:$AM$500,5,FALSE))&")")),"NA") -> 0% (16) | F29: =IFERROR((IF($C29="NA","NA",VLOOKUP($A$3,'G6-ML4'!$A$6:$AM$500,7,FALSE))),"NA") -> 7.31498829 | G29: =IFERROR((IF($C29="NA","NA",ROUND(VLOOKUP($A$3,'G6-ML4'!$A$6:$AM$500,9,FALSE),0)&"% ("&IF(VLOOKUP($A$3,'G6-ML4'!$A$6:$AM$500,8,FALSE)="",0,VLOOKUP($A$3,'G6-ML4'!$A$6:$AM$500,8,FALSE))&")")),"NA") -> 1% (32) | H29: =IFERROR((IF($C29="NA","NA",VLOOKUP($A$3,'G6-ML4'!$A$6:$AM$500,10,FALSE))),"NA") -> 4.375644028 | I29: =IFERROR((IF($C29="NA","NA",ROUND(VLOOKUP($A$3,'G6-ML4'!$A$6:$AM$500,12,FALSE),0)&"% ("&IF(VLOOKUP($A$3,'G6-ML4'!$A$6:$AM$500,11,FALSE)="",0,VLOOKUP($A$3,'G6-ML4'!$A$6:$AM$500,11,FALSE))&")")),"NA") -> 26% (1094) | J29: =IFERROR((IF($C29="NA","NA",VLOOKUP($A$3,'G6-ML4'!$A$6:$AM$500,13,FALSE))),"NA") -> 2.059250585 | K29: =IFERROR((IF($C29="NA","NA",ROUND(VLOOKUP($A$3,'G6-ML4'!$A$6:$AM$500,15,FALSE),0)&"% ("&IF(VLOOKUP($A$3,'G6-ML4'!$A$6:$AM$500,14,FALSE)="",0,VLOOKUP($A$3,'G6-ML4'!$A$6:$AM$500,14,FALSE))&")")),"NA") -> 2% (84)
A30: FCAT Level 5 | B30: =IFERROR(VLOOKUP(TEXT($A$3,"0000"),MEM_ML5!$A$2:$P$500,7,FALSE),"NA") -> 2403 | C30: =IFERROR((IF(OR(B30<10,B30="",B30="NA"),"NA",((IF(VLOOKUP($A$3,'G6-ML5'!$A$6:$AM$500,3,FALSE)>=B30,"100% ("&VLOOKUP($A$3,'G6-ML5'!$A$6:$AM$500,3,FALSE)&")",(ROUND((VLOOKUP($A$3,'G6-ML5'!$A$6:$AM$500,3,FALSE)/B30*100),0))&"% ("&IF(VLOOKUP($A$3,'G6-ML5'!$A$6:$AM$500,3,FALSE)="",0,VLOOKUP($A$3,'G6-ML5'!$A$6:$AM$500,3,FALSE))&")"))))),"0% (0)") -> 95% (2280) | D30: =IFERROR((IF($C30="NA","NA",VLOOKUP($A$3,'G6-ML5'!$A$6:$AM$500,4,FALSE))),"NA") -> 17.89842105 | E30: =IFERROR((IF($C30="NA","NA",ROUND(VLOOKUP($A$3,'G6-ML5'!$A$6:$AM$500,6,FALSE),0)&"% ("&IF(VLOOKUP($A$3,'G6-ML5'!$A$6:$AM$500,5,FALSE)="",0,VLOOKUP($A$3,'G6-ML5'!$A$6:$AM$500,5,FALSE))&")")),"NA") -> 7% (150) | F30: =IFERROR((IF($C30="NA","NA",VLOOKUP($A$3,'G6-ML5'!$A$6:$AM$500,7,FALSE))),"NA") -> 9.697324561 | G30: =IFERROR((IF($C30="NA","NA",ROUND(VLOOKUP($A$3,'G6-ML5'!$A$6:$AM$500,9,FALSE),0)&"% ("&IF(VLOOKUP($A$3,'G6-ML5'!$A$6:$AM$500,8,FALSE)="",0,VLOOKUP($A$3,'G6-ML5'!$A$6:$AM$500,8,FALSE))&")")),"NA") -> 8% (176) | H30: =IFERROR((IF($C30="NA","NA",VLOOKUP($A$3,'G6-ML5'!$A$6:$AM$500,10,FALSE))),"NA") -> 5.419649123 | I30: =IFERROR((IF($C30="NA","NA",ROUND(VLOOKUP($A$3,'G6-ML5'!$A$6:$AM$500,12,FALSE),0)&"% ("&IF(VLOOKUP($A$3,'G6-ML5'!$A$6:$AM$500,11,FALSE)="",0,VLOOKUP($A$3,'G6-ML5'!$A$6:$AM$500,11,FALSE))&")")),"NA") -> 53% (1202) | J30: =IFERROR((IF($C30="NA","NA",VLOOKUP($A$3,'G6-ML5'!$A$6:$AM$500,13,FALSE))),"NA") -> 2.782324561 | K30: =IFERROR((IF($C30="NA","NA",ROUND(VLOOKUP($A$3,'G6-ML5'!$A$6:$AM$500,15,FALSE),0)&"% ("&IF(VLOOKUP($A$3,'G6-ML5'!$A$6:$AM$500,14,FALSE)="",0,VLOOKUP($A$3,'G6-ML5'!$A$6:$AM$500,14,FALSE))&")")),"NA") -> 10% (234)
A31: White | B31: =IFERROR(VLOOKUP(TEXT($A$3,"0000"),MEM_W!$A$2:$O$500,10,FALSE),"NA") -> 2110 | C31: =IFERROR((IF(OR(B31<10,B31="",B31="NA"),"NA",((IF(VLOOKUP($A$3,'G6-MW'!$A$6:$AM$500,3,FALSE)>=B31,"100% ("&VLOOKUP($A$3,'G6-MW'!$A$6:$AM$500,3,FALSE)&")",(ROUND((VLOOKUP($A$3,'G6-MW'!$A$6:$AM$500,3,FALSE)/B31*100),0))&"% ("&IF(VLOOKUP($A$3,'G6-MW'!$A$6:$AM$500,3,FALSE)="",0,VLOOKUP($A$3,'G6-MW'!$A$6:$AM$500,3,FALSE))&")"))))),"0% (0)") -> 92% (1934) | D31: =IFERROR((IF($C31="NA","NA",VLOOKUP($A$3,'G6-MW'!$A$6:$AM$500,4,FALSE))),"NA") -> 12.88531541 | E31: =IFERROR((IF($C31="NA","NA",ROUND(VLOOKUP($A$3,'G6-MW'!$A$6:$AM$500,6,FALSE),0)&"% ("&IF(VLOOKUP($A$3,'G6-MW'!$A$6:$AM$500,5,FALSE)="",0,VLOOKUP($A$3,'G6-MW'!$A$6:$AM$500,5,FALSE))&")")),"NA") -> 2% (45) | F31: =IFERROR((IF($C31="NA","NA",VLOOKUP($A$3,'G6-MW'!$A$6:$AM$500,7,FALSE))),"NA") -> 6.991003102 | G31: =IFERROR((IF($C31="NA","NA",ROUND(VLOOKUP($A$3,'G6-MW'!$A$6:$AM$500,9,FALSE),0)&"% ("&IF(VLOOKUP($A$3,'G6-MW'!$A$6:$AM$500,8,FALSE)="",0,VLOOKUP($A$3,'G6-MW'!$A$6:$AM$500,8,FALSE))&")")),"NA") -> 3% (53) | H31: =IFERROR((IF($C31="NA","NA",VLOOKUP($A$3,'G6-MW'!$A$6:$AM$500,10,FALSE))),"NA") -> 3.987280248 | I31: =IFERROR((IF($C31="NA","NA",ROUND(VLOOKUP($A$3,'G6-MW'!$A$6:$AM$500,12,FALSE),0)&"% ("&IF(VLOOKUP($A$3,'G6-MW'!$A$6:$AM$500,11,FALSE)="",0,VLOOKUP($A$3,'G6-MW'!$A$6:$AM$500,11,FALSE))&")")),"NA") -> 22% (427) | J31: =IFERROR((IF($C31="NA","NA",VLOOKUP($A$3,'G6-MW'!$A$6:$AM$500,13,FALSE))),"NA") -> 1.924198552 | K31: =IFERROR((IF($C31="NA","NA",ROUND(VLOOKUP($A$3,'G6-MW'!$A$6:$AM$500,15,FALSE),0)&"% ("&IF(VLOOKUP($A$3,'G6-MW'!$A$6:$AM$500,14,FALSE)="",0,VLOOKUP($A$3,'G6-MW'!$A$6:$AM$500,14,FALSE))&")")),"NA") -> 4% (73)
A32: Black | B32: =IFERROR(VLOOKUP(TEXT($A$3,"0000"),MEM_B!$A$2:$O$500,10,FALSE),"NA") -> 5766 | C32: =IFERROR((IF(OR(B32<10,B32="",B32="NA"),"NA",((IF(VLOOKUP($A$3,'G6-MB'!$A$6:$AM$500,3,FALSE)>=B32,"100% ("&VLOOKUP($A$3,'G6-MB'!$A$6:$AM$500,3,FALSE)&")",(ROUND((VLOOKUP($A$3,'G6-MB'!$A$6:$AM$500,3,FALSE)/B32*100),0))&"% ("&IF(VLOOKUP($A$3,'G6-MB'!$A$6:$AM$500,3,FALSE)="",0,VLOOKUP($A$3,'G6-MB'!$A$6:$AM$500,3,FALSE))&")"))))),"0% (0)") -> 92% (5313) | D32: =IFERROR((IF($C32="NA","NA",VLOOKUP($A$3,'G6-MB'!$A$6:$AM$500,4,FALSE))),"NA") -> 9.859815547 | E32: =IFERROR((IF($C32="NA","NA",ROUND(VLOOKUP($A$3,'G6-MB'!$A$6:$AM$500,6,FALSE),0)&"% ("&IF(VLOOKUP($A$3,'G6-MB'!$A$6:$AM$500,5,FALSE)="",0,VLOOKUP($A$3,'G6-MB'!$A$6:$AM$500,5,FALSE))&")")),"NA") -> 1% (31) | F32: =IFERROR((IF($C32="NA","NA",VLOOKUP($A$3,'G6-MB'!$A$6:$AM$500,7,FALSE))),"NA") -> 5.161961227 | G32: =IFERROR((IF($C32="NA","NA",ROUND(VLOOKUP($A$3,'G6-MB'!$A$6:$AM$500,9,FALSE),0)&"% ("&IF(VLOOKUP($A$3,'G6-MB'!$A$6:$AM$500,8,FALSE)="",0,VLOOKUP($A$3,'G6-MB'!$A$6:$AM$500,8,FALSE))&")")),"NA") -> 0% (25) | H32: =IFERROR((IF($C32="NA","NA",VLOOKUP($A$3,'G6-MB'!$A$6:$AM$500,10,FALSE))),"NA") -> 3.147844909 | I32: =IFERROR((IF($C32="NA","NA",ROUND(VLOOKUP($A$3,'G6-MB'!$A$6:$AM$500,12,FALSE),0)&"% ("&IF(VLOOKUP($A$3,'G6-MB'!$A$6:$AM$500,11,FALSE)="",0,VLOOKUP($A$3,'G6-MB'!$A$6:$AM$500,11,FALSE))&")")),"NA") -> 9% (485) | J32: =IFERROR((IF($C32="NA","NA",VLOOKUP($A$3,'G6-MB'!$A$6:$AM$500,13,FALSE))),"NA") -> 1.562281197 | K32: =IFERROR((IF($C32="NA","NA",ROUND(VLOOKUP($A$3,'G6-MB'!$A$6:$AM$500,15,FALSE),0)&"% ("&IF(VLOOKUP($A$3,'G6-MB'!$A$6:$AM$500,14,FALSE)="",0,VLOOKUP($A$3,'G6-MB'!$A$6:$AM$500,14,FALSE))&")")),"NA") -> 2% (88)
A33: Hispanic | B33: =IFERROR(VLOOKUP(TEXT($A$3,"0000"),MEM_H!$A$2:$O$500,10,FALSE),"NA") -> 17366 | C33: =IFERROR((IF(OR(B33<10,B33="",B33="NA"),"NA",((IF(VLOOKUP($A$3,'G6-MH'!$A$6:$AM$500,3,FALSE)>=B33,"100% ("&VLOOKUP($A$3,'G6-MH'!$A$6:$AM$500,3,FALSE)&")",(ROUND((VLOOKUP($A$3,'G6-MH'!$A$6:$AM$500,3,FALSE)/B33*100),0))&"% ("&IF(VLOOKUP($A$3,'G6-MH'!$A$6:$AM$500,3,FALSE)="",0,VLOOKUP($A$3,'G6-MH'!$A$6:$AM$500,3,FALSE))&")"))))),"0% (0)") -> 92% (16033) | D33: =IFERROR((IF($C33="NA","NA",VLOOKUP($A$3,'G6-MH'!$A$6:$AM$500,4,FALSE))),"NA") -> 10.84527537 | E33: =IFERROR((IF($C33="NA","NA",ROUND(VLOOKUP($A$3,'G6-MH'!$A$6:$AM$500,6,FALSE),0)&"% ("&IF(VLOOKUP($A$3,'G6-MH'!$A$6:$AM$500,5,FALSE)="",0,VLOOKUP($A$3,'G6-MH'!$A$6:$AM$500,5,FALSE))&")")),"NA") -> 1% (91) | F33: =IFERROR((IF($C33="NA","NA",VLOOKUP($A$3,'G6-MH'!$A$6:$AM$500,7,FALSE))),"NA") -> 5.81953471 | G33: =IFERROR((IF($C33="NA","NA",ROUND(VLOOKUP($A$3,'G6-MH'!$A$6:$AM$500,9,FALSE),0)&"% ("&IF(VLOOKUP($A$3,'G6-MH'!$A$6:$AM$500,8,FALSE)="",0,VLOOKUP($A$3,'G6-MH'!$A$6:$AM$500,8,FALSE))&")")),"NA") -> 1% (140) | H33: =IFERROR((IF($C33="NA","NA",VLOOKUP($A$3,'G6-MH'!$A$6:$AM$500,10,FALSE))),"NA") -> 3.393931267 | I33: =IFERROR((IF($C33="NA","NA",ROUND(VLOOKUP($A$3,'G6-MH'!$A$6:$AM$500,12,FALSE),0)&"% ("&IF(VLOOKUP($A$3,'G6-MH'!$A$6:$AM$500,11,FALSE)="",0,VLOOKUP($A$3,'G6-MH'!$A$6:$AM$500,11,FALSE))&")")),"NA") -> 13% (2111) | J33: =IFERROR((IF($C33="NA","NA",VLOOKUP($A$3,'G6-MH'!$A$6:$AM$500,13,FALSE))),"NA") -> 1.630281295 | K33: =IFERROR((IF($C33="NA","NA",ROUND(VLOOKUP($A$3,'G6-MH'!$A$6:$AM$500,15,FALSE),0)&"% ("&IF(VLOOKUP($A$3,'G6-MH'!$A$6:$AM$500,14,FALSE)="",0,VLOOKUP($A$3,'G6-MH'!$A$6:$AM$500,14,FALSE))&")")),"NA") -> 2% (251)
A34: Asian | B34: =IFERROR(VLOOKUP(TEXT($A$3,"0000"),MEM_A!$A$2:$O$500,10,FALSE),"NA") -> 326 | C34: =IFERROR((IF(OR(B34<10,B34="",B34="NA"),"NA",((IF(VLOOKUP($A$3,'G6-MA'!$A$6:$AM$500,3,FALSE)>=B34,"100% ("&VLOOKUP($A$3,'G6-MA'!$A$6:$AM$500,3,FALSE)&")",(ROUND((VLOOKUP($A$3,'G6-MA'!$A$6:$AM$500,3,FALSE)/B34*100),0))&"% ("&IF(VLOOKUP($A$3,'G6-MA'!$A$6:$AM$500,3,FALSE)="",0,VLOOKUP($A$3,'G6-MA'!$A$6:$AM$500,3,FALSE))&")"))))),"0% (0)") -> 90% (295) | D34: =IFERROR((IF($C34="NA","NA",VLOOKUP($A$3,'G6-MA'!$A$6:$AM$500,4,FALSE))),"NA") -> 14.7420339 | E34: =IFERROR((IF($C34="NA","NA",ROUND(VLOOKUP($A$3,'G6-MA'!$A$6:$AM$500,6,FALSE),0)&"% ("&IF(VLOOKUP($A$3,'G6-MA'!$A$6:$AM$500,5,FALSE)="",0,VLOOKUP($A$3,'G6-MA'!$A$6:$AM$500,5,FALSE))&")")),"NA") -> 7% (20) | F34: =IFERROR((IF($C34="NA","NA",VLOOKUP($A$3,'G6-MA'!$A$6:$AM$500,7,FALSE))),"NA") -> 7.673220339 | G34: =IFERROR((IF($C34="NA","NA",ROUND(VLOOKUP($A$3,'G6-MA'!$A$6:$AM$500,9,FALSE),0)&"% ("&IF(VLOOKUP($A$3,'G6-MA'!$A$6:$AM$500,8,FALSE)="",0,VLOOKUP($A$3,'G6-MA'!$A$6:$AM$500,8,FALSE))&")")),"NA") -> 6% (18) | H34: =IFERROR((IF($C34="NA","NA",VLOOKUP($A$3,'G6-MA'!$A$6:$AM$500,10,FALSE))),"NA") -> 4.626101695 | I34: =IFERROR((IF($C34="NA","NA",ROUND(VLOOKUP($A$3,'G6-MA'!$A$6:$AM$500,12,FALSE),0)&"% ("&IF(VLOOKUP($A$3,'G6-MA'!$A$6:$AM$500,11,FALSE)="",0,VLOOKUP($A$3,'G6-MA'!$A$6:$AM$500,11,FALSE))&")")),"NA") -> 31% (90) | J34: =IFERROR((IF($C34="NA","NA",VLOOKUP($A$3,'G6-MA'!$A$6:$AM$500,13,FALSE))),"NA") -> 2.453559322 | K34: =IFERROR((IF($C34="NA","NA",ROUND(VLOOKUP($A$3,'G6-MA'!$A$6:$AM$500,15,FALSE),0)&"% ("&IF(VLOOKUP($A$3,'G6-MA'!$A$6:$AM$500,14,FALSE)="",0,VLOOKUP($A$3,'G6-MA'!$A$6:$AM$500,14,FALSE))&")")),"NA") -> 10% (30)
A35: Am. Indian | B35: =IFERROR(VLOOKUP(TEXT($A$3,"0000"),MEM_I!$A$2:$O$500,10,FALSE),"NA") -> 22 | C35: =IFERROR((IF(OR(B35<10,B35="",B35="NA"),"NA",((IF(VLOOKUP($A$3,'G6-MI'!$A$6:$AM$500,3,FALSE)>=B35,"100% ("&VLOOKUP($A$3,'G6-MI'!$A$6:$AM$500,3,FALSE)&")",(ROUND((VLOOKUP($A$3,'G6-MI'!$A$6:$AM$500,3,FALSE)/B35*100),0))&"% ("&IF(VLOOKUP($A$3,'G6-MI'!$A$6:$AM$500,3,FALSE)="",0,VLOOKUP($A$3,'G6-MI'!$A$6:$AM$500,3,FALSE))&")"))))),"0% (0)") -> 91% (20) | D35: =IFERROR((IF($C35="NA","NA",VLOOKUP($A$3,'G6-MI'!$A$6:$AM$500,4,FALSE))),"NA") -> 12.25 | E35: =IFERROR((IF($C35="NA","NA",ROUND(VLOOKUP($A$3,'G6-MI'!$A$6:$AM$500,6,FALSE),0)&"% ("&IF(VLOOKUP($A$3,'G6-MI'!$A$6:$AM$500,5,FALSE)="",0,VLOOKUP($A$3,'G6-MI'!$A$6:$AM$500,5,FALSE))&")")),"NA") -> 0% (0) | F35: =IFERROR((IF($C35="NA","NA",VLOOKUP($A$3,'G6-MI'!$A$6:$AM$500,7,FALSE))),"NA") -> 6.45 | G35: =IFERROR((IF($C35="NA","NA",ROUND(VLOOKUP($A$3,'G6-MI'!$A$6:$AM$500,9,FALSE),0)&"% ("&IF(VLOOKUP($A$3,'G6-MI'!$A$6:$AM$500,8,FALSE)="",0,VLOOKUP($A$3,'G6-MI'!$A$6:$AM$500,8,FALSE))&")")),"NA") -> 0% (0) | H35: =IFERROR((IF($C35="NA","NA",VLOOKUP($A$3,'G6-MI'!$A$6:$AM$500,10,FALSE))),"NA") -> 4.05 | I35: =IFERROR((IF($C35="NA","NA",ROUND(VLOOKUP($A$3,'G6-MI'!$A$6:$AM$500,12,FALSE),0)&"% ("&IF(VLOOKUP($A$3,'G6-MI'!$A$6:$AM$500,11,FALSE)="",0,VLOOKUP($A$3,'G6-MI'!$A$6:$AM$500,11,FALSE))&")")),"NA") -> 30% (6) | J35: =IFERROR((IF($C35="NA","NA",VLOOKUP($A$3,'G6-MI'!$A$6:$AM$500,13,FALSE))),"NA") -> 1.75 | K35: =IFERROR((IF($C35="NA","NA",ROUND(VLOOKUP($A$3,'G6-MI'!$A$6:$AM$500,15,FALSE),0)&"% ("&IF(VLOOKUP($A$3,'G6-MI'!$A$6:$AM$500,14,FALSE)="",0,VLOOKUP($A$3,'G6-MI'!$A$6:$AM$500,14,FALSE))&")")),"NA") -> 5% (1)
A36: ED | B36: =IFERROR(VLOOKUP(TEXT($A$3,"0000"),MEM_ED!$A$2:$O$500,10,FALSE),"NA") -> 19942 | C36: =IFERROR((IF(OR(B36<10,B36="",B36="NA"),"NA",((IF(VLOOKUP($A$3,'G6-MED'!$A$6:$AM$500,3,FALSE)>=B36,"100% ("&VLOOKUP($A$3,'G6-MED'!$A$6:$AM$500,3,FALSE)&")",(ROUND((VLOOKUP($A$3,'G6-MED'!$A$6:$AM$500,3,FALSE)/B36*100),0))&"% ("&IF(VLOOKUP($A$3,'G6-MED'!$A$6:$AM$500,3,FALSE)="",0,VLOOKUP($A$3,'G6-MED'!$A$6:$AM$500,3,FALSE))&")"))))),"0% (0)") -> 94% (18687) | D36: =IFERROR((IF($C36="NA","NA",VLOOKUP($A$3,'G6-MED'!$A$6:$AM$500,4,FALSE))),"NA") -> 10.31707604 | E36: =IFERROR((IF($C36="NA","NA",ROUND(VLOOKUP($A$3,'G6-MED'!$A$6:$AM$500,6,FALSE),0)&"% ("&IF(VLOOKUP($A$3,'G6-MED'!$A$6:$AM$500,5,FALSE)="",0,VLOOKUP($A$3,'G6-MED'!$A$6:$AM$500,5,FALSE))&")")),"NA") -> 0% (87) | F36: =IFERROR((IF($C36="NA","NA",VLOOKUP($A$3,'G6-MED'!$A$6:$AM$500,7,FALSE))),"NA") -> 5.49478782 | G36: =IFERROR((IF($C36="NA","NA",ROUND(VLOOKUP($A$3,'G6-MED'!$A$6:$AM$500,9,FALSE),0)&"% ("&IF(VLOOKUP($A$3,'G6-MED'!$A$6:$AM$500,8,FALSE)="",0,VLOOKUP($A$3,'G6-MED'!$A$6:$AM$500,8,FALSE))&")")),"NA") -> 1% (114) | H36: =IFERROR((IF($C36="NA","NA",VLOOKUP($A$3,'G6-MED'!$A$6:$AM$500,10,FALSE))),"NA") -> 3.246337026 | I36: =IFERROR((IF($C36="NA","NA",ROUND(VLOOKUP($A$3,'G6-MED'!$A$6:$AM$500,12,FALSE),0)&"% ("&IF(VLOOKUP($A$3,'G6-MED'!$A$6:$AM$500,11,FALSE)="",0,VLOOKUP($A$3,'G6-MED'!$A$6:$AM$500,11,FALSE))&")")),"NA") -> 11% (2009) | J36: =IFERROR((IF($C36="NA","NA",VLOOKUP($A$3,'G6-MED'!$A$6:$AM$500,13,FALSE))),"NA") -> 1.581516562 | K36: =IFERROR((IF($C36="NA","NA",ROUND(VLOOKUP($A$3,'G6-MED'!$A$6:$AM$500,15,FALSE),0)&"% ("&IF(VLOOKUP($A$3,'G6-MED'!$A$6:$AM$500,14,FALSE)="",0,VLOOKUP($A$3,'G6-MED'!$A$6:$AM$500,14,FALSE))&")")),"NA") -> 1% (258)
A37: ELL | B37: =IFERROR(VLOOKUP(TEXT($A$3,"0000"),MEM_ELL!$A$2:$O$500,10,FALSE),"NA") -> 5895 | C37: =IFERROR((IF(OR(B37<10,B37="",B37="NA"),"NA",((IF(VLOOKUP($A$3,'G6-MELL'!$A$6:$AM$500,3,FALSE)>=B37,"100% ("&VLOOKUP($A$3,'G6-MELL'!$A$6:$AM$500,3,FALSE)&")",(ROUND((VLOOKUP($A$3,'G6-MELL'!$A$6:$AM$500,3,FALSE)/B37*100),0))&"% ("&IF(VLOOKUP($A$3,'G6-MELL'!$A$6:$AM$500,3,FALSE)="",0,VLOOKUP($A$3,'G6-MELL'!$A$6:$AM$500,3,FALSE))&")"))))),"0% (0)") -> 93% (5456) | D37: =IFERROR((IF($C37="NA","NA",VLOOKUP($A$3,'G6-MELL'!$A$6:$AM$500,4,FALSE))),"NA") -> 8.988453079 | E37: =IFERROR((IF($C37="NA","NA",ROUND(VLOOKUP($A$3,'G6-MELL'!$A$6:$AM$500,6,FALSE),0)&"% ("&IF(VLOOKUP($A$3,'G6-MELL'!$A$6:$AM$500,5,FALSE)="",0,VLOOKUP($A$3,'G6-MELL'!$A$6:$AM$500,5,FALSE))&")")),"NA") -> 0% (6) | F37: =IFERROR((IF($C37="NA","NA",VLOOKUP($A$3,'G6-MELL'!$A$6:$AM$500,7,FALSE))),"NA") -> 4.840359238 | G37: =IFERROR((IF($C37="NA","NA",ROUND(VLOOKUP($A$3,'G6-MELL'!$A$6:$AM$500,9,FALSE),0)&"% ("&IF(VLOOKUP($A$3,'G6-MELL'!$A$6:$AM$500,8,FALSE)="",0,VLOOKUP($A$3,'G6-MELL'!$A$6:$AM$500,8,FALSE))&")")),"NA") -> 0% (11) | H37: =IFERROR((IF($C37="NA","NA",VLOOKUP($A$3,'G6-MELL'!$A$6:$AM$500,10,FALSE))),"NA") -> 2.75494868 | I37: =IFERROR((IF($C37="NA","NA",ROUND(VLOOKUP($A$3,'G6-MELL'!$A$6:$AM$500,12,FALSE),0)&"% ("&IF(VLOOKUP($A$3,'G6-MELL'!$A$6:$AM$500,11,FALSE)="",0,VLOOKUP($A$3,'G6-MELL'!$A$6:$AM$500,11,FALSE))&")")),"NA") -> 5% (276) | J37: =IFERROR((IF($C37="NA","NA",VLOOKUP($A$3,'G6-MELL'!$A$6:$AM$500,13,FALSE))),"NA") -> 1.393145161 | K37: =IFERROR((IF($C37="NA","NA",ROUND(VLOOKUP($A$3,'G6-MELL'!$A$6:$AM$500,15,FALSE),0)&"% ("&IF(VLOOKUP($A$3,'G6-MELL'!$A$6:$AM$500,14,FALSE)="",0,VLOOKUP($A$3,'G6-MELL'!$A$6:$AM$500,14,FALSE))&")")),"NA") -> 1% (39)
A38: SWD | B38: =IFERROR(VLOOKUP(TEXT($A$3,"0000"),MEM_SWD!$A$2:$O$500,10,FALSE),"NA") -> 2433 | C38: =IFERROR((IF(OR(B38<10,B38="",B38="NA"),"NA",((IF(VLOOKUP($A$3,'G6-MSWD'!$A$6:$AM$500,3,FALSE)>=B38,"100% ("&VLOOKUP($A$3,'G6-MSWD'!$A$6:$AM$500,3,FALSE)&")",(ROUND((VLOOKUP($A$3,'G6-MSWD'!$A$6:$AM$500,3,FALSE)/B38*100),0))&"% ("&IF(VLOOKUP($A$3,'G6-MSWD'!$A$6:$AM$500,3,FALSE)="",0,VLOOKUP($A$3,'G6-MSWD'!$A$6:$AM$500,3,FALSE))&")"))))),"0% (0)") -> 90% (2179) | D38: =IFERROR((IF($C38="NA","NA",VLOOKUP($A$3,'G6-MSWD'!$A$6:$AM$500,4,FALSE))),"NA") -> 8.816704911 | E38: =IFERROR((IF($C38="NA","NA",ROUND(VLOOKUP($A$3,'G6-MSWD'!$A$6:$AM$500,6,FALSE),0)&"% ("&IF(VLOOKUP($A$3,'G6-MSWD'!$A$6:$AM$500,5,FALSE)="",0,VLOOKUP($A$3,'G6-MSWD'!$A$6:$AM$500,5,FALSE))&")")),"NA") -> 0% (7) | F38: =IFERROR((IF($C38="NA","NA",VLOOKUP($A$3,'G6-MSWD'!$A$6:$AM$500,7,FALSE))),"NA") -> 4.844148692 | G38: =IFERROR((IF($C38="NA","NA",ROUND(VLOOKUP($A$3,'G6-MSWD'!$A$6:$AM$500,9,FALSE),0)&"% ("&IF(VLOOKUP($A$3,'G6-MSWD'!$A$6:$AM$500,8,FALSE)="",0,VLOOKUP($A$3,'G6-MSWD'!$A$6:$AM$500,8,FALSE))&")")),"NA") -> 0% (8) | H38: =IFERROR((IF($C38="NA","NA",VLOOKUP($A$3,'G6-MSWD'!$A$6:$AM$500,10,FALSE))),"NA") -> 2.596603947 | I38: =IFERROR((IF($C38="NA","NA",ROUND(VLOOKUP($A$3,'G6-MSWD'!$A$6:$AM$500,12,FALSE),0)&"% ("&IF(VLOOKUP($A$3,'G6-MSWD'!$A$6:$AM$500,11,FALSE)="",0,VLOOKUP($A$3,'G6-MSWD'!$A$6:$AM$500,11,FALSE))&")")),"NA") -> 4% (92) | J38: =IFERROR((IF($C38="NA","NA",VLOOKUP($A$3,'G6-MSWD'!$A$6:$AM$500,13,FALSE))),"NA") -> 1.370628729 | K38: =IFERROR((IF($C38="NA","NA",ROUND(VLOOKUP($A$3,'G6-MSWD'!$A$6:$AM$500,15,FALSE),0)&"% ("&IF(VLOOKUP($A$3,'G6-MSWD'!$A$6:$AM$500,14,FALSE)="",0,VLOOKUP($A$3,'G6-MSWD'!$A$6:$AM$500,14,FALSE))&")")),"NA") -> 1% (17)

Sheet Grade 7 Report
A2: Click here to return to the school and sheet selection interface
A3: ='Select School'!B3 -> 9999
A4: =TEXT(A3,"0000")&"-"&VLOOKUP(A3,SchList!$A$2:$B$504,2,FALSE) -> 9999-District
A5: Reading - Grade 7
A6: Level of Proficiency at 70% or above | B6: Total # of Students | C6: % of Students Tested | D6: ='G6-8 Matrix'!C2&"["&'G6-8 Matrix'!C5&"]" -> Overall[39] | F6: ='G6-8 Matrix'!D2&"["&'G6-8 Matrix'!D5&"]" -> Vocabulary[7] | H6: ='G6-8 Matrix'!E2&"["&'G6-8 Matrix'!E5&"]" -> Reading Application[19] | J6: ='G6-8 Matrix'!F2&"["&'G6-8 Matrix'!F5&"]" -> Literary Analysis Fiction/Nonfiction[6] | L6: ='G6-8 Matrix'!G2&"["&'G6-8 Matrix'!G5&"]" -> Informational Text/ Research Process[7]
D7: Average Score | E7: % Proficient | F7: Average Score | G7: % Proficient | H7: Average Score | I7: % Proficient | J7: Average Score | K7: % Proficient | L7: Average Score | M7: % Proficient
A8: All students | B8: =IFERROR(VLOOKUP(TEXT($A$3,"0000"),Mem_All!$A$2:$O$500,11,FALSE),"NA") -> 26581 | C8: =IFERROR((IF(OR(B8<10,B8="",B8="NA"),"NA",((IF(VLOOKUP($A$3,'G7-RALL'!$A$6:$AM$500,3,FALSE)>=B8,"100% ("&VLOOKUP($A$3,'G7-RALL'!$A$6:$AM$500,3,FALSE)&")",(ROUND((VLOOKUP($A$3,'G7-RALL'!$A$6:$AM$500,3,FALSE)/B8*100),0))&"% ("&IF(VLOOKUP($A$3,'G7-RALL'!$A$6:$AM$500,3,FALSE)="",0,VLOOKUP($A$3,'G7-RALL'!$A$6:$AM$500,3,FALSE))&")"))))),"0% (0)") -> 93% (24616) | D8: =IFERROR((IF($C8="NA","NA",VLOOKUP($A$3,'G7-RALL'!$A$6:$AM$500,4,FALSE))),"NA") -> 25.19542574 | E8: =IFERROR((IF($C8="NA","NA",ROUND(VLOOKUP($A$3,'G7-RALL'!$A$6:$AM$500,6,FALSE),0)&"% ("&IF(VLOOKUP($A$3,'G7-RALL'!$A$6:$AM$500,5,FALSE)="",0,VLOOKUP($A$3,'G7-RALL'!$A$6:$AM$500,5,FALSE))&")")),"NA") -> 46% (11408) | F8: =IFERROR((IF($C8="NA","NA",VLOOKUP($A$3,'G7-RALL'!$A$6:$AM$500,7,FALSE))),"NA") -> 4.726291843 | G8: =IFERROR((IF($C8="NA","NA",ROUND(VLOOKUP($A$3,'G7-RALL'!$A$6:$AM$500,9,FALSE),0)&"% ("&IF(VLOOKUP($A$3,'G7-RALL'!$A$6:$AM$500,8,FALSE)="",0,VLOOKUP($A$3,'G7-RALL'!$A$6:$AM$500,8,FALSE))&")")),"NA") -> 59% (14549) | H8: =IFERROR((IF($C8="NA","NA",VLOOKUP($A$3,'G7-RALL'!$A$6:$AM$500,10,FALSE))),"NA") -> 12.15855541 | I8: =IFERROR((IF($C8="NA","NA",ROUND(VLOOKUP($A$3,'G7-RALL'!$A$6:$AM$500,12,FALSE),0)&"% ("&IF(VLOOKUP($A$3,'G7-RALL'!$A$6:$AM$500,11,FALSE)="",0,VLOOKUP($A$3,'G7-RALL'!$A$6:$AM$500,11,FALSE))&")")),"NA") -> 44% (10944) | J8: =IFERROR((IF($C8="NA","NA",VLOOKUP($A$3,'G7-RALL'!$A$6:$AM$500,13,FALSE))),"NA") -> 4.056572961 | K8: =IFERROR((IF($C8="NA","NA",ROUND(VLOOKUP($A$3,'G7-RALL'!$A$6:$AM$500,15,FALSE),0)&"% ("&IF(VLOOKUP($A$3,'G7-RALL'!$A$6:$AM$500,14,FALSE)="",0,VLOOKUP($A$3,'G7-RALL'!$A$6:$AM$500,14,FALSE))&")")),"NA") -> 48% (11858) | L8: =IFERROR((IF($C8="NA","NA",VLOOKUP($A$3,'G7-RALL'!$A$6:$AM$500,16,FALSE))),"NA") -> 4.254525512 | M8: =IFERROR((IF($C8="NA","NA",ROUND(VLOOKUP($A$3,'G7-RALL'!$A$6:$AM$500,18,FALSE),0)&"% ("&IF(VLOOKUP($A$3,'G7-RALL'!$A$6:$AM$500,17,FALSE)="",0,VLOOKUP($A$3,'G7-RALL'!$A$6:$AM$500,17,FALSE))&")")),"NA") -> 49% (12040)
A9: FCAT Level 1 | B9: =IFERROR(VLOOKUP(TEXT($A$3,"0000"),MEM_RL1!$A$2:$O$500,8,FALSE),"NA") -> 5254 | C9: =IFERROR((IF(OR(B9<10,B9="",B9="NA"),"NA",((IF(VLOOKUP($A$3,'G7-RL1'!$A$6:$AL$500,3,FALSE)>=B9,"100% ("&VLOOKUP($A$3,'G7-RL1'!$A$6:$AL$500,3,FALSE)&")",(ROUND((VLOOKUP($A$3,'G7-RL1'!$A$6:$AL$500,3,FALSE)/B9*100),0))&"% ("&IF(VLOOKUP($A$3,'G7-RL1'!$A$6:$AL$500,3,FALSE)="",0,VLOOKUP($A$3,'G7-RL1'!$A$6:$AL$500,3,FALSE))&")"))))),"0% (0)") -> 94% (4938) | D9: =IFERROR((IF($C9="NA","NA",VLOOKUP($A$3,'G7-RL1'!$A$6:$AL$500,4,FALSE))),"NA") -> 15.11729445 | E9: =IFERROR((IF($C9="NA","NA",ROUND(VLOOKUP($A$3,'G7-RL1'!$A$6:$AL$500,6,FALSE),0)&"% ("&IF(VLOOKUP($A$3,'G7-RL1'!$A$6:$AL$500,5,FALSE)="",0,VLOOKUP($A$3,'G7-RL1'!$A$6:$AL$500,5,FALSE))&")")),"NA") -> 1% (73) | F9: =IFERROR((IF($C9="NA","NA",VLOOKUP($A$3,'G7-RL1'!$A$6:$AL$500,7,FALSE))),"NA") -> 3.12417983 | G9: =IFERROR((IF($C9="NA","NA",ROUND(VLOOKUP($A$3,'G7-RL1'!$A$6:$AL$500,9,FALSE),0)&"% ("&IF(VLOOKUP($A$3,'G7-RL1'!$A$6:$AL$500,8,FALSE)="",0,VLOOKUP($A$3,'G7-RL1'!$A$6:$AL$500,8,FALSE))&")")),"NA") -> 17% (854) | H9: =IFERROR((IF($C9="NA","NA",VLOOKUP($A$3,'G7-RL1'!$A$6:$AL$500,10,FALSE))),"NA") -> 7.211057108 | I9: =IFERROR((IF($C9="NA","NA",ROUND(VLOOKUP($A$3,'G7-RL1'!$A$6:$AL$500,12,FALSE),0)&"% ("&IF(VLOOKUP($A$3,'G7-RL1'!$A$6:$AL$500,11,FALSE)="",0,VLOOKUP($A$3,'G7-RL1'!$A$6:$AL$500,11,FALSE))&")")),"NA") -> 2% (111) | J9: =IFERROR((IF($C9="NA","NA",VLOOKUP($A$3,'G7-RL1'!$A$6:$AL$500,13,FALSE))),"NA") -> 2.383515593 | K9: =IFERROR((IF($C9="NA","NA",ROUND(VLOOKUP($A$3,'G7-RL1'!$A$6:$AL$500,15,FALSE),0)&"% ("&IF(VLOOKUP($A$3,'G7-RL1'!$A$6:$AL$500,14,FALSE)="",0,VLOOKUP($A$3,'G7-RL1'!$A$6:$AL$500,14,FALSE))&")")),"NA") -> 7% (331) | L9: =IFERROR((IF($C9="NA","NA",VLOOKUP($A$3,'G7-RL1'!$A$6:$AL$500,16,FALSE))),"NA") -> 2.390400972 | M9: =IFERROR((IF($C9="NA","NA",ROUND(VLOOKUP($A$3,'G7-RL1'!$A$6:$AL$500,18,FALSE),0)&"% ("&IF(VLOOKUP($A$3,'G7-RL1'!$A$6:$AL$500,17,FALSE)="",0,VLOOKUP($A$3,'G7-RL1'!$A$6:$AL$500,17,FALSE))&")")),"NA") -> 8% (379)
A10: FCAT Level 2 | B10: =IFERROR(VLOOKUP(TEXT($A$3,"0000"),MEM_RL2!$A$2:$O$500,8,FALSE),"NA") -> 6496 | C10: =IFERROR((IF(OR(B10<10,B10="",B10="NA"),"NA",((IF(VLOOKUP($A$3,'G7-RL2'!$A$6:$AL$500,3,FALSE)>=B10,"100% ("&VLOOKUP($A$3,'G7-RL2'!$A$6:$AL$500,3,FALSE)&")",(ROUND((VLOOKUP($A$3,'G7-RL2'!$A$6:$AL$500,3,FALSE)/B10*100),0))&"% ("&IF(VLOOKUP($A$3,'G7-RL2'!$A$6:$AL$500,3,FALSE)="",0,VLOOKUP($A$3,'G7-RL2'!$A$6:$AL$500,3,FALSE))&")"))))),"0% (0)") -> 80% (5193) | D10: =IFERROR((IF($C10="NA","NA",VLOOKUP($A$3,'G7-RL2'!$A$6:$AL$500,4,FALSE))),"NA") -> 21.75434238 | E10: =IFERROR((IF($C10="NA","NA",ROUND(VLOOKUP($A$3,'G7-RL2'!$A$6:$AL$500,6,FALSE),0)&"% ("&IF(VLOOKUP($A$3,'G7-RL2'!$A$6:$AL$500,5,FALSE)="",0,VLOOKUP($A$3,'G7-RL2'!$A$6:$AL$500,5,FALSE))&")")),"NA") -> 17% (892) | F10: =IFERROR((IF($C10="NA","NA",VLOOKUP($A$3,'G7-RL2'!$A$6:$AL$500,7,FALSE))),"NA") -> 4.190410168 | G10: =IFERROR((IF($C10="NA","NA",ROUND(VLOOKUP($A$3,'G7-RL2'!$A$6:$AL$500,9,FALSE),0)&"% ("&IF(VLOOKUP($A$3,'G7-RL2'!$A$6:$AL$500,8,FALSE)="",0,VLOOKUP($A$3,'G7-RL2'!$A$6:$AL$500,8,FALSE))&")")),"NA") -> 43% (2216) | H10: =IFERROR((IF($C10="NA","NA",VLOOKUP($A$3,'G7-RL2'!$A$6:$AL$500,10,FALSE))),"NA") -> 10.38992875 | I10: =IFERROR((IF($C10="NA","NA",ROUND(VLOOKUP($A$3,'G7-RL2'!$A$6:$AL$500,12,FALSE),0)&"% ("&IF(VLOOKUP($A$3,'G7-RL2'!$A$6:$AL$500,11,FALSE)="",0,VLOOKUP($A$3,'G7-RL2'!$A$6:$AL$500,11,FALSE))&")")),"NA") -> 18% (958) | J10: =IFERROR((IF($C10="NA","NA",VLOOKUP($A$3,'G7-RL2'!$A$6:$AL$500,13,FALSE))),"NA") -> 3.575043328 | K10: =IFERROR((IF($C10="NA","NA",ROUND(VLOOKUP($A$3,'G7-RL2'!$A$6:$AL$500,15,FALSE),0)&"% ("&IF(VLOOKUP($A$3,'G7-RL2'!$A$6:$AL$500,14,FALSE)="",0,VLOOKUP($A$3,'G7-RL2'!$A$6:$AL$500,14,FALSE))&")")),"NA") -> 28% (1477) | L10: =IFERROR((IF($C10="NA","NA",VLOOKUP($A$3,'G7-RL2'!$A$6:$AL$500,16,FALSE))),"NA") -> 3.601906412 | M10: =IFERROR((IF($C10="NA","NA",ROUND(VLOOKUP($A$3,'G7-RL2'!$A$6:$AL$500,18,FALSE),0)&"% ("&IF(VLOOKUP($A$3,'G7-RL2'!$A$6:$AL$500,17,FALSE)="",0,VLOOKUP($A$3,'G7-RL2'!$A$6:$AL$500,17,FALSE))&")")),"NA") -> 29% (1520)
A11: FCAT Level 3 | B11: =IFERROR(VLOOKUP(TEXT($A$3,"0000"),MEM_RL3!$A$2:$O$500,8,FALSE),"NA") -> 7096 | C11: =IFERROR((IF(OR(B11<10,B11="",B11="NA"),"NA",((IF(VLOOKUP($A$3,'G7-RL3'!$A$6:$AL$500,3,FALSE)>=B11,"100% ("&VLOOKUP($A$3,'G7-RL3'!$A$6:$AL$500,3,FALSE)&")",(ROUND((VLOOKUP($A$3,'G7-RL3'!$A$6:$AL$500,3,FALSE)/B11*100),0))&"% ("&IF(VLOOKUP($A$3,'G7-RL3'!$A$6:$AL$500,3,FALSE)="",0,VLOOKUP($A$3,'G7-RL3'!$A$6:$AL$500,3,FALSE))&")"))))),"0% (0)") -> 95% (6708) | D11: =IFERROR((IF($C11="NA","NA",VLOOKUP($A$3,'G7-RL3'!$A$6:$AL$500,4,FALSE))),"NA") -> 27.66902206 | E11: =IFERROR((IF($C11="NA","NA",ROUND(VLOOKUP($A$3,'G7-RL3'!$A$6:$AL$500,6,FALSE),0)&"% ("&IF(VLOOKUP($A$3,'G7-RL3'!$A$6:$AL$500,5,FALSE)="",0,VLOOKUP($A$3,'G7-RL3'!$A$6:$AL$500,5,FALSE))&")")),"NA") -> 58% (3914) | F11: =IFERROR((IF($C11="NA","NA",VLOOKUP($A$3,'G7-RL3'!$A$6:$AL$500,7,FALSE))),"NA") -> 5.126147883 | G11: =IFERROR((IF($C11="NA","NA",ROUND(VLOOKUP($A$3,'G7-RL3'!$A$6:$AL$500,9,FALSE),0)&"% ("&IF(VLOOKUP($A$3,'G7-RL3'!$A$6:$AL$500,8,FALSE)="",0,VLOOKUP($A$3,'G7-RL3'!$A$6:$AL$500,8,FALSE))&")")),"NA") -> 71% (4779) | H11: =IFERROR((IF($C11="NA","NA",VLOOKUP($A$3,'G7-RL3'!$A$6:$AL$500,10,FALSE))),"NA") -> 13.3265653 | I11: =IFERROR((IF($C11="NA","NA",ROUND(VLOOKUP($A$3,'G7-RL3'!$A$6:$AL$500,12,FALSE),0)&"% ("&IF(VLOOKUP($A$3,'G7-RL3'!$A$6:$AL$500,11,FALSE)="",0,VLOOKUP($A$3,'G7-RL3'!$A$6:$AL$500,11,FALSE))&")")),"NA") -> 54% (3600) | J11: =IFERROR((IF($C11="NA","NA",VLOOKUP($A$3,'G7-RL3'!$A$6:$AL$500,13,FALSE))),"NA") -> 4.525760286 | K11: =IFERROR((IF($C11="NA","NA",ROUND(VLOOKUP($A$3,'G7-RL3'!$A$6:$AL$500,15,FALSE),0)&"% ("&IF(VLOOKUP($A$3,'G7-RL3'!$A$6:$AL$500,14,FALSE)="",0,VLOOKUP($A$3,'G7-RL3'!$A$6:$AL$500,14,FALSE))&")")),"NA") -> 59% (3952) | L11: =IFERROR((IF($C11="NA","NA",VLOOKUP($A$3,'G7-RL3'!$A$6:$AL$500,16,FALSE))),"NA") -> 4.692561121 | M11: =IFERROR((IF($C11="NA","NA",ROUND(VLOOKUP($A$3,'G7-RL3'!$A$6:$AL$500,18,FALSE),0)&"% ("&IF(VLOOKUP($A$3,'G7-RL3'!$A$6:$AL$500,17,FALSE)="",0,VLOOKUP($A$3,'G7-RL3'!$A$6:$AL$500,17,FALSE))&")")),"NA") -> 58% (3902)
A12: FCAT Level 4 | B12: =IFERROR(VLOOKUP(TEXT($A$3,"0000"),MEM_RL4!$A$2:$O$500,8,FALSE),"NA") -> 4920 | C12: =IFERROR((IF(OR(B12<10,B12="",B12="NA"),"NA",((IF(VLOOKUP($A$3,'G7-RL4'!$A$6:$AL$500,3,FALSE)>=B12,"100% ("&VLOOKUP($A$3,'G7-RL4'!$A$6:$AL$500,3,FALSE)&")",(ROUND((VLOOKUP($A$3,'G7-RL4'!$A$6:$AL$500,3,FALSE)/B12*100),0))&"% ("&IF(VLOOKUP($A$3,'G7-RL4'!$A$6:$AL$500,3,FALSE)="",0,VLOOKUP($A$3,'G7-RL4'!$A$6:$AL$500,3,FALSE))&")"))))),"0% (0)") -> 95% (4696) | D12: =IFERROR((IF($C12="NA","NA",VLOOKUP($A$3,'G7-RL4'!$A$6:$AL$500,4,FALSE))),"NA") -> 32.20655877 | E12: =IFERROR((IF($C12="NA","NA",ROUND(VLOOKUP($A$3,'G7-RL4'!$A$6:$AL$500,6,FALSE),0)&"% ("&IF(VLOOKUP($A$3,'G7-RL4'!$A$6:$AL$500,5,FALSE)="",0,VLOOKUP($A$3,'G7-RL4'!$A$6:$AL$500,5,FALSE))&")")),"NA") -> 88% (4109) | F12: =IFERROR((IF($C12="NA","NA",VLOOKUP($A$3,'G7-RL4'!$A$6:$AL$500,7,FALSE))),"NA") -> 5.832091141 | G12: =IFERROR((IF($C12="NA","NA",ROUND(VLOOKUP($A$3,'G7-RL4'!$A$6:$AL$500,9,FALSE),0)&"% ("&IF(VLOOKUP($A$3,'G7-RL4'!$A$6:$AL$500,8,FALSE)="",0,VLOOKUP($A$3,'G7-RL4'!$A$6:$AL$500,8,FALSE))&")")),"NA") -> 89% (4191) | H12: =IFERROR((IF($C12="NA","NA",VLOOKUP($A$3,'G7-RL4'!$A$6:$AL$500,10,FALSE))),"NA") -> 15.66663118 | I12: =IFERROR((IF($C12="NA","NA",ROUND(VLOOKUP($A$3,'G7-RL4'!$A$6:$AL$500,12,FALSE),0)&"% ("&IF(VLOOKUP($A$3,'G7-RL4'!$A$6:$AL$500,11,FALSE)="",0,VLOOKUP($A$3,'G7-RL4'!$A$6:$AL$500,11,FALSE))&")")),"NA") -> 83% (3889) | J12: =IFERROR((IF($C12="NA","NA",VLOOKUP($A$3,'G7-RL4'!$A$6:$AL$500,13,FALSE))),"NA") -> 5.148786201 | K12: =IFERROR((IF($C12="NA","NA",ROUND(VLOOKUP($A$3,'G7-RL4'!$A$6:$AL$500,15,FALSE),0)&"% ("&IF(VLOOKUP($A$3,'G7-RL4'!$A$6:$AL$500,14,FALSE)="",0,VLOOKUP($A$3,'G7-RL4'!$A$6:$AL$500,14,FALSE))&")")),"NA") -> 80% (3766) | L12: =IFERROR((IF($C12="NA","NA",VLOOKUP($A$3,'G7-RL4'!$A$6:$AL$500,16,FALSE))),"NA") -> 5.556026405 | M12: =IFERROR((IF($C12="NA","NA",ROUND(VLOOKUP($A$3,'G7-RL4'!$A$6:$AL$500,18,FALSE),0)&"% ("&IF(VLOOKUP($A$3,'G7-RL4'!$A$6:$AL$500,17,FALSE)="",0,VLOOKUP($A$3,'G7-RL4'!$A$6:$AL$500,17,FALSE))&")")),"NA") -> 82% (3859)
A13: FCAT Level 5 | B13: =IFERROR(VLOOKUP(TEXT($A$3,"0000"),MEM_RL5!$A$2:$O$500,7,FALSE),"NA") -> 2401 | C13: =IFERROR((IF(OR(B13<10,B13="",B13="NA"),"NA",((IF(VLOOKUP($A$3,'G7-RL5'!$A$6:$AL$500,3,FALSE)>=B13,"100% ("&VLOOKUP($A$3,'G7-RL5'!$A$6:$AL$500,3,FALSE)&")",(ROUND((VLOOKUP($A$3,'G7-RL5'!$A$6:$AL$500,3,FALSE)/B13*100),0))&"% ("&IF(VLOOKUP($A$3,'G7-RL5'!$A$6:$AL$500,3,FALSE)="",0,VLOOKUP($A$3,'G7-RL5'!$A$6:$AL$500,3,FALSE))&")"))))),"0% (0)") -> 97% (2327) | D13: =IFERROR((IF($C13="NA","NA",VLOOKUP($A$3,'G7-RL5'!$A$6:$AL$500,4,FALSE))),"NA") -> 35.11284916 | E13: =IFERROR((IF($C13="NA","NA",ROUND(VLOOKUP($A$3,'G7-RL5'!$A$6:$AL$500,6,FALSE),0)&"% ("&IF(VLOOKUP($A$3,'G7-RL5'!$A$6:$AL$500,5,FALSE)="",0,VLOOKUP($A$3,'G7-RL5'!$A$6:$AL$500,5,FALSE))&")")),"NA") -> 97% (2267) | F13: =IFERROR((IF($C13="NA","NA",VLOOKUP($A$3,'G7-RL5'!$A$6:$AL$500,7,FALSE))),"NA") -> 6.272797593 | G13: =IFERROR((IF($C13="NA","NA",ROUND(VLOOKUP($A$3,'G7-RL5'!$A$6:$AL$500,9,FALSE),0)&"% ("&IF(VLOOKUP($A$3,'G7-RL5'!$A$6:$AL$500,8,FALSE)="",0,VLOOKUP($A$3,'G7-RL5'!$A$6:$AL$500,8,FALSE))&")")),"NA") -> 97% (2262) | H13: =IFERROR((IF($C13="NA","NA",VLOOKUP($A$3,'G7-RL5'!$A$6:$AL$500,10,FALSE))),"NA") -> 17.21645896 | I13: =IFERROR((IF($C13="NA","NA",ROUND(VLOOKUP($A$3,'G7-RL5'!$A$6:$AL$500,12,FALSE),0)&"% ("&IF(VLOOKUP($A$3,'G7-RL5'!$A$6:$AL$500,11,FALSE)="",0,VLOOKUP($A$3,'G7-RL5'!$A$6:$AL$500,11,FALSE))&")")),"NA") -> 96% (2226) | J13: =IFERROR((IF($C13="NA","NA",VLOOKUP($A$3,'G7-RL5'!$A$6:$AL$500,13,FALSE))),"NA") -> 5.521787709 | K13: =IFERROR((IF($C13="NA","NA",ROUND(VLOOKUP($A$3,'G7-RL5'!$A$6:$AL$500,15,FALSE),0)&"% ("&IF(VLOOKUP($A$3,'G7-RL5'!$A$6:$AL$500,14,FALSE)="",0,VLOOKUP($A$3,'G7-RL5'!$A$6:$AL$500,14,FALSE))&")")),"NA") -> 93% (2161) | L13: =IFERROR((IF($C13="NA","NA",VLOOKUP($A$3,'G7-RL5'!$A$6:$AL$500,16,FALSE))),"NA") -> 6.102578427 | M13: =IFERROR((IF($C13="NA","NA",ROUND(VLOOKUP($A$3,'G7-RL5'!$A$6:$AL$500,18,FALSE),0)&"% ("&IF(VLOOKUP($A$3,'G7-RL5'!$A$6:$AL$500,17,FALSE)="",0,VLOOKUP($A$3,'G7-RL5'!$A$6:$AL$500,17,FALSE))&")")),"NA") -> 94% (2181)
A14: White | B14: =IFERROR(VLOOKUP(TEXT($A$3,"0000"),MEM_W!$A$2:$O$500,11,FALSE),"NA") -> 2133 | C14: =IFERROR((IF(OR(B14<10,B14="",B14="NA"),"NA",((IF(VLOOKUP($A$3,'G7-RW'!$A$6:$AL$500,3,FALSE)>=B14,"100% ("&VLOOKUP($A$3,'G7-RW'!$A$6:$AL$500,3,FALSE)&")",(ROUND((VLOOKUP($A$3,'G7-RW'!$A$6:$AL$500,3,FALSE)/B14*100),0))&"% ("&IF(VLOOKUP($A$3,'G7-RW'!$A$6:$AL$500,3,FALSE)="",0,VLOOKUP($A$3,'G7-RW'!$A$6:$AL$500,3,FALSE))&")"))))),"0% (0)") -> 92% (1963) | D14: =IFERROR((IF($C14="NA","NA",VLOOKUP($A$3,'G7-RW'!$A$6:$AL$500,4,FALSE))),"NA") -> 29.53270504 | E14: =IFERROR((IF($C14="NA","NA",ROUND(VLOOKUP($A$3,'G7-RW'!$A$6:$AL$500,6,FALSE),0)&"% ("&IF(VLOOKUP($A$3,'G7-RW'!$A$6:$AL$500,5,FALSE)="",0,VLOOKUP($A$3,'G7-RW'!$A$6:$AL$500,5,FALSE))&")")),"NA") -> 69% (1347) | F14: =IFERROR((IF($C14="NA","NA",VLOOKUP($A$3,'G7-RW'!$A$6:$AL$500,7,FALSE))),"NA") -> 5.471981661 | G14: =IFERROR((IF($C14="NA","NA",ROUND(VLOOKUP($A$3,'G7-RW'!$A$6:$AL$500,9,FALSE),0)&"% ("&IF(VLOOKUP($A$3,'G7-RW'!$A$6:$AL$500,8,FALSE)="",0,VLOOKUP($A$3,'G7-RW'!$A$6:$AL$500,8,FALSE))&")")),"NA") -> 78% (1532) | H14: =IFERROR((IF($C14="NA","NA",VLOOKUP($A$3,'G7-RW'!$A$6:$AL$500,10,FALSE))),"NA") -> 14.26622517 | I14: =IFERROR((IF($C14="NA","NA",ROUND(VLOOKUP($A$3,'G7-RW'!$A$6:$AL$500,12,FALSE),0)&"% ("&IF(VLOOKUP($A$3,'G7-RW'!$A$6:$AL$500,11,FALSE)="",0,VLOOKUP($A$3,'G7-RW'!$A$6:$AL$500,11,FALSE))&")")),"NA") -> 66% (1292) | J14: =IFERROR((IF($C14="NA","NA",VLOOKUP($A$3,'G7-RW'!$A$6:$AL$500,13,FALSE))),"NA") -> 4.771421294 | K14: =IFERROR((IF($C14="NA","NA",ROUND(VLOOKUP($A$3,'G7-RW'!$A$6:$AL$500,15,FALSE),0)&"% ("&IF(VLOOKUP($A$3,'G7-RW'!$A$6:$AL$500,14,FALSE)="",0,VLOOKUP($A$3,'G7-RW'!$A$6:$AL$500,14,FALSE))&")")),"NA") -> 69% (1345) | L14: =IFERROR((IF($C14="NA","NA",VLOOKUP($A$3,'G7-RW'!$A$6:$AL$500,16,FALSE))),"NA") -> 5.014824249 | M14: =IFERROR((IF($C14="NA","NA",ROUND(VLOOKUP($A$3,'G7-RW'!$A$6:$AL$500,18,FALSE),0)&"% ("&IF(VLOOKUP($A$3,'G7-RW'!$A$6:$AL$500,17,FALSE)="",0,VLOOKUP($A$3,'G7-RW'!$A$6:$AL$500,17,FALSE))&")")),"NA") -> 68% (1327)
A15: Black | B15: =IFERROR(VLOOKUP(TEXT($A$3,"0000"),MEM_B!$A$2:$O$500,11,FALSE),"NA") -> 5983 | C15: =IFERROR((IF(OR(B15<10,B15="",B15="NA"),"NA",((IF(VLOOKUP($A$3,'G7-RB'!$A$6:$AL$500,3,FALSE)>=B15,"100% ("&VLOOKUP($A$3,'G7-RB'!$A$6:$AL$500,3,FALSE)&")",(ROUND((VLOOKUP($A$3,'G7-RB'!$A$6:$AL$500,3,FALSE)/B15*100),0))&"% ("&IF(VLOOKUP($A$3,'G7-RB'!$A$6:$AL$500,3,FALSE)="",0,VLOOKUP($A$3,'G7-RB'!$A$6:$AL$500,3,FALSE))&")"))))),"0% (0)") -> 93% (5563) | D15: =IFERROR((IF($C15="NA","NA",VLOOKUP($A$3,'G7-RB'!$A$6:$AL$500,4,FALSE))),"NA") -> 22.85137516 | E15: =IFERROR((IF($C15="NA","NA",ROUND(VLOOKUP($A$3,'G7-RB'!$A$6:$AL$500,6,FALSE),0)&"% ("&IF(VLOOKUP($A$3,'G7-RB'!$A$6:$AL$500,5,FALSE)="",0,VLOOKUP($A$3,'G7-RB'!$A$6:$AL$500,5,FALSE))&")")),"NA") -> 33% (1812) | F15: =IFERROR((IF($C15="NA","NA",VLOOKUP($A$3,'G7-RB'!$A$6:$AL$500,7,FALSE))),"NA") -> 4.246269998 | G15: =IFERROR((IF($C15="NA","NA",ROUND(VLOOKUP($A$3,'G7-RB'!$A$6:$AL$500,9,FALSE),0)&"% ("&IF(VLOOKUP($A$3,'G7-RB'!$A$6:$AL$500,8,FALSE)="",0,VLOOKUP($A$3,'G7-RB'!$A$6:$AL$500,8,FALSE))&")")),"NA") -> 46% (2544) | H15: =IFERROR((IF($C15="NA","NA",VLOOKUP($A$3,'G7-RB'!$A$6:$AL$500,10,FALSE))),"NA") -> 11.10145605 | I15: =IFERROR((IF($C15="NA","NA",ROUND(VLOOKUP($A$3,'G7-RB'!$A$6:$AL$500,12,FALSE),0)&"% ("&IF(VLOOKUP($A$3,'G7-RB'!$A$6:$AL$500,11,FALSE)="",0,VLOOKUP($A$3,'G7-RB'!$A$6:$AL$500,11,FALSE))&")")),"NA") -> 33% (1824) | J15: =IFERROR((IF($C15="NA","NA",VLOOKUP($A$3,'G7-RB'!$A$6:$AL$500,13,FALSE))),"NA") -> 3.665881718 | K15: =IFERROR((IF($C15="NA","NA",ROUND(VLOOKUP($A$3,'G7-RB'!$A$6:$AL$500,15,FALSE),0)&"% ("&IF(VLOOKUP($A$3,'G7-RB'!$A$6:$AL$500,14,FALSE)="",0,VLOOKUP($A$3,'G7-RB'!$A$6:$AL$500,14,FALSE))&")")),"NA") -> 36% (2014) | L15: =IFERROR((IF($C15="NA","NA",VLOOKUP($A$3,'G7-RB'!$A$6:$AL$500,16,FALSE))),"NA") -> 3.842189466 | M15: =IFERROR((IF($C15="NA","NA",ROUND(VLOOKUP($A$3,'G7-RB'!$A$6:$AL$500,18,FALSE),0)&"% ("&IF(VLOOKUP($A$3,'G7-RB'!$A$6:$AL$500,17,FALSE)="",0,VLOOKUP($A$3,'G7-RB'!$A$6:$AL$500,17,FALSE))&")")),"NA") -> 38% (2112)
A16: Hispanic | B16: =IFERROR(VLOOKUP(TEXT($A$3,"0000"),MEM_H!$A$2:$O$500,11,FALSE),"NA") -> 18041 | C16: =IFERROR((IF(OR(B16<10,B16="",B16="NA"),"NA",((IF(VLOOKUP($A$3,'G7-RH'!$A$6:$AL$500,3,FALSE)>=B16,"100% ("&VLOOKUP($A$3,'G7-RH'!$A$6:$AL$500,3,FALSE)&")",(ROUND((VLOOKUP($A$3,'G7-RH'!$A$6:$AL$500,3,FALSE)/B16*100),0))&"% ("&IF(VLOOKUP($A$3,'G7-RH'!$A$6:$AL$500,3,FALSE)="",0,VLOOKUP($A$3,'G7-RH'!$A$6:$AL$500,3,FALSE))&")"))))),"0% (0)") -> 93% (16701) | D16: =IFERROR((IF($C16="NA","NA",VLOOKUP($A$3,'G7-RH'!$A$6:$AL$500,4,FALSE))),"NA") -> 25.34986528 | E16: =IFERROR((IF($C16="NA","NA",ROUND(VLOOKUP($A$3,'G7-RH'!$A$6:$AL$500,6,FALSE),0)&"% ("&IF(VLOOKUP($A$3,'G7-RH'!$A$6:$AL$500,5,FALSE)="",0,VLOOKUP($A$3,'G7-RH'!$A$6:$AL$500,5,FALSE))&")")),"NA") -> 48% (7975) | F16: =IFERROR((IF($C16="NA","NA",VLOOKUP($A$3,'G7-RH'!$A$6:$AL$500,7,FALSE))),"NA") -> 4.786659481 | G16: =IFERROR((IF($C16="NA","NA",ROUND(VLOOKUP($A$3,'G7-RH'!$A$6:$AL$500,9,FALSE),0)&"% ("&IF(VLOOKUP($A$3,'G7-RH'!$A$6:$AL$500,8,FALSE)="",0,VLOOKUP($A$3,'G7-RH'!$A$6:$AL$500,8,FALSE))&")")),"NA") -> 61% (10172) | H16: =IFERROR((IF($C16="NA","NA",VLOOKUP($A$3,'G7-RH'!$A$6:$AL$500,10,FALSE))),"NA") -> 12.21455601 | I16: =IFERROR((IF($C16="NA","NA",ROUND(VLOOKUP($A$3,'G7-RH'!$A$6:$AL$500,12,FALSE),0)&"% ("&IF(VLOOKUP($A$3,'G7-RH'!$A$6:$AL$500,11,FALSE)="",0,VLOOKUP($A$3,'G7-RH'!$A$6:$AL$500,11,FALSE))&")")),"NA") -> 45% (7562) | J16: =IFERROR((IF($C16="NA","NA",VLOOKUP($A$3,'G7-RH'!$A$6:$AL$500,13,FALSE))),"NA") -> 4.089844919 | K16: =IFERROR((IF($C16="NA","NA",ROUND(VLOOKUP($A$3,'G7-RH'!$A$6:$AL$500,15,FALSE),0)&"% ("&IF(VLOOKUP($A$3,'G7-RH'!$A$6:$AL$500,14,FALSE)="",0,VLOOKUP($A$3,'G7-RH'!$A$6:$AL$500,14,FALSE))&")")),"NA") -> 49% (8228) | L16: =IFERROR((IF($C16="NA","NA",VLOOKUP($A$3,'G7-RH'!$A$6:$AL$500,16,FALSE))),"NA") -> 4.274109335 | M16: =IFERROR((IF($C16="NA","NA",ROUND(VLOOKUP($A$3,'G7-RH'!$A$6:$AL$500,18,FALSE),0)&"% ("&IF(VLOOKUP($A$3,'G7-RH'!$A$6:$AL$500,17,FALSE)="",0,VLOOKUP($A$3,'G7-RH'!$A$6:$AL$500,17,FALSE))&")")),"NA") -> 50% (8325)
A17: Asian | B17: =IFERROR(VLOOKUP(TEXT($A$3,"0000"),MEM_A!$A$2:$O$500,11,FALSE),"NA") -> 312 | C17: =IFERROR((IF(OR(B17<10,B17="",B17="NA"),"NA",((IF(VLOOKUP($A$3,'G7-RA'!$A$6:$AL$500,3,FALSE)>=B17,"100% ("&VLOOKUP($A$3,'G7-RA'!$A$6:$AL$500,3,FALSE)&")",(ROUND((VLOOKUP($A$3,'G7-RA'!$A$6:$AL$500,3,FALSE)/B17*100),0))&"% ("&IF(VLOOKUP($A$3,'G7-RA'!$A$6:$AL$500,3,FALSE)="",0,VLOOKUP($A$3,'G7-RA'!$A$6:$AL$500,3,FALSE))&")"))))),"0% (0)") -> 88% (274) | D17: =IFERROR((IF($C17="NA","NA",VLOOKUP($A$3,'G7-RA'!$A$6:$AL$500,4,FALSE))),"NA") -> 30.53430657 | E17: =IFERROR((IF($C17="NA","NA",ROUND(VLOOKUP($A$3,'G7-RA'!$A$6:$AL$500,6,FALSE),0)&"% ("&IF(VLOOKUP($A$3,'G7-RA'!$A$6:$AL$500,5,FALSE)="",0,VLOOKUP($A$3,'G7-RA'!$A$6:$AL$500,5,FALSE))&")")),"NA") -> 76% (208) | F17: =IFERROR((IF($C17="NA","NA",VLOOKUP($A$3,'G7-RA'!$A$6:$AL$500,7,FALSE))),"NA") -> 5.509854015 | G17: =IFERROR((IF($C17="NA","NA",ROUND(VLOOKUP($A$3,'G7-RA'!$A$6:$AL$500,9,FALSE),0)&"% ("&IF(VLOOKUP($A$3,'G7-RA'!$A$6:$AL$500,8,FALSE)="",0,VLOOKUP($A$3,'G7-RA'!$A$6:$AL$500,8,FALSE))&")")),"NA") -> 82% (224) | H17: =IFERROR((IF($C17="NA","NA",VLOOKUP($A$3,'G7-RA'!$A$6:$AL$500,10,FALSE))),"NA") -> 15.01167883 | I17: =IFERROR((IF($C17="NA","NA",ROUND(VLOOKUP($A$3,'G7-RA'!$A$6:$AL$500,12,FALSE),0)&"% ("&IF(VLOOKUP($A$3,'G7-RA'!$A$6:$AL$500,11,FALSE)="",0,VLOOKUP($A$3,'G7-RA'!$A$6:$AL$500,11,FALSE))&")")),"NA") -> 75% (205) | J17: =IFERROR((IF($C17="NA","NA",VLOOKUP($A$3,'G7-RA'!$A$6:$AL$500,13,FALSE))),"NA") -> 4.845620438 | K17: =IFERROR((IF($C17="NA","NA",ROUND(VLOOKUP($A$3,'G7-RA'!$A$6:$AL$500,15,FALSE),0)&"% ("&IF(VLOOKUP($A$3,'G7-RA'!$A$6:$AL$500,14,FALSE)="",0,VLOOKUP($A$3,'G7-RA'!$A$6:$AL$500,14,FALSE))&")")),"NA") -> 73% (200) | L17: =IFERROR((IF($C17="NA","NA",VLOOKUP($A$3,'G7-RA'!$A$6:$AL$500,16,FALSE))),"NA") -> 5.180291971 | M17: =IFERROR((IF($C17="NA","NA",ROUND(VLOOKUP($A$3,'G7-RA'!$A$6:$AL$500,18,FALSE),0)&"% ("&IF(VLOOKUP($A$3,'G7-RA'!$A$6:$AL$500,17,FALSE)="",0,VLOOKUP($A$3,'G7-RA'!$A$6:$AL$500,17,FALSE))&")")),"NA") -> 73% (200)
A18: Am. Indian | B18: =IFERROR(VLOOKUP(TEXT($A$3,"0000"),MEM_I!$A$2:$O$500,11,FALSE),"NA") -> 11 | C18: =IFERROR((IF(OR(B18<10,B18="",B18="NA"),"NA",((IF(VLOOKUP($A$3,'G7-RI'!$A$6:$AL$500,3,FALSE)>=B18,"100% ("&VLOOKUP($A$3,'G7-RI'!$A$6:$AL$500,3,FALSE)&")",(ROUND((VLOOKUP($A$3,'G7-RI'!$A$6:$AL$500,3,FALSE)/B18*100),0))&"% ("&IF(VLOOKUP($A$3,'G7-RI'!$A$6:$AL$500,3,FALSE)="",0,VLOOKUP($A$3,'G7-RI'!$A$6:$AL$500,3,FALSE))&")"))))),"0% (0)") -> 100% (11) | D18: =IFERROR((IF($C18="NA","NA",VLOOKUP($A$3,'G7-RI'!$A$6:$AL$500,4,FALSE))),"NA") -> 26.18181818 | E18: =IFERROR((IF($C18="NA","NA",ROUND(VLOOKUP($A$3,'G7-RI'!$A$6:$AL$500,6,FALSE),0)&"% ("&IF(VLOOKUP($A$3,'G7-RI'!$A$6:$AL$500,5,FALSE)="",0,VLOOKUP($A$3,'G7-RI'!$A$6:$AL$500,5,FALSE))&")")),"NA") -> 55% (6) | F18: =IFERROR((IF($C18="NA","NA",VLOOKUP($A$3,'G7-RI'!$A$6:$AL$500,7,FALSE))),"NA") -> 5 | G18: =IFERROR((IF($C18="NA","NA",ROUND(VLOOKUP($A$3,'G7-RI'!$A$6:$AL$500,9,FALSE),0)&"% ("&IF(VLOOKUP($A$3,'G7-RI'!$A$6:$AL$500,8,FALSE)="",0,VLOOKUP($A$3,'G7-RI'!$A$6:$AL$500,8,FALSE))&")")),"NA") -> 64% (7) | H18: =IFERROR((IF($C18="NA","NA",VLOOKUP($A$3,'G7-RI'!$A$6:$AL$500,10,FALSE))),"NA") -> 12.36363636 | I18: =IFERROR((IF($C18="NA","NA",ROUND(VLOOKUP($A$3,'G7-RI'!$A$6:$AL$500,12,FALSE),0)&"% ("&IF(VLOOKUP($A$3,'G7-RI'!$A$6:$AL$500,11,FALSE)="",0,VLOOKUP($A$3,'G7-RI'!$A$6:$AL$500,11,FALSE))&")")),"NA") -> 36% (4) | J18: =IFERROR((IF($C18="NA","NA",VLOOKUP($A$3,'G7-RI'!$A$6:$AL$500,13,FALSE))),"NA") -> 4.181818182 | K18: =IFERROR((IF($C18="NA","NA",ROUND(VLOOKUP($A$3,'G7-RI'!$A$6:$AL$500,15,FALSE),0)&"% ("&IF(VLOOKUP($A$3,'G7-RI'!$A$6:$AL$500,14,FALSE)="",0,VLOOKUP($A$3,'G7-RI'!$A$6:$AL$500,14,FALSE))&")")),"NA") -> 55% (6) | L18: =IFERROR((IF($C18="NA","NA",VLOOKUP($A$3,'G7-RI'!$A$6:$AL$500,16,FALSE))),"NA") -> 4.636363636 | M18: =IFERROR((IF($C18="NA","NA",ROUND(VLOOKUP($A$3,'G7-RI'!$A$6:$AL$500,18,FALSE),0)&"% ("&IF(VLOOKUP($A$3,'G7-RI'!$A$6:$AL$500,17,FALSE)="",0,VLOOKUP($A$3,'G7-RI'!$A$6:$AL$500,17,FALSE))&")")),"NA") -> 45% (5)
A19: ED | B19: =IFERROR(VLOOKUP(TEXT($A$3,"0000"),MEM_ED!$A$2:$O$500,11,FALSE),"NA") -> 20660 | C19: =IFERROR((IF(OR(B19<10,B19="",B19="NA"),"NA",((IF(VLOOKUP($A$3,'G7-RED'!$A$6:$AL$500,3,FALSE)>=B19,"100% ("&VLOOKUP($A$3,'G7-RED'!$A$6:$AL$500,3,FALSE)&")",(ROUND((VLOOKUP($A$3,'G7-RED'!$A$6:$AL$500,3,FALSE)/B19*100),0))&"% ("&IF(VLOOKUP($A$3,'G7-RED'!$A$6:$AL$500,3,FALSE)="",0,VLOOKUP($A$3,'G7-RED'!$A$6:$AL$500,3,FALSE))&")"))))),"0% (0)") -> 94% (19408) | D19: =IFERROR((IF($C19="NA","NA",VLOOKUP($A$3,'G7-RED'!$A$6:$AL$500,4,FALSE))),"NA") -> 24.15245775 | E19: =IFERROR((IF($C19="NA","NA",ROUND(VLOOKUP($A$3,'G7-RED'!$A$6:$AL$500,6,FALSE),0)&"% ("&IF(VLOOKUP($A$3,'G7-RED'!$A$6:$AL$500,5,FALSE)="",0,VLOOKUP($A$3,'G7-RED'!$A$6:$AL$500,5,FALSE))&")")),"NA") -> 41% (7965) | F19: =IFERROR((IF($C19="NA","NA",VLOOKUP($A$3,'G7-RED'!$A$6:$AL$500,7,FALSE))),"NA") -> 4.544095218 | G19: =IFERROR((IF($C19="NA","NA",ROUND(VLOOKUP($A$3,'G7-RED'!$A$6:$AL$500,9,FALSE),0)&"% ("&IF(VLOOKUP($A$3,'G7-RED'!$A$6:$AL$500,8,FALSE)="",0,VLOOKUP($A$3,'G7-RED'!$A$6:$AL$500,8,FALSE))&")")),"NA") -> 55% (10597) | H19: =IFERROR((IF($C19="NA","NA",VLOOKUP($A$3,'G7-RED'!$A$6:$AL$500,10,FALSE))),"NA") -> 11.65150969 | I19: =IFERROR((IF($C19="NA","NA",ROUND(VLOOKUP($A$3,'G7-RED'!$A$6:$AL$500,12,FALSE),0)&"% ("&IF(VLOOKUP($A$3,'G7-RED'!$A$6:$AL$500,11,FALSE)="",0,VLOOKUP($A$3,'G7-RED'!$A$6:$AL$500,11,FALSE))&")")),"NA") -> 39% (7646) | J19: =IFERROR((IF($C19="NA","NA",VLOOKUP($A$3,'G7-RED'!$A$6:$AL$500,13,FALSE))),"NA") -> 3.902926628 | K19: =IFERROR((IF($C19="NA","NA",ROUND(VLOOKUP($A$3,'G7-RED'!$A$6:$AL$500,15,FALSE),0)&"% ("&IF(VLOOKUP($A$3,'G7-RED'!$A$6:$AL$500,14,FALSE)="",0,VLOOKUP($A$3,'G7-RED'!$A$6:$AL$500,14,FALSE))&")")),"NA") -> 44% (8455) | L19: =IFERROR((IF($C19="NA","NA",VLOOKUP($A$3,'G7-RED'!$A$6:$AL$500,16,FALSE))),"NA") -> 4.066750824 | M19: =IFERROR((IF($C19="NA","NA",ROUND(VLOOKUP($A$3,'G7-RED'!$A$6:$AL$500,18,FALSE),0)&"% ("&IF(VLOOKUP($A$3,'G7-RED'!$A$6:$AL$500,17,FALSE)="",0,VLOOKUP($A$3,'G7-RED'!$A$6:$AL$500,17,FALSE))&")")),"NA") -> 45% (8637)
A20: ELL | B20: =IFERROR(VLOOKUP(TEXT($A$3,"0000"),MEM_ELL!$A$2:$O$500,11,FALSE),"NA") -> 4774 | C20: =IFERROR((IF(OR(B20<10,B20="",B20="NA"),"NA",((IF(VLOOKUP($A$3,'G7-RELL'!$A$6:$AL$500,3,FALSE)>=B20,"100% ("&VLOOKUP($A$3,'G7-RELL'!$A$6:$AL$500,3,FALSE)&")",(ROUND((VLOOKUP($A$3,'G7-RELL'!$A$6:$AL$500,3,FALSE)/B20*100),0))&"% ("&IF(VLOOKUP($A$3,'G7-RELL'!$A$6:$AL$500,3,FALSE)="",0,VLOOKUP($A$3,'G7-RELL'!$A$6:$AL$500,3,FALSE))&")"))))),"0% (0)") -> 93% (4431) | D20: =IFERROR((IF($C20="NA","NA",VLOOKUP($A$3,'G7-RELL'!$A$6:$AL$500,4,FALSE))),"NA") -> 18.49650192 | E20: =IFERROR((IF($C20="NA","NA",ROUND(VLOOKUP($A$3,'G7-RELL'!$A$6:$AL$500,6,FALSE),0)&"% ("&IF(VLOOKUP($A$3,'G7-RELL'!$A$6:$AL$500,5,FALSE)="",0,VLOOKUP($A$3,'G7-RELL'!$A$6:$AL$500,5,FALSE))&")")),"NA") -> 16% (703) | F20: =IFERROR((IF($C20="NA","NA",VLOOKUP($A$3,'G7-RELL'!$A$6:$AL$500,7,FALSE))),"NA") -> 3.642518619 | G20: =IFERROR((IF($C20="NA","NA",ROUND(VLOOKUP($A$3,'G7-RELL'!$A$6:$AL$500,9,FALSE),0)&"% ("&IF(VLOOKUP($A$3,'G7-RELL'!$A$6:$AL$500,8,FALSE)="",0,VLOOKUP($A$3,'G7-RELL'!$A$6:$AL$500,8,FALSE))&")")),"NA") -> 32% (1418) | H20: =IFERROR((IF($C20="NA","NA",VLOOKUP($A$3,'G7-RELL'!$A$6:$AL$500,10,FALSE))),"NA") -> 8.839990973 | I20: =IFERROR((IF($C20="NA","NA",ROUND(VLOOKUP($A$3,'G7-RELL'!$A$6:$AL$500,12,FALSE),0)&"% ("&IF(VLOOKUP($A$3,'G7-RELL'!$A$6:$AL$500,11,FALSE)="",0,VLOOKUP($A$3,'G7-RELL'!$A$6:$AL$500,11,FALSE))&")")),"NA") -> 16% (699) | J20: =IFERROR((IF($C20="NA","NA",VLOOKUP($A$3,'G7-RELL'!$A$6:$AL$500,13,FALSE))),"NA") -> 2.973820808 | K20: =IFERROR((IF($C20="NA","NA",ROUND(VLOOKUP($A$3,'G7-RELL'!$A$6:$AL$500,15,FALSE),0)&"% ("&IF(VLOOKUP($A$3,'G7-RELL'!$A$6:$AL$500,14,FALSE)="",0,VLOOKUP($A$3,'G7-RELL'!$A$6:$AL$500,14,FALSE))&")")),"NA") -> 21% (942) | L20: =IFERROR((IF($C20="NA","NA",VLOOKUP($A$3,'G7-RELL'!$A$6:$AL$500,16,FALSE))),"NA") -> 3.040171519 | M20: =IFERROR((IF($C20="NA","NA",ROUND(VLOOKUP($A$3,'G7-RELL'!$A$6:$AL$500,18,FALSE),0)&"% ("&IF(VLOOKUP($A$3,'G7-RELL'!$A$6:$AL$500,17,FALSE)="",0,VLOOKUP($A$3,'G7-RELL'!$A$6:$AL$500,17,FALSE))&")")),"NA") -> 23% (1018)
A21: SWD | B21: =IFERROR(VLOOKUP(TEXT($A$3,"0000"),MEM_SWD!$A$2:$O$500,11,FALSE),"NA") -> 2573 | C21: =IFERROR((IF(OR(B21<10,B21="",B21="NA"),"NA",((IF(VLOOKUP($A$3,'G7-RSWD'!$A$6:$AM$500,3,FALSE)>=B21,"100% ("&VLOOKUP($A$3,'G7-RSWD'!$A$6:$AM$500,3,FALSE)&")",(ROUND((VLOOKUP($A$3,'G7-RSWD'!$A$6:$AM$500,3,FALSE)/B21*100),0))&"% ("&IF(VLOOKUP($A$3,'G7-RSWD'!$A$6:$AM$500,3,FALSE)="",0,VLOOKUP($A$3,'G7-RSWD'!$A$6:$AM$500,3,FALSE))&")"))))),"0% (0)") -> 91% (2346) | D21: =IFERROR((IF($C21="NA","NA",VLOOKUP($A$3,'G7-RSWD'!$A$6:$AM$500,4,FALSE))),"NA") -> 18.24283887 | E21: =IFERROR((IF($C21="NA","NA",ROUND(VLOOKUP($A$3,'G7-RSWD'!$A$6:$AM$500,6,FALSE),0)&"% ("&IF(VLOOKUP($A$3,'G7-RSWD'!$A$6:$AM$500,5,FALSE)="",0,VLOOKUP($A$3,'G7-RSWD'!$A$6:$AM$500,5,FALSE))&")")),"NA") -> 15% (347) | F21: =IFERROR((IF($C21="NA","NA",VLOOKUP($A$3,'G7-RSWD'!$A$6:$AM$500,7,FALSE))),"NA") -> 3.578687127 | G21: =IFERROR((IF($C21="NA","NA",ROUND(VLOOKUP($A$3,'G7-RSWD'!$A$6:$AM$500,9,FALSE),0)&"% ("&IF(VLOOKUP($A$3,'G7-RSWD'!$A$6:$AM$500,8,FALSE)="",0,VLOOKUP($A$3,'G7-RSWD'!$A$6:$AM$500,8,FALSE))&")")),"NA") -> 30% (706) | H21: =IFERROR((IF($C21="NA","NA",VLOOKUP($A$3,'G7-RSWD'!$A$6:$AM$500,10,FALSE))),"NA") -> 8.797826087 | I21: =IFERROR((IF($C21="NA","NA",ROUND(VLOOKUP($A$3,'G7-RSWD'!$A$6:$AM$500,12,FALSE),0)&"% ("&IF(VLOOKUP($A$3,'G7-RSWD'!$A$6:$AM$500,11,FALSE)="",0,VLOOKUP($A$3,'G7-RSWD'!$A$6:$AM$500,11,FALSE))&")")),"NA") -> 15% (362) | J21: =IFERROR((IF($C21="NA","NA",VLOOKUP($A$3,'G7-RSWD'!$A$6:$AM$500,13,FALSE))),"NA") -> 2.912958227 | K21: =IFERROR((IF($C21="NA","NA",ROUND(VLOOKUP($A$3,'G7-RSWD'!$A$6:$AM$500,15,FALSE),0)&"% ("&IF(VLOOKUP($A$3,'G7-RSWD'!$A$6:$AM$500,14,FALSE)="",0,VLOOKUP($A$3,'G7-RSWD'!$A$6:$AM$500,14,FALSE))&")")),"NA") -> 21% (484) | L21: =IFERROR((IF($C21="NA","NA",VLOOKUP($A$3,'G7-RSWD'!$A$6:$AM$500,16,FALSE))),"NA") -> 2.96602728 | M21: =IFERROR((IF($C21="NA","NA",ROUND(VLOOKUP($A$3,'G7-RSWD'!$A$6:$AM$500,18,FALSE),0)&"% ("&IF(VLOOKUP($A$3,'G7-RSWD'!$A$6:$AM$500,17,FALSE)="",0,VLOOKUP($A$3,'G7-RSWD'!$A$6:$AM$500,17,FALSE))&")")),"NA") -> 19% (454)
A22: Math - Grade 7
A23: Level of Proficiency at 70% or above | B23: Total # of Students | C23: % of Students Tested | D23: ='G6-8 Matrix'!C13&" ["&'G6-8 Matrix'!C14&"]" -> Overall [42] | F23: ='G6-8 Matrix'!D13&" ["&'G6-8 Matrix'!D14&"]" -> Number: Base Ten [10] | H23: ='G6-8 Matrix'!E13&" ["&'G6-8 Matrix'!E14&"]" -> Ratios/Proportional Relationships [12] | J23: ='G6-8 Matrix'!F13&" ["&'G6-8 Matrix'!F14&"]" -> Geometry and Measurement [12] | L23: ='G6-8 Matrix'!G13&" ["&'G6-8 Matrix'!G14&"]" -> Statistics and Probability [8]
D24: Average Score | E24: % Proficient | F24: Average Score | G24: % Proficient | H24: Average Score | I24: % Proficient | J24: Average Score | K24: % Proficient | L24: Average Score | M24: % Proficient
A25: All students | B25: =IFERROR(VLOOKUP(TEXT($A$3,"0000"),Mem_All!$A$2:$O$500,11,FALSE),0)-IFERROR(VLOOKUP(TEXT($A$3,"0000"),'ALG Gr07'!$A$3:$Q$216,3,FALSE),0) -> 26581 | C25: =IFERROR((IF(OR(B25<10,B25="",B25="NA"),"NA",((IF(VLOOKUP($A$3,'G7-MALL'!$A$6:$AM$500,3,FALSE)>=B25,"100% ("&VLOOKUP($A$3,'G7-MALL'!$A$6:$AM$500,3,FALSE)&")",(ROUND((VLOOKUP($A$3,'G7-MALL'!$A$6:$AM$500,3,FALSE)/B25*100),0))&"% ("&IF(VLOOKUP($A$3,'G7-MALL'!$A$6:$AM$500,3,FALSE)="",0,VLOOKUP($A$3,'G7-MALL'!$A$6:$AM$500,3,FALSE))&")"))))),"0% (0)") -> 80% (21374) | D25: =IFERROR((IF($C25="NA","NA",VLOOKUP($A$3,'G7-MALL'!$A$6:$AM$500,4,FALSE))),"NA") -> 14.72372977 | E25: =IFERROR((IF($C25="NA","NA",ROUND(VLOOKUP($A$3,'G7-MALL'!$A$6:$AM$500,6,FALSE),0)&"% ("&IF(VLOOKUP($A$3,'G7-MALL'!$A$6:$AM$500,5,FALSE)="",0,VLOOKUP($A$3,'G7-MALL'!$A$6:$AM$500,5,FALSE))&")")),"NA") -> 2% (466) | F25: =IFERROR((IF($C25="NA","NA",VLOOKUP($A$3,'G7-MALL'!$A$6:$AM$500,7,FALSE))),"NA") -> 3.857654159 | G25: =IFERROR((IF($C25="NA","NA",ROUND(VLOOKUP($A$3,'G7-MALL'!$A$6:$AM$500,9,FALSE),0)&"% ("&IF(VLOOKUP($A$3,'G7-MALL'!$A$6:$AM$500,8,FALSE)="",0,VLOOKUP($A$3,'G7-MALL'!$A$6:$AM$500,8,FALSE))&")")),"NA") -> 14% (2929) | H25: =IFERROR((IF($C25="NA","NA",VLOOKUP($A$3,'G7-MALL'!$A$6:$AM$500,10,FALSE))),"NA") -> 4.133573501 | I25: =IFERROR((IF($C25="NA","NA",ROUND(VLOOKUP($A$3,'G7-MALL'!$A$6:$AM$500,12,FALSE),0)&"% ("&IF(VLOOKUP($A$3,'G7-MALL'!$A$6:$AM$500,11,FALSE)="",0,VLOOKUP($A$3,'G7-MALL'!$A$6:$AM$500,11,FALSE))&")")),"NA") -> 3% (723) | J25: =IFERROR((IF($C25="NA","NA",VLOOKUP($A$3,'G7-MALL'!$A$6:$AM$500,13,FALSE))),"NA") -> 4.200201179 | K25: =IFERROR((IF($C25="NA","NA",ROUND(VLOOKUP($A$3,'G7-MALL'!$A$6:$AM$500,15,FALSE),0)&"% ("&IF(VLOOKUP($A$3,'G7-MALL'!$A$6:$AM$500,14,FALSE)="",0,VLOOKUP($A$3,'G7-MALL'!$A$6:$AM$500,14,FALSE))&")")),"NA") -> 3% (702) | L25: =IFERROR((IF($C25="NA","NA",VLOOKUP($A$3,'G7-MALL'!$A$6:$AM$500,16,FALSE))),"NA") -> 2.524946196 | M25: =IFERROR((IF($C25="NA","NA",ROUND(VLOOKUP($A$3,'G7-MALL'!$A$6:$AM$500,18,FALSE),0)&"% ("&IF(VLOOKUP($A$3,'G7-MALL'!$A$6:$AM$500,17,FALSE)="",0,VLOOKUP($A$3,'G7-MALL'!$A$6:$AM$500,17,FALSE))&")")),"NA") -> 3% (742)
A26: FCAT Level 1 | B26: =IFERROR(VLOOKUP(TEXT($A$3,"0000"),MEM_ML1!$A$2:$O$500,8,FALSE),0)-IFERROR(VLOOKUP(TEXT($A$3,"0000"),'ALG Gr07'!$A$3:$Q$216,4,FALSE),0) -> 6366 | C26: =IFERROR((IF(OR(B26<10,B26="",B26="NA"),"NA",((IF(VLOOKUP($A$3,'G7-ML1'!$A$6:$AM$500,3,FALSE)>=B26,"100% ("&VLOOKUP($A$3,'G7-ML1'!$A$6:$AM$500,3,FALSE)&")",(ROUND((VLOOKUP($A$3,'G7-ML1'!$A$6:$AM$500,3,FALSE)/B26*100),0))&"% ("&IF(VLOOKUP($A$3,'G7-ML1'!$A$6:$AM$500,3,FALSE)="",0,VLOOKUP($A$3,'G7-ML1'!$A$6:$AM$500,3,FALSE))&")"))))),"0% (0)") -> 92% (5868) | D26: =IFERROR((IF($C26="NA","NA",VLOOKUP($A$3,'G7-ML1'!$A$6:$AM$500,4,FALSE))),"NA") -> 10.1293456 | E26: =IFERROR((IF($C26="NA","NA",ROUND(VLOOKUP($A$3,'G7-ML1'!$A$6:$AM$500,6,FALSE),0)&"% ("&IF(VLOOKUP($A$3,'G7-ML1'!$A$6:$AM$500,5,FALSE)="",0,VLOOKUP($A$3,'G7-ML1'!$A$6:$AM$500,5,FALSE))&")")),"NA") -> 0% (0) | F26: =IFERROR((IF($C26="NA","NA",VLOOKUP($A$3,'G7-ML1'!$A$6:$AM$500,7,FALSE))),"NA") -> 2.307600545 | G26: =IFERROR((IF($C26="NA","NA",ROUND(VLOOKUP($A$3,'G7-ML1'!$A$6:$AM$500,9,FALSE),0)&"% ("&IF(VLOOKUP($A$3,'G7-ML1'!$A$6:$AM$500,8,FALSE)="",0,VLOOKUP($A$3,'G7-ML1'!$A$6:$AM$500,8,FALSE))&")")),"NA") -> 0% (20) | H26: =IFERROR((IF($C26="NA","NA",VLOOKUP($A$3,'G7-ML1'!$A$6:$AM$500,10,FALSE))),"NA") -> 2.752130198 | I26: =IFERROR((IF($C26="NA","NA",ROUND(VLOOKUP($A$3,'G7-ML1'!$A$6:$AM$500,12,FALSE),0)&"% ("&IF(VLOOKUP($A$3,'G7-ML1'!$A$6:$AM$500,11,FALSE)="",0,VLOOKUP($A$3,'G7-ML1'!$A$6:$AM$500,11,FALSE))&")")),"NA") -> 0% (2) | J26: =IFERROR((IF($C26="NA","NA",VLOOKUP($A$3,'G7-ML1'!$A$6:$AM$500,13,FALSE))),"NA") -> 3.236042945 | K26: =IFERROR((IF($C26="NA","NA",ROUND(VLOOKUP($A$3,'G7-ML1'!$A$6:$AM$500,15,FALSE),0)&"% ("&IF(VLOOKUP($A$3,'G7-ML1'!$A$6:$AM$500,14,FALSE)="",0,VLOOKUP($A$3,'G7-ML1'!$A$6:$AM$500,14,FALSE))&")")),"NA") -> 0% (5) | L26: =IFERROR((IF($C26="NA","NA",VLOOKUP($A$3,'G7-ML1'!$A$6:$AM$500,16,FALSE))),"NA") -> 1.847597137 | M26: =IFERROR((IF($C26="NA","NA",ROUND(VLOOKUP($A$3,'G7-ML1'!$A$6:$AM$500,18,FALSE),0)&"% ("&IF(VLOOKUP($A$3,'G7-ML1'!$A$6:$AM$500,17,FALSE)="",0,VLOOKUP($A$3,'G7-ML1'!$A$6:$AM$500,17,FALSE))&")")),"NA") -> 0% (22)
A27: FCAT Level 2 | B27: =IFERROR(VLOOKUP(TEXT($A$3,"0000"),MEM_ML2!$A$2:$O$500,8,FALSE),0)-IFERROR(VLOOKUP(TEXT($A$3,"0000"),'ALG Gr07'!$A$3:$Q$216,5,FALSE),0) -> 5923 | C27: =IFERROR((IF(OR(B27<10,B27="",B27="NA"),"NA",((IF(VLOOKUP($A$3,'G7-ML2'!$A$6:$AM$500,3,FALSE)>=B27,"100% ("&VLOOKUP($A$3,'G7-ML2'!$A$6:$AM$500,3,FALSE)&")",(ROUND((VLOOKUP($A$3,'G7-ML2'!$A$6:$AM$500,3,FALSE)/B27*100),0))&"% ("&IF(VLOOKUP($A$3,'G7-ML2'!$A$6:$AM$500,3,FALSE)="",0,VLOOKUP($A$3,'G7-ML2'!$A$6:$AM$500,3,FALSE))&")"))))),"0% (0)") -> 93% (5480) | D27: =IFERROR((IF($C27="NA","NA",VLOOKUP($A$3,'G7-ML2'!$A$6:$AM$500,4,FALSE))),"NA") -> 12.63718978 | E27: =IFERROR((IF($C27="NA","NA",ROUND(VLOOKUP($A$3,'G7-ML2'!$A$6:$AM$500,6,FALSE),0)&"% ("&IF(VLOOKUP($A$3,'G7-ML2'!$A$6:$AM$500,5,FALSE)="",0,VLOOKUP($A$3,'G7-ML2'!$A$6:$AM$500,5,FALSE))&")")),"NA") -> 0% (0) | F27: =IFERROR((IF($C27="NA","NA",VLOOKUP($A$3,'G7-ML2'!$A$6:$AM$500,7,FALSE))),"NA") -> 3.1925 | G27: =IFERROR((IF($C27="NA","NA",ROUND(VLOOKUP($A$3,'G7-ML2'!$A$6:$AM$500,9,FALSE),0)&"% ("&IF(VLOOKUP($A$3,'G7-ML2'!$A$6:$AM$500,8,FALSE)="",0,VLOOKUP($A$3,'G7-ML2'!$A$6:$AM$500,8,FALSE))&")")),"NA") -> 3% (152) | H27: =IFERROR((IF($C27="NA","NA",VLOOKUP($A$3,'G7-ML2'!$A$6:$AM$500,10,FALSE))),"NA") -> 3.540711679 | I27: =IFERROR((IF($C27="NA","NA",ROUND(VLOOKUP($A$3,'G7-ML2'!$A$6:$AM$500,12,FALSE),0)&"% ("&IF(VLOOKUP($A$3,'G7-ML2'!$A$6:$AM$500,11,FALSE)="",0,VLOOKUP($A$3,'G7-ML2'!$A$6:$AM$500,11,FALSE))&")")),"NA") -> 0% (27) | J27: =IFERROR((IF($C27="NA","NA",VLOOKUP($A$3,'G7-ML2'!$A$6:$AM$500,13,FALSE))),"NA") -> 3.702937956 | K27: =IFERROR((IF($C27="NA","NA",ROUND(VLOOKUP($A$3,'G7-ML2'!$A$6:$AM$500,15,FALSE),0)&"% ("&IF(VLOOKUP($A$3,'G7-ML2'!$A$6:$AM$500,14,FALSE)="",0,VLOOKUP($A$3,'G7-ML2'!$A$6:$AM$500,14,FALSE))&")")),"NA") -> 0% (12) | L27: =IFERROR((IF($C27="NA","NA",VLOOKUP($A$3,'G7-ML2'!$A$6:$AM$500,16,FALSE))),"NA") -> 2.198850365 | M27: =IFERROR((IF($C27="NA","NA",ROUND(VLOOKUP($A$3,'G7-ML2'!$A$6:$AM$500,18,FALSE),0)&"% ("&IF(VLOOKUP($A$3,'G7-ML2'!$A$6:$AM$500,17,FALSE)="",0,VLOOKUP($A$3,'G7-ML2'!$A$6:$AM$500,17,FALSE))&")")),"NA") -> 1% (51)
A28: FCAT Level 3 | B28: =IFERROR(VLOOKUP(TEXT($A$3,"0000"),MEM_ML3!$A$2:$O$500,8,FALSE),0)-IFERROR(VLOOKUP(TEXT($A$3,"0000"),'ALG Gr07'!$A$3:$Q$216,6,FALSE),0) -> 6263 | C28: =IFERROR((IF(OR(B28<10,B28="",B28="NA"),"NA",((IF(VLOOKUP($A$3,'G7-ML3'!$A$6:$AM$500,3,FALSE)>=B28,"100% ("&VLOOKUP($A$3,'G7-ML3'!$A$6:$AM$500,3,FALSE)&")",(ROUND((VLOOKUP($A$3,'G7-ML3'!$A$6:$AM$500,3,FALSE)/B28*100),0))&"% ("&IF(VLOOKUP($A$3,'G7-ML3'!$A$6:$AM$500,3,FALSE)="",0,VLOOKUP($A$3,'G7-ML3'!$A$6:$AM$500,3,FALSE))&")"))))),"0% (0)") -> 87% (5419) | D28: =IFERROR((IF($C28="NA","NA",VLOOKUP($A$3,'G7-ML3'!$A$6:$AM$500,4,FALSE))),"NA") -> 16.32033586 | E28: =IFERROR((IF($C28="NA","NA",ROUND(VLOOKUP($A$3,'G7-ML3'!$A$6:$AM$500,6,FALSE),0)&"% ("&IF(VLOOKUP($A$3,'G7-ML3'!$A$6:$AM$500,5,FALSE)="",0,VLOOKUP($A$3,'G7-ML3'!$A$6:$AM$500,5,FALSE))&")")),"NA") -> 0% (10) | F28: =IFERROR((IF($C28="NA","NA",VLOOKUP($A$3,'G7-ML3'!$A$6:$AM$500,7,FALSE))),"NA") -> 4.443568924 | G28: =IFERROR((IF($C28="NA","NA",ROUND(VLOOKUP($A$3,'G7-ML3'!$A$6:$AM$500,9,FALSE),0)&"% ("&IF(VLOOKUP($A$3,'G7-ML3'!$A$6:$AM$500,8,FALSE)="",0,VLOOKUP($A$3,'G7-ML3'!$A$6:$AM$500,8,FALSE))&")")),"NA") -> 13% (719) | H28: =IFERROR((IF($C28="NA","NA",VLOOKUP($A$3,'G7-ML3'!$A$6:$AM$500,10,FALSE))),"NA") -> 4.687100941 | I28: =IFERROR((IF($C28="NA","NA",ROUND(VLOOKUP($A$3,'G7-ML3'!$A$6:$AM$500,12,FALSE),0)&"% ("&IF(VLOOKUP($A$3,'G7-ML3'!$A$6:$AM$500,11,FALSE)="",0,VLOOKUP($A$3,'G7-ML3'!$A$6:$AM$500,11,FALSE))&")")),"NA") -> 3% (136) | J28: =IFERROR((IF($C28="NA","NA",VLOOKUP($A$3,'G7-ML3'!$A$6:$AM$500,13,FALSE))),"NA") -> 4.433696254 | K28: =IFERROR((IF($C28="NA","NA",ROUND(VLOOKUP($A$3,'G7-ML3'!$A$6:$AM$500,15,FALSE),0)&"% ("&IF(VLOOKUP($A$3,'G7-ML3'!$A$6:$AM$500,14,FALSE)="",0,VLOOKUP($A$3,'G7-ML3'!$A$6:$AM$500,14,FALSE))&")")),"NA") -> 2% (88) | L28: =IFERROR((IF($C28="NA","NA",VLOOKUP($A$3,'G7-ML3'!$A$6:$AM$500,16,FALSE))),"NA") -> 2.755453036 | M28: =IFERROR((IF($C28="NA","NA",ROUND(VLOOKUP($A$3,'G7-ML3'!$A$6:$AM$500,18,FALSE),0)&"% ("&IF(VLOOKUP($A$3,'G7-ML3'!$A$6:$AM$500,17,FALSE)="",0,VLOOKUP($A$3,'G7-ML3'!$A$6:$AM$500,17,FALSE))&")")),"NA") -> 2% (131)
A29: FCAT Level 4 | B29: =IFERROR(VLOOKUP(TEXT($A$3,"0000"),MEM_ML4!$A$2:$O$500,8,FALSE),0)-IFERROR(VLOOKUP(TEXT($A$3,"0000"),'ALG Gr07'!$A$3:$Q$216,7,FALSE),0) -> 4398 | C29: =IFERROR((IF(OR(B29<10,B29="",B29="NA"),"NA",((IF(VLOOKUP($A$3,'G7-ML4'!$A$6:$AM$500,3,FALSE)>=B29,"100% ("&VLOOKUP($A$3,'G7-ML4'!$A$6:$AM$500,3,FALSE)&")",(ROUND((VLOOKUP($A$3,'G7-ML4'!$A$6:$AM$500,3,FALSE)/B29*100),0))&"% ("&IF(VLOOKUP($A$3,'G7-ML4'!$A$6:$AM$500,3,FALSE)="",0,VLOOKUP($A$3,'G7-ML4'!$A$6:$AM$500,3,FALSE))&")"))))),"0% (0)") -> 66% (2912) | D29: =IFERROR((IF($C29="NA","NA",VLOOKUP($A$3,'G7-ML4'!$A$6:$AM$500,4,FALSE))),"NA") -> 21.31428571 | E29: =IFERROR((IF($C29="NA","NA",ROUND(VLOOKUP($A$3,'G7-ML4'!$A$6:$AM$500,6,FALSE),0)&"% ("&IF(VLOOKUP($A$3,'G7-ML4'!$A$6:$AM$500,5,FALSE)="",0,VLOOKUP($A$3,'G7-ML4'!$A$6:$AM$500,5,FALSE))&")")),"NA") -> 5% (151) | F29: =IFERROR((IF($C29="NA","NA",VLOOKUP($A$3,'G7-ML4'!$A$6:$AM$500,7,FALSE))),"NA") -> 6.028674451 | G29: =IFERROR((IF($C29="NA","NA",ROUND(VLOOKUP($A$3,'G7-ML4'!$A$6:$AM$500,9,FALSE),0)&"% ("&IF(VLOOKUP($A$3,'G7-ML4'!$A$6:$AM$500,8,FALSE)="",0,VLOOKUP($A$3,'G7-ML4'!$A$6:$AM$500,8,FALSE))&")")),"NA") -> 42% (1219) | H29: =IFERROR((IF($C29="NA","NA",VLOOKUP($A$3,'G7-ML4'!$A$6:$AM$500,10,FALSE))),"NA") -> 6.051957418 | I29: =IFERROR((IF($C29="NA","NA",ROUND(VLOOKUP($A$3,'G7-ML4'!$A$6:$AM$500,12,FALSE),0)&"% ("&IF(VLOOKUP($A$3,'G7-ML4'!$A$6:$AM$500,11,FALSE)="",0,VLOOKUP($A$3,'G7-ML4'!$A$6:$AM$500,11,FALSE))&")")),"NA") -> 10% (277) | J29: =IFERROR((IF($C29="NA","NA",VLOOKUP($A$3,'G7-ML4'!$A$6:$AM$500,13,FALSE))),"NA") -> 5.728125 | K29: =IFERROR((IF($C29="NA","NA",ROUND(VLOOKUP($A$3,'G7-ML4'!$A$6:$AM$500,15,FALSE),0)&"% ("&IF(VLOOKUP($A$3,'G7-ML4'!$A$6:$AM$500,14,FALSE)="",0,VLOOKUP($A$3,'G7-ML4'!$A$6:$AM$500,14,FALSE))&")")),"NA") -> 9% (273) | L29: =IFERROR((IF($C29="NA","NA",VLOOKUP($A$3,'G7-ML4'!$A$6:$AM$500,16,FALSE))),"NA") -> 3.534649725 | M29: =IFERROR((IF($C29="NA","NA",ROUND(VLOOKUP($A$3,'G7-ML4'!$A$6:$AM$500,18,FALSE),0)&"% ("&IF(VLOOKUP($A$3,'G7-ML4'!$A$6:$AM$500,17,FALSE)="",0,VLOOKUP($A$3,'G7-ML4'!$A$6:$AM$500,17,FALSE))&")")),"NA") -> 9% (265)
A30: FCAT Level 5 | B30: =IFERROR(VLOOKUP(TEXT($A$3,"0000"),MEM_ML5!$A$2:$O$500,8,FALSE),0)-IFERROR(VLOOKUP(TEXT($A$3,"0000"),'ALG Gr07'!$A$3:$Q$216,8,FALSE),0) -> 2211 | C30: =IFERROR((IF(OR(B30<10,B30="",B30="NA"),"NA",((IF(VLOOKUP($A$3,'G7-ML5'!$A$6:$AM$500,3,FALSE)>=B30,"100% ("&VLOOKUP($A$3,'G7-ML5'!$A$6:$AM$500,3,FALSE)&")",(ROUND((VLOOKUP($A$3,'G7-ML5'!$A$6:$AM$500,3,FALSE)/B30*100),0))&"% ("&IF(VLOOKUP($A$3,'G7-ML5'!$A$6:$AM$500,3,FALSE)="",0,VLOOKUP($A$3,'G7-ML5'!$A$6:$AM$500,3,FALSE))&")"))))),"0% (0)") -> 44% (978) | D30: =IFERROR((IF($C30="NA","NA",VLOOKUP($A$3,'G7-ML5'!$A$6:$AM$500,4,FALSE))),"NA") -> 26.87096115 | E30: =IFERROR((IF($C30="NA","NA",ROUND(VLOOKUP($A$3,'G7-ML5'!$A$6:$AM$500,6,FALSE),0)&"% ("&IF(VLOOKUP($A$3,'G7-ML5'!$A$6:$AM$500,5,FALSE)="",0,VLOOKUP($A$3,'G7-ML5'!$A$6:$AM$500,5,FALSE))&")")),"NA") -> 30% (292) | F30: =IFERROR((IF($C30="NA","NA",VLOOKUP($A$3,'G7-ML5'!$A$6:$AM$500,7,FALSE))),"NA") -> 7.626891616 | G30: =IFERROR((IF($C30="NA","NA",ROUND(VLOOKUP($A$3,'G7-ML5'!$A$6:$AM$500,9,FALSE),0)&"% ("&IF(VLOOKUP($A$3,'G7-ML5'!$A$6:$AM$500,8,FALSE)="",0,VLOOKUP($A$3,'G7-ML5'!$A$6:$AM$500,8,FALSE))&")")),"NA") -> 77% (756) | H30: =IFERROR((IF($C30="NA","NA",VLOOKUP($A$3,'G7-ML5'!$A$6:$AM$500,10,FALSE))),"NA") -> 7.310122699 | I30: =IFERROR((IF($C30="NA","NA",ROUND(VLOOKUP($A$3,'G7-ML5'!$A$6:$AM$500,12,FALSE),0)&"% ("&IF(VLOOKUP($A$3,'G7-ML5'!$A$6:$AM$500,11,FALSE)="",0,VLOOKUP($A$3,'G7-ML5'!$A$6:$AM$500,11,FALSE))&")")),"NA") -> 27% (266) | J30: =IFERROR((IF($C30="NA","NA",VLOOKUP($A$3,'G7-ML5'!$A$6:$AM$500,13,FALSE))),"NA") -> 7.427198364 | K30: =IFERROR((IF($C30="NA","NA",ROUND(VLOOKUP($A$3,'G7-ML5'!$A$6:$AM$500,15,FALSE),0)&"% ("&IF(VLOOKUP($A$3,'G7-ML5'!$A$6:$AM$500,14,FALSE)="",0,VLOOKUP($A$3,'G7-ML5'!$A$6:$AM$500,14,FALSE))&")")),"NA") -> 32% (310) | L30: =IFERROR((IF($C30="NA","NA",VLOOKUP($A$3,'G7-ML5'!$A$6:$AM$500,16,FALSE))),"NA") -> 4.514519427 | M30: =IFERROR((IF($C30="NA","NA",ROUND(VLOOKUP($A$3,'G7-ML5'!$A$6:$AM$500,18,FALSE),0)&"% ("&IF(VLOOKUP($A$3,'G7-ML5'!$A$6:$AM$500,17,FALSE)="",0,VLOOKUP($A$3,'G7-ML5'!$A$6:$AM$500,17,FALSE))&")")),"NA") -> 26% (257)
A31: White | B31: =IFERROR(VLOOKUP(TEXT($A$3,"0000"),MEM_W!$A$2:$O$500,11,FALSE),0)-IFERROR(VLOOKUP(TEXT($A$3,"0000"),'ALG Gr07'!$A$3:$Q$216,10,FALSE),0) -> 2133 | C31: =IFERROR((IF(OR(B31<10,B31="",B31="NA"),"NA",((IF(VLOOKUP($A$3,'G7-MW'!$A$6:$AM$500,3,FALSE)>=B31,"100% ("&VLOOKUP($A$3,'G7-MW'!$A$6:$AM$500,3,FALSE)&")",(ROUND((VLOOKUP($A$3,'G7-MW'!$A$6:$AM$500,3,FALSE)/B31*100),0))&"% ("&IF(VLOOKUP($A$3,'G7-MW'!$A$6:$AM$500,3,FALSE)="",0,VLOOKUP($A$3,'G7-MW'!$A$6:$AM$500,3,FALSE))&")"))))),"0% (0)") -> 74% (1575) | D31: =IFERROR((IF($C31="NA","NA",VLOOKUP($A$3,'G7-MW'!$A$6:$AM$500,4,FALSE))),"NA") -> 18.2687619 | E31: =IFERROR((IF($C31="NA","NA",ROUND(VLOOKUP($A$3,'G7-MW'!$A$6:$AM$500,6,FALSE),0)&"% ("&IF(VLOOKUP($A$3,'G7-MW'!$A$6:$AM$500,5,FALSE)="",0,VLOOKUP($A$3,'G7-MW'!$A$6:$AM$500,5,FALSE))&")")),"NA") -> 6% (96) | F31: =IFERROR((IF($C31="NA","NA",VLOOKUP($A$3,'G7-MW'!$A$6:$AM$500,7,FALSE))),"NA") -> 4.861142857 | G31: =IFERROR((IF($C31="NA","NA",ROUND(VLOOKUP($A$3,'G7-MW'!$A$6:$AM$500,9,FALSE),0)&"% ("&IF(VLOOKUP($A$3,'G7-MW'!$A$6:$AM$500,8,FALSE)="",0,VLOOKUP($A$3,'G7-MW'!$A$6:$AM$500,8,FALSE))&")")),"NA") -> 26% (414) | H31: =IFERROR((IF($C31="NA","NA",VLOOKUP($A$3,'G7-MW'!$A$6:$AM$500,10,FALSE))),"NA") -> 5.13631746 | I31: =IFERROR((IF($C31="NA","NA",ROUND(VLOOKUP($A$3,'G7-MW'!$A$6:$AM$500,12,FALSE),0)&"% ("&IF(VLOOKUP($A$3,'G7-MW'!$A$6:$AM$500,11,FALSE)="",0,VLOOKUP($A$3,'G7-MW'!$A$6:$AM$500,11,FALSE))&")")),"NA") -> 8% (123) | J31: =IFERROR((IF($C31="NA","NA",VLOOKUP($A$3,'G7-MW'!$A$6:$AM$500,13,FALSE))),"NA") -> 5.11168254 | K31: =IFERROR((IF($C31="NA","NA",ROUND(VLOOKUP($A$3,'G7-MW'!$A$6:$AM$500,15,FALSE),0)&"% ("&IF(VLOOKUP($A$3,'G7-MW'!$A$6:$AM$500,14,FALSE)="",0,VLOOKUP($A$3,'G7-MW'!$A$6:$AM$500,14,FALSE))&")")),"NA") -> 9% (134) | L31: =IFERROR((IF($C31="NA","NA",VLOOKUP($A$3,'G7-MW'!$A$6:$AM$500,16,FALSE))),"NA") -> 3.170222222 | M31: =IFERROR((IF($C31="NA","NA",ROUND(VLOOKUP($A$3,'G7-MW'!$A$6:$AM$500,18,FALSE),0)&"% ("&IF(VLOOKUP($A$3,'G7-MW'!$A$6:$AM$500,17,FALSE)="",0,VLOOKUP($A$3,'G7-MW'!$A$6:$AM$500,17,FALSE))&")")),"NA") -> 8% (129)
A32: Black | B32: =IFERROR(VLOOKUP(TEXT($A$3,"0000"),MEM_B!$A$2:$O$500,11,FALSE),0)-IFERROR(VLOOKUP(TEXT($A$3,"0000"),'ALG Gr07'!$A$3:$Q$216,11,FALSE),0) -> 5983 | C32: =IFERROR((IF(OR(B32<10,B32="",B32="NA"),"NA",((IF(VLOOKUP($A$3,'G7-MB'!$A$6:$AM$500,3,FALSE)>=B32,"100% ("&VLOOKUP($A$3,'G7-MB'!$A$6:$AM$500,3,FALSE)&")",(ROUND((VLOOKUP($A$3,'G7-MB'!$A$6:$AM$500,3,FALSE)/B32*100),0))&"% ("&IF(VLOOKUP($A$3,'G7-MB'!$A$6:$AM$500,3,FALSE)="",0,VLOOKUP($A$3,'G7-MB'!$A$6:$AM$500,3,FALSE))&")"))))),"0% (0)") -> 85% (5105) | D32: =IFERROR((IF($C32="NA","NA",VLOOKUP($A$3,'G7-MB'!$A$6:$AM$500,4,FALSE))),"NA") -> 12.89954946 | E32: =IFERROR((IF($C32="NA","NA",ROUND(VLOOKUP($A$3,'G7-MB'!$A$6:$AM$500,6,FALSE),0)&"% ("&IF(VLOOKUP($A$3,'G7-MB'!$A$6:$AM$500,5,FALSE)="",0,VLOOKUP($A$3,'G7-MB'!$A$6:$AM$500,5,FALSE))&")")),"NA") -> 1% (36) | F32: =IFERROR((IF($C32="NA","NA",VLOOKUP($A$3,'G7-MB'!$A$6:$AM$500,7,FALSE))),"NA") -> 3.433104799 | G32: =IFERROR((IF($C32="NA","NA",ROUND(VLOOKUP($A$3,'G7-MB'!$A$6:$AM$500,9,FALSE),0)&"% ("&IF(VLOOKUP($A$3,'G7-MB'!$A$6:$AM$500,8,FALSE)="",0,VLOOKUP($A$3,'G7-MB'!$A$6:$AM$500,8,FALSE))&")")),"NA") -> 8% (417) | H32: =IFERROR((IF($C32="NA","NA",VLOOKUP($A$3,'G7-MB'!$A$6:$AM$500,10,FALSE))),"NA") -> 3.414750245 | I32: =IFERROR((IF($C32="NA","NA",ROUND(VLOOKUP($A$3,'G7-MB'!$A$6:$AM$500,12,FALSE),0)&"% ("&IF(VLOOKUP($A$3,'G7-MB'!$A$6:$AM$500,11,FALSE)="",0,VLOOKUP($A$3,'G7-MB'!$A$6:$AM$500,11,FALSE))&")")),"NA") -> 1% (52) | J32: =IFERROR((IF($C32="NA","NA",VLOOKUP($A$3,'G7-MB'!$A$6:$AM$500,13,FALSE))),"NA") -> 3.848893242 | K32: =IFERROR((IF($C32="NA","NA",ROUND(VLOOKUP($A$3,'G7-MB'!$A$6:$AM$500,15,FALSE),0)&"% ("&IF(VLOOKUP($A$3,'G7-MB'!$A$6:$AM$500,14,FALSE)="",0,VLOOKUP($A$3,'G7-MB'!$A$6:$AM$500,14,FALSE))&")")),"NA") -> 1% (71) | L32: =IFERROR((IF($C32="NA","NA",VLOOKUP($A$3,'G7-MB'!$A$6:$AM$500,16,FALSE))),"NA") -> 2.222135162 | M32: =IFERROR((IF($C32="NA","NA",ROUND(VLOOKUP($A$3,'G7-MB'!$A$6:$AM$500,18,FALSE),0)&"% ("&IF(VLOOKUP($A$3,'G7-MB'!$A$6:$AM$500,17,FALSE)="",0,VLOOKUP($A$3,'G7-MB'!$A$6:$AM$500,17,FALSE))&")")),"NA") -> 2% (97)
A33: Hispanic | B33: =IFERROR(VLOOKUP(TEXT($A$3,"0000"),MEM_H!$A$2:$O$500,11,FALSE),0)-IFERROR(VLOOKUP(TEXT($A$3,"0000"),'ALG Gr07'!$A$3:$Q$216,12,FALSE),0) -> 18041 | C33: =IFERROR((IF(OR(B33<10,B33="",B33="NA"),"NA",((IF(VLOOKUP($A$3,'G7-MH'!$A$6:$AM$500,3,FALSE)>=B33,"100% ("&VLOOKUP($A$3,'G7-MH'!$A$6:$AM$500,3,FALSE)&")",(ROUND((VLOOKUP($A$3,'G7-MH'!$A$6:$AM$500,3,FALSE)/B33*100),0))&"% ("&IF(VLOOKUP($A$3,'G7-MH'!$A$6:$AM$500,3,FALSE)="",0,VLOOKUP($A$3,'G7-MH'!$A$6:$AM$500,3,FALSE))&")"))))),"0% (0)") -> 80% (14428) | D33: =IFERROR((IF($C33="NA","NA",VLOOKUP($A$3,'G7-MH'!$A$6:$AM$500,4,FALSE))),"NA") -> 14.92715553 | E33: =IFERROR((IF($C33="NA","NA",ROUND(VLOOKUP($A$3,'G7-MH'!$A$6:$AM$500,6,FALSE),0)&"% ("&IF(VLOOKUP($A$3,'G7-MH'!$A$6:$AM$500,5,FALSE)="",0,VLOOKUP($A$3,'G7-MH'!$A$6:$AM$500,5,FALSE))&")")),"NA") -> 2% (310) | F33: =IFERROR((IF($C33="NA","NA",VLOOKUP($A$3,'G7-MH'!$A$6:$AM$500,7,FALSE))),"NA") -> 3.884890491 | G33: =IFERROR((IF($C33="NA","NA",ROUND(VLOOKUP($A$3,'G7-MH'!$A$6:$AM$500,9,FALSE),0)&"% ("&IF(VLOOKUP($A$3,'G7-MH'!$A$6:$AM$500,8,FALSE)="",0,VLOOKUP($A$3,'G7-MH'!$A$6:$AM$500,8,FALSE))&")")),"NA") -> 14% (2012) | H33: =IFERROR((IF($C33="NA","NA",VLOOKUP($A$3,'G7-MH'!$A$6:$AM$500,10,FALSE))),"NA") -> 4.258698364 | I33: =IFERROR((IF($C33="NA","NA",ROUND(VLOOKUP($A$3,'G7-MH'!$A$6:$AM$500,12,FALSE),0)&"% ("&IF(VLOOKUP($A$3,'G7-MH'!$A$6:$AM$500,11,FALSE)="",0,VLOOKUP($A$3,'G7-MH'!$A$6:$AM$500,11,FALSE))&")")),"NA") -> 4% (518) | J33: =IFERROR((IF($C33="NA","NA",VLOOKUP($A$3,'G7-MH'!$A$6:$AM$500,13,FALSE))),"NA") -> 4.212953978 | K33: =IFERROR((IF($C33="NA","NA",ROUND(VLOOKUP($A$3,'G7-MH'!$A$6:$AM$500,15,FALSE),0)&"% ("&IF(VLOOKUP($A$3,'G7-MH'!$A$6:$AM$500,14,FALSE)="",0,VLOOKUP($A$3,'G7-MH'!$A$6:$AM$500,14,FALSE))&")")),"NA") -> 3% (469) | L33: =IFERROR((IF($C33="NA","NA",VLOOKUP($A$3,'G7-MH'!$A$6:$AM$500,16,FALSE))),"NA") -> 2.565372886 | M33: =IFERROR((IF($C33="NA","NA",ROUND(VLOOKUP($A$3,'G7-MH'!$A$6:$AM$500,18,FALSE),0)&"% ("&IF(VLOOKUP($A$3,'G7-MH'!$A$6:$AM$500,17,FALSE)="",0,VLOOKUP($A$3,'G7-MH'!$A$6:$AM$500,17,FALSE))&")")),"NA") -> 3% (495)
A34: Asian | B34: =IFERROR(VLOOKUP(TEXT($A$3,"0000"),MEM_A!$A$2:$O$500,11,FALSE),0)-IFERROR(VLOOKUP(TEXT($A$3,"0000"),'ALG Gr07'!$A$3:$Q$216,13,FALSE),0) -> 312 | C34: =IFERROR((IF(OR(B34<10,B34="",B34="NA"),"NA",((IF(VLOOKUP($A$3,'G7-MA'!$A$6:$AM$500,3,FALSE)>=B34,"100% ("&VLOOKUP($A$3,'G7-MA'!$A$6:$AM$500,3,FALSE)&")",(ROUND((VLOOKUP($A$3,'G7-MA'!$A$6:$AM$500,3,FALSE)/B34*100),0))&"% ("&IF(VLOOKUP($A$3,'G7-MA'!$A$6:$AM$500,3,FALSE)="",0,VLOOKUP($A$3,'G7-MA'!$A$6:$AM$500,3,FALSE))&")"))))),"0% (0)") -> 57% (177) | D34: =IFERROR((IF($C34="NA","NA",VLOOKUP($A$3,'G7-MA'!$A$6:$AM$500,4,FALSE))),"NA") -> 19.19378531 | E34: =IFERROR((IF($C34="NA","NA",ROUND(VLOOKUP($A$3,'G7-MA'!$A$6:$AM$500,6,FALSE),0)&"% ("&IF(VLOOKUP($A$3,'G7-MA'!$A$6:$AM$500,5,FALSE)="",0,VLOOKUP($A$3,'G7-MA'!$A$6:$AM$500,5,FALSE))&")")),"NA") -> 12% (21) | F34: =IFERROR((IF($C34="NA","NA",VLOOKUP($A$3,'G7-MA'!$A$6:$AM$500,7,FALSE))),"NA") -> 5.282485876 | G34: =IFERROR((IF($C34="NA","NA",ROUND(VLOOKUP($A$3,'G7-MA'!$A$6:$AM$500,9,FALSE),0)&"% ("&IF(VLOOKUP($A$3,'G7-MA'!$A$6:$AM$500,8,FALSE)="",0,VLOOKUP($A$3,'G7-MA'!$A$6:$AM$500,8,FALSE))&")")),"NA") -> 38% (68) | H34: =IFERROR((IF($C34="NA","NA",VLOOKUP($A$3,'G7-MA'!$A$6:$AM$500,10,FALSE))),"NA") -> 5.405649718 | I34: =IFERROR((IF($C34="NA","NA",ROUND(VLOOKUP($A$3,'G7-MA'!$A$6:$AM$500,12,FALSE),0)&"% ("&IF(VLOOKUP($A$3,'G7-MA'!$A$6:$AM$500,11,FALSE)="",0,VLOOKUP($A$3,'G7-MA'!$A$6:$AM$500,11,FALSE))&")")),"NA") -> 14% (25) | J34: =IFERROR((IF($C34="NA","NA",VLOOKUP($A$3,'G7-MA'!$A$6:$AM$500,13,FALSE))),"NA") -> 5.418644068 | K34: =IFERROR((IF($C34="NA","NA",ROUND(VLOOKUP($A$3,'G7-MA'!$A$6:$AM$500,15,FALSE),0)&"% ("&IF(VLOOKUP($A$3,'G7-MA'!$A$6:$AM$500,14,FALSE)="",0,VLOOKUP($A$3,'G7-MA'!$A$6:$AM$500,14,FALSE))&")")),"NA") -> 14% (25) | L34: =IFERROR((IF($C34="NA","NA",VLOOKUP($A$3,'G7-MA'!$A$6:$AM$500,16,FALSE))),"NA") -> 3.09039548 | M34: =IFERROR((IF($C34="NA","NA",ROUND(VLOOKUP($A$3,'G7-MA'!$A$6:$AM$500,18,FALSE),0)&"% ("&IF(VLOOKUP($A$3,'G7-MA'!$A$6:$AM$500,17,FALSE)="",0,VLOOKUP($A$3,'G7-MA'!$A$6:$AM$500,17,FALSE))&")")),"NA") -> 8% (15)
A35: Am. Indian | B35: =IFERROR(VLOOKUP(TEXT($A$3,"0000"),MEM_I!$A$2:$O$500,11,FALSE),0)-IFERROR(VLOOKUP(TEXT($A$3,"0000"),'ALG Gr07'!$A$3:$Q$216,14,FALSE),0) -> 11 | C35: =IFERROR((IF(OR(B35<10,B35="",B35="NA"),"NA",((IF(VLOOKUP($A$3,'G7-MI'!$A$6:$AM$500,3,FALSE)>=B35,"100% ("&VLOOKUP($A$3,'G7-MI'!$A$6:$AM$500,3,FALSE)&")",(ROUND((VLOOKUP($A$3,'G7-MI'!$A$6:$AM$500,3,FALSE)/B35*100),0))&"% ("&IF(VLOOKUP($A$3,'G7-MI'!$A$6:$AM$500,3,FALSE)="",0,VLOOKUP($A$3,'G7-MI'!$A$6:$AM$500,3,FALSE))&")"))))),"0% (0)") -> 64% (7) | D35: =IFERROR((IF($C35="NA","NA",VLOOKUP($A$3,'G7-MI'!$A$6:$AM$500,4,FALSE))),"NA") -> 13.42857143 | E35: =IFERROR((IF($C35="NA","NA",ROUND(VLOOKUP($A$3,'G7-MI'!$A$6:$AM$500,6,FALSE),0)&"% ("&IF(VLOOKUP($A$3,'G7-MI'!$A$6:$AM$500,5,FALSE)="",0,VLOOKUP($A$3,'G7-MI'!$A$6:$AM$500,5,FALSE))&")")),"NA") -> 0% (0) | F35: =IFERROR((IF($C35="NA","NA",VLOOKUP($A$3,'G7-MI'!$A$6:$AM$500,7,FALSE))),"NA") -> 3.857142857 | G35: =IFERROR((IF($C35="NA","NA",ROUND(VLOOKUP($A$3,'G7-MI'!$A$6:$AM$500,9,FALSE),0)&"% ("&IF(VLOOKUP($A$3,'G7-MI'!$A$6:$AM$500,8,FALSE)="",0,VLOOKUP($A$3,'G7-MI'!$A$6:$AM$500,8,FALSE))&")")),"NA") -> 29% (2) | H35: =IFERROR((IF($C35="NA","NA",VLOOKUP($A$3,'G7-MI'!$A$6:$AM$500,10,FALSE))),"NA") -> 3.714285714 | I35: =IFERROR((IF($C35="NA","NA",ROUND(VLOOKUP($A$3,'G7-MI'!$A$6:$AM$500,12,FALSE),0)&"% ("&IF(VLOOKUP($A$3,'G7-MI'!$A$6:$AM$500,11,FALSE)="",0,VLOOKUP($A$3,'G7-MI'!$A$6:$AM$500,11,FALSE))&")")),"NA") -> 0% (0) | J35: =IFERROR((IF($C35="NA","NA",VLOOKUP($A$3,'G7-MI'!$A$6:$AM$500,13,FALSE))),"NA") -> 2.857142857 | K35: =IFERROR((IF($C35="NA","NA",ROUND(VLOOKUP($A$3,'G7-MI'!$A$6:$AM$500,15,FALSE),0)&"% ("&IF(VLOOKUP($A$3,'G7-MI'!$A$6:$AM$500,14,FALSE)="",0,VLOOKUP($A$3,'G7-MI'!$A$6:$AM$500,14,FALSE))&")")),"NA") -> 0% (0) | L35: =IFERROR((IF($C35="NA","NA",VLOOKUP($A$3,'G7-MI'!$A$6:$AM$500,16,FALSE))),"NA") -> 3 | M35: =IFERROR((IF($C35="NA","NA",ROUND(VLOOKUP($A$3,'G7-MI'!$A$6:$AM$500,18,FALSE),0)&"% ("&IF(VLOOKUP($A$3,'G7-MI'!$A$6:$AM$500,17,FALSE)="",0,VLOOKUP($A$3,'G7-MI'!$A$6:$AM$500,17,FALSE))&")")),"NA") -> 0% (0)
A36: ED | B36: =IFERROR(VLOOKUP(TEXT($A$3,"0000"),MEM_ED!$A$2:$O$500,11,FALSE),0)-IFERROR(VLOOKUP(TEXT($A$3,"0000"),'ALG Gr07'!$A$3:$Q$216,15,FALSE),0) -> 20660 | C36: =IFERROR((IF(OR(B36<10,B36="",B36="NA"),"NA",((IF(VLOOKUP($A$3,'G7-MED'!$A$6:$AM$500,3,FALSE)>=B36,"100% ("&VLOOKUP($A$3,'G7-MED'!$A$6:$AM$500,3,FALSE)&")",(ROUND((VLOOKUP($A$3,'G7-MED'!$A$6:$AM$500,3,FALSE)/B36*100),0))&"% ("&IF(VLOOKUP($A$3,'G7-MED'!$A$6:$AM$500,3,FALSE)="",0,VLOOKUP($A$3,'G7-MED'!$A$6:$AM$500,3,FALSE))&")"))))),"0% (0)") -> 83% (17210) | D36: =IFERROR((IF($C36="NA","NA",VLOOKUP($A$3,'G7-MED'!$A$6:$AM$500,4,FALSE))),"NA") -> 14.01497966 | E36: =IFERROR((IF($C36="NA","NA",ROUND(VLOOKUP($A$3,'G7-MED'!$A$6:$AM$500,6,FALSE),0)&"% ("&IF(VLOOKUP($A$3,'G7-MED'!$A$6:$AM$500,5,FALSE)="",0,VLOOKUP($A$3,'G7-MED'!$A$6:$AM$500,5,FALSE))&")")),"NA") -> 1% (230) | F36: =IFERROR((IF($C36="NA","NA",VLOOKUP($A$3,'G7-MED'!$A$6:$AM$500,7,FALSE))),"NA") -> 3.637007554 | G36: =IFERROR((IF($C36="NA","NA",ROUND(VLOOKUP($A$3,'G7-MED'!$A$6:$AM$500,9,FALSE),0)&"% ("&IF(VLOOKUP($A$3,'G7-MED'!$A$6:$AM$500,8,FALSE)="",0,VLOOKUP($A$3,'G7-MED'!$A$6:$AM$500,8,FALSE))&")")),"NA") -> 11% (1870) | H36: =IFERROR((IF($C36="NA","NA",VLOOKUP($A$3,'G7-MED'!$A$6:$AM$500,10,FALSE))),"NA") -> 3.930313771 | I36: =IFERROR((IF($C36="NA","NA",ROUND(VLOOKUP($A$3,'G7-MED'!$A$6:$AM$500,12,FALSE),0)&"% ("&IF(VLOOKUP($A$3,'G7-MED'!$A$6:$AM$500,11,FALSE)="",0,VLOOKUP($A$3,'G7-MED'!$A$6:$AM$500,11,FALSE))&")")),"NA") -> 2% (424) | J36: =IFERROR((IF($C36="NA","NA",VLOOKUP($A$3,'G7-MED'!$A$6:$AM$500,13,FALSE))),"NA") -> 4.037687391 | K36: =IFERROR((IF($C36="NA","NA",ROUND(VLOOKUP($A$3,'G7-MED'!$A$6:$AM$500,15,FALSE),0)&"% ("&IF(VLOOKUP($A$3,'G7-MED'!$A$6:$AM$500,14,FALSE)="",0,VLOOKUP($A$3,'G7-MED'!$A$6:$AM$500,14,FALSE))&")")),"NA") -> 2% (395) | L36: =IFERROR((IF($C36="NA","NA",VLOOKUP($A$3,'G7-MED'!$A$6:$AM$500,16,FALSE))),"NA") -> 2.410552005 | M36: =IFERROR((IF($C36="NA","NA",ROUND(VLOOKUP($A$3,'G7-MED'!$A$6:$AM$500,18,FALSE),0)&"% ("&IF(VLOOKUP($A$3,'G7-MED'!$A$6:$AM$500,17,FALSE)="",0,VLOOKUP($A$3,'G7-MED'!$A$6:$AM$500,17,FALSE))&")")),"NA") -> 3% (440)
A37: ELL | B37: =IFERROR(VLOOKUP(TEXT($A$3,"0000"),MEM_ELL!$A$2:$O$500,11,FALSE),0)-IFERROR(VLOOKUP(TEXT($A$3,"0000"),'ALG Gr07'!$A$3:$Q$216,16,FALSE),0) -> 4774 | C37: =IFERROR((IF(OR(B37<10,B37="",B37="NA"),"NA",((IF(VLOOKUP($A$3,'G7-MELL'!$A$6:$AM$500,3,FALSE)>=B37,"100% ("&VLOOKUP($A$3,'G7-MELL'!$A$6:$AM$500,3,FALSE)&")",(ROUND((VLOOKUP($A$3,'G7-MELL'!$A$6:$AM$500,3,FALSE)/B37*100),0))&"% ("&IF(VLOOKUP($A$3,'G7-MELL'!$A$6:$AM$500,3,FALSE)="",0,VLOOKUP($A$3,'G7-MELL'!$A$6:$AM$500,3,FALSE))&")"))))),"0% (0)") -> 88% (4209) | D37: =IFERROR((IF($C37="NA","NA",VLOOKUP($A$3,'G7-MELL'!$A$6:$AM$500,4,FALSE))),"NA") -> 12.1216441 | E37: =IFERROR((IF($C37="NA","NA",ROUND(VLOOKUP($A$3,'G7-MELL'!$A$6:$AM$500,6,FALSE),0)&"% ("&IF(VLOOKUP($A$3,'G7-MELL'!$A$6:$AM$500,5,FALSE)="",0,VLOOKUP($A$3,'G7-MELL'!$A$6:$AM$500,5,FALSE))&")")),"NA") -> 0% (10) | F37: =IFERROR((IF($C37="NA","NA",VLOOKUP($A$3,'G7-MELL'!$A$6:$AM$500,7,FALSE))),"NA") -> 3.076502732 | G37: =IFERROR((IF($C37="NA","NA",ROUND(VLOOKUP($A$3,'G7-MELL'!$A$6:$AM$500,9,FALSE),0)&"% ("&IF(VLOOKUP($A$3,'G7-MELL'!$A$6:$AM$500,8,FALSE)="",0,VLOOKUP($A$3,'G7-MELL'!$A$6:$AM$500,8,FALSE))&")")),"NA") -> 5% (222) | H37: =IFERROR((IF($C37="NA","NA",VLOOKUP($A$3,'G7-MELL'!$A$6:$AM$500,10,FALSE))),"NA") -> 3.50890948 | I37: =IFERROR((IF($C37="NA","NA",ROUND(VLOOKUP($A$3,'G7-MELL'!$A$6:$AM$500,12,FALSE),0)&"% ("&IF(VLOOKUP($A$3,'G7-MELL'!$A$6:$AM$500,11,FALSE)="",0,VLOOKUP($A$3,'G7-MELL'!$A$6:$AM$500,11,FALSE))&")")),"NA") -> 1% (42) | J37: =IFERROR((IF($C37="NA","NA",VLOOKUP($A$3,'G7-MELL'!$A$6:$AM$500,13,FALSE))),"NA") -> 3.510572583 | K37: =IFERROR((IF($C37="NA","NA",ROUND(VLOOKUP($A$3,'G7-MELL'!$A$6:$AM$500,15,FALSE),0)&"% ("&IF(VLOOKUP($A$3,'G7-MELL'!$A$6:$AM$500,14,FALSE)="",0,VLOOKUP($A$3,'G7-MELL'!$A$6:$AM$500,14,FALSE))&")")),"NA") -> 1% (23) | L37: =IFERROR((IF($C37="NA","NA",VLOOKUP($A$3,'G7-MELL'!$A$6:$AM$500,16,FALSE))),"NA") -> 2.025659301 | M37: =IFERROR((IF($C37="NA","NA",ROUND(VLOOKUP($A$3,'G7-MELL'!$A$6:$AM$500,18,FALSE),0)&"% ("&IF(VLOOKUP($A$3,'G7-MELL'!$A$6:$AM$500,17,FALSE)="",0,VLOOKUP($A$3,'G7-MELL'!$A$6:$AM$500,17,FALSE))&")")),"NA") -> 1% (32)
A38: SWD | B38: =IFERROR(VLOOKUP(TEXT($A$3,"0000"),MEM_SWD!$A$2:$O$500,11,FALSE),0)-IFERROR(VLOOKUP(TEXT($A$3,"0000"),'ALG Gr07'!$A$3:$Q$216,17,FALSE),0) -> 2573 | C38: =IFERROR((IF(OR(B38<10,B38="",B38="NA"),"NA",((IF(VLOOKUP($A$3,'G7-MSWD'!$A$6:$AM$500,3,FALSE)>=B38,"100% ("&VLOOKUP($A$3,'G7-MSWD'!$A$6:$AM$500,3,FALSE)&")",(ROUND((VLOOKUP($A$3,'G7-MSWD'!$A$6:$AM$500,3,FALSE)/B38*100),0))&"% ("&IF(VLOOKUP($A$3,'G7-MSWD'!$A$6:$AM$500,3,FALSE)="",0,VLOOKUP($A$3,'G7-MSWD'!$A$6:$AM$500,3,FALSE))&")"))))),"0% (0)") -> 89% (2286) | D38: =IFERROR((IF($C38="NA","NA",VLOOKUP($A$3,'G7-MSWD'!$A$6:$AM$500,4,FALSE))),"NA") -> 11.482021 | E38: =IFERROR((IF($C38="NA","NA",ROUND(VLOOKUP($A$3,'G7-MSWD'!$A$6:$AM$500,6,FALSE),0)&"% ("&IF(VLOOKUP($A$3,'G7-MSWD'!$A$6:$AM$500,5,FALSE)="",0,VLOOKUP($A$3,'G7-MSWD'!$A$6:$AM$500,5,FALSE))&")")),"NA") -> 0% (6) | F38: =IFERROR((IF($C38="NA","NA",VLOOKUP($A$3,'G7-MSWD'!$A$6:$AM$500,7,FALSE))),"NA") -> 2.799300087 | G38: =IFERROR((IF($C38="NA","NA",ROUND(VLOOKUP($A$3,'G7-MSWD'!$A$6:$AM$500,9,FALSE),0)&"% ("&IF(VLOOKUP($A$3,'G7-MSWD'!$A$6:$AM$500,8,FALSE)="",0,VLOOKUP($A$3,'G7-MSWD'!$A$6:$AM$500,8,FALSE))&")")),"NA") -> 4% (81) | H38: =IFERROR((IF($C38="NA","NA",VLOOKUP($A$3,'G7-MSWD'!$A$6:$AM$500,10,FALSE))),"NA") -> 3.225853018 | I38: =IFERROR((IF($C38="NA","NA",ROUND(VLOOKUP($A$3,'G7-MSWD'!$A$6:$AM$500,12,FALSE),0)&"% ("&IF(VLOOKUP($A$3,'G7-MSWD'!$A$6:$AM$500,11,FALSE)="",0,VLOOKUP($A$3,'G7-MSWD'!$A$6:$AM$500,11,FALSE))&")")),"NA") -> 1% (17) | J38: =IFERROR((IF($C38="NA","NA",VLOOKUP($A$3,'G7-MSWD'!$A$6:$AM$500,13,FALSE))),"NA") -> 3.468897638 | K38: =IFERROR((IF($C38="NA","NA",ROUND(VLOOKUP($A$3,'G7-MSWD'!$A$6:$AM$500,15,FALSE),0)&"% ("&IF(VLOOKUP($A$3,'G7-MSWD'!$A$6:$AM$500,14,FALSE)="",0,VLOOKUP($A$3,'G7-MSWD'!$A$6:$AM$500,14,FALSE))&")")),"NA") -> 1% (18) | L38: =IFERROR((IF($C38="NA","NA",VLOOKUP($A$3,'G7-MSWD'!$A$6:$AM$500,16,FALSE))),"NA") -> 2.000262467 | M38: =IFERROR((IF($C38="NA","NA",ROUND(VLOOKUP($A$3,'G7-MSWD'!$A$6:$AM$500,18,FALSE),0)&"% ("&IF(VLOOKUP($A$3,'G7-MSWD'!$A$6:$AM$500,17,FALSE)="",0,VLOOKUP($A$3,'G7-MSWD'!$A$6:$AM$500,17,FALSE))&")")),"NA") -> 1% (27)
A39: Civics EOC
A40: Level of Proficiency at 70% or above | B40: Total # of Students | C40: % of Students Tested | D40: ='G6-8 Matrix'!C22&" ["&'G6-8 Matrix'!C23&"]" -> Overall [39] | F40: ='G6-8 Matrix'!D22&" ["&'G6-8 Matrix'!D23&"]" -> Government Policies and Political Processes [8] | H40: ='G6-8 Matrix'!E22&" ["&'G6-8 Matrix'!E23&"]" -> Organization and Function of Government [12] | J40: ='G6-8 Matrix'!F22&" ["&'G6-8 Matrix'!F23&"]" -> Origins and Purposes of Law and Government [11] | L40: ='G6-8 Matrix'!G22&" ["&'G6-8 Matrix'!G23&"]" -> Roles, Rights, and Responsibilities [8]
D41: Average Score | E41: % Proficient | F41: Average Score | G41: % Proficient | H41: Average Score | I41: % Proficient | J41: Average Score | K41: % Proficient | L41: Average Score | M41: % Proficient
A42: All students | B42: =IFERROR(VLOOKUP(TEXT($A$3,"0000"),'Civics Enrollment'!$A$2:$C$497,3,FALSE),0) -> 26608 | C42: =IFERROR((IF(OR(B42<10,B42="",B42="NA"),"NA",((IF(VLOOKUP($A$3,'Civics EOC'!$A$6:$AM$500,3,FALSE)>=B42,"100% ("&VLOOKUP($A$3,'Civics EOC'!$A$6:$AM$500,3,FALSE)&")",(ROUND((VLOOKUP($A$3,'Civics EOC'!$A$6:$AM$500,3,FALSE)/B42*100),0))&"% ("&VLOOKUP($A$3,'Civics EOC'!$A$6:$AM$500,3,FALSE)&")"))))),"NA") -> 93% (24839) | D42: =IFERROR(IF($C42="NA","NA",VLOOKUP($A$3,'Civics EOC'!$A$14:$AM$500,4,FALSE)),"NA") -> 14.14163576 | E42: =IFERROR((IF($C42="NA","NA",ROUND(VLOOKUP($A$3,'Civics EOC'!$A$6:$AM$500,9,FALSE)*100,0)&"% ("&IF(VLOOKUP($A$3,'Civics EOC'!$A$6:$AM$500,7,FALSE)="",0,VLOOKUP($A$3,'Civics EOC'!$A$6:$AM$500,7,FALSE))&")")),"NA") -> 1% (204) | F42: =IFERROR((IF($C42="NA","NA",VLOOKUP($A$3,'Civics EOC'!$A$14:$AM$500,10,FALSE))),"NA") -> 3.048327181 | G42: =IFERROR((IF($C42="NA","NA",ROUND(VLOOKUP($A$3,'Civics EOC'!$A$14:$AM$500,15,FALSE)*100,0)&"% ("&VLOOKUP($A$3,'Civics EOC'!$A$14:$AM$500,13,FALSE)&")")),"NA") -> 7% (1747) | H42: =IFERROR((IF($D42="NA","NA",VLOOKUP($A$3,'Civics EOC'!$A$14:$AM$500,16,FALSE))),"NA") -> 3.799999952 | I42: =IFERROR((IF($D42="NA","NA",ROUND(VLOOKUP($A$3,'Civics EOC'!$A$14:$AM$500,21,FALSE)*100,0)&"% ("&VLOOKUP($A$3,'Civics EOC'!$A$14:$AM$500,19,FALSE)&")")),"NA") -> 1% (293) | J42: =IFERROR((IF($C42="NA","NA",VLOOKUP($A$3,'Civics EOC'!$A$14:$AM$500,22,FALSE))),"NA") -> 3.948327277 | K42: =IFERROR((IF($C42="NA","NA",ROUND(VLOOKUP($A$3,'Civics EOC'!$A$14:$AM$500,27,FALSE)*100,0)&"% ("&VLOOKUP($A$3,'Civics EOC'!$A$14:$AM$500,25,FALSE)&")")),"NA") -> 3% (798) | L42: =IFERROR((IF($C42="NA","NA",VLOOKUP($A$3,'Civics EOC'!$A$14:$AM$500,28,FALSE))),"NA") -> 3.348327249 | M42: =IFERROR((IF($C42="NA","NA",ROUND(VLOOKUP($A$3,'Civics EOC'!$A$14:$AM$500,33,FALSE)*100,0)&"% ("&VLOOKUP($A$3,'Civics EOC'!$A$14:$AM$500,31,FALSE)&")")),"NA") -> 6% (1546)

Sheet Grade 8 Report
A2: Click here to return to the school and sheet selection interface
A3: ='Select School'!B3 -> 9999
A4: =TEXT(A3,"0000")&"-"&VLOOKUP(A3,SchList!$A$2:$B$504,2,FALSE) -> 9999-District
A5: Reading - Grade 8
A6: Level of Proficiency at 70% or above | B6: Total # of Students | C6: % of Students Tested | D6: ='G6-8 Matrix'!C2&"["&'G6-8 Matrix'!C7&"]" -> Overall[33] | F6: ='G6-8 Matrix'!D2&"["&'G6-8 Matrix'!D7&"]" -> Vocabulary[6] | H6: ='G6-8 Matrix'!E2&"["&'G6-8 Matrix'!E7&"]" -> Reading Application[17] | J6: ='G6-8 Matrix'!F2&"["&'G6-8 Matrix'!F7&"]" -> Literary Analysis Fiction/Nonfiction[6] | L6: ='G6-8 Matrix'!G2&"["&'G6-8 Matrix'!G7&"]" -> Informational Text/ Research Process[4]
D7: Average Score | E7: % Proficient | F7: Average Score | G7: % Proficient | H7: Average Score | I7: % Proficient | J7: Average Score | K7: % Proficient | L7: Average Score | M7: % Proficient
A8: All students | B8: =IFERROR(VLOOKUP(TEXT($A$3,"0000"),Mem_All!$A$2:$O$500,12,FALSE),"NA") -> 27272 | C8: =IFERROR((IF(OR(B8<10,B8="",B8="NA"),"NA",((IF(VLOOKUP($A$3,'G8-RALL'!$A$6:$AM$500,3,FALSE)>=B8,"100% ("&VLOOKUP($A$3,'G8-RALL'!$A$6:$AM$500,3,FALSE)&")",(ROUND((VLOOKUP($A$3,'G8-RALL'!$A$6:$AM$500,3,FALSE)/B8*100),0))&"% ("&IF(VLOOKUP($A$3,'G8-RALL'!$A$6:$AM$500,3,FALSE)="",0,VLOOKUP($A$3,'G8-RALL'!$A$6:$AM$500,3,FALSE))&")"))))),"NA") -> 93% (25413) | D8: =IFERROR((IF($C8="NA","NA",VLOOKUP($A$3,'G8-RALL'!$A$6:$AM$500,4,FALSE))),"NA") -> 18.22808405 | E8: =IFERROR((IF($C8="NA","NA",ROUND(VLOOKUP($A$3,'G8-RALL'!$A$6:$AM$500,6,FALSE),0)&"% ("&IF(VLOOKUP($A$3,'G8-RALL'!$A$6:$AM$500,5,FALSE)="",0,VLOOKUP($A$3,'G8-RALL'!$A$6:$AM$500,5,FALSE))&")")),"NA") -> 29% (7419) | F8: =IFERROR((IF($C8="NA","NA",VLOOKUP($A$3,'G8-RALL'!$A$6:$AM$500,7,FALSE))),"NA") -> 3.768779758 | G8: =IFERROR((IF($C8="NA","NA",ROUND(VLOOKUP($A$3,'G8-RALL'!$A$6:$AM$500,9,FALSE),0)&"% ("&IF(VLOOKUP($A$3,'G8-RALL'!$A$6:$AM$500,8,FALSE)="",0,VLOOKUP($A$3,'G8-RALL'!$A$6:$AM$500,8,FALSE))&")")),"NA") -> 35% (8800) | H8: =IFERROR((IF($C8="NA","NA",VLOOKUP($A$3,'G8-RALL'!$A$6:$AM$500,10,FALSE))),"NA") -> 9.395986306 | I8: =IFERROR((IF($C8="NA","NA",ROUND(VLOOKUP($A$3,'G8-RALL'!$A$6:$AM$500,12,FALSE),0)&"% ("&IF(VLOOKUP($A$3,'G8-RALL'!$A$6:$AM$500,11,FALSE)="",0,VLOOKUP($A$3,'G8-RALL'!$A$6:$AM$500,11,FALSE))&")")),"NA") -> 32% (8052) | J8: =IFERROR((IF($C8="NA","NA",VLOOKUP($A$3,'G8-RALL'!$A$6:$AM$500,13,FALSE))),"NA") -> 2.955286664 | K8: =IFERROR((IF($C8="NA","NA",ROUND(VLOOKUP($A$3,'G8-RALL'!$A$6:$AM$500,15,FALSE),0)&"% ("&IF(VLOOKUP($A$3,'G8-RALL'!$A$6:$AM$500,14,FALSE)="",0,VLOOKUP($A$3,'G8-RALL'!$A$6:$AM$500,14,FALSE))&")")),"NA") -> 17% (4388) | L8: =IFERROR((IF($C8="NA","NA",VLOOKUP($A$3,'G8-RALL'!$A$6:$AM$500,16,FALSE))),"NA") -> 2.10978633 | M8: =IFERROR((IF($C8="NA","NA",ROUND(VLOOKUP($A$3,'G8-RALL'!$A$6:$AM$500,18,FALSE),0)&"% ("&IF(VLOOKUP($A$3,'G8-RALL'!$A$6:$AM$500,17,FALSE)="",0,VLOOKUP($A$3,'G8-RALL'!$A$6:$AM$500,17,FALSE))&")")),"NA") -> 40% (10093)
A9: FCAT Level 1 | B9: =IFERROR(VLOOKUP(TEXT($A$3,"0000"),MEM_RL1!$A$2:$O$500,9,FALSE),"NA") -> 5492 | C9: =IFERROR((IF(OR(B9<10,B9="",B9="NA"),"NA",((IF(VLOOKUP($A$3,'G8-RL1'!$A$6:$AM$500,3,FALSE)>=B9,"100% ("&VLOOKUP($A$3,'G8-RL1'!$A$6:$AM$500,3,FALSE)&")",(ROUND((VLOOKUP($A$3,'G8-RL1'!$A$6:$AM$500,3,FALSE)/B9*100),0))&"% ("&IF(VLOOKUP($A$3,'G8-RL1'!$A$6:$AM$500,3,FALSE)="",0,VLOOKUP($A$3,'G8-RL1'!$A$6:$AM$500,3,FALSE))&")"))))),"NA") -> 96% (5265) | D9: =IFERROR((IF($C9="NA","NA",VLOOKUP($A$3,'G8-RL1'!$A$6:$AM$500,4,FALSE))),"NA") -> 11.48867996 | E9: =IFERROR((IF($C9="NA","NA",ROUND(VLOOKUP($A$3,'G8-RL1'!$A$6:$AM$500,6,FALSE),0)&"% ("&IF(VLOOKUP($A$3,'G8-RL1'!$A$6:$AM$500,5,FALSE)="",0,VLOOKUP($A$3,'G8-RL1'!$A$6:$AM$500,5,FALSE))&")")),"NA") -> 1% (31) | F9: =IFERROR((IF($C9="NA","NA",VLOOKUP($A$3,'G8-RL1'!$A$6:$AM$500,7,FALSE))),"NA") -> 2.585603039 | G9: =IFERROR((IF($C9="NA","NA",ROUND(VLOOKUP($A$3,'G8-RL1'!$A$6:$AM$500,9,FALSE),0)&"% ("&IF(VLOOKUP($A$3,'G8-RL1'!$A$6:$AM$500,8,FALSE)="",0,VLOOKUP($A$3,'G8-RL1'!$A$6:$AM$500,8,FALSE))&")")),"NA") -> 8% (415) | H9: =IFERROR((IF($C9="NA","NA",VLOOKUP($A$3,'G8-RL1'!$A$6:$AM$500,10,FALSE))),"NA") -> 5.830807217 | I9: =IFERROR((IF($C9="NA","NA",ROUND(VLOOKUP($A$3,'G8-RL1'!$A$6:$AM$500,12,FALSE),0)&"% ("&IF(VLOOKUP($A$3,'G8-RL1'!$A$6:$AM$500,11,FALSE)="",0,VLOOKUP($A$3,'G8-RL1'!$A$6:$AM$500,11,FALSE))&")")),"NA") -> 1% (74) | J9: =IFERROR((IF($C9="NA","NA",VLOOKUP($A$3,'G8-RL1'!$A$6:$AM$500,13,FALSE))),"NA") -> 1.794985755 | K9: =IFERROR((IF($C9="NA","NA",ROUND(VLOOKUP($A$3,'G8-RL1'!$A$6:$AM$500,15,FALSE),0)&"% ("&IF(VLOOKUP($A$3,'G8-RL1'!$A$6:$AM$500,14,FALSE)="",0,VLOOKUP($A$3,'G8-RL1'!$A$6:$AM$500,14,FALSE))&")")),"NA") -> 1% (77) | L9: =IFERROR((IF($C9="NA","NA",VLOOKUP($A$3,'G8-RL1'!$A$6:$AM$500,16,FALSE))),"NA") -> 1.287122507 | M9: =IFERROR((IF($C9="NA","NA",ROUND(VLOOKUP($A$3,'G8-RL1'!$A$6:$AM$500,18,FALSE),0)&"% ("&IF(VLOOKUP($A$3,'G8-RL1'!$A$6:$AM$500,17,FALSE)="",0,VLOOKUP($A$3,'G8-RL1'!$A$6:$AM$500,17,FALSE))&")")),"NA") -> 11% (599)
A10: FCAT Level 2 | B10: =IFERROR(VLOOKUP(TEXT($A$3,"0000"),MEM_RL2!$A$2:$O$500,9,FALSE),"NA") -> 6484 | C10: =IFERROR((IF(OR(B10<10,B10="",B10="NA"),"NA",((IF(VLOOKUP($A$3,'G8-RL2'!$A$6:$AM$500,3,FALSE)>=B10,"100% ("&VLOOKUP($A$3,'G8-RL2'!$A$6:$AM$500,3,FALSE)&")",(ROUND((VLOOKUP($A$3,'G8-RL2'!$A$6:$AM$500,3,FALSE)/B10*100),0))&"% ("&IF(VLOOKUP($A$3,'G8-RL2'!$A$6:$AM$500,3,FALSE)="",0,VLOOKUP($A$3,'G8-RL2'!$A$6:$AM$500,3,FALSE))&")"))))),"NA") -> 82% (5303) | D10: =IFERROR((IF($C10="NA","NA",VLOOKUP($A$3,'G8-RL2'!$A$6:$AM$500,4,FALSE))),"NA") -> 15.49988686 | E10: =IFERROR((IF($C10="NA","NA",ROUND(VLOOKUP($A$3,'G8-RL2'!$A$6:$AM$500,6,FALSE),0)&"% ("&IF(VLOOKUP($A$3,'G8-RL2'!$A$6:$AM$500,5,FALSE)="",0,VLOOKUP($A$3,'G8-RL2'!$A$6:$AM$500,5,FALSE))&")")),"NA") -> 5% (276) | F10: =IFERROR((IF($C10="NA","NA",VLOOKUP($A$3,'G8-RL2'!$A$6:$AM$500,7,FALSE))),"NA") -> 3.396605695 | G10: =IFERROR((IF($C10="NA","NA",ROUND(VLOOKUP($A$3,'G8-RL2'!$A$6:$AM$500,9,FALSE),0)&"% ("&IF(VLOOKUP($A$3,'G8-RL2'!$A$6:$AM$500,8,FALSE)="",0,VLOOKUP($A$3,'G8-RL2'!$A$6:$AM$500,8,FALSE))&")")),"NA") -> 20% (1082) | H10: =IFERROR((IF($C10="NA","NA",VLOOKUP($A$3,'G8-RL2'!$A$6:$AM$500,10,FALSE))),"NA") -> 7.854591741 | I10: =IFERROR((IF($C10="NA","NA",ROUND(VLOOKUP($A$3,'G8-RL2'!$A$6:$AM$500,12,FALSE),0)&"% ("&IF(VLOOKUP($A$3,'G8-RL2'!$A$6:$AM$500,11,FALSE)="",0,VLOOKUP($A$3,'G8-RL2'!$A$6:$AM$500,11,FALSE))&")")),"NA") -> 9% (454) | J10: =IFERROR((IF($C10="NA","NA",VLOOKUP($A$3,'G8-RL2'!$A$6:$AM$500,13,FALSE))),"NA") -> 2.505129172 | K10: =IFERROR((IF($C10="NA","NA",ROUND(VLOOKUP($A$3,'G8-RL2'!$A$6:$AM$500,15,FALSE),0)&"% ("&IF(VLOOKUP($A$3,'G8-RL2'!$A$6:$AM$500,14,FALSE)="",0,VLOOKUP($A$3,'G8-RL2'!$A$6:$AM$500,14,FALSE))&")")),"NA") -> 7% (353) | L10: =IFERROR((IF($C10="NA","NA",VLOOKUP($A$3,'G8-RL2'!$A$6:$AM$500,16,FALSE))),"NA") -> 1.737337356 | M10: =IFERROR((IF($C10="NA","NA",ROUND(VLOOKUP($A$3,'G8-RL2'!$A$6:$AM$500,18,FALSE),0)&"% ("&IF(VLOOKUP($A$3,'G8-RL2'!$A$6:$AM$500,17,FALSE)="",0,VLOOKUP($A$3,'G8-RL2'!$A$6:$AM$500,17,FALSE))&")")),"NA") -> 23% (1245)
A11: FCAT Level 3 | B11: =IFERROR(VLOOKUP(TEXT($A$3,"0000"),MEM_RL3!$A$2:$O$500,9,FALSE),"NA") -> 6897 | C11: =IFERROR((IF(OR(B11<10,B11="",B11="NA"),"NA",((IF(VLOOKUP($A$3,'G8-RL3'!$A$6:$AM$500,3,FALSE)>=B11,"100% ("&VLOOKUP($A$3,'G8-RL3'!$A$6:$AM$500,3,FALSE)&")",(ROUND((VLOOKUP($A$3,'G8-RL3'!$A$6:$AM$500,3,FALSE)/B11*100),0))&"% ("&IF(VLOOKUP($A$3,'G8-RL3'!$A$6:$AM$500,3,FALSE)="",0,VLOOKUP($A$3,'G8-RL3'!$A$6:$AM$500,3,FALSE))&")"))))),"NA") -> 96% (6590) | D11: =IFERROR((IF($C11="NA","NA",VLOOKUP($A$3,'G8-RL3'!$A$6:$AM$500,4,FALSE))),"NA") -> 19.39783005 | E11: =IFERROR((IF($C11="NA","NA",ROUND(VLOOKUP($A$3,'G8-RL3'!$A$6:$AM$500,6,FALSE),0)&"% ("&IF(VLOOKUP($A$3,'G8-RL3'!$A$6:$AM$500,5,FALSE)="",0,VLOOKUP($A$3,'G8-RL3'!$A$6:$AM$500,5,FALSE))&")")),"NA") -> 26% (1718) | F11: =IFERROR((IF($C11="NA","NA",VLOOKUP($A$3,'G8-RL3'!$A$6:$AM$500,7,FALSE))),"NA") -> 4.023383915 | G11: =IFERROR((IF($C11="NA","NA",ROUND(VLOOKUP($A$3,'G8-RL3'!$A$6:$AM$500,9,FALSE),0)&"% ("&IF(VLOOKUP($A$3,'G8-RL3'!$A$6:$AM$500,8,FALSE)="",0,VLOOKUP($A$3,'G8-RL3'!$A$6:$AM$500,8,FALSE))&")")),"NA") -> 38% (2489) | H11: =IFERROR((IF($C11="NA","NA",VLOOKUP($A$3,'G8-RL3'!$A$6:$AM$500,10,FALSE))),"NA") -> 9.986342944 | I11: =IFERROR((IF($C11="NA","NA",ROUND(VLOOKUP($A$3,'G8-RL3'!$A$6:$AM$500,12,FALSE),0)&"% ("&IF(VLOOKUP($A$3,'G8-RL3'!$A$6:$AM$500,11,FALSE)="",0,VLOOKUP($A$3,'G8-RL3'!$A$6:$AM$500,11,FALSE))&")")),"NA") -> 31% (2018) | J11: =IFERROR((IF($C11="NA","NA",VLOOKUP($A$3,'G8-RL3'!$A$6:$AM$500,13,FALSE))),"NA") -> 3.158634294 | K11: =IFERROR((IF($C11="NA","NA",ROUND(VLOOKUP($A$3,'G8-RL3'!$A$6:$AM$500,15,FALSE),0)&"% ("&IF(VLOOKUP($A$3,'G8-RL3'!$A$6:$AM$500,14,FALSE)="",0,VLOOKUP($A$3,'G8-RL3'!$A$6:$AM$500,14,FALSE))&")")),"NA") -> 16% (1085) | L11: =IFERROR((IF($C11="NA","NA",VLOOKUP($A$3,'G8-RL3'!$A$6:$AM$500,16,FALSE))),"NA") -> 2.221623672 | M11: =IFERROR((IF($C11="NA","NA",ROUND(VLOOKUP($A$3,'G8-RL3'!$A$6:$AM$500,18,FALSE),0)&"% ("&IF(VLOOKUP($A$3,'G8-RL3'!$A$6:$AM$500,17,FALSE)="",0,VLOOKUP($A$3,'G8-RL3'!$A$6:$AM$500,17,FALSE))&")")),"NA") -> 42% (2771)
A12: FCAT Level 4 | B12: =IFERROR(VLOOKUP(TEXT($A$3,"0000"),MEM_RL4!$A$2:$O$500,9,FALSE),"NA") -> 5004 | C12: =IFERROR((IF(OR(B12<10,B12="",B12="NA"),"NA",((IF(VLOOKUP($A$3,'G8-RL4'!$A$6:$AM$500,3,FALSE)>=B12,"100% ("&VLOOKUP($A$3,'G8-RL4'!$A$6:$AM$500,3,FALSE)&")",(ROUND((VLOOKUP($A$3,'G8-RL4'!$A$6:$AM$500,3,FALSE)/B12*100),0))&"% ("&IF(VLOOKUP($A$3,'G8-RL4'!$A$6:$AM$500,3,FALSE)="",0,VLOOKUP($A$3,'G8-RL4'!$A$6:$AM$500,3,FALSE))&")"))))),"NA") -> 96% (4798) | D12: =IFERROR((IF($C12="NA","NA",VLOOKUP($A$3,'G8-RL4'!$A$6:$AM$500,4,FALSE))),"NA") -> 23.06467278 | E12: =IFERROR((IF($C12="NA","NA",ROUND(VLOOKUP($A$3,'G8-RL4'!$A$6:$AM$500,6,FALSE),0)&"% ("&IF(VLOOKUP($A$3,'G8-RL4'!$A$6:$AM$500,5,FALSE)="",0,VLOOKUP($A$3,'G8-RL4'!$A$6:$AM$500,5,FALSE))&")")),"NA") -> 61% (2911) | F12: =IFERROR((IF($C12="NA","NA",VLOOKUP($A$3,'G8-RL4'!$A$6:$AM$500,7,FALSE))),"NA") -> 4.550687787 | G12: =IFERROR((IF($C12="NA","NA",ROUND(VLOOKUP($A$3,'G8-RL4'!$A$6:$AM$500,9,FALSE),0)&"% ("&IF(VLOOKUP($A$3,'G8-RL4'!$A$6:$AM$500,8,FALSE)="",0,VLOOKUP($A$3,'G8-RL4'!$A$6:$AM$500,8,FALSE))&")")),"NA") -> 56% (2692) | H12: =IFERROR((IF($C12="NA","NA",VLOOKUP($A$3,'G8-RL4'!$A$6:$AM$500,10,FALSE))),"NA") -> 12.02601084 | I12: =IFERROR((IF($C12="NA","NA",ROUND(VLOOKUP($A$3,'G8-RL4'!$A$6:$AM$500,12,FALSE),0)&"% ("&IF(VLOOKUP($A$3,'G8-RL4'!$A$6:$AM$500,11,FALSE)="",0,VLOOKUP($A$3,'G8-RL4'!$A$6:$AM$500,11,FALSE))&")")),"NA") -> 63% (3019) | J12: =IFERROR((IF($C12="NA","NA",VLOOKUP($A$3,'G8-RL4'!$A$6:$AM$500,13,FALSE))),"NA") -> 3.765485619 | K12: =IFERROR((IF($C12="NA","NA",ROUND(VLOOKUP($A$3,'G8-RL4'!$A$6:$AM$500,15,FALSE),0)&"% ("&IF(VLOOKUP($A$3,'G8-RL4'!$A$6:$AM$500,14,FALSE)="",0,VLOOKUP($A$3,'G8-RL4'!$A$6:$AM$500,14,FALSE))&")")),"NA") -> 30% (1463) | L12: =IFERROR((IF($C12="NA","NA",VLOOKUP($A$3,'G8-RL4'!$A$6:$AM$500,16,FALSE))),"NA") -> 2.729074614 | M12: =IFERROR((IF($C12="NA","NA",ROUND(VLOOKUP($A$3,'G8-RL4'!$A$6:$AM$500,18,FALSE),0)&"% ("&IF(VLOOKUP($A$3,'G8-RL4'!$A$6:$AM$500,17,FALSE)="",0,VLOOKUP($A$3,'G8-RL4'!$A$6:$AM$500,17,FALSE))&")")),"NA") -> 64% (3084)
A13: FCAT Level 5 | B13: =IFERROR(VLOOKUP(TEXT($A$3,"0000"),MEM_RL5!$A$2:$O$500,8,FALSE),"NA") -> 2883 | C13: =IFERROR((IF(OR(B13<10,B13="",B13="NA"),"NA",((IF(VLOOKUP($A$3,'G8-RL5'!$A$6:$AM$500,3,FALSE)>=B13,"100% ("&VLOOKUP($A$3,'G8-RL5'!$A$6:$AM$500,3,FALSE)&")",(ROUND((VLOOKUP($A$3,'G8-RL5'!$A$6:$AM$500,3,FALSE)/B13*100),0))&"% ("&IF(VLOOKUP($A$3,'G8-RL5'!$A$6:$AM$500,3,FALSE)="",0,VLOOKUP($A$3,'G8-RL5'!$A$6:$AM$500,3,FALSE))&")"))))),"NA") -> 97% (2785) | D13: =IFERROR((IF($C13="NA","NA",VLOOKUP($A$3,'G8-RL5'!$A$6:$AM$500,4,FALSE))),"NA") -> 26.0021544 | E13: =IFERROR((IF($C13="NA","NA",ROUND(VLOOKUP($A$3,'G8-RL5'!$A$6:$AM$500,6,FALSE),0)&"% ("&IF(VLOOKUP($A$3,'G8-RL5'!$A$6:$AM$500,5,FALSE)="",0,VLOOKUP($A$3,'G8-RL5'!$A$6:$AM$500,5,FALSE))&")")),"NA") -> 86% (2403) | F13: =IFERROR((IF($C13="NA","NA",VLOOKUP($A$3,'G8-RL5'!$A$6:$AM$500,7,FALSE))),"NA") -> 4.930305206 | G13: =IFERROR((IF($C13="NA","NA",ROUND(VLOOKUP($A$3,'G8-RL5'!$A$6:$AM$500,9,FALSE),0)&"% ("&IF(VLOOKUP($A$3,'G8-RL5'!$A$6:$AM$500,8,FALSE)="",0,VLOOKUP($A$3,'G8-RL5'!$A$6:$AM$500,8,FALSE))&")")),"NA") -> 71% (1989) | H13: =IFERROR((IF($C13="NA","NA",VLOOKUP($A$3,'G8-RL5'!$A$6:$AM$500,10,FALSE))),"NA") -> 13.64631957 | I13: =IFERROR((IF($C13="NA","NA",ROUND(VLOOKUP($A$3,'G8-RL5'!$A$6:$AM$500,12,FALSE),0)&"% ("&IF(VLOOKUP($A$3,'G8-RL5'!$A$6:$AM$500,11,FALSE)="",0,VLOOKUP($A$3,'G8-RL5'!$A$6:$AM$500,11,FALSE))&")")),"NA") -> 86% (2388) | J13: =IFERROR((IF($C13="NA","NA",VLOOKUP($A$3,'G8-RL5'!$A$6:$AM$500,13,FALSE))),"NA") -> 4.312998205 | K13: =IFERROR((IF($C13="NA","NA",ROUND(VLOOKUP($A$3,'G8-RL5'!$A$6:$AM$500,15,FALSE),0)&"% ("&IF(VLOOKUP($A$3,'G8-RL5'!$A$6:$AM$500,14,FALSE)="",0,VLOOKUP($A$3,'G8-RL5'!$A$6:$AM$500,14,FALSE))&")")),"NA") -> 49% (1368) | L13: =IFERROR((IF($C13="NA","NA",VLOOKUP($A$3,'G8-RL5'!$A$6:$AM$500,16,FALSE))),"NA") -> 3.118850987 | M13: =IFERROR((IF($C13="NA","NA",ROUND(VLOOKUP($A$3,'G8-RL5'!$A$6:$AM$500,18,FALSE),0)&"% ("&IF(VLOOKUP($A$3,'G8-RL5'!$A$6:$AM$500,17,FALSE)="",0,VLOOKUP($A$3,'G8-RL5'!$A$6:$AM$500,17,FALSE))&")")),"NA") -> 81% (2250)
A14: White | B14: =IFERROR(VLOOKUP(TEXT($A$3,"0000"),MEM_W!$A$2:$O$500,12,FALSE),"NA") -> 2059 | C14: =IFERROR((IF(OR(B14<10,B14="",B14="NA"),"NA",((IF(VLOOKUP($A$3,'G8-RW'!$A$6:$AM$500,3,FALSE)>=B14,"100% ("&VLOOKUP($A$3,'G8-RW'!$A$6:$AM$500,3,FALSE)&")",(ROUND((VLOOKUP($A$3,'G8-RW'!$A$6:$AM$500,3,FALSE)/B14*100),0))&"% ("&IF(VLOOKUP($A$3,'G8-RW'!$A$6:$AM$500,3,FALSE)="",0,VLOOKUP($A$3,'G8-RW'!$A$6:$AM$500,3,FALSE))&")"))))),"NA") -> 92% (1890) | D14: =IFERROR((IF($C14="NA","NA",VLOOKUP($A$3,'G8-RW'!$A$6:$AM$500,4,FALSE))),"NA") -> 21.38677249 | E14: =IFERROR((IF($C14="NA","NA",ROUND(VLOOKUP($A$3,'G8-RW'!$A$6:$AM$500,6,FALSE),0)&"% ("&IF(VLOOKUP($A$3,'G8-RW'!$A$6:$AM$500,5,FALSE)="",0,VLOOKUP($A$3,'G8-RW'!$A$6:$AM$500,5,FALSE))&")")),"NA") -> 50% (944) | F14: =IFERROR((IF($C14="NA","NA",VLOOKUP($A$3,'G8-RW'!$A$6:$AM$500,7,FALSE))),"NA") -> 4.362010582 | G14: =IFERROR((IF($C14="NA","NA",ROUND(VLOOKUP($A$3,'G8-RW'!$A$6:$AM$500,9,FALSE),0)&"% ("&IF(VLOOKUP($A$3,'G8-RW'!$A$6:$AM$500,8,FALSE)="",0,VLOOKUP($A$3,'G8-RW'!$A$6:$AM$500,8,FALSE))&")")),"NA") -> 52% (988) | H14: =IFERROR((IF($C14="NA","NA",VLOOKUP($A$3,'G8-RW'!$A$6:$AM$500,10,FALSE))),"NA") -> 11.13169312 | I14: =IFERROR((IF($C14="NA","NA",ROUND(VLOOKUP($A$3,'G8-RW'!$A$6:$AM$500,12,FALSE),0)&"% ("&IF(VLOOKUP($A$3,'G8-RW'!$A$6:$AM$500,11,FALSE)="",0,VLOOKUP($A$3,'G8-RW'!$A$6:$AM$500,11,FALSE))&")")),"NA") -> 51% (970) | J14: =IFERROR((IF($C14="NA","NA",VLOOKUP($A$3,'G8-RW'!$A$6:$AM$500,13,FALSE))),"NA") -> 3.424179894 | K14: =IFERROR((IF($C14="NA","NA",ROUND(VLOOKUP($A$3,'G8-RW'!$A$6:$AM$500,15,FALSE),0)&"% ("&IF(VLOOKUP($A$3,'G8-RW'!$A$6:$AM$500,14,FALSE)="",0,VLOOKUP($A$3,'G8-RW'!$A$6:$AM$500,14,FALSE))&")")),"NA") -> 27% (505) | L14: =IFERROR((IF($C14="NA","NA",VLOOKUP($A$3,'G8-RW'!$A$6:$AM$500,16,FALSE))),"NA") -> 2.464391534 | M14: =IFERROR((IF($C14="NA","NA",ROUND(VLOOKUP($A$3,'G8-RW'!$A$6:$AM$500,18,FALSE),0)&"% ("&IF(VLOOKUP($A$3,'G8-RW'!$A$6:$AM$500,17,FALSE)="",0,VLOOKUP($A$3,'G8-RW'!$A$6:$AM$500,17,FALSE))&")")),"NA") -> 54% (1016)
A15: Black | B15: =IFERROR(VLOOKUP(TEXT($A$3,"0000"),MEM_B!$A$2:$O$500,12,FALSE),"NA") -> 6130 | C15: =IFERROR((IF(OR(B15<10,B15="",B15="NA"),"NA",((IF(VLOOKUP($A$3,'G8-RB'!$A$6:$AM$500,3,FALSE)>=B15,"100% ("&VLOOKUP($A$3,'G8-RB'!$A$6:$AM$500,3,FALSE)&")",(ROUND((VLOOKUP($A$3,'G8-RB'!$A$6:$AM$500,3,FALSE)/B15*100),0))&"% ("&IF(VLOOKUP($A$3,'G8-RB'!$A$6:$AM$500,3,FALSE)="",0,VLOOKUP($A$3,'G8-RB'!$A$6:$AM$500,3,FALSE))&")"))))),"NA") -> 94% (5765) | D15: =IFERROR((IF($C15="NA","NA",VLOOKUP($A$3,'G8-RB'!$A$6:$AM$500,4,FALSE))),"NA") -> 16.34509974 | E15: =IFERROR((IF($C15="NA","NA",ROUND(VLOOKUP($A$3,'G8-RB'!$A$6:$AM$500,6,FALSE),0)&"% ("&IF(VLOOKUP($A$3,'G8-RB'!$A$6:$AM$500,5,FALSE)="",0,VLOOKUP($A$3,'G8-RB'!$A$6:$AM$500,5,FALSE))&")")),"NA") -> 17% (996) | F15: =IFERROR((IF($C15="NA","NA",VLOOKUP($A$3,'G8-RB'!$A$6:$AM$500,7,FALSE))),"NA") -> 3.497432784 | G15: =IFERROR((IF($C15="NA","NA",ROUND(VLOOKUP($A$3,'G8-RB'!$A$6:$AM$500,9,FALSE),0)&"% ("&IF(VLOOKUP($A$3,'G8-RB'!$A$6:$AM$500,8,FALSE)="",0,VLOOKUP($A$3,'G8-RB'!$A$6:$AM$500,8,FALSE))&")")),"NA") -> 26% (1508) | H15: =IFERROR((IF($C15="NA","NA",VLOOKUP($A$3,'G8-RB'!$A$6:$AM$500,10,FALSE))),"NA") -> 8.308256722 | I15: =IFERROR((IF($C15="NA","NA",ROUND(VLOOKUP($A$3,'G8-RB'!$A$6:$AM$500,12,FALSE),0)&"% ("&IF(VLOOKUP($A$3,'G8-RB'!$A$6:$AM$500,11,FALSE)="",0,VLOOKUP($A$3,'G8-RB'!$A$6:$AM$500,11,FALSE))&")")),"NA") -> 19% (1107) | J15: =IFERROR((IF($C15="NA","NA",VLOOKUP($A$3,'G8-RB'!$A$6:$AM$500,13,FALSE))),"NA") -> 2.62830876 | K15: =IFERROR((IF($C15="NA","NA",ROUND(VLOOKUP($A$3,'G8-RB'!$A$6:$AM$500,15,FALSE),0)&"% ("&IF(VLOOKUP($A$3,'G8-RB'!$A$6:$AM$500,14,FALSE)="",0,VLOOKUP($A$3,'G8-RB'!$A$6:$AM$500,14,FALSE))&")")),"NA") -> 11% (620) | L15: =IFERROR((IF($C15="NA","NA",VLOOKUP($A$3,'G8-RB'!$A$6:$AM$500,16,FALSE))),"NA") -> 1.904301821 | M15: =IFERROR((IF($C15="NA","NA",ROUND(VLOOKUP($A$3,'G8-RB'!$A$6:$AM$500,18,FALSE),0)&"% ("&IF(VLOOKUP($A$3,'G8-RB'!$A$6:$AM$500,17,FALSE)="",0,VLOOKUP($A$3,'G8-RB'!$A$6:$AM$500,17,FALSE))&")")),"NA") -> 32% (1819)
A16: Hispanic | B16: =IFERROR(VLOOKUP(TEXT($A$3,"0000"),MEM_H!$A$2:$O$500,12,FALSE),"NA") -> 18640 | C16: =IFERROR((IF(OR(B16<10,B16="",B16="NA"),"NA",((IF(VLOOKUP($A$3,'G8-RH'!$A$6:$AM$500,3,FALSE)>=B16,"100% ("&VLOOKUP($A$3,'G8-RH'!$A$6:$AM$500,3,FALSE)&")",(ROUND((VLOOKUP($A$3,'G8-RH'!$A$6:$AM$500,3,FALSE)/B16*100),0))&"% ("&IF(VLOOKUP($A$3,'G8-RH'!$A$6:$AM$500,3,FALSE)="",0,VLOOKUP($A$3,'G8-RH'!$A$6:$AM$500,3,FALSE))&")"))))),"NA") -> 93% (17342) | D16: =IFERROR((IF($C16="NA","NA",VLOOKUP($A$3,'G8-RH'!$A$6:$AM$500,4,FALSE))),"NA") -> 18.42616769 | E16: =IFERROR((IF($C16="NA","NA",ROUND(VLOOKUP($A$3,'G8-RH'!$A$6:$AM$500,6,FALSE),0)&"% ("&IF(VLOOKUP($A$3,'G8-RH'!$A$6:$AM$500,5,FALSE)="",0,VLOOKUP($A$3,'G8-RH'!$A$6:$AM$500,5,FALSE))&")")),"NA") -> 30% (5285) | F16: =IFERROR((IF($C16="NA","NA",VLOOKUP($A$3,'G8-RH'!$A$6:$AM$500,7,FALSE))),"NA") -> 3.778964364 | G16: =IFERROR((IF($C16="NA","NA",ROUND(VLOOKUP($A$3,'G8-RH'!$A$6:$AM$500,9,FALSE),0)&"% ("&IF(VLOOKUP($A$3,'G8-RH'!$A$6:$AM$500,8,FALSE)="",0,VLOOKUP($A$3,'G8-RH'!$A$6:$AM$500,8,FALSE))&")")),"NA") -> 35% (6097) | H16: =IFERROR((IF($C16="NA","NA",VLOOKUP($A$3,'G8-RH'!$A$6:$AM$500,10,FALSE))),"NA") -> 9.522967362 | I16: =IFERROR((IF($C16="NA","NA",ROUND(VLOOKUP($A$3,'G8-RH'!$A$6:$AM$500,12,FALSE),0)&"% ("&IF(VLOOKUP($A$3,'G8-RH'!$A$6:$AM$500,11,FALSE)="",0,VLOOKUP($A$3,'G8-RH'!$A$6:$AM$500,11,FALSE))&")")),"NA") -> 33% (5771) | J16: =IFERROR((IF($C16="NA","NA",VLOOKUP($A$3,'G8-RH'!$A$6:$AM$500,13,FALSE))),"NA") -> 2.999965402 | K16: =IFERROR((IF($C16="NA","NA",ROUND(VLOOKUP($A$3,'G8-RH'!$A$6:$AM$500,15,FALSE),0)&"% ("&IF(VLOOKUP($A$3,'G8-RH'!$A$6:$AM$500,14,FALSE)="",0,VLOOKUP($A$3,'G8-RH'!$A$6:$AM$500,14,FALSE))&")")),"NA") -> 18% (3147) | L16: =IFERROR((IF($C16="NA","NA",VLOOKUP($A$3,'G8-RH'!$A$6:$AM$500,16,FALSE))),"NA") -> 2.119611348 | M16: =IFERROR((IF($C16="NA","NA",ROUND(VLOOKUP($A$3,'G8-RH'!$A$6:$AM$500,18,FALSE),0)&"% ("&IF(VLOOKUP($A$3,'G8-RH'!$A$6:$AM$500,17,FALSE)="",0,VLOOKUP($A$3,'G8-RH'!$A$6:$AM$500,17,FALSE))&")")),"NA") -> 40% (7003)
A17: Asian | B17: =IFERROR(VLOOKUP(TEXT($A$3,"0000"),MEM_A!$A$2:$O$500,12,FALSE),"NA") -> 322 | C17: =IFERROR((IF(OR(B17<10,B17="",B17="NA"),"NA",((IF(VLOOKUP($A$3,'G8-RA'!$A$6:$AM$500,3,FALSE)>=B17,"100% ("&VLOOKUP($A$3,'G8-RA'!$A$6:$AM$500,3,FALSE)&")",(ROUND((VLOOKUP($A$3,'G8-RA'!$A$6:$AM$500,3,FALSE)/B17*100),0))&"% ("&IF(VLOOKUP($A$3,'G8-RA'!$A$6:$AM$500,3,FALSE)="",0,VLOOKUP($A$3,'G8-RA'!$A$6:$AM$500,3,FALSE))&")"))))),"NA") -> 93% (299) | D17: =IFERROR((IF($C17="NA","NA",VLOOKUP($A$3,'G8-RA'!$A$6:$AM$500,4,FALSE))),"NA") -> 22.13210702 | E17: =IFERROR((IF($C17="NA","NA",ROUND(VLOOKUP($A$3,'G8-RA'!$A$6:$AM$500,6,FALSE),0)&"% ("&IF(VLOOKUP($A$3,'G8-RA'!$A$6:$AM$500,5,FALSE)="",0,VLOOKUP($A$3,'G8-RA'!$A$6:$AM$500,5,FALSE))&")")),"NA") -> 53% (157) | F17: =IFERROR((IF($C17="NA","NA",VLOOKUP($A$3,'G8-RA'!$A$6:$AM$500,7,FALSE))),"NA") -> 4.310367893 | G17: =IFERROR((IF($C17="NA","NA",ROUND(VLOOKUP($A$3,'G8-RA'!$A$6:$AM$500,9,FALSE),0)&"% ("&IF(VLOOKUP($A$3,'G8-RA'!$A$6:$AM$500,8,FALSE)="",0,VLOOKUP($A$3,'G8-RA'!$A$6:$AM$500,8,FALSE))&")")),"NA") -> 50% (150) | H17: =IFERROR((IF($C17="NA","NA",VLOOKUP($A$3,'G8-RA'!$A$6:$AM$500,10,FALSE))),"NA") -> 11.47926421 | I17: =IFERROR((IF($C17="NA","NA",ROUND(VLOOKUP($A$3,'G8-RA'!$A$6:$AM$500,12,FALSE),0)&"% ("&IF(VLOOKUP($A$3,'G8-RA'!$A$6:$AM$500,11,FALSE)="",0,VLOOKUP($A$3,'G8-RA'!$A$6:$AM$500,11,FALSE))&")")),"NA") -> 54% (160) | J17: =IFERROR((IF($C17="NA","NA",VLOOKUP($A$3,'G8-RA'!$A$6:$AM$500,13,FALSE))),"NA") -> 3.624080268 | K17: =IFERROR((IF($C17="NA","NA",ROUND(VLOOKUP($A$3,'G8-RA'!$A$6:$AM$500,15,FALSE),0)&"% ("&IF(VLOOKUP($A$3,'G8-RA'!$A$6:$AM$500,14,FALSE)="",0,VLOOKUP($A$3,'G8-RA'!$A$6:$AM$500,14,FALSE))&")")),"NA") -> 31% (94) | L17: =IFERROR((IF($C17="NA","NA",VLOOKUP($A$3,'G8-RA'!$A$6:$AM$500,16,FALSE))),"NA") -> 2.725752508 | M17: =IFERROR((IF($C17="NA","NA",ROUND(VLOOKUP($A$3,'G8-RA'!$A$6:$AM$500,18,FALSE),0)&"% ("&IF(VLOOKUP($A$3,'G8-RA'!$A$6:$AM$500,17,FALSE)="",0,VLOOKUP($A$3,'G8-RA'!$A$6:$AM$500,17,FALSE))&")")),"NA") -> 66% (196)
A18: Am. Indian | B18: =IFERROR(VLOOKUP(TEXT($A$3,"0000"),MEM_I!$A$2:$O$500,12,FALSE),"NA") -> 22 | C18: =IFERROR((IF(OR(B18<10,B18="",B18="NA"),"NA",((IF(VLOOKUP($A$3,'G8-RI'!$A$6:$AM$500,3,FALSE)>=B18,"100% ("&VLOOKUP($A$3,'G8-RI'!$A$6:$AM$500,3,FALSE)&")",(ROUND((VLOOKUP($A$3,'G8-RI'!$A$6:$AM$500,3,FALSE)/B18*100),0))&"% ("&IF(VLOOKUP($A$3,'G8-RI'!$A$6:$AM$500,3,FALSE)="",0,VLOOKUP($A$3,'G8-RI'!$A$6:$AM$500,3,FALSE))&")"))))),"NA") -> 100% (22) | D18: =IFERROR((IF($C18="NA","NA",VLOOKUP($A$3,'G8-RI'!$A$6:$AM$500,4,FALSE))),"NA") -> 20.23181818 | E18: =IFERROR((IF($C18="NA","NA",ROUND(VLOOKUP($A$3,'G8-RI'!$A$6:$AM$500,6,FALSE),0)&"% ("&IF(VLOOKUP($A$3,'G8-RI'!$A$6:$AM$500,5,FALSE)="",0,VLOOKUP($A$3,'G8-RI'!$A$6:$AM$500,5,FALSE))&")")),"NA") -> 32% (7) | F18: =IFERROR((IF($C18="NA","NA",VLOOKUP($A$3,'G8-RI'!$A$6:$AM$500,7,FALSE))),"NA") -> 4.186363636 | G18: =IFERROR((IF($C18="NA","NA",ROUND(VLOOKUP($A$3,'G8-RI'!$A$6:$AM$500,9,FALSE),0)&"% ("&IF(VLOOKUP($A$3,'G8-RI'!$A$6:$AM$500,8,FALSE)="",0,VLOOKUP($A$3,'G8-RI'!$A$6:$AM$500,8,FALSE))&")")),"NA") -> 50% (11) | H18: =IFERROR((IF($C18="NA","NA",VLOOKUP($A$3,'G8-RI'!$A$6:$AM$500,10,FALSE))),"NA") -> 10.13636364 | I18: =IFERROR((IF($C18="NA","NA",ROUND(VLOOKUP($A$3,'G8-RI'!$A$6:$AM$500,12,FALSE),0)&"% ("&IF(VLOOKUP($A$3,'G8-RI'!$A$6:$AM$500,11,FALSE)="",0,VLOOKUP($A$3,'G8-RI'!$A$6:$AM$500,11,FALSE))&")")),"NA") -> 27% (6) | J18: =IFERROR((IF($C18="NA","NA",VLOOKUP($A$3,'G8-RI'!$A$6:$AM$500,13,FALSE))),"NA") -> 3.313636364 | K18: =IFERROR((IF($C18="NA","NA",ROUND(VLOOKUP($A$3,'G8-RI'!$A$6:$AM$500,15,FALSE),0)&"% ("&IF(VLOOKUP($A$3,'G8-RI'!$A$6:$AM$500,14,FALSE)="",0,VLOOKUP($A$3,'G8-RI'!$A$6:$AM$500,14,FALSE))&")")),"NA") -> 18% (4) | L18: =IFERROR((IF($C18="NA","NA",VLOOKUP($A$3,'G8-RI'!$A$6:$AM$500,16,FALSE))),"NA") -> 2.595454545 | M18: =IFERROR((IF($C18="NA","NA",ROUND(VLOOKUP($A$3,'G8-RI'!$A$6:$AM$500,18,FALSE),0)&"% ("&IF(VLOOKUP($A$3,'G8-RI'!$A$6:$AM$500,17,FALSE)="",0,VLOOKUP($A$3,'G8-RI'!$A$6:$AM$500,17,FALSE))&")")),"NA") -> 59% (13)
A19: ED | B19: =IFERROR(VLOOKUP(TEXT($A$3,"0000"),MEM_ED!$A$2:$O$500,12,FALSE),"NA") -> 21178 | C19: =IFERROR((IF(OR(B19<10,B19="",B19="NA"),"NA",((IF(VLOOKUP($A$3,'G8-RED'!$A$6:$AM$500,3,FALSE)>=B19,"100% ("&VLOOKUP($A$3,'G8-RED'!$A$6:$AM$500,3,FALSE)&")",(ROUND((VLOOKUP($A$3,'G8-RED'!$A$6:$AM$500,3,FALSE)/B19*100),0))&"% ("&IF(VLOOKUP($A$3,'G8-RED'!$A$6:$AM$500,3,FALSE)="",0,VLOOKUP($A$3,'G8-RED'!$A$6:$AM$500,3,FALSE))&")"))))),"NA") -> 96% (20240) | D19: =IFERROR((IF($C19="NA","NA",VLOOKUP($A$3,'G8-RED'!$A$6:$AM$500,4,FALSE))),"NA") -> 17.36815217 | E19: =IFERROR((IF($C19="NA","NA",ROUND(VLOOKUP($A$3,'G8-RED'!$A$6:$AM$500,6,FALSE),0)&"% ("&IF(VLOOKUP($A$3,'G8-RED'!$A$6:$AM$500,5,FALSE)="",0,VLOOKUP($A$3,'G8-RED'!$A$6:$AM$500,5,FALSE))&")")),"NA") -> 24% (4822) | F19: =IFERROR((IF($C19="NA","NA",VLOOKUP($A$3,'G8-RED'!$A$6:$AM$500,7,FALSE))),"NA") -> 3.622895257 | G19: =IFERROR((IF($C19="NA","NA",ROUND(VLOOKUP($A$3,'G8-RED'!$A$6:$AM$500,9,FALSE),0)&"% ("&IF(VLOOKUP($A$3,'G8-RED'!$A$6:$AM$500,8,FALSE)="",0,VLOOKUP($A$3,'G8-RED'!$A$6:$AM$500,8,FALSE))&")")),"NA") -> 30% (6133) | H19: =IFERROR((IF($C19="NA","NA",VLOOKUP($A$3,'G8-RED'!$A$6:$AM$500,10,FALSE))),"NA") -> 8.926551383 | I19: =IFERROR((IF($C19="NA","NA",ROUND(VLOOKUP($A$3,'G8-RED'!$A$6:$AM$500,12,FALSE),0)&"% ("&IF(VLOOKUP($A$3,'G8-RED'!$A$6:$AM$500,11,FALSE)="",0,VLOOKUP($A$3,'G8-RED'!$A$6:$AM$500,11,FALSE))&")")),"NA") -> 26% (5308) | J19: =IFERROR((IF($C19="NA","NA",VLOOKUP($A$3,'G8-RED'!$A$6:$AM$500,13,FALSE))),"NA") -> 2.822000988 | K19: =IFERROR((IF($C19="NA","NA",ROUND(VLOOKUP($A$3,'G8-RED'!$A$6:$AM$500,15,FALSE),0)&"% ("&IF(VLOOKUP($A$3,'G8-RED'!$A$6:$AM$500,14,FALSE)="",0,VLOOKUP($A$3,'G8-RED'!$A$6:$AM$500,14,FALSE))&")")),"NA") -> 15% (2976) | L19: =IFERROR((IF($C19="NA","NA",VLOOKUP($A$3,'G8-RED'!$A$6:$AM$500,16,FALSE))),"NA") -> 2.002663043 | M19: =IFERROR((IF($C19="NA","NA",ROUND(VLOOKUP($A$3,'G8-RED'!$A$6:$AM$500,18,FALSE),0)&"% ("&IF(VLOOKUP($A$3,'G8-RED'!$A$6:$AM$500,17,FALSE)="",0,VLOOKUP($A$3,'G8-RED'!$A$6:$AM$500,17,FALSE))&")")),"NA") -> 36% (7241)
A20: ELL | B20: =IFERROR(VLOOKUP(TEXT($A$3,"0000"),MEM_ELL!$A$2:$O$500,12,FALSE),"NA") -> 3980 | C20: =IFERROR((IF(OR(B20<10,B20="",B20="NA"),"NA",((IF(VLOOKUP($A$3,'G8-RELL'!$A$6:$AM$500,3,FALSE)>=B20,"100% ("&VLOOKUP($A$3,'G8-RELL'!$A$6:$AM$500,3,FALSE)&")",(ROUND((VLOOKUP($A$3,'G8-RELL'!$A$6:$AM$500,3,FALSE)/B20*100),0))&"% ("&IF(VLOOKUP($A$3,'G8-RELL'!$A$6:$AM$500,3,FALSE)="",0,VLOOKUP($A$3,'G8-RELL'!$A$6:$AM$500,3,FALSE))&")"))))),"NA") -> 94% (3748) | D20: =IFERROR((IF($C20="NA","NA",VLOOKUP($A$3,'G8-RELL'!$A$6:$AM$500,4,FALSE))),"NA") -> 13.11179296 | E20: =IFERROR((IF($C20="NA","NA",ROUND(VLOOKUP($A$3,'G8-RELL'!$A$6:$AM$500,6,FALSE),0)&"% ("&IF(VLOOKUP($A$3,'G8-RELL'!$A$6:$AM$500,5,FALSE)="",0,VLOOKUP($A$3,'G8-RELL'!$A$6:$AM$500,5,FALSE))&")")),"NA") -> 5% (201) | F20: =IFERROR((IF($C20="NA","NA",VLOOKUP($A$3,'G8-RELL'!$A$6:$AM$500,7,FALSE))),"NA") -> 2.769743863 | G20: =IFERROR((IF($C20="NA","NA",ROUND(VLOOKUP($A$3,'G8-RELL'!$A$6:$AM$500,9,FALSE),0)&"% ("&IF(VLOOKUP($A$3,'G8-RELL'!$A$6:$AM$500,8,FALSE)="",0,VLOOKUP($A$3,'G8-RELL'!$A$6:$AM$500,8,FALSE))&")")),"NA") -> 12% (459) | H20: =IFERROR((IF($C20="NA","NA",VLOOKUP($A$3,'G8-RELL'!$A$6:$AM$500,10,FALSE))),"NA") -> 6.720117396 | I20: =IFERROR((IF($C20="NA","NA",ROUND(VLOOKUP($A$3,'G8-RELL'!$A$6:$AM$500,12,FALSE),0)&"% ("&IF(VLOOKUP($A$3,'G8-RELL'!$A$6:$AM$500,11,FALSE)="",0,VLOOKUP($A$3,'G8-RELL'!$A$6:$AM$500,11,FALSE))&")")),"NA") -> 7% (266) | J20: =IFERROR((IF($C20="NA","NA",VLOOKUP($A$3,'G8-RELL'!$A$6:$AM$500,13,FALSE))),"NA") -> 2.085645678 | K20: =IFERROR((IF($C20="NA","NA",ROUND(VLOOKUP($A$3,'G8-RELL'!$A$6:$AM$500,15,FALSE),0)&"% ("&IF(VLOOKUP($A$3,'G8-RELL'!$A$6:$AM$500,14,FALSE)="",0,VLOOKUP($A$3,'G8-RELL'!$A$6:$AM$500,14,FALSE))&")")),"NA") -> 5% (186) | L20: =IFERROR((IF($C20="NA","NA",VLOOKUP($A$3,'G8-RELL'!$A$6:$AM$500,16,FALSE))),"NA") -> 1.536286019 | M20: =IFERROR((IF($C20="NA","NA",ROUND(VLOOKUP($A$3,'G8-RELL'!$A$6:$AM$500,18,FALSE),0)&"% ("&IF(VLOOKUP($A$3,'G8-RELL'!$A$6:$AM$500,17,FALSE)="",0,VLOOKUP($A$3,'G8-RELL'!$A$6:$AM$500,17,FALSE))&")")),"NA") -> 19% (711)
A21: SWD | B21: =IFERROR(VLOOKUP(TEXT($A$3,"0000"),MEM_SWD!$A$2:$O$500,12,FALSE),"NA") -> 2595 | C21: =IFERROR((IF(OR(B21<10,B21="",B21="NA"),"NA",((IF(VLOOKUP($A$3,'G8-RSWD'!$A$6:$AM$500,3,FALSE)>=B21,"100% ("&VLOOKUP($A$3,'G8-RSWD'!$A$6:$AM$500,3,FALSE)&")",(ROUND((VLOOKUP($A$3,'G8-RSWD'!$A$6:$AM$500,3,FALSE)/B21*100),0))&"% ("&IF(VLOOKUP($A$3,'G8-RSWD'!$A$6:$AM$500,3,FALSE)="",0,VLOOKUP($A$3,'G8-RSWD'!$A$6:$AM$500,3,FALSE))&")"))))),"NA") -> 92% (2399) | D21: =IFERROR((IF($C21="NA","NA",VLOOKUP($A$3,'G8-RSWD'!$A$6:$AM$500,4,FALSE))),"NA") -> 13.49891622 | E21: =IFERROR((IF($C21="NA","NA",ROUND(VLOOKUP($A$3,'G8-RSWD'!$A$6:$AM$500,6,FALSE),0)&"% ("&IF(VLOOKUP($A$3,'G8-RSWD'!$A$6:$AM$500,5,FALSE)="",0,VLOOKUP($A$3,'G8-RSWD'!$A$6:$AM$500,5,FALSE))&")")),"NA") -> 7% (171) | F21: =IFERROR((IF($C21="NA","NA",VLOOKUP($A$3,'G8-RSWD'!$A$6:$AM$500,7,FALSE))),"NA") -> 2.975072947 | G21: =IFERROR((IF($C21="NA","NA",ROUND(VLOOKUP($A$3,'G8-RSWD'!$A$6:$AM$500,9,FALSE),0)&"% ("&IF(VLOOKUP($A$3,'G8-RSWD'!$A$6:$AM$500,8,FALSE)="",0,VLOOKUP($A$3,'G8-RSWD'!$A$6:$AM$500,8,FALSE))&")")),"NA") -> 16% (383) | H21: =IFERROR((IF($C21="NA","NA",VLOOKUP($A$3,'G8-RSWD'!$A$6:$AM$500,10,FALSE))),"NA") -> 6.897915798 | I21: =IFERROR((IF($C21="NA","NA",ROUND(VLOOKUP($A$3,'G8-RSWD'!$A$6:$AM$500,12,FALSE),0)&"% ("&IF(VLOOKUP($A$3,'G8-RSWD'!$A$6:$AM$500,11,FALSE)="",0,VLOOKUP($A$3,'G8-RSWD'!$A$6:$AM$500,11,FALSE))&")")),"NA") -> 8% (201) | J21: =IFERROR((IF($C21="NA","NA",VLOOKUP($A$3,'G8-RSWD'!$A$6:$AM$500,13,FALSE))),"NA") -> 2.118382659 | K21: =IFERROR((IF($C21="NA","NA",ROUND(VLOOKUP($A$3,'G8-RSWD'!$A$6:$AM$500,15,FALSE),0)&"% ("&IF(VLOOKUP($A$3,'G8-RSWD'!$A$6:$AM$500,14,FALSE)="",0,VLOOKUP($A$3,'G8-RSWD'!$A$6:$AM$500,14,FALSE))&")")),"NA") -> 5% (124) | L21: =IFERROR((IF($C21="NA","NA",VLOOKUP($A$3,'G8-RSWD'!$A$6:$AM$500,16,FALSE))),"NA") -> 1.506461025 | M21: =IFERROR((IF($C21="NA","NA",ROUND(VLOOKUP($A$3,'G8-RSWD'!$A$6:$AM$500,18,FALSE),0)&"% ("&IF(VLOOKUP($A$3,'G8-RSWD'!$A$6:$AM$500,17,FALSE)="",0,VLOOKUP($A$3,'G8-RSWD'!$A$6:$AM$500,17,FALSE))&")")),"NA") -> 19% (465)
A22: Math - Grade 8
A23: Level of Proficiency at 70% or above | B23: Total # of Students | C23: % of Students Tested | D23: ='G6-8 Matrix'!C16&" ["&'G6-8 Matrix'!C17&"]" -> Overall [34] | F23: ='G6-8 Matrix'!D16&" ["&'G6-8 Matrix'!D17&"]" -> Number: Operations, Problems, and Stat. [10] | H23: ='G6-8 Matrix'!E16&" ["&'G6-8 Matrix'!E17&"]" -> Expressions, Equations, and Functions [14] | J23: ='G6-8 Matrix'!F16&" ["&'G6-8 Matrix'!F17&"]" -> Geometry and Measurement [10]
D24: Average Score | E24: % Proficient | F24: Average Score | G24: % Proficient | H24: Average Score | I24: % Proficient | J24: Average Score | K24: % Proficient
A25: All students | B25: =IFERROR(VLOOKUP(TEXT($A$3,"0000"),Mem_All!$A$2:$O$500,12,FALSE),0)-IFERROR(VLOOKUP(TEXT($A$3,"0000"),'ALG Gr08'!$A$3:$Q$500,3,FALSE),0)-IFERROR(VLOOKUP(TEXT($A$3,"0000"),'Geo Gr08'!$A$3:$Q$500,3,FALSE),0) -> 15023 | C25: =IFERROR((IF(OR(B25<10,B25="",B25="NA"),"NA",((IF(VLOOKUP($A$3,'G8-MALL'!$A$6:$AG$500,3,FALSE)>=B25,"100% ("&VLOOKUP($A$3,'G8-MALL'!$A$6:$AG$500,3,FALSE)&")",(ROUND((VLOOKUP($A$3,'G8-MALL'!$A$6:$AG$500,3,FALSE)/B25*100),0))&"% ("&IF(VLOOKUP($A$3,'G8-MALL'!$A$6:$AG$500,3,FALSE)="",0,VLOOKUP($A$3,'G8-MALL'!$A$6:$AG$500,3,FALSE))&")"))))),"NA") -> 98% (14774) | D25: =IFERROR((IF($C25="NA","NA",VLOOKUP($A$3,'G8-MALL'!$A$6:$AG$500,4,FALSE))),"NA") -> 12.43886557 | E25: =IFERROR((IF($C25="NA","NA",ROUND(VLOOKUP($A$3,'G8-MALL'!$A$6:$AG$500,6,FALSE),0)&"% ("&IF(VLOOKUP($A$3,'G8-MALL'!$A$6:$AG$500,5,FALSE)="",0,VLOOKUP($A$3,'G8-MALL'!$A$6:$AG$500,5,FALSE))&")")),"NA") -> 2% (231) | F25: =IFERROR((IF($C25="NA","NA",VLOOKUP($A$3,'G8-MALL'!$A$6:$AG$500,7,FALSE))),"NA") -> 4.541221064 | G25: =IFERROR((IF($C25="NA","NA",ROUND(VLOOKUP($A$3,'G8-MALL'!$A$6:$AG$500,9,FALSE),0)&"% ("&IF(VLOOKUP($A$3,'G8-MALL'!$A$6:$AG$500,8,FALSE)="",0,VLOOKUP($A$3,'G8-MALL'!$A$6:$AG$500,8,FALSE))&")")),"NA") -> 17% (2548) | H25: =IFERROR((IF($C25="NA","NA",VLOOKUP($A$3,'G8-MALL'!$A$6:$AG$500,10,FALSE))),"NA") -> 4.539813185 | I25: =IFERROR((IF($C25="NA","NA",ROUND(VLOOKUP($A$3,'G8-MALL'!$A$6:$AG$500,12,FALSE),0)&"% ("&IF(VLOOKUP($A$3,'G8-MALL'!$A$6:$AG$500,11,FALSE)="",0,VLOOKUP($A$3,'G8-MALL'!$A$6:$AG$500,11,FALSE))&")")),"NA") -> 3% (432) | J25: =IFERROR((IF($C25="NA","NA",VLOOKUP($A$3,'G8-MALL'!$A$6:$AG$500,13,FALSE))),"NA") -> 3.352125355 | K25: =IFERROR((IF($C25="NA","NA",ROUND(VLOOKUP($A$3,'G8-MALL'!$A$6:$AG$500,15,FALSE),0)&"% ("&IF(VLOOKUP($A$3,'G8-MALL'!$A$6:$AG$500,14,FALSE)="",0,VLOOKUP($A$3,'G8-MALL'!$A$6:$AG$500,14,FALSE))&")")),"NA") -> 3% (396)
A26: FCAT Level 1 | B26: =IFERROR(VLOOKUP(TEXT($A$3,"0000"),MEM_ML1!$A$2:$O$500,9,FALSE),0)-IFERROR(VLOOKUP(TEXT($A$3,"0000"),'ALG Gr08'!$A$3:$Q$500,4,FALSE),0)-IFERROR(VLOOKUP(TEXT($A$3,"0000"),'Geo Gr08'!$A$3:$Q$500,4,FALSE),0) -> 5562 | C26: =IFERROR((IF(OR(B26<10,B26="",B26="NA"),"NA",((IF(VLOOKUP($A$3,'G8-ML1'!$A$6:$AG$500,3,FALSE)>=B26,"100% ("&VLOOKUP($A$3,'G8-ML1'!$A$6:$AG$500,3,FALSE)&")",(ROUND((VLOOKUP($A$3,'G8-ML1'!$A$6:$AG$500,3,FALSE)/B26*100),0))&"% ("&IF(VLOOKUP($A$3,'G8-ML1'!$A$6:$AG$500,3,FALSE)="",0,VLOOKUP($A$3,'G8-ML1'!$A$6:$AG$500,3,FALSE))&")"))))),"NA") -> 94% (5233) | D26: =IFERROR((IF($C26="NA","NA",VLOOKUP($A$3,'G8-ML1'!$A$6:$AG$500,4,FALSE))),"NA") -> 9.867399197 | E26: =IFERROR((IF($C26="NA","NA",ROUND(VLOOKUP($A$3,'G8-ML1'!$A$6:$AG$500,6,FALSE),0)&"% ("&IF(VLOOKUP($A$3,'G8-ML1'!$A$6:$AG$500,5,FALSE)="",0,VLOOKUP($A$3,'G8-ML1'!$A$6:$AG$500,5,FALSE))&")")),"NA") -> 0% (0) | F26: =IFERROR((IF($C26="NA","NA",VLOOKUP($A$3,'G8-ML1'!$A$6:$AG$500,7,FALSE))),"NA") -> 3.569023505 | G26: =IFERROR((IF($C26="NA","NA",ROUND(VLOOKUP($A$3,'G8-ML1'!$A$6:$AG$500,9,FALSE),0)&"% ("&IF(VLOOKUP($A$3,'G8-ML1'!$A$6:$AG$500,8,FALSE)="",0,VLOOKUP($A$3,'G8-ML1'!$A$6:$AG$500,8,FALSE))&")")),"NA") -> 4% (206) | H26: =IFERROR((IF($C26="NA","NA",VLOOKUP($A$3,'G8-ML1'!$A$6:$AG$500,10,FALSE))),"NA") -> 3.529715268 | I26: =IFERROR((IF($C26="NA","NA",ROUND(VLOOKUP($A$3,'G8-ML1'!$A$6:$AG$500,12,FALSE),0)&"% ("&IF(VLOOKUP($A$3,'G8-ML1'!$A$6:$AG$500,11,FALSE)="",0,VLOOKUP($A$3,'G8-ML1'!$A$6:$AG$500,11,FALSE))&")")),"NA") -> 0% (4) | J26: =IFERROR((IF($C26="NA","NA",VLOOKUP($A$3,'G8-ML1'!$A$6:$AG$500,13,FALSE))),"NA") -> 2.774928339 | K26: =IFERROR((IF($C26="NA","NA",ROUND(VLOOKUP($A$3,'G8-ML1'!$A$6:$AG$500,15,FALSE),0)&"% ("&IF(VLOOKUP($A$3,'G8-ML1'!$A$6:$AG$500,14,FALSE)="",0,VLOOKUP($A$3,'G8-ML1'!$A$6:$AG$500,14,FALSE))&")")),"NA") -> 1% (36)
A27: FCAT Level 2 | B27: =IFERROR(VLOOKUP(TEXT($A$3,"0000"),MEM_ML2!$A$2:$O$500,9,FALSE),0)-IFERROR(VLOOKUP(TEXT($A$3,"0000"),'ALG Gr08'!$A$3:$Q$500,5,FALSE),0)-IFERROR(VLOOKUP(TEXT($A$3,"0000"),'Geo Gr08'!$A$3:$Q$500,5,FALSE),0) -> 5538 | C27: =IFERROR((IF(OR(B27<10,B27="",B27="NA"),"NA",((IF(VLOOKUP($A$3,'G8-ML2'!$A$6:$AG$500,3,FALSE)>=B27,"100% ("&VLOOKUP($A$3,'G8-ML2'!$A$6:$AG$500,3,FALSE)&")",(ROUND((VLOOKUP($A$3,'G8-ML2'!$A$6:$AG$500,3,FALSE)/B27*100),0))&"% ("&IF(VLOOKUP($A$3,'G8-ML2'!$A$6:$AG$500,3,FALSE)="",0,VLOOKUP($A$3,'G8-ML2'!$A$6:$AG$500,3,FALSE))&")"))))),"NA") -> 95% (5277) | D27: =IFERROR((IF($C27="NA","NA",VLOOKUP($A$3,'G8-ML2'!$A$6:$AG$500,4,FALSE))),"NA") -> 12.27119576 | E27: =IFERROR((IF($C27="NA","NA",ROUND(VLOOKUP($A$3,'G8-ML2'!$A$6:$AG$500,6,FALSE),0)&"% ("&IF(VLOOKUP($A$3,'G8-ML2'!$A$6:$AG$500,5,FALSE)="",0,VLOOKUP($A$3,'G8-ML2'!$A$6:$AG$500,5,FALSE))&")")),"NA") -> 0% (5) | F27: =IFERROR((IF($C27="NA","NA",VLOOKUP($A$3,'G8-ML2'!$A$6:$AG$500,7,FALSE))),"NA") -> 4.550255827 | G27: =IFERROR((IF($C27="NA","NA",ROUND(VLOOKUP($A$3,'G8-ML2'!$A$6:$AG$500,9,FALSE),0)&"% ("&IF(VLOOKUP($A$3,'G8-ML2'!$A$6:$AG$500,8,FALSE)="",0,VLOOKUP($A$3,'G8-ML2'!$A$6:$AG$500,8,FALSE))&")")),"NA") -> 15% (773) | H27: =IFERROR((IF($C27="NA","NA",VLOOKUP($A$3,'G8-ML2'!$A$6:$AG$500,10,FALSE))),"NA") -> 4.382186849 | I27: =IFERROR((IF($C27="NA","NA",ROUND(VLOOKUP($A$3,'G8-ML2'!$A$6:$AG$500,12,FALSE),0)&"% ("&IF(VLOOKUP($A$3,'G8-ML2'!$A$6:$AG$500,11,FALSE)="",0,VLOOKUP($A$3,'G8-ML2'!$A$6:$AG$500,11,FALSE))&")")),"NA") -> 1% (34) | J27: =IFERROR((IF($C27="NA","NA",VLOOKUP($A$3,'G8-ML2'!$A$6:$AG$500,13,FALSE))),"NA") -> 3.338601478 | K27: =IFERROR((IF($C27="NA","NA",ROUND(VLOOKUP($A$3,'G8-ML2'!$A$6:$AG$500,15,FALSE),0)&"% ("&IF(VLOOKUP($A$3,'G8-ML2'!$A$6:$AG$500,14,FALSE)="",0,VLOOKUP($A$3,'G8-ML2'!$A$6:$AG$500,14,FALSE))&")")),"NA") -> 2% (101)
A28: FCAT Level 3 | B28: =IFERROR(VLOOKUP(TEXT($A$3,"0000"),MEM_ML3!$A$2:$O$500,9,FALSE),0)-IFERROR(VLOOKUP(TEXT($A$3,"0000"),'ALG Gr08'!$A$3:$Q$500,6,FALSE),0)-IFERROR(VLOOKUP(TEXT($A$3,"0000"),'Geo Gr08'!$A$3:$Q$500,6,FALSE),0) -> 2240 | C28: =IFERROR((IF(OR(B28<10,B28="",B28="NA"),"NA",((IF(VLOOKUP($A$3,'G8-ML3'!$A$6:$AG$501,3,FALSE)>=B28,"100% ("&VLOOKUP($A$3,'G8-ML3'!$A$6:$AG$501,3,FALSE)&")",(ROUND((VLOOKUP($A$3,'G8-ML3'!$A$6:$AG$501,3,FALSE)/B28*100),0))&"% ("&IF(VLOOKUP($A$3,'G8-ML3'!$A$6:$AG$501,3,FALSE)="",0,VLOOKUP($A$3,'G8-ML3'!$A$6:$AG$501,3,FALSE))&")"))))),"NA") -> 100% (2735) | D28: =IFERROR((IF($C28="NA","NA",VLOOKUP($A$3,'G8-ML3'!$A$6:$AG$500,4,FALSE))),"NA") -> 15.2685192 | E28: =IFERROR((IF($C28="NA","NA",ROUND(VLOOKUP($A$3,'G8-ML3'!$A$6:$AG$500,6,FALSE),0)&"% ("&IF(VLOOKUP($A$3,'G8-ML3'!$A$6:$AG$500,5,FALSE)="",0,VLOOKUP($A$3,'G8-ML3'!$A$6:$AG$500,5,FALSE))&")")),"NA") -> 1% (31) | F28: =IFERROR((IF($C28="NA","NA",VLOOKUP($A$3,'G8-ML3'!$A$6:$AG$500,7,FALSE))),"NA") -> 5.62142596 | G28: =IFERROR((IF($C28="NA","NA",ROUND(VLOOKUP($A$3,'G8-ML3'!$A$6:$AG$500,9,FALSE),0)&"% ("&IF(VLOOKUP($A$3,'G8-ML3'!$A$6:$AG$500,8,FALSE)="",0,VLOOKUP($A$3,'G8-ML3'!$A$6:$AG$500,8,FALSE))&")")),"NA") -> 33% (907) | H28: =IFERROR((IF($C28="NA","NA",VLOOKUP($A$3,'G8-ML3'!$A$6:$AG$500,10,FALSE))),"NA") -> 5.657440585 | I28: =IFERROR((IF($C28="NA","NA",ROUND(VLOOKUP($A$3,'G8-ML3'!$A$6:$AG$500,12,FALSE),0)&"% ("&IF(VLOOKUP($A$3,'G8-ML3'!$A$6:$AG$500,11,FALSE)="",0,VLOOKUP($A$3,'G8-ML3'!$A$6:$AG$500,11,FALSE))&")")),"NA") -> 4% (103) | J28: =IFERROR((IF($C28="NA","NA",VLOOKUP($A$3,'G8-ML3'!$A$6:$AG$500,13,FALSE))),"NA") -> 3.99773309 | K28: =IFERROR((IF($C28="NA","NA",ROUND(VLOOKUP($A$3,'G8-ML3'!$A$6:$AG$500,15,FALSE),0)&"% ("&IF(VLOOKUP($A$3,'G8-ML3'!$A$6:$AG$500,14,FALSE)="",0,VLOOKUP($A$3,'G8-ML3'!$A$6:$AG$500,14,FALSE))&")")),"NA") -> 4% (103)
A29: FCAT Level 4 | B29: =IFERROR(VLOOKUP(TEXT($A$3,"0000"),MEM_ML4!$A$2:$O$500,9,FALSE),0)-IFERROR(VLOOKUP(TEXT($A$3,"0000"),'ALG Gr08'!$A$3:$Q$500,7,FALSE),0)-IFERROR(VLOOKUP(TEXT($A$3,"0000"),'Geo Gr08'!$A$3:$Q$500,7,FALSE),0) -> 548 | C29: =IFERROR((IF(OR(B29<10,B29="",B29="NA"),"NA",((IF(VLOOKUP($A$3,'G8-ML4'!$A$6:$AG$500,3,FALSE)>=B29,"100% ("&VLOOKUP($A$3,'G8-ML4'!$A$6:$AG$500,3,FALSE)&")",(ROUND((VLOOKUP($A$3,'G8-ML4'!$A$6:$AG$500,3,FALSE)/B29*100),0))&"% ("&IF(VLOOKUP($A$3,'G8-ML4'!$A$6:$AG$500,3,FALSE)="",0,VLOOKUP($A$3,'G8-ML4'!$A$6:$AG$500,3,FALSE))&")"))))),"NA") -> 100% (796) | D29: =IFERROR((IF($C29="NA","NA",VLOOKUP($A$3,'G8-ML4'!$A$6:$AG$500,4,FALSE))),"NA") -> 18.85816583 | E29: =IFERROR((IF($C29="NA","NA",ROUND(VLOOKUP($A$3,'G8-ML4'!$A$6:$AG$500,6,FALSE),0)&"% ("&IF(VLOOKUP($A$3,'G8-ML4'!$A$6:$AG$500,5,FALSE)="",0,VLOOKUP($A$3,'G8-ML4'!$A$6:$AG$500,5,FALSE))&")")),"NA") -> 12% (96) | F29: =IFERROR((IF($C29="NA","NA",VLOOKUP($A$3,'G8-ML4'!$A$6:$AG$500,7,FALSE))),"NA") -> 6.672738693 | G29: =IFERROR((IF($C29="NA","NA",ROUND(VLOOKUP($A$3,'G8-ML4'!$A$6:$AG$500,9,FALSE),0)&"% ("&IF(VLOOKUP($A$3,'G8-ML4'!$A$6:$AG$500,8,FALSE)="",0,VLOOKUP($A$3,'G8-ML4'!$A$6:$AG$500,8,FALSE))&")")),"NA") -> 57% (451) | H29: =IFERROR((IF($C29="NA","NA",VLOOKUP($A$3,'G8-ML4'!$A$6:$AG$500,10,FALSE))),"NA") -> 7.53178392 | I29: =IFERROR((IF($C29="NA","NA",ROUND(VLOOKUP($A$3,'G8-ML4'!$A$6:$AG$500,12,FALSE),0)&"% ("&IF(VLOOKUP($A$3,'G8-ML4'!$A$6:$AG$500,11,FALSE)="",0,VLOOKUP($A$3,'G8-ML4'!$A$6:$AG$500,11,FALSE))&")")),"NA") -> 21% (168) | J29: =IFERROR((IF($C29="NA","NA",VLOOKUP($A$3,'G8-ML4'!$A$6:$AG$500,13,FALSE))),"NA") -> 4.658417085 | K29: =IFERROR((IF($C29="NA","NA",ROUND(VLOOKUP($A$3,'G8-ML4'!$A$6:$AG$500,15,FALSE),0)&"% ("&IF(VLOOKUP($A$3,'G8-ML4'!$A$6:$AG$500,14,FALSE)="",0,VLOOKUP($A$3,'G8-ML4'!$A$6:$AG$500,14,FALSE))&")")),"NA") -> 10% (82)
A30: FCAT Level 5 | B30: =IFERROR(VLOOKUP(TEXT($A$3,"0000"),MEM_ML5!$A$2:$O$500,9,FALSE),0)-IFERROR(VLOOKUP(TEXT($A$3,"0000"),'ALG Gr08'!$A$3:$Q$500,8,FALSE),0)-IFERROR(VLOOKUP(TEXT($A$3,"0000"),'Geo Gr08'!$A$3:$Q$500,8,FALSE),0) -> 28 | C30: =IFERROR((IF(OR(B30<10,B30="",B30="NA"),"NA",((IF(VLOOKUP($A$3,'G8-ML5'!$A$6:$AG$481,3,FALSE)>=B30,"100% ("&VLOOKUP($A$3,'G8-ML5'!$A$6:$AG$481,3,FALSE)&")",(ROUND((VLOOKUP($A$3,'G8-ML5'!$A$6:$AG$481,3,FALSE)/B30*100),0))&"% ("&IF(VLOOKUP($A$3,'G8-ML5'!$A$6:$AG$481,3,FALSE)="",0,VLOOKUP($A$3,'G8-ML5'!$A$6:$AG$481,3,FALSE))&")"))))),"NA") -> 100% (167) | D30: =IFERROR((IF($C30="NA","NA",VLOOKUP($A$3,'G8-ML5'!$A$6:$AG$481,4,FALSE))),"NA") -> 23.99041916 | E30: =IFERROR((IF($C30="NA","NA",ROUND(VLOOKUP($A$3,'G8-ML5'!$A$6:$AG$481,6,FALSE),0)&"% ("&IF(VLOOKUP($A$3,'G8-ML5'!$A$6:$AG$481,5,FALSE)="",0,VLOOKUP($A$3,'G8-ML5'!$A$6:$AG$481,5,FALSE))&")")),"NA") -> 49% (82) | F30: =IFERROR((IF($C30="NA","NA",VLOOKUP($A$3,'G8-ML5'!$A$6:$AG$481,7,FALSE))),"NA") -> 7.903592814 | G30: =IFERROR((IF($C30="NA","NA",ROUND(VLOOKUP($A$3,'G8-ML5'!$A$6:$AG$481,9,FALSE),0)&"% ("&IF(VLOOKUP($A$3,'G8-ML5'!$A$6:$AG$481,8,FALSE)="",0,VLOOKUP($A$3,'G8-ML5'!$A$6:$AG$481,8,FALSE))&")")),"NA") -> 80% (133) | H30: =IFERROR((IF($C30="NA","NA",VLOOKUP($A$3,'G8-ML5'!$A$6:$AG$481,10,FALSE))),"NA") -> 10.16766467 | I30: =IFERROR((IF($C30="NA","NA",ROUND(VLOOKUP($A$3,'G8-ML5'!$A$6:$AG$481,12,FALSE),0)&"% ("&IF(VLOOKUP($A$3,'G8-ML5'!$A$6:$AG$481,11,FALSE)="",0,VLOOKUP($A$3,'G8-ML5'!$A$6:$AG$481,11,FALSE))&")")),"NA") -> 64% (107) | J30: =IFERROR((IF($C30="NA","NA",VLOOKUP($A$3,'G8-ML5'!$A$6:$AG$481,13,FALSE))),"NA") -> 5.917964072 | K30: =IFERROR((IF($C30="NA","NA",ROUND(VLOOKUP($A$3,'G8-ML5'!$A$6:$AG$481,15,FALSE),0)&"% ("&IF(VLOOKUP($A$3,'G8-ML5'!$A$6:$AG$481,14,FALSE)="",0,VLOOKUP($A$3,'G8-ML5'!$A$6:$AG$481,14,FALSE))&")")),"NA") -> 34% (57)
A31: White | B31: =IFERROR(VLOOKUP(TEXT($A$3,"0000"),MEM_W!$A$2:$O$500,12,FALSE),0)-IFERROR(VLOOKUP(TEXT($A$3,"0000"),'ALG Gr08'!$A$3:$Q$500,10,FALSE),0)-IFERROR(VLOOKUP(TEXT($A$3,"0000"),'Geo Gr08'!$A$3:$Q$500,10,FALSE),0) -> 787 | C31: =IFERROR((IF(OR(B31<10,B31="",B31="NA"),"NA",((IF(VLOOKUP($A$3,'G8-MW'!$A$6:$AG$500,3,FALSE)>=B31,"100% ("&VLOOKUP($A$3,'G8-MW'!$A$6:$AG$500,3,FALSE)&")",(ROUND((VLOOKUP($A$3,'G8-MW'!$A$6:$AG$500,3,FALSE)/B31*100),0))&"% ("&IF(VLOOKUP($A$3,'G8-MW'!$A$6:$AG$500,3,FALSE)="",0,VLOOKUP($A$3,'G8-MW'!$A$6:$AG$500,3,FALSE))&")"))))),"NA") -> 93% (731) | D31: =IFERROR((IF($C31="NA","NA",VLOOKUP($A$3,'G8-MW'!$A$6:$AG$500,4,FALSE))),"NA") -> 13.8373461 | E31: =IFERROR((IF($C31="NA","NA",ROUND(VLOOKUP($A$3,'G8-MW'!$A$6:$AG$500,6,FALSE),0)&"% ("&IF(VLOOKUP($A$3,'G8-MW'!$A$6:$AG$500,5,FALSE)="",0,VLOOKUP($A$3,'G8-MW'!$A$6:$AG$500,5,FALSE))&")")),"NA") -> 4% (26) | F31: =IFERROR((IF($C31="NA","NA",VLOOKUP($A$3,'G8-MW'!$A$6:$AG$500,7,FALSE))),"NA") -> 4.925991792 | G31: =IFERROR((IF($C31="NA","NA",ROUND(VLOOKUP($A$3,'G8-MW'!$A$6:$AG$500,9,FALSE),0)&"% ("&IF(VLOOKUP($A$3,'G8-MW'!$A$6:$AG$500,8,FALSE)="",0,VLOOKUP($A$3,'G8-MW'!$A$6:$AG$500,8,FALSE))&")")),"NA") -> 23% (168) | H31: =IFERROR((IF($C31="NA","NA",VLOOKUP($A$3,'G8-MW'!$A$6:$AG$500,10,FALSE))),"NA") -> 5.245964432 | I31: =IFERROR((IF($C31="NA","NA",ROUND(VLOOKUP($A$3,'G8-MW'!$A$6:$AG$500,12,FALSE),0)&"% ("&IF(VLOOKUP($A$3,'G8-MW'!$A$6:$AG$500,11,FALSE)="",0,VLOOKUP($A$3,'G8-MW'!$A$6:$AG$500,11,FALSE))&")")),"NA") -> 7% (49) | J31: =IFERROR((IF($C31="NA","NA",VLOOKUP($A$3,'G8-MW'!$A$6:$AG$500,13,FALSE))),"NA") -> 3.684268126 | K31: =IFERROR((IF($C31="NA","NA",ROUND(VLOOKUP($A$3,'G8-MW'!$A$6:$AG$500,15,FALSE),0)&"% ("&IF(VLOOKUP($A$3,'G8-MW'!$A$6:$AG$500,14,FALSE)="",0,VLOOKUP($A$3,'G8-MW'!$A$6:$AG$500,14,FALSE))&")")),"NA") -> 4% (29)
A32: Black | B32: =IFERROR(VLOOKUP(TEXT($A$3,"0000"),MEM_B!$A$2:$O$500,12,FALSE),0)-IFERROR(VLOOKUP(TEXT($A$3,"0000"),'ALG Gr08'!$A$3:$Q$500,11,FALSE),0)-IFERROR(VLOOKUP(TEXT($A$3,"0000"),'Geo Gr08'!$A$3:$Q$500,11,FALSE),0) -> 4067 | C32: =IFERROR((IF(OR(B32<10,B32="",B32="NA"),"NA",((IF(VLOOKUP($A$3,'G8-MB'!$A$6:$AG$500,3,FALSE)>=B32,"100% ("&VLOOKUP($A$3,'G8-MB'!$A$6:$AG$500,3,FALSE)&")",(ROUND((VLOOKUP($A$3,'G8-MB'!$A$6:$AG$500,3,FALSE)/B32*100),0))&"% ("&IF(VLOOKUP($A$3,'G8-MB'!$A$6:$AG$500,3,FALSE)="",0,VLOOKUP($A$3,'G8-MB'!$A$6:$AG$500,3,FALSE))&")"))))),"NA") -> 100% (4199) | D32: =IFERROR((IF($C32="NA","NA",VLOOKUP($A$3,'G8-MB'!$A$6:$AG$500,4,FALSE))),"NA") -> 12.10290545 | E32: =IFERROR((IF($C32="NA","NA",ROUND(VLOOKUP($A$3,'G8-MB'!$A$6:$AG$500,6,FALSE),0)&"% ("&IF(VLOOKUP($A$3,'G8-MB'!$A$6:$AG$500,5,FALSE)="",0,VLOOKUP($A$3,'G8-MB'!$A$6:$AG$500,5,FALSE))&")")),"NA") -> 1% (45) | F32: =IFERROR((IF($C32="NA","NA",VLOOKUP($A$3,'G8-MB'!$A$6:$AG$500,7,FALSE))),"NA") -> 4.583234103 | G32: =IFERROR((IF($C32="NA","NA",ROUND(VLOOKUP($A$3,'G8-MB'!$A$6:$AG$500,9,FALSE),0)&"% ("&IF(VLOOKUP($A$3,'G8-MB'!$A$6:$AG$500,8,FALSE)="",0,VLOOKUP($A$3,'G8-MB'!$A$6:$AG$500,8,FALSE))&")")),"NA") -> 17% (720) | H32: =IFERROR((IF($C32="NA","NA",VLOOKUP($A$3,'G8-MB'!$A$6:$AG$500,10,FALSE))),"NA") -> 4.323505597 | I32: =IFERROR((IF($C32="NA","NA",ROUND(VLOOKUP($A$3,'G8-MB'!$A$6:$AG$500,12,FALSE),0)&"% ("&IF(VLOOKUP($A$3,'G8-MB'!$A$6:$AG$500,11,FALSE)="",0,VLOOKUP($A$3,'G8-MB'!$A$6:$AG$500,11,FALSE))&")")),"NA") -> 2% (85) | J32: =IFERROR((IF($C32="NA","NA",VLOOKUP($A$3,'G8-MB'!$A$6:$AG$500,13,FALSE))),"NA") -> 3.202881638 | K32: =IFERROR((IF($C32="NA","NA",ROUND(VLOOKUP($A$3,'G8-MB'!$A$6:$AG$500,15,FALSE),0)&"% ("&IF(VLOOKUP($A$3,'G8-MB'!$A$6:$AG$500,14,FALSE)="",0,VLOOKUP($A$3,'G8-MB'!$A$6:$AG$500,14,FALSE))&")")),"NA") -> 2% (71)
A33: Hispanic | B33: =IFERROR(VLOOKUP(TEXT($A$3,"0000"),MEM_H!$A$2:$O$500,12,FALSE),0)-IFERROR(VLOOKUP(TEXT($A$3,"0000"),'ALG Gr08'!$A$3:$Q$500,12,FALSE),0)-IFERROR(VLOOKUP(TEXT($A$3,"0000"),'Geo Gr08'!$A$3:$Q$500,12,FALSE),0) -> 10049 | C33: =IFERROR((IF(OR(B33<10,B33="",B33="NA"),"NA",((IF(VLOOKUP($A$3,'G8-MH'!$A$6:$AG$500,3,FALSE)>=B33,"100% ("&VLOOKUP($A$3,'G8-MH'!$A$6:$AG$500,3,FALSE)&")",(ROUND((VLOOKUP($A$3,'G8-MH'!$A$6:$AG$500,3,FALSE)/B33*100),0))&"% ("&IF(VLOOKUP($A$3,'G8-MH'!$A$6:$AG$500,3,FALSE)="",0,VLOOKUP($A$3,'G8-MH'!$A$6:$AG$500,3,FALSE))&")"))))),"NA") -> 96% (9691) | D33: =IFERROR((IF($C33="NA","NA",VLOOKUP($A$3,'G8-MH'!$A$6:$AG$500,4,FALSE))),"NA") -> 12.44211124 | E33: =IFERROR((IF($C33="NA","NA",ROUND(VLOOKUP($A$3,'G8-MH'!$A$6:$AG$500,6,FALSE),0)&"% ("&IF(VLOOKUP($A$3,'G8-MH'!$A$6:$AG$500,5,FALSE)="",0,VLOOKUP($A$3,'G8-MH'!$A$6:$AG$500,5,FALSE))&")")),"NA") -> 2% (148) | F33: =IFERROR((IF($C33="NA","NA",VLOOKUP($A$3,'G8-MH'!$A$6:$AG$500,7,FALSE))),"NA") -> 4.480497369 | G33: =IFERROR((IF($C33="NA","NA",ROUND(VLOOKUP($A$3,'G8-MH'!$A$6:$AG$500,9,FALSE),0)&"% ("&IF(VLOOKUP($A$3,'G8-MH'!$A$6:$AG$500,8,FALSE)="",0,VLOOKUP($A$3,'G8-MH'!$A$6:$AG$500,8,FALSE))&")")),"NA") -> 17% (1617) | H33: =IFERROR((IF($C33="NA","NA",VLOOKUP($A$3,'G8-MH'!$A$6:$AG$500,10,FALSE))),"NA") -> 4.57284078 | I33: =IFERROR((IF($C33="NA","NA",ROUND(VLOOKUP($A$3,'G8-MH'!$A$6:$AG$500,12,FALSE),0)&"% ("&IF(VLOOKUP($A$3,'G8-MH'!$A$6:$AG$500,11,FALSE)="",0,VLOOKUP($A$3,'G8-MH'!$A$6:$AG$500,11,FALSE))&")")),"NA") -> 3% (285) | J33: =IFERROR((IF($C33="NA","NA",VLOOKUP($A$3,'G8-MH'!$A$6:$AG$500,13,FALSE))),"NA") -> 3.391270251 | K33: =IFERROR((IF($C33="NA","NA",ROUND(VLOOKUP($A$3,'G8-MH'!$A$6:$AG$500,15,FALSE),0)&"% ("&IF(VLOOKUP($A$3,'G8-MH'!$A$6:$AG$500,14,FALSE)="",0,VLOOKUP($A$3,'G8-MH'!$A$6:$AG$500,14,FALSE))&")")),"NA") -> 3% (283)
A34: Asian | B34: =IFERROR(VLOOKUP(TEXT($A$3,"0000"),MEM_A!$A$2:$O$500,12,FALSE),0)-IFERROR(VLOOKUP(TEXT($A$3,"0000"),'ALG Gr08'!$A$3:$Q$500,13,FALSE),0)-IFERROR(VLOOKUP(TEXT($A$3,"0000"),'Geo Gr08'!$A$3:$Q$500,13,FALSE),0) -> 94 | C34: =IFERROR((IF(OR(B34<10,B34="",B34="NA"),"NA",((IF(VLOOKUP($A$3,'G8-MA'!$A$6:$AG$500,3,FALSE)>=B34,"100% ("&VLOOKUP($A$3,'G8-MA'!$A$6:$AG$500,3,FALSE)&")",(ROUND((VLOOKUP($A$3,'G8-MA'!$A$6:$AG$500,3,FALSE)/B34*100),0))&"% ("&IF(VLOOKUP($A$3,'G8-MA'!$A$6:$AG$500,3,FALSE)="",0,VLOOKUP($A$3,'G8-MA'!$A$6:$AG$500,3,FALSE))&")"))))),"NA") -> 99% (93) | D34: =IFERROR((IF($C34="NA","NA",VLOOKUP($A$3,'G8-MA'!$A$6:$AG$500,4,FALSE))),"NA") -> 15.03333333 | E34: =IFERROR((IF($C34="NA","NA",ROUND(VLOOKUP($A$3,'G8-MA'!$A$6:$AG$500,6,FALSE),0)&"% ("&IF(VLOOKUP($A$3,'G8-MA'!$A$6:$AG$500,5,FALSE)="",0,VLOOKUP($A$3,'G8-MA'!$A$6:$AG$500,5,FALSE))&")")),"NA") -> 13% (12) | F34: =IFERROR((IF($C34="NA","NA",VLOOKUP($A$3,'G8-MA'!$A$6:$AG$500,7,FALSE))),"NA") -> 5.589247312 | G34: =IFERROR((IF($C34="NA","NA",ROUND(VLOOKUP($A$3,'G8-MA'!$A$6:$AG$500,9,FALSE),0)&"% ("&IF(VLOOKUP($A$3,'G8-MA'!$A$6:$AG$500,8,FALSE)="",0,VLOOKUP($A$3,'G8-MA'!$A$6:$AG$500,8,FALSE))&")")),"NA") -> 32% (30) | H34: =IFERROR((IF($C34="NA","NA",VLOOKUP($A$3,'G8-MA'!$A$6:$AG$500,10,FALSE))),"NA") -> 5.458064516 | I34: =IFERROR((IF($C34="NA","NA",ROUND(VLOOKUP($A$3,'G8-MA'!$A$6:$AG$500,12,FALSE),0)&"% ("&IF(VLOOKUP($A$3,'G8-MA'!$A$6:$AG$500,11,FALSE)="",0,VLOOKUP($A$3,'G8-MA'!$A$6:$AG$500,11,FALSE))&")")),"NA") -> 13% (12) | J34: =IFERROR((IF($C34="NA","NA",VLOOKUP($A$3,'G8-MA'!$A$6:$AG$500,13,FALSE))),"NA") -> 3.978494624 | K34: =IFERROR((IF($C34="NA","NA",ROUND(VLOOKUP($A$3,'G8-MA'!$A$6:$AG$500,15,FALSE),0)&"% ("&IF(VLOOKUP($A$3,'G8-MA'!$A$6:$AG$500,14,FALSE)="",0,VLOOKUP($A$3,'G8-MA'!$A$6:$AG$500,14,FALSE))&")")),"NA") -> 12% (11)
A35: Am. Indian | B35: =IFERROR(VLOOKUP(TEXT($A$3,"0000"),MEM_I!$A$2:$O$500,12,FALSE),0)-IFERROR(VLOOKUP(TEXT($A$3,"0000"),'ALG Gr08'!$A$3:$Q$500,14,FALSE),0)-IFERROR(VLOOKUP(TEXT($A$3,"0000"),'Geo Gr08'!$A$3:$Q$500,14,FALSE),0) -> 12 | C35: =IFERROR((IF(OR(B35<10,B35="",B35="NA"),"NA",((IF(VLOOKUP($A$3,'G8-MI'!$A$6:$AG$500,3,FALSE)>=B35,"100% ("&VLOOKUP($A$3,'G8-MI'!$A$6:$AG$500,3,FALSE)&")",(ROUND((VLOOKUP($A$3,'G8-MI'!$A$6:$AG$500,3,FALSE)/B35*100),0))&"% ("&IF(VLOOKUP($A$3,'G8-MI'!$A$6:$AG$500,3,FALSE)="",0,VLOOKUP($A$3,'G8-MI'!$A$6:$AG$500,3,FALSE))&")"))))),"NA") -> 92% (11) | D35: =IFERROR((IF($C35="NA","NA",VLOOKUP($A$3,'G8-MI'!$A$6:$AG$500,4,FALSE))),"NA") -> 13.63636364 | E35: =IFERROR((IF($C35="NA","NA",ROUND(VLOOKUP($A$3,'G8-MI'!$A$6:$AG$500,6,FALSE),0)&"% ("&IF(VLOOKUP($A$3,'G8-MI'!$A$6:$AG$500,5,FALSE)="",0,VLOOKUP($A$3,'G8-MI'!$A$6:$AG$500,5,FALSE))&")")),"NA") -> 0% (0) | F35: =IFERROR((IF($C35="NA","NA",VLOOKUP($A$3,'G8-MI'!$A$6:$AG$500,7,FALSE))),"NA") -> 4.272727273 | G35: =IFERROR((IF($C35="NA","NA",ROUND(VLOOKUP($A$3,'G8-MI'!$A$6:$AG$500,9,FALSE),0)&"% ("&IF(VLOOKUP($A$3,'G8-MI'!$A$6:$AG$500,8,FALSE)="",0,VLOOKUP($A$3,'G8-MI'!$A$6:$AG$500,8,FALSE))&")")),"NA") -> 18% (2) | H35: =IFERROR((IF($C35="NA","NA",VLOOKUP($A$3,'G8-MI'!$A$6:$AG$500,10,FALSE))),"NA") -> 5.545454545 | I35: =IFERROR((IF($C35="NA","NA",ROUND(VLOOKUP($A$3,'G8-MI'!$A$6:$AG$500,12,FALSE),0)&"% ("&IF(VLOOKUP($A$3,'G8-MI'!$A$6:$AG$500,11,FALSE)="",0,VLOOKUP($A$3,'G8-MI'!$A$6:$AG$500,11,FALSE))&")")),"NA") -> 9% (1) | J35: =IFERROR((IF($C35="NA","NA",VLOOKUP($A$3,'G8-MI'!$A$6:$AG$500,13,FALSE))),"NA") -> 3.818181818 | K35: =IFERROR((IF($C35="NA","NA",ROUND(VLOOKUP($A$3,'G8-MI'!$A$6:$AG$500,15,FALSE),0)&"% ("&IF(VLOOKUP($A$3,'G8-MI'!$A$6:$AG$500,14,FALSE)="",0,VLOOKUP($A$3,'G8-MI'!$A$6:$AG$500,14,FALSE))&")")),"NA") -> 0% (0)
A36: ED | B36: =IFERROR(VLOOKUP(TEXT($A$3,"0000"),MEM_ED!$A$2:$O$500,12,FALSE),0)-IFERROR(VLOOKUP(TEXT($A$3,"0000"),'ALG Gr08'!$A$3:$Q$500,15,FALSE),0)-IFERROR(VLOOKUP(TEXT($A$3,"0000"),'Geo Gr08'!$A$3:$Q$500,15,FALSE),0) -> 12681 | C36: =IFERROR((IF(OR(B36<10,B36="",B36="NA"),"NA",((IF(VLOOKUP($A$3,'G8-MED'!$A$6:$AG$500,3,FALSE)>=B36,"100% ("&VLOOKUP($A$3,'G8-MED'!$A$6:$AG$500,3,FALSE)&")",(ROUND((VLOOKUP($A$3,'G8-MED'!$A$6:$AG$500,3,FALSE)/B36*100),0))&"% ("&IF(VLOOKUP($A$3,'G8-MED'!$A$6:$AG$500,3,FALSE)="",0,VLOOKUP($A$3,'G8-MED'!$A$6:$AG$500,3,FALSE))&")"))))),"NA") -> 100% (12645) | D36: =IFERROR((IF($C36="NA","NA",VLOOKUP($A$3,'G8-MED'!$A$6:$AG$500,4,FALSE))),"NA") -> 12.14890471 | E36: =IFERROR((IF($C36="NA","NA",ROUND(VLOOKUP($A$3,'G8-MED'!$A$6:$AG$500,6,FALSE),0)&"% ("&IF(VLOOKUP($A$3,'G8-MED'!$A$6:$AG$500,5,FALSE)="",0,VLOOKUP($A$3,'G8-MED'!$A$6:$AG$500,5,FALSE))&")")),"NA") -> 1% (147) | F36: =IFERROR((IF($C36="NA","NA",VLOOKUP($A$3,'G8-MED'!$A$6:$AG$500,7,FALSE))),"NA") -> 4.441099249 | G36: =IFERROR((IF($C36="NA","NA",ROUND(VLOOKUP($A$3,'G8-MED'!$A$6:$AG$500,9,FALSE),0)&"% ("&IF(VLOOKUP($A$3,'G8-MED'!$A$6:$AG$500,8,FALSE)="",0,VLOOKUP($A$3,'G8-MED'!$A$6:$AG$500,8,FALSE))&")")),"NA") -> 16% (2007) | H36: =IFERROR((IF($C36="NA","NA",VLOOKUP($A$3,'G8-MED'!$A$6:$AG$500,10,FALSE))),"NA") -> 4.411285093 | I36: =IFERROR((IF($C36="NA","NA",ROUND(VLOOKUP($A$3,'G8-MED'!$A$6:$AG$500,12,FALSE),0)&"% ("&IF(VLOOKUP($A$3,'G8-MED'!$A$6:$AG$500,11,FALSE)="",0,VLOOKUP($A$3,'G8-MED'!$A$6:$AG$500,11,FALSE))&")")),"NA") -> 2% (278) | J36: =IFERROR((IF($C36="NA","NA",VLOOKUP($A$3,'G8-MED'!$A$6:$AG$500,13,FALSE))),"NA") -> 3.295389482 | K36: =IFERROR((IF($C36="NA","NA",ROUND(VLOOKUP($A$3,'G8-MED'!$A$6:$AG$500,15,FALSE),0)&"% ("&IF(VLOOKUP($A$3,'G8-MED'!$A$6:$AG$500,14,FALSE)="",0,VLOOKUP($A$3,'G8-MED'!$A$6:$AG$500,14,FALSE))&")")),"NA") -> 2% (295)
A37: ELL | B37: =IFERROR(VLOOKUP(TEXT($A$3,"0000"),MEM_ELL!$A$2:$O$500,12,FALSE),0)-IFERROR(VLOOKUP(TEXT($A$3,"0000"),'ALG Gr08'!$A$3:$Q$500,16,FALSE),0)-IFERROR(VLOOKUP(TEXT($A$3,"0000"),'Geo Gr08'!$A$3:$Q$500,16,FALSE),0) -> 3275 | C37: =IFERROR((IF(OR(B37<10,B37="",B37="NA"),"NA",((IF(VLOOKUP($A$3,'G8-MELL'!$A$6:$AG$500,3,FALSE)>=B37,"100% ("&VLOOKUP($A$3,'G8-MELL'!$A$6:$AG$500,3,FALSE)&")",(ROUND((VLOOKUP($A$3,'G8-MELL'!$A$6:$AG$500,3,FALSE)/B37*100),0))&"% ("&IF(VLOOKUP($A$3,'G8-MELL'!$A$6:$AG$500,3,FALSE)="",0,VLOOKUP($A$3,'G8-MELL'!$A$6:$AG$500,3,FALSE))&")"))))),"NA") -> 93% (3061) | D37: =IFERROR((IF($C37="NA","NA",VLOOKUP($A$3,'G8-MELL'!$A$6:$AG$500,4,FALSE))),"NA") -> 10.78307743 | E37: =IFERROR((IF($C37="NA","NA",ROUND(VLOOKUP($A$3,'G8-MELL'!$A$6:$AG$500,6,FALSE),0)&"% ("&IF(VLOOKUP($A$3,'G8-MELL'!$A$6:$AG$500,5,FALSE)="",0,VLOOKUP($A$3,'G8-MELL'!$A$6:$AG$500,5,FALSE))&")")),"NA") -> 0% (14) | F37: =IFERROR((IF($C37="NA","NA",VLOOKUP($A$3,'G8-MELL'!$A$6:$AG$500,7,FALSE))),"NA") -> 3.841555047 | G37: =IFERROR((IF($C37="NA","NA",ROUND(VLOOKUP($A$3,'G8-MELL'!$A$6:$AG$500,9,FALSE),0)&"% ("&IF(VLOOKUP($A$3,'G8-MELL'!$A$6:$AG$500,8,FALSE)="",0,VLOOKUP($A$3,'G8-MELL'!$A$6:$AG$500,8,FALSE))&")")),"NA") -> 8% (243) | H37: =IFERROR((IF($C37="NA","NA",VLOOKUP($A$3,'G8-MELL'!$A$6:$AG$500,10,FALSE))),"NA") -> 3.857889579 | I37: =IFERROR((IF($C37="NA","NA",ROUND(VLOOKUP($A$3,'G8-MELL'!$A$6:$AG$500,12,FALSE),0)&"% ("&IF(VLOOKUP($A$3,'G8-MELL'!$A$6:$AG$500,11,FALSE)="",0,VLOOKUP($A$3,'G8-MELL'!$A$6:$AG$500,11,FALSE))&")")),"NA") -> 1% (33) | J37: =IFERROR((IF($C37="NA","NA",VLOOKUP($A$3,'G8-MELL'!$A$6:$AG$500,13,FALSE))),"NA") -> 3.0836328 | K37: =IFERROR((IF($C37="NA","NA",ROUND(VLOOKUP($A$3,'G8-MELL'!$A$6:$AG$500,15,FALSE),0)&"% ("&IF(VLOOKUP($A$3,'G8-MELL'!$A$6:$AG$500,14,FALSE)="",0,VLOOKUP($A$3,'G8-MELL'!$A$6:$AG$500,14,FALSE))&")")),"NA") -> 2% (53)
A38: SWD | B38: =IFERROR(VLOOKUP(TEXT($A$3,"0000"),MEM_SWD!$A$2:$O$500,12,FALSE),0)-IFERROR(VLOOKUP(TEXT($A$3,"0000"),'ALG Gr08'!$A$3:$Q$500,17,FALSE),0)-IFERROR(VLOOKUP(TEXT($A$3,"0000"),'Geo Gr08'!$A$3:$Q$500,17,FALSE),0) -> 2219 | C38: =IFERROR((IF(OR(B38<10,B38="",B38="NA"),"NA",((IF(VLOOKUP($A$3,'G8-MSWD'!$A$6:$AG$500,3,FALSE)>=B38,"100% ("&VLOOKUP($A$3,'G8-MSWD'!$A$6:$AG$500,3,FALSE)&")",(ROUND((VLOOKUP($A$3,'G8-MSWD'!$A$6:$AG$500,3,FALSE)/B38*100),0))&"% ("&IF(VLOOKUP($A$3,'G8-MSWD'!$A$6:$AG$500,3,FALSE)="",0,VLOOKUP($A$3,'G8-MSWD'!$A$6:$AG$500,3,FALSE))&")"))))),"NA") -> 93% (2053) | D38: =IFERROR((IF($C38="NA","NA",VLOOKUP($A$3,'G8-MSWD'!$A$6:$AG$500,4,FALSE))),"NA") -> 10.54515343 | E38: =IFERROR((IF($C38="NA","NA",ROUND(VLOOKUP($A$3,'G8-MSWD'!$A$6:$AG$500,6,FALSE),0)&"% ("&IF(VLOOKUP($A$3,'G8-MSWD'!$A$6:$AG$500,5,FALSE)="",0,VLOOKUP($A$3,'G8-MSWD'!$A$6:$AG$500,5,FALSE))&")")),"NA") -> 0% (6) | F38: =IFERROR((IF($C38="NA","NA",VLOOKUP($A$3,'G8-MSWD'!$A$6:$AG$500,7,FALSE))),"NA") -> 3.742133463 | G38: =IFERROR((IF($C38="NA","NA",ROUND(VLOOKUP($A$3,'G8-MSWD'!$A$6:$AG$500,9,FALSE),0)&"% ("&IF(VLOOKUP($A$3,'G8-MSWD'!$A$6:$AG$500,8,FALSE)="",0,VLOOKUP($A$3,'G8-MSWD'!$A$6:$AG$500,8,FALSE))&")")),"NA") -> 7% (142) | H38: =IFERROR((IF($C38="NA","NA",VLOOKUP($A$3,'G8-MSWD'!$A$6:$AG$500,10,FALSE))),"NA") -> 3.831222601 | I38: =IFERROR((IF($C38="NA","NA",ROUND(VLOOKUP($A$3,'G8-MSWD'!$A$6:$AG$500,12,FALSE),0)&"% ("&IF(VLOOKUP($A$3,'G8-MSWD'!$A$6:$AG$500,11,FALSE)="",0,VLOOKUP($A$3,'G8-MSWD'!$A$6:$AG$500,11,FALSE))&")")),"NA") -> 1% (15) | J38: =IFERROR((IF($C38="NA","NA",VLOOKUP($A$3,'G8-MSWD'!$A$6:$AG$500,13,FALSE))),"NA") -> 2.975158305 | K38: =IFERROR((IF($C38="NA","NA",ROUND(VLOOKUP($A$3,'G8-MSWD'!$A$6:$AG$500,15,FALSE),0)&"% ("&IF(VLOOKUP($A$3,'G8-MSWD'!$A$6:$AG$500,14,FALSE)="",0,VLOOKUP($A$3,'G8-MSWD'!$A$6:$AG$500,14,FALSE))&")")),"NA") -> 2% (37)
A39: District Writing Pre-Test, Grade 8 | P39: Writing Grade 8
A40: Level of Proficiency at 4 or above | B40: Total # of Students | C40: % of Students Tested (Max. of the two prompts) | D40: Combined Prompts (Weighted Values) | H40: Expository | J40: Persuasive | P40: =H40 -> Expository | Q40: =J40 -> Persuasive
D41: Average Score | E41: % at 3.0 | F41: % at or above 4.0 | H41: Average Score | I41: % at or above 4.0 | J41: Average Score | K41: % at or above 4.0 | P41: Number Tested | Q41: Number Tested
A42: All students | B42: =IFERROR(VLOOKUP(TEXT($A$3,"0000"),Mem_All!$A$2:$O$500,12,FALSE),"NA") -> 27272 | C42: =IF(OR(B42<10,B42="",B42="NA"),"NA",IF(VLOOKUP($A$3,'G8-WALL'!$A$6:$Z$500,3,FALSE)>B42,"100% ("&VLOOKUP($A$3,'G8-WALL'!$A$6:$Z$500,3,FALSE)&")",ROUND(VLOOKUP($A$3,'G8-WALL'!$A$6:$Z$500,3,FALSE)/B42*100,0)&"%("&VLOOKUP($A$3,'G8-WALL'!$A$6:$Z$500,3,FALSE)&")")) -> 77%(20978) | D42: =IFERROR((IF($C42="NA","NA",VLOOKUP($A$3,'G8-WALL'!$A$6:$Z$500,4,FALSE))),"NA") -> 2.244428079 | E42: =IF($C42="NA","NA",ROUND(VLOOKUP($A$3,'G8-WALL'!$A$6:$Z$500,6,FALSE),0)&"% ("&VLOOKUP($A$3,'G8-WALL'!$A$6:$Z$500,5,FALSE)&")") -> 31% (6515) | F42: =IF($C42="NA","NA",ROUND(VLOOKUP($A$3,'G8-WALL'!$A$6:$Z$500,8,FALSE),0)&"% ("&VLOOKUP($A$3,'G8-WALL'!$A$6:$Z$500,7,FALSE)&")") -> 11% (2329) | H42: =IFERROR(IF(VLOOKUP($A$3,'G8-WALL'!$A$6:$Z$500,9,FALSE)="","Not Test",VLOOKUP($A$3,'G8-WALL'!$A$6:$Z$500,10,FALSE)),"NA") -> 2.415089099 | I42: =IFERROR(IF(VLOOKUP($A$3,'G8-WALL'!$A$6:$Z$500,3,FALSE)="","Not Test",VLOOKUP($A$3,'G8-WALL'!$A$6:$Z$500,15,FALSE)&"% ("&VLOOKUP($A$3,'G8-WALL'!$A$6:$Z$500,13,FALSE)&")"),"NA") -> 14% (2622) | J42: =IFERROR(IF(VLOOKUP($A$3,'G8-WALL'!$A$6:$Z$500,17,FALSE)="","Not Test",VLOOKUP($A$3,'G8-WALL'!$A$6:$Z$500,18,FALSE)),"NA") -> 2.089207741 | K42: =IFERROR(IF(VLOOKUP($A$3,'G8-WALL'!$A$6:$Z$500,17,FALSE)="","Not Test",VLOOKUP($A$3,'G8-WALL'!$A$6:$Z$500,23,FALSE)&"% ("&VLOOKUP($A$3,'G8-WALL'!$A$6:$Z$500,21,FALSE)&")"),"NA") -> 9% (1826) | P42: =IFERROR(IF(VLOOKUP($A$3,'G8-WALL'!$A$6:$Z$500,9,FALSE)="","0",VLOOKUP($A$3,'G8-WALL'!$A$6:$Z$500,9,FALSE)),"Not Test") -> 19080 | Q42: =IFERROR(IF(VLOOKUP($A$3,'G8-WALL'!$A$6:$Z$500,17,FALSE)="","0",VLOOKUP($A$3,'G8-WALL'!$A$6:$Z$500,17,FALSE)),"Not Test") -> 20978
A43: White | B43: =IFERROR(VLOOKUP(TEXT($A$3,"0000"),MEM_W!$A$2:$O$500,12,FALSE),"NA") -> 2059 | C43: =IF(OR(B43<10,B43="",B43="NA"),"NA",IF(VLOOKUP($A$3,'G8-WW'!$A$6:$Z$500,3,FALSE)>B43,"100% ("&VLOOKUP($A$3,'G8-WW'!$A$6:$Z$500,3,FALSE)&")",ROUND(VLOOKUP($A$3,'G8-WW'!$A$6:$Z$500,3,FALSE)/B43*100,0)&"%("&VLOOKUP($A$3,'G8-WW'!$A$6:$Z$500,3,FALSE)&")")) -> 65%(1340) | D43: =IFERROR((IF($C43="NA","NA",VLOOKUP($A$3,'G8-WW'!$A$6:$Z$500,4,FALSE))),"NA") -> 2.523089431 | E43: =IF($C43="NA","NA",ROUND(VLOOKUP($A$3,'G8-WW'!$A$6:$Z$500,6,FALSE),0)&"% ("&VLOOKUP($A$3,'G8-WW'!$A$6:$Z$500,5,FALSE)&")") -> 34% (455) | F43: =IF($C43="NA","NA",ROUND(VLOOKUP($A$3,'G8-WW'!$A$6:$Z$500,8,FALSE),0)&"% ("&VLOOKUP($A$3,'G8-WW'!$A$6:$Z$500,7,FALSE)&")") -> 18% (242) | H43: =IFERROR(IF(VLOOKUP($A$3,'G8-WW'!$A$6:$Z$500,9,FALSE)="","Not Test",VLOOKUP($A$3,'G8-WW'!$A$6:$Z$500,10,FALSE)),"NA") -> 2.704196429 | I43: =IFERROR(IF(VLOOKUP($A$3,'G8-WW'!$A$6:$Z$500,3,FALSE)="","Not Test",VLOOKUP($A$3,'G8-WW'!$A$6:$Z$500,15,FALSE)&"% ("&VLOOKUP($A$3,'G8-WW'!$A$6:$Z$500,13,FALSE)&")"),"NA") -> 21% (240) | J43: =IFERROR(IF(VLOOKUP($A$3,'G8-WW'!$A$6:$Z$500,17,FALSE)="","Not Test",VLOOKUP($A$3,'G8-WW'!$A$6:$Z$500,18,FALSE)),"NA") -> 2.371716418 | K43: =IFERROR(IF(VLOOKUP($A$3,'G8-WW'!$A$6:$Z$500,17,FALSE)="","Not Test",VLOOKUP($A$3,'G8-WW'!$A$6:$Z$500,23,FALSE)&"% ("&VLOOKUP($A$3,'G8-WW'!$A$6:$Z$500,21,FALSE)&")"),"NA") -> 15% (204) | P43: =IFERROR(IF(VLOOKUP($A$3,'G8-WW'!$A$6:$Z$500,9,FALSE)="","0",VLOOKUP($A$3,'G8-WW'!$A$6:$Z$500,9,FALSE)),"Not Test") -> 1120 | Q43: =IFERROR(IF(VLOOKUP($A$3,'G8-WW'!$A$6:$Z$500,17,FALSE)="","0",VLOOKUP($A$3,'G8-WW'!$A$6:$Z$500,17,FALSE)),"Not Test") -> 1340
A44: Black | B44: =IFERROR(VLOOKUP(TEXT($A$3,"0000"),MEM_B!$A$2:$O$500,12,FALSE),"NA") -> 6130 | C44: =IF(OR(B44<10,B44="",B44="NA"),"NA",IF(VLOOKUP($A$3,'G8-WB'!$A$6:$Z$500,3,FALSE)>B44,"100% ("&VLOOKUP($A$3,'G8-WB'!$A$6:$Z$500,3,FALSE)&")",ROUND(VLOOKUP($A$3,'G8-WB'!$A$6:$Z$500,3,FALSE)/B44*100,0)&"%("&VLOOKUP($A$3,'G8-WB'!$A$6:$Z$500,3,FALSE)&")")) -> 82%(5025) | D44: =IFERROR((IF($C44="NA","NA",VLOOKUP($A$3,'G8-WB'!$A$6:$Z$500,4,FALSE))),"NA") -> 2.15738842 | E44: =IF($C44="NA","NA",ROUND(VLOOKUP($A$3,'G8-WB'!$A$6:$Z$500,6,FALSE),0)&"% ("&VLOOKUP($A$3,'G8-WB'!$A$6:$Z$500,5,FALSE)&")") -> 28% (1418) | F44: =IF($C44="NA","NA",ROUND(VLOOKUP($A$3,'G8-WB'!$A$6:$Z$500,8,FALSE),0)&"% ("&VLOOKUP($A$3,'G8-WB'!$A$6:$Z$500,7,FALSE)&")") -> 9% (448) | H44: =IFERROR(IF(VLOOKUP($A$3,'G8-WB'!$A$6:$Z$500,9,FALSE)="","Not Test",VLOOKUP($A$3,'G8-WB'!$A$6:$Z$500,10,FALSE)),"NA") -> 2.337253707 | I44: =IFERROR(IF(VLOOKUP($A$3,'G8-WB'!$A$6:$Z$500,3,FALSE)="","Not Test",VLOOKUP($A$3,'G8-WB'!$A$6:$Z$500,15,FALSE)&"% ("&VLOOKUP($A$3,'G8-WB'!$A$6:$Z$500,13,FALSE)&")"),"NA") -> 11% (531) | J44: =IFERROR(IF(VLOOKUP($A$3,'G8-WB'!$A$6:$Z$500,17,FALSE)="","Not Test",VLOOKUP($A$3,'G8-WB'!$A$6:$Z$500,18,FALSE)),"NA") -> 1.981174129 | K44: =IFERROR(IF(VLOOKUP($A$3,'G8-WB'!$A$6:$Z$500,17,FALSE)="","Not Test",VLOOKUP($A$3,'G8-WB'!$A$6:$Z$500,23,FALSE)&"% ("&VLOOKUP($A$3,'G8-WB'!$A$6:$Z$500,21,FALSE)&")"),"NA") -> 7% (355) | P44: =IFERROR(IF(VLOOKUP($A$3,'G8-WB'!$A$6:$Z$500,9,FALSE)="","0",VLOOKUP($A$3,'G8-WB'!$A$6:$Z$500,9,FALSE)),"Not Test") -> 4923 | Q44: =IFERROR(IF(VLOOKUP($A$3,'G8-WB'!$A$6:$Z$500,17,FALSE)="","0",VLOOKUP($A$3,'G8-WB'!$A$6:$Z$500,17,FALSE)),"Not Test") -> 5025
A45: Hispanic | B45: =IFERROR(VLOOKUP(TEXT($A$3,"0000"),MEM_H!$A$2:$O$500,12,FALSE),"NA") -> 18640 | C45: =IF(OR(B45<10,B45="",B45="NA"),"NA",IF(VLOOKUP($A$3,'G8-WH'!$A$6:$Z$500,3,FALSE)>B45,"100% ("&VLOOKUP($A$3,'G8-WH'!$A$6:$Z$500,3,FALSE)&")",ROUND(VLOOKUP($A$3,'G8-WH'!$A$6:$Z$500,3,FALSE)/B45*100,0)&"%("&VLOOKUP($A$3,'G8-WH'!$A$6:$Z$500,3,FALSE)&")")) -> 77%(14302) | D45: =IFERROR((IF($C45="NA","NA",VLOOKUP($A$3,'G8-WH'!$A$6:$Z$500,4,FALSE))),"NA") -> 2.249098966 | E45: =IF($C45="NA","NA",ROUND(VLOOKUP($A$3,'G8-WH'!$A$6:$Z$500,6,FALSE),0)&"% ("&VLOOKUP($A$3,'G8-WH'!$A$6:$Z$500,5,FALSE)&")") -> 32% (4532) | F45: =IF($C45="NA","NA",ROUND(VLOOKUP($A$3,'G8-WH'!$A$6:$Z$500,8,FALSE),0)&"% ("&VLOOKUP($A$3,'G8-WH'!$A$6:$Z$500,7,FALSE)&")") -> 11% (1591) | H45: =IFERROR(IF(VLOOKUP($A$3,'G8-WH'!$A$6:$Z$500,9,FALSE)="","Not Test",VLOOKUP($A$3,'G8-WH'!$A$6:$Z$500,10,FALSE)),"NA") -> 2.420942244 | I45: =IFERROR(IF(VLOOKUP($A$3,'G8-WH'!$A$6:$Z$500,3,FALSE)="","Not Test",VLOOKUP($A$3,'G8-WH'!$A$6:$Z$500,15,FALSE)&"% ("&VLOOKUP($A$3,'G8-WH'!$A$6:$Z$500,13,FALSE)&")"),"NA") -> 14% (1795) | J45: =IFERROR(IF(VLOOKUP($A$3,'G8-WH'!$A$6:$Z$500,17,FALSE)="","Not Test",VLOOKUP($A$3,'G8-WH'!$A$6:$Z$500,18,FALSE)),"NA") -> 2.095567054 | K45: =IFERROR(IF(VLOOKUP($A$3,'G8-WH'!$A$6:$Z$500,17,FALSE)="","Not Test",VLOOKUP($A$3,'G8-WH'!$A$6:$Z$500,23,FALSE)&"% ("&VLOOKUP($A$3,'G8-WH'!$A$6:$Z$500,21,FALSE)&")"),"NA") -> 9% (1218) | P45: =IFERROR(IF(VLOOKUP($A$3,'G8-WH'!$A$6:$Z$500,9,FALSE)="","0",VLOOKUP($A$3,'G8-WH'!$A$6:$Z$500,9,FALSE)),"Not Test") -> 12778 | Q45: =IFERROR(IF(VLOOKUP($A$3,'G8-WH'!$A$6:$Z$500,17,FALSE)="","0",VLOOKUP($A$3,'G8-WH'!$A$6:$Z$500,17,FALSE)),"Not Test") -> 14302
A46: Asian | B46: =IFERROR(VLOOKUP(TEXT($A$3,"0000"),MEM_A!$A$2:$O$500,12,FALSE),"NA") -> 322 | C46: =IF(OR(B46<10,B46="",B46="NA"),"NA",IF(VLOOKUP($A$3,'G8-WA'!$A$6:$Z$500,3,FALSE)>B46,"100% ("&VLOOKUP($A$3,'G8-WA'!$A$6:$Z$500,3,FALSE)&")",ROUND(VLOOKUP($A$3,'G8-WA'!$A$6:$Z$500,3,FALSE)/B46*100,0)&"%("&VLOOKUP($A$3,'G8-WA'!$A$6:$Z$500,3,FALSE)&")")) -> 68%(220) | D46: =IFERROR((IF($C46="NA","NA",VLOOKUP($A$3,'G8-WA'!$A$6:$Z$500,4,FALSE))),"NA") -> 2.743532338 | E46: =IF($C46="NA","NA",ROUND(VLOOKUP($A$3,'G8-WA'!$A$6:$Z$500,6,FALSE),0)&"% ("&VLOOKUP($A$3,'G8-WA'!$A$6:$Z$500,5,FALSE)&")") -> 40% (87) | F46: =IF($C46="NA","NA",ROUND(VLOOKUP($A$3,'G8-WA'!$A$6:$Z$500,8,FALSE),0)&"% ("&VLOOKUP($A$3,'G8-WA'!$A$6:$Z$500,7,FALSE)&")") -> 20% (44) | H46: =IFERROR(IF(VLOOKUP($A$3,'G8-WA'!$A$6:$Z$500,9,FALSE)="","Not Test",VLOOKUP($A$3,'G8-WA'!$A$6:$Z$500,10,FALSE)),"NA") -> 2.897802198 | I46: =IFERROR(IF(VLOOKUP($A$3,'G8-WA'!$A$6:$Z$500,3,FALSE)="","Not Test",VLOOKUP($A$3,'G8-WA'!$A$6:$Z$500,15,FALSE)&"% ("&VLOOKUP($A$3,'G8-WA'!$A$6:$Z$500,13,FALSE)&")"),"NA") -> 24% (43) | J46: =IFERROR(IF(VLOOKUP($A$3,'G8-WA'!$A$6:$Z$500,17,FALSE)="","Not Test",VLOOKUP($A$3,'G8-WA'!$A$6:$Z$500,18,FALSE)),"NA") -> 2.615909091 | K46: =IFERROR(IF(VLOOKUP($A$3,'G8-WA'!$A$6:$Z$500,17,FALSE)="","Not Test",VLOOKUP($A$3,'G8-WA'!$A$6:$Z$500,23,FALSE)&"% ("&VLOOKUP($A$3,'G8-WA'!$A$6:$Z$500,21,FALSE)&")"),"NA") -> 17% (38) | P46: =IFERROR(IF(VLOOKUP($A$3,'G8-WA'!$A$6:$Z$500,9,FALSE)="","0",VLOOKUP($A$3,'G8-WA'!$A$6:$Z$500,9,FALSE)),"Not Test") -> 182 | Q46: =IFERROR(IF(VLOOKUP($A$3,'G8-WA'!$A$6:$Z$500,17,FALSE)="","0",VLOOKUP($A$3,'G8-WA'!$A$6:$Z$500,17,FALSE)),"Not Test") -> 220
A47: Am. Indian | B47: =IFERROR(VLOOKUP(TEXT($A$3,"0000"),MEM_I!$A$2:$O$500,12,FALSE),"NA") -> 22 | C47: =IF(OR(B47<10,B47="",B47="NA"),"NA",IF(VLOOKUP($A$3,'G8-WI'!$A$6:$Z$500,3,FALSE)>B47,"100% ("&VLOOKUP($A$3,'G8-WI'!$A$6:$Z$500,3,FALSE)&")",ROUND(VLOOKUP($A$3,'G8-WI'!$A$6:$Z$500,3,FALSE)/B47*100,0)&"%("&VLOOKUP($A$3,'G8-WI'!$A$6:$Z$500,3,FALSE)&")")) -> 73%(16) | D47: =IFERROR((IF($C47="NA","NA",VLOOKUP($A$3,'G8-WI'!$A$6:$Z$500,4,FALSE))),"NA") -> 2.279310345 | E47: =IF($C47="NA","NA",ROUND(VLOOKUP($A$3,'G8-WI'!$A$6:$Z$500,6,FALSE),0)&"% ("&VLOOKUP($A$3,'G8-WI'!$A$6:$Z$500,5,FALSE)&")") -> 41% (7) | F47: =IF($C47="NA","NA",ROUND(VLOOKUP($A$3,'G8-WI'!$A$6:$Z$500,8,FALSE),0)&"% ("&VLOOKUP($A$3,'G8-WI'!$A$6:$Z$500,7,FALSE)&")") -> 14% (2) | H47: =IFERROR(IF(VLOOKUP($A$3,'G8-WI'!$A$6:$Z$500,9,FALSE)="","Not Test",VLOOKUP($A$3,'G8-WI'!$A$6:$Z$500,10,FALSE)),"NA") -> 2.461538462 | I47: =IFERROR(IF(VLOOKUP($A$3,'G8-WI'!$A$6:$Z$500,3,FALSE)="","Not Test",VLOOKUP($A$3,'G8-WI'!$A$6:$Z$500,15,FALSE)&"% ("&VLOOKUP($A$3,'G8-WI'!$A$6:$Z$500,13,FALSE)&")"),"NA") -> 23% (3) | J47: =IFERROR(IF(VLOOKUP($A$3,'G8-WI'!$A$6:$Z$500,17,FALSE)="","Not Test",VLOOKUP($A$3,'G8-WI'!$A$6:$Z$500,18,FALSE)),"NA") -> 2.13125 | K47: =IFERROR(IF(VLOOKUP($A$3,'G8-WI'!$A$6:$Z$500,17,FALSE)="","Not Test",VLOOKUP($A$3,'G8-WI'!$A$6:$Z$500,23,FALSE)&"% ("&VLOOKUP($A$3,'G8-WI'!$A$6:$Z$500,21,FALSE)&")"),"NA") -> 6% (1) | P47: =IFERROR(IF(VLOOKUP($A$3,'G8-WI'!$A$6:$Z$500,9,FALSE)="","0",VLOOKUP($A$3,'G8-WI'!$A$6:$Z$500,9,FALSE)),"Not Test") -> 13 | Q47: =IFERROR(IF(VLOOKUP($A$3,'G8-WI'!$A$6:$Z$500,17,FALSE)="","0",VLOOKUP($A$3,'G8-WI'!$A$6:$Z$500,17,FALSE)),"Not Test") -> 16
A48: ED | B48: =IFERROR(VLOOKUP(TEXT($A$3,"0000"),MEM_ED!$A$2:$O$500,12,FALSE),"NA") -> 21178 | C48: =IF(OR(B48<10,B48="",B48="NA"),"NA",IF(VLOOKUP($A$3,'G8-WED'!$A$6:$Z$500,3,FALSE)>B48,"100% ("&VLOOKUP($A$3,'G8-WED'!$A$6:$Z$500,3,FALSE)&")",ROUND(VLOOKUP($A$3,'G8-WED'!$A$6:$Z$500,3,FALSE)/B48*100,0)&"%("&VLOOKUP($A$3,'G8-WED'!$A$6:$Z$500,3,FALSE)&")")) -> 81%(17161) | D48: =IFERROR((IF($C48="NA","NA",VLOOKUP($A$3,'G8-WED'!$A$6:$Z$500,4,FALSE))),"NA") -> 2.192604744 | E48: =IF($C48="NA","NA",ROUND(VLOOKUP($A$3,'G8-WED'!$A$6:$Z$500,6,FALSE),0)&"% ("&VLOOKUP($A$3,'G8-WED'!$A$6:$Z$500,5,FALSE)&")") -> 30% (5173) | F48: =IF($C48="NA","NA",ROUND(VLOOKUP($A$3,'G8-WED'!$A$6:$Z$500,8,FALSE),0)&"% ("&VLOOKUP($A$3,'G8-WED'!$A$6:$Z$500,7,FALSE)&")") -> 10% (1685) | H48: =IFERROR(IF(VLOOKUP($A$3,'G8-WED'!$A$6:$Z$500,9,FALSE)="","Not Test",VLOOKUP($A$3,'G8-WED'!$A$6:$Z$500,10,FALSE)),"NA") -> 2.368555064 | I48: =IFERROR(IF(VLOOKUP($A$3,'G8-WED'!$A$6:$Z$500,3,FALSE)="","Not Test",VLOOKUP($A$3,'G8-WED'!$A$6:$Z$500,15,FALSE)&"% ("&VLOOKUP($A$3,'G8-WED'!$A$6:$Z$500,13,FALSE)&")"),"NA") -> 12% (1976) | J48: =IFERROR(IF(VLOOKUP($A$3,'G8-WED'!$A$6:$Z$500,17,FALSE)="","Not Test",VLOOKUP($A$3,'G8-WED'!$A$6:$Z$500,18,FALSE)),"NA") -> 2.027912126 | K48: =IFERROR(IF(VLOOKUP($A$3,'G8-WED'!$A$6:$Z$500,17,FALSE)="","Not Test",VLOOKUP($A$3,'G8-WED'!$A$6:$Z$500,23,FALSE)&"% ("&VLOOKUP($A$3,'G8-WED'!$A$6:$Z$500,21,FALSE)&")"),"NA") -> 7% (1287) | P48: =IFERROR(IF(VLOOKUP($A$3,'G8-WED'!$A$6:$Z$500,9,FALSE)="","0",VLOOKUP($A$3,'G8-WED'!$A$6:$Z$500,9,FALSE)),"Not Test") -> 16063 | Q48: =IFERROR(IF(VLOOKUP($A$3,'G8-WED'!$A$6:$Z$500,17,FALSE)="","0",VLOOKUP($A$3,'G8-WED'!$A$6:$Z$500,17,FALSE)),"Not Test") -> 17161
A49: ELL | B49: =IFERROR(VLOOKUP(TEXT($A$3,"0000"),MEM_ELL!$A$2:$O$500,12,FALSE),"NA") -> 3980 | C49: =IF(OR(B49<10,B49="",B49="NA"),"NA",IF(VLOOKUP($A$3,'G8-WELL'!$A$6:$Z$500,3,FALSE)>B49,"100% ("&VLOOKUP($A$3,'G8-WELL'!$A$6:$Z$500,3,FALSE)&")",ROUND(VLOOKUP($A$3,'G8-WELL'!$A$6:$Z$500,3,FALSE)/B49*100,0)&"%("&VLOOKUP($A$3,'G8-WELL'!$A$6:$Z$500,3,FALSE)&")")) -> 79%(3163) | D49: =IFERROR((IF($C49="NA","NA",VLOOKUP($A$3,'G8-WELL'!$A$6:$Z$500,4,FALSE))),"NA") -> 1.503812997 | E49: =IF($C49="NA","NA",ROUND(VLOOKUP($A$3,'G8-WELL'!$A$6:$Z$500,6,FALSE),0)&"% ("&VLOOKUP($A$3,'G8-WELL'!$A$6:$Z$500,5,FALSE)&")") -> 10% (315) | F49: =IF($C49="NA","NA",ROUND(VLOOKUP($A$3,'G8-WELL'!$A$6:$Z$500,8,FALSE),0)&"% ("&VLOOKUP($A$3,'G8-WELL'!$A$6:$Z$500,7,FALSE)&")") -> 3% (107) | H49: =IFERROR(IF(VLOOKUP($A$3,'G8-WELL'!$A$6:$Z$500,9,FALSE)="","Not Test",VLOOKUP($A$3,'G8-WELL'!$A$6:$Z$500,10,FALSE)),"NA") -> 1.727431161 | I49: =IFERROR(IF(VLOOKUP($A$3,'G8-WELL'!$A$6:$Z$500,3,FALSE)="","Not Test",VLOOKUP($A$3,'G8-WELL'!$A$6:$Z$500,15,FALSE)&"% ("&VLOOKUP($A$3,'G8-WELL'!$A$6:$Z$500,13,FALSE)&")"),"NA") -> 4% (128) | J49: =IFERROR(IF(VLOOKUP($A$3,'G8-WELL'!$A$6:$Z$500,17,FALSE)="","Not Test",VLOOKUP($A$3,'G8-WELL'!$A$6:$Z$500,18,FALSE)),"NA") -> 1.300980082 | K49: =IFERROR(IF(VLOOKUP($A$3,'G8-WELL'!$A$6:$Z$500,17,FALSE)="","Not Test",VLOOKUP($A$3,'G8-WELL'!$A$6:$Z$500,23,FALSE)&"% ("&VLOOKUP($A$3,'G8-WELL'!$A$6:$Z$500,21,FALSE)&")"),"NA") -> 2% (76) | P49: =IFERROR(IF(VLOOKUP($A$3,'G8-WELL'!$A$6:$Z$500,9,FALSE)="","0",VLOOKUP($A$3,'G8-WELL'!$A$6:$Z$500,9,FALSE)),"Not Test") -> 2869 | Q49: =IFERROR(IF(VLOOKUP($A$3,'G8-WELL'!$A$6:$Z$500,17,FALSE)="","0",VLOOKUP($A$3,'G8-WELL'!$A$6:$Z$500,17,FALSE)),"Not Test") -> 3163
A50: SWD | B50: =IFERROR(VLOOKUP(TEXT($A$3,"0000"),MEM_SWD!$A$2:$O$500,12,FALSE),"NA") -> 2595 | C50: =IF(OR(B50<10,B50="",B50="NA"),"NA",IF(VLOOKUP($A$3,'G8-WSWD'!$A$6:$Z$500,3,FALSE)>B50,"100% ("&VLOOKUP($A$3,'G8-WSWD'!$A$6:$Z$500,3,FALSE)&")",ROUND(VLOOKUP($A$3,'G8-WSWD'!$A$6:$Z$500,3,FALSE)/B50*100,0)&"%("&VLOOKUP($A$3,'G8-WSWD'!$A$6:$Z$500,3,FALSE)&")")) -> 75%(1943) | D50: =IFERROR((IF($C50="NA","NA",VLOOKUP($A$3,'G8-WSWD'!$A$6:$Z$500,4,FALSE))),"NA") -> 1.724245605 | E50: =IF($C50="NA","NA",ROUND(VLOOKUP($A$3,'G8-WSWD'!$A$6:$Z$500,6,FALSE),0)&"% ("&VLOOKUP($A$3,'G8-WSWD'!$A$6:$Z$500,5,FALSE)&")") -> 17% (322) | F50: =IF($C50="NA","NA",ROUND(VLOOKUP($A$3,'G8-WSWD'!$A$6:$Z$500,8,FALSE),0)&"% ("&VLOOKUP($A$3,'G8-WSWD'!$A$6:$Z$500,7,FALSE)&")") -> 4% (81) | H50: =IFERROR(IF(VLOOKUP($A$3,'G8-WSWD'!$A$6:$Z$500,9,FALSE)="","Not Test",VLOOKUP($A$3,'G8-WSWD'!$A$6:$Z$500,10,FALSE)),"NA") -> 1.886027837 | I50: =IFERROR(IF(VLOOKUP($A$3,'G8-WSWD'!$A$6:$Z$500,3,FALSE)="","Not Test",VLOOKUP($A$3,'G8-WSWD'!$A$6:$Z$500,15,FALSE)&"% ("&VLOOKUP($A$3,'G8-WSWD'!$A$6:$Z$500,13,FALSE)&")"),"NA") -> 5% (97) | J50: =IFERROR(IF(VLOOKUP($A$3,'G8-WSWD'!$A$6:$Z$500,17,FALSE)="","Not Test",VLOOKUP($A$3,'G8-WSWD'!$A$6:$Z$500,18,FALSE)),"NA") -> 1.568708183 | K50: =IFERROR(IF(VLOOKUP($A$3,'G8-WSWD'!$A$6:$Z$500,17,FALSE)="","Not Test",VLOOKUP($A$3,'G8-WSWD'!$A$6:$Z$500,23,FALSE)&"% ("&VLOOKUP($A$3,'G8-WSWD'!$A$6:$Z$500,21,FALSE)&")"),"NA") -> 3% (61) | P50: =IFERROR(IF(VLOOKUP($A$3,'G8-WSWD'!$A$6:$Z$500,9,FALSE)="","0",VLOOKUP($A$3,'G8-WSWD'!$A$6:$Z$500,9,FALSE)),"Not Test") -> 1868 | Q50: =IFERROR(IF(VLOOKUP($A$3,'G8-WSWD'!$A$6:$Z$500,17,FALSE)="","0",VLOOKUP($A$3,'G8-WSWD'!$A$6:$Z$500,17,FALSE)),"Not Test") -> 1943
A51: Science - Grade 8
A52: Level of Proficiency at 70% or above | B52: Total # of Students | C52: % of Students Tested | D52: ='G6-8 Matrix'!C19&" ["&'G6-8 Matrix'!C20&"]" -> Overall [73] | F52: ='G6-8 Matrix'!D19&" ["&'G6-8 Matrix'!D20&"]" -> Nature of Science [12] | H52: ='G6-8 Matrix'!E19&" ["&'G6-8 Matrix'!E20&"]" -> Earth & Space Science [22] | J52: ='G6-8 Matrix'!F19&" ["&'G6-8 Matrix'!F20&"]" -> Physical Science [20] | L52: ='G6-8 Matrix'!G19&" ["&'G6-8 Matrix'!G20&"]" -> Life Science [19]
D53: Average Score | E53: % Proficient | F53: Average Score | G53: % Proficient | H53: Average Score | I53: % Proficient | J53: Average Score | K53: % Proficient | L53: Average Score | M53: % Proficient
A54: All students | B54: =IFERROR(VLOOKUP(TEXT($A$3,"0000"),Mem_All!$A$2:$O$500,12,FALSE),"NA")-IFERROR(VLOOKUP(TEXT($A$3,"0000"),'Bio Gr08'!$A$2:$C$500,3,FALSE),0) -> 25117 | C54: =IFERROR((IF(OR(B54<10,B54="",B54="NA"),"NA",((IF(VLOOKUP($A$3,'G8-SALL'!$A$6:$AG$500,3,FALSE)>=B54,"100% ("&VLOOKUP($A$3,'G8-SALL'!$A$6:$AG$500,3,FALSE)&")",(ROUND((VLOOKUP($A$3,'G8-SALL'!$A$6:$AG$500,3,FALSE)/B54*100),0))&"% ("&VLOOKUP($A$3,'G8-SALL'!$A$6:$AG$500,3,FALSE)&")"))))),"NA") -> 93% (23409) | D54: =IFERROR((IF($C54="NA","NA",VLOOKUP($A$3,'G8-SALL'!$A$14:$AG$500,4,FALSE))),"NA") -> 28.5 | E54: =IFERROR((IF($C54="NA","NA",ROUND(VLOOKUP($A$3,'G8-SALL'!$A$14:$AG$500,9,FALSE)*100,0)&"% ("&IF(VLOOKUP($A$3,'G8-SALL'!$A$14:$AG$500,7,FALSE)="",0,VLOOKUP($A$3,'G8-SALL'!$A$14:$AG$500,7,FALSE))&")")),"NA") -> 4% (1022) | F54: =IFERROR((IF($C54="NA","NA",VLOOKUP($A$3,'G8-SALL'!$A$14:$AG$500,10,FALSE))),"NA") -> 4.599999905 | G54: =IFERROR((IF($C54="NA","NA",ROUND(VLOOKUP($A$3,'G8-SALL'!$A$14:$AG$500,15,FALSE)*100,0)&"% ("&VLOOKUP($A$3,'G8-SALL'!$A$14:$AG$500,13,FALSE)&")")),"NA") -> 7% (1635) | H54: =IFERROR((IF($C54="NA","NA",VLOOKUP($A$3,'G8-SALL'!$A$14:$AG$500,16,FALSE))),"NA") -> 8.800000191 | I54: =IFERROR((IF($C54="NA","NA",ROUND(VLOOKUP($A$3,'G8-SALL'!$A$14:$AG$500,21,FALSE)*100,0)&"% ("&VLOOKUP($A$3,'G8-SALL'!$A$14:$AG$500,19,FALSE)&")")),"NA") -> 7% (1560) | J54: =IFERROR((IF($C54="NA","NA",VLOOKUP($A$3,'G8-SALL'!$A$14:$AG$500,22,FALSE))),"NA") -> 7.800000191 | K54: =IFERROR((IF($C54="NA","NA",ROUND(VLOOKUP($A$3,'G8-SALL'!$A$14:$AG$500,27,FALSE)*100,0)&"% ("&VLOOKUP($A$3,'G8-SALL'!$A$14:$AG$500,25,FALSE)&")")),"NA") -> 8% (1932) | L54: =IFERROR((IF($C54="NA","NA",VLOOKUP($A$3,'G8-SALL'!$A$14:$AG$500,28,FALSE))),"NA") -> 7.300000191 | M54: =IFERROR((IF($C54="NA","NA",ROUND(VLOOKUP($A$3,'G8-SALL'!$A$14:$AG$500,33,FALSE)*100,0)&"% ("&VLOOKUP($A$3,'G8-SALL'!$A$14:$AG$500,31,FALSE)&")")),"NA") -> 4% (870)

Sheet MDL-EOC Reports
A2: Click here to return to the school and sheet selection interface
A3: ='Select School'!B3 -> 9999
A4: =TEXT(A3,"0000")&"-"&VLOOKUP(A3,SchList!$A$2:$B$504,2,FALSE) -> 9999-District
A5: Algebra I | Q5: Algebra I
A6: Level of Proficiency at 70% or above | B6: Course Enrollment | C6: % and/or Number of Tested | D6: ='G9-10 Matrix'!C8&" ["&'G9-10 Matrix'!C9&"]" -> Overall [48] | F6: ='G9-10 Matrix'!D8&" ["&'G9-10 Matrix'!D9&"]" -> Functions, Linear Equations, and Inequalities [28] | H6: ='G9-10 Matrix'!E8&" ["&'G9-10 Matrix'!E9&"]" -> Polynomials [7] | J6: ='G9-10 Matrix'!F8&" ["&'G9-10 Matrix'!F9&"]" -> Rationals, Radicals, Quadratics, and Discrete Mathematics [13] | Q6: Number Tested
D7: Average Score | E7: % Proficient | F7: Average Score | G7: % Proficient | H7: Average Score | I7: % Proficient | J7: Average Score | K7: % Proficient
A8: All students | B8: =IFERROR(VLOOKUP(TEXT($A$3,"0000"),'Alg Enrollment'!$A$2:$Q$500,3,FALSE),0) -> 31972 | C8: =IFERROR((IF(OR(B8<10,B8="",B8="NA"),"NA",((IF(VLOOKUP($A$3,'ALG-ALL'!$A$6:$AM$500,3,FALSE)>=B8,"100% ("&VLOOKUP($A$3,'ALG-ALL'!$A$6:$AM$500,3,FALSE)&")",(ROUND((VLOOKUP($A$3,'ALG-ALL'!$A$6:$AM$500,3,FALSE)/B8*100),0))&"% ("&IF(VLOOKUP($A$3,'ALG-ALL'!$A$6:$AM$500,3,FALSE)="",0,VLOOKUP($A$3,'ALG-ALL'!$A$6:$AM$500,3,FALSE))&")"))))),"0% (0)") -> 94% (30007) | D8: =IFERROR((IF($C8="NA","NA",VLOOKUP($A$3,'ALG-ALL'!$A$6:$AM$500,4,FALSE))),"NA") -> 15.10072983 | E8: =IFERROR((IF($C8="NA","NA",ROUND(VLOOKUP($A$3,'ALG-ALL'!$A$6:$AM$500,6,FALSE),0)&"% ("&IF(VLOOKUP($A$3,'ALG-ALL'!$A$6:$AM$500,5,FALSE)="",0,VLOOKUP($A$3,'ALG-ALL'!$A$6:$AM$500,5,FALSE))&")")),"NA") -> 0% (61) | F8: =IFERROR((IF($C8="NA","NA",VLOOKUP($A$3,'ALG-ALL'!$A$6:$AM$500,7,FALSE))),"NA") -> 8.743359883 | G8: =IFERROR((IF($C8="NA","NA",ROUND(VLOOKUP($A$3,'ALG-ALL'!$A$6:$AM$500,9,FALSE),0)&"% ("&IF(VLOOKUP($A$3,'ALG-ALL'!$A$6:$AM$500,8,FALSE)="",0,VLOOKUP($A$3,'ALG-ALL'!$A$6:$AM$500,8,FALSE))&")")),"NA") -> 0% (115) | H8: =IFERROR((IF($C8="NA","NA",VLOOKUP($A$3,'ALG-ALL'!$A$6:$AM$500,10,FALSE))),"NA") -> 1.868290732 | I8: =IFERROR((IF($C8="NA","NA",ROUND(VLOOKUP($A$3,'ALG-ALL'!$A$6:$AM$500,12,FALSE),0)&"% ("&IF(VLOOKUP($A$3,'ALG-ALL'!$A$6:$AM$500,11,FALSE)="",0,VLOOKUP($A$3,'ALG-ALL'!$A$6:$AM$500,11,FALSE))&")")),"NA") -> 2% (688) | J8: =IFERROR((IF($C8="NA","NA",VLOOKUP($A$3,'ALG-ALL'!$A$6:$AM$500,13,FALSE))),"NA") -> 4.479321492 | K8: =IFERROR((IF($C8="NA","NA",ROUND(VLOOKUP($A$3,'ALG-ALL'!$A$6:$AM$500,15,FALSE),0)&"% ("&IF(VLOOKUP($A$3,'ALG-ALL'!$A$6:$AM$500,14,FALSE)="",0,VLOOKUP($A$3,'ALG-ALL'!$A$6:$AM$500,14,FALSE))&")")),"NA") -> 1% (387) | Q8: =IFERROR(VLOOKUP($A$3,'ALG-ALL'!$A$6:$AA$500,3,FALSE),"not tested") -> 30007
A9: FCAT Level 1 | B9: =IFERROR(VLOOKUP(TEXT($A$3,"0000"),'Alg Enrollment'!$A$2:$Q$500,4,FALSE),0) -> 5858 | C9: =IFERROR((IF(OR(B9<10,B9="",B9="NA"),"NA",((IF(VLOOKUP($A$3,'ALG-L1'!$A$6:$AM$500,3,FALSE)>=B9,"100% ("&VLOOKUP($A$3,'ALG-L1'!$A$6:$AM$500,3,FALSE)&")",(ROUND((VLOOKUP($A$3,'ALG-L1'!$A$6:$AM$500,3,FALSE)/B9*100),0))&"% ("&IF(VLOOKUP($A$3,'ALG-L1'!$A$6:$AM$500,3,FALSE)="",0,VLOOKUP($A$3,'ALG-L1'!$A$6:$AM$500,3,FALSE))&")"))))),"0% (0)") -> 100% (6353) | D9: =IFERROR((IF($C9="NA","NA",VLOOKUP($A$3,'ALG-L1'!$A$6:$AG$500,4,FALSE))),"NA") -> 12.16338738 | E9: =IFERROR((IF($C9="NA","NA",ROUND(VLOOKUP($A$3,'ALG-L1'!$A$6:$AG$500,6,FALSE),0)&"% ("&IF(VLOOKUP($A$3,'ALG-L1'!$A$6:$AG$500,5,FALSE)="",0,VLOOKUP($A$3,'ALG-L1'!$A$6:$AG$500,5,FALSE))&")")),"NA") -> 0% (0) | F9: =IFERROR((IF($C9="NA","NA",VLOOKUP($A$3,'ALG-L1'!$A$6:$AG$500,7,FALSE))),"NA") -> 6.962002204 | G9: =IFERROR((IF($C9="NA","NA",ROUND(VLOOKUP($A$3,'ALG-L1'!$A$6:$AG$500,9,FALSE),0)&"% ("&IF(VLOOKUP($A$3,'ALG-L1'!$A$6:$AG$500,8,FALSE)="",0,VLOOKUP($A$3,'ALG-L1'!$A$6:$AG$500,8,FALSE))&")")),"NA") -> 0% (1) | H9: =IFERROR((IF($C9="NA","NA",VLOOKUP($A$3,'ALG-L1'!$A$6:$AM$500,10,FALSE))),"NA") -> 1.793750984 | I9: =IFERROR((IF($C9="NA","NA",ROUND(VLOOKUP($A$3,'ALG-L1'!$A$6:$AM$500,12,FALSE),0)&"% ("&IF(VLOOKUP($A$3,'ALG-L1'!$A$6:$AM$500,11,FALSE)="",0,VLOOKUP($A$3,'ALG-L1'!$A$6:$AM$500,11,FALSE))&")")),"NA") -> 2% (104) | J9: =IFERROR((IF($C9="NA","NA",VLOOKUP($A$3,'ALG-L1'!$A$6:$AM$500,13,FALSE))),"NA") -> 3.421060916 | K9: =IFERROR((IF($C9="NA","NA",ROUND(VLOOKUP($A$3,'ALG-L1'!$A$6:$AM$500,15,FALSE),0)&"% ("&IF(VLOOKUP($A$3,'ALG-L1'!$A$6:$AM$500,14,FALSE)="",0,VLOOKUP($A$3,'ALG-L1'!$A$6:$AM$500,14,FALSE))&")")),"NA") -> 0% (5) | Q9: =IFERROR(VLOOKUP($A$3,'ALG-L1'!$A$6:$BX$500,3,FALSE),"not tested") -> 6353
A10: FCAT Level 2 | B10: =IFERROR(VLOOKUP(TEXT($A$3,"0000"),'Alg Enrollment'!$A$2:$Q$500,5,FALSE),0) -> 5036 | C10: =IFERROR((IF(OR(B10<10,B10="",B10="NA"),"NA",((IF(VLOOKUP($A$3,'ALG-L2'!$A$6:$AM$500,3,FALSE)>=B10,"100% ("&VLOOKUP($A$3,'ALG-L2'!$A$6:$AM$500,3,FALSE)&")",(ROUND((VLOOKUP($A$3,'ALG-L2'!$A$6:$AM$500,3,FALSE)/B10*100),0))&"% ("&IF(VLOOKUP($A$3,'ALG-L2'!$A$6:$AM$500,3,FALSE)="",0,VLOOKUP($A$3,'ALG-L2'!$A$6:$AM$500,3,FALSE))&")"))))),"0% (0)") -> 100% (5287) | D10: =IFERROR((IF($C10="NA","NA",VLOOKUP($A$3,'ALG-L2'!$A$6:$AG$500,4,FALSE))),"NA") -> 13.70143749 | E10: =IFERROR((IF($C10="NA","NA",ROUND(VLOOKUP($A$3,'ALG-L2'!$A$6:$AG$500,6,FALSE),0)&"% ("&IF(VLOOKUP($A$3,'ALG-L2'!$A$6:$AG$500,5,FALSE)="",0,VLOOKUP($A$3,'ALG-L2'!$A$6:$AG$500,5,FALSE))&")")),"NA") -> 0% (0) | F10: =IFERROR((IF($C10="NA","NA",VLOOKUP($A$3,'ALG-L2'!$A$6:$AG$500,7,FALSE))),"NA") -> 7.80429355 | G10: =IFERROR((IF($C10="NA","NA",ROUND(VLOOKUP($A$3,'ALG-L2'!$A$6:$AG$500,9,FALSE),0)&"% ("&IF(VLOOKUP($A$3,'ALG-L2'!$A$6:$AG$500,8,FALSE)="",0,VLOOKUP($A$3,'ALG-L2'!$A$6:$AG$500,8,FALSE))&")")),"NA") -> 0% (0) | H10: =IFERROR((IF($C10="NA","NA",VLOOKUP($A$3,'ALG-L2'!$A$6:$AM$500,10,FALSE))),"NA") -> 1.896425194 | I10: =IFERROR((IF($C10="NA","NA",ROUND(VLOOKUP($A$3,'ALG-L2'!$A$6:$AM$500,12,FALSE),0)&"% ("&IF(VLOOKUP($A$3,'ALG-L2'!$A$6:$AM$500,11,FALSE)="",0,VLOOKUP($A$3,'ALG-L2'!$A$6:$AM$500,11,FALSE))&")")),"NA") -> 2% (96) | J10: =IFERROR((IF($C10="NA","NA",VLOOKUP($A$3,'ALG-L2'!$A$6:$AM$500,13,FALSE))),"NA") -> 4.007717042 | K10: =IFERROR((IF($C10="NA","NA",ROUND(VLOOKUP($A$3,'ALG-L2'!$A$6:$AM$500,15,FALSE),0)&"% ("&IF(VLOOKUP($A$3,'ALG-L2'!$A$6:$AM$500,14,FALSE)="",0,VLOOKUP($A$3,'ALG-L2'!$A$6:$AM$500,14,FALSE))&")")),"NA") -> 0% (20) | Q10: =IFERROR(VLOOKUP($A$3,'ALG-L2'!$A$6:$BX$500,3,FALSE),"not tested") -> 5287
A11: FCAT Level 3 | B11: =IFERROR(VLOOKUP(TEXT($A$3,"0000"),'Alg Enrollment'!$A$2:$Q$500,6,FALSE),0) -> 8943 | C11: =IFERROR((IF(OR(B11<10,B11="",B11="NA"),"NA",((IF(VLOOKUP($A$3,'ALG-L3'!$A$6:$AM$500,3,FALSE)>=B11,"100% ("&VLOOKUP($A$3,'ALG-L3'!$A$6:$AM$500,3,FALSE)&")",(ROUND((VLOOKUP($A$3,'ALG-L3'!$A$6:$AM$500,3,FALSE)/B11*100),0))&"% ("&IF(VLOOKUP($A$3,'ALG-L3'!$A$6:$AM$500,3,FALSE)="",0,VLOOKUP($A$3,'ALG-L3'!$A$6:$AM$500,3,FALSE))&")"))))),"0% (0)") -> 98% (8783) | D11: =IFERROR((IF($C11="NA","NA",VLOOKUP($A$3,'ALG-L3'!$A$6:$AG$500,4,FALSE))),"NA") -> 15.24258226 | E11: =IFERROR((IF($C11="NA","NA",ROUND(VLOOKUP($A$3,'ALG-L3'!$A$6:$AG$500,6,FALSE),0)&"% ("&IF(VLOOKUP($A$3,'ALG-L3'!$A$6:$AG$500,5,FALSE)="",0,VLOOKUP($A$3,'ALG-L3'!$A$6:$AG$500,5,FALSE))&")")),"NA") -> 0% (3) | F11: =IFERROR((IF($C11="NA","NA",VLOOKUP($A$3,'ALG-L3'!$A$6:$AG$500,7,FALSE))),"NA") -> 8.749812137 | G11: =IFERROR((IF($C11="NA","NA",ROUND(VLOOKUP($A$3,'ALG-L3'!$A$6:$AG$500,9,FALSE),0)&"% ("&IF(VLOOKUP($A$3,'ALG-L3'!$A$6:$AG$500,8,FALSE)="",0,VLOOKUP($A$3,'ALG-L3'!$A$6:$AG$500,8,FALSE))&")")),"NA") -> 0% (9) | H11: =IFERROR((IF($C11="NA","NA",VLOOKUP($A$3,'ALG-L3'!$A$6:$AM$500,10,FALSE))),"NA") -> 1.859831493 | I11: =IFERROR((IF($C11="NA","NA",ROUND(VLOOKUP($A$3,'ALG-L3'!$A$6:$AM$500,12,FALSE),0)&"% ("&IF(VLOOKUP($A$3,'ALG-L3'!$A$6:$AM$500,11,FALSE)="",0,VLOOKUP($A$3,'ALG-L3'!$A$6:$AM$500,11,FALSE))&")")),"NA") -> 2% (172) | J11: =IFERROR((IF($C11="NA","NA",VLOOKUP($A$3,'ALG-L3'!$A$6:$AM$500,13,FALSE))),"NA") -> 4.61920756 | K11: =IFERROR((IF($C11="NA","NA",ROUND(VLOOKUP($A$3,'ALG-L3'!$A$6:$AM$500,15,FALSE),0)&"% ("&IF(VLOOKUP($A$3,'ALG-L3'!$A$6:$AM$500,14,FALSE)="",0,VLOOKUP($A$3,'ALG-L3'!$A$6:$AM$500,14,FALSE))&")")),"NA") -> 1% (84) | Q11: =IFERROR(VLOOKUP($A$3,'ALG-L3'!$A$6:$BX$500,3,FALSE),"not tested") -> 8783
A12: FCAT Level 4 | B12: =IFERROR(VLOOKUP(TEXT($A$3,"0000"),'Alg Enrollment'!$A$2:$Q$500,7,FALSE),0) -> 5628 | C12: =IFERROR((IF(OR(B12<10,B12="",B12="NA"),"NA",((IF(VLOOKUP($A$3,'ALG-L4'!$A$6:$AM$500,3,FALSE)>=B12,"100% ("&VLOOKUP($A$3,'ALG-L4'!$A$6:$AM$500,3,FALSE)&")",(ROUND((VLOOKUP($A$3,'ALG-L4'!$A$6:$AM$500,3,FALSE)/B12*100),0))&"% ("&IF(VLOOKUP($A$3,'ALG-L4'!$A$6:$AM$500,3,FALSE)="",0,VLOOKUP($A$3,'ALG-L4'!$A$6:$AM$500,3,FALSE))&")"))))),"0% (0)") -> 96% (5430) | D12: =IFERROR((IF($C12="NA","NA",VLOOKUP($A$3,'ALG-L4'!$A$6:$AG$500,4,FALSE))),"NA") -> 17.2647698 | E12: =IFERROR((IF($C12="NA","NA",ROUND(VLOOKUP($A$3,'ALG-L4'!$A$6:$AG$500,6,FALSE),0)&"% ("&IF(VLOOKUP($A$3,'ALG-L4'!$A$6:$AG$500,5,FALSE)="",0,VLOOKUP($A$3,'ALG-L4'!$A$6:$AG$500,5,FALSE))&")")),"NA") -> 0% (12) | F12: =IFERROR((IF($C12="NA","NA",VLOOKUP($A$3,'ALG-L4'!$A$6:$AG$500,7,FALSE))),"NA") -> 10.13383057 | G12: =IFERROR((IF($C12="NA","NA",ROUND(VLOOKUP($A$3,'ALG-L4'!$A$6:$AG$500,9,FALSE),0)&"% ("&IF(VLOOKUP($A$3,'ALG-L4'!$A$6:$AG$500,8,FALSE)="",0,VLOOKUP($A$3,'ALG-L4'!$A$6:$AG$500,8,FALSE))&")")),"NA") -> 0% (20) | H12: =IFERROR((IF($C12="NA","NA",VLOOKUP($A$3,'ALG-L4'!$A$6:$AM$500,10,FALSE))),"NA") -> 1.864677716 | I12: =IFERROR((IF($C12="NA","NA",ROUND(VLOOKUP($A$3,'ALG-L4'!$A$6:$AM$500,12,FALSE),0)&"% ("&IF(VLOOKUP($A$3,'ALG-L4'!$A$6:$AM$500,11,FALSE)="",0,VLOOKUP($A$3,'ALG-L4'!$A$6:$AM$500,11,FALSE))&")")),"NA") -> 3% (143) | J12: =IFERROR((IF($C12="NA","NA",VLOOKUP($A$3,'ALG-L4'!$A$6:$AM$500,13,FALSE))),"NA") -> 5.258471455 | K12: =IFERROR((IF($C12="NA","NA",ROUND(VLOOKUP($A$3,'ALG-L4'!$A$6:$AM$500,15,FALSE),0)&"% ("&IF(VLOOKUP($A$3,'ALG-L4'!$A$6:$AM$500,14,FALSE)="",0,VLOOKUP($A$3,'ALG-L4'!$A$6:$AM$500,14,FALSE))&")")),"NA") -> 2% (108) | Q12: =IFERROR(VLOOKUP($A$3,'ALG-L4'!$A$6:$BX$500,3,FALSE),"not tested") -> 5430
A13: FCAT Level 5 | B13: =IFERROR(VLOOKUP(TEXT($A$3,"0000"),'Alg Enrollment'!$A$2:$Q$500,8,FALSE),0) -> 2984 | C13: =IFERROR((IF(OR(B13<10,B13="",B13="NA"),"NA",((IF(VLOOKUP($A$3,'ALG-L5'!$A$6:$AM$500,3,FALSE)>=B13,"100% ("&VLOOKUP($A$3,'ALG-L5'!$A$6:$AM$500,3,FALSE)&")",(ROUND((VLOOKUP($A$3,'ALG-L5'!$A$6:$AM$500,3,FALSE)/B13*100),0))&"% ("&IF(VLOOKUP($A$3,'ALG-L5'!$A$6:$AM$500,3,FALSE)="",0,VLOOKUP($A$3,'ALG-L5'!$A$6:$AM$500,3,FALSE))&")"))))),"0% (0)") -> 97% (2909) | D13: =IFERROR((IF($C13="NA","NA",VLOOKUP($A$3,'ALG-L5'!$A$6:$AG$500,4,FALSE))),"NA") -> 20.3961155 | E13: =IFERROR((IF($C13="NA","NA",ROUND(VLOOKUP($A$3,'ALG-L5'!$A$6:$AG$500,6,FALSE),0)&"% ("&IF(VLOOKUP($A$3,'ALG-L5'!$A$6:$AG$500,5,FALSE)="",0,VLOOKUP($A$3,'ALG-L5'!$A$6:$AG$500,5,FALSE))&")")),"NA") -> 2% (45) | F13: =IFERROR((IF($C13="NA","NA",VLOOKUP($A$3,'ALG-L5'!$A$6:$AG$500,7,FALSE))),"NA") -> 12.21075971 | G13: =IFERROR((IF($C13="NA","NA",ROUND(VLOOKUP($A$3,'ALG-L5'!$A$6:$AG$500,9,FALSE),0)&"% ("&IF(VLOOKUP($A$3,'ALG-L5'!$A$6:$AG$500,8,FALSE)="",0,VLOOKUP($A$3,'ALG-L5'!$A$6:$AG$500,8,FALSE))&")")),"NA") -> 3% (83) | H13: =IFERROR((IF($C13="NA","NA",VLOOKUP($A$3,'ALG-L5'!$A$6:$AM$500,10,FALSE))),"NA") -> 2.017738054 | I13: =IFERROR((IF($C13="NA","NA",ROUND(VLOOKUP($A$3,'ALG-L5'!$A$6:$AM$500,12,FALSE),0)&"% ("&IF(VLOOKUP($A$3,'ALG-L5'!$A$6:$AM$500,11,FALSE)="",0,VLOOKUP($A$3,'ALG-L5'!$A$6:$AM$500,11,FALSE))&")")),"NA") -> 5% (133) | J13: =IFERROR((IF($C13="NA","NA",VLOOKUP($A$3,'ALG-L5'!$A$6:$AM$500,13,FALSE))),"NA") -> 6.172224132 | K13: =IFERROR((IF($C13="NA","NA",ROUND(VLOOKUP($A$3,'ALG-L5'!$A$6:$AM$500,15,FALSE),0)&"% ("&IF(VLOOKUP($A$3,'ALG-L5'!$A$6:$AM$500,14,FALSE)="",0,VLOOKUP($A$3,'ALG-L5'!$A$6:$AM$500,14,FALSE))&")")),"NA") -> 6% (161) | Q13: =IFERROR(VLOOKUP($A$3,'ALG-L5'!$A$6:$BX$500,3,FALSE),"not tested") -> 2909
A14: White | B14: =IFERROR(VLOOKUP(TEXT($A$3,"0000"),'Alg Enrollment'!$A$2:$Q$500,10,FALSE),0) -> 2455 | C14: =IFERROR((IF(OR(B14<10,B14="",B14="NA"),"NA",((IF(VLOOKUP($A$3,'ALG-W'!$A$6:$AG$500,3,FALSE)>=B14,"100% ("&VLOOKUP($A$3,'ALG-W'!$A$6:$AG$500,3,FALSE)&")",(ROUND((VLOOKUP($A$3,'ALG-W'!$A$6:$AG$500,3,FALSE)/B14*100),0))&"% ("&IF(VLOOKUP($A$3,'ALG-W'!$A$6:$AG$500,3,FALSE)="",0,VLOOKUP($A$3,'ALG-W'!$A$6:$AG$500,3,FALSE))&")"))))),"0% (0)") -> 93% (2274) | D14: =IFERROR((IF($C14="NA","NA",VLOOKUP($A$3,'ALG-W'!$A$6:$AG$500,4,FALSE))),"NA") -> 16.60725594 | E14: =IFERROR((IF($C14="NA","NA",ROUND(VLOOKUP($A$3,'ALG-W'!$A$6:$AG$500,6,FALSE),0)&"% ("&IF(VLOOKUP($A$3,'ALG-W'!$A$6:$AG$500,5,FALSE)="",0,VLOOKUP($A$3,'ALG-W'!$A$6:$AG$500,5,FALSE))&")")),"NA") -> 0% (8) | F14: =IFERROR((IF($C14="NA","NA",VLOOKUP($A$3,'ALG-W'!$A$6:$AG$500,7,FALSE))),"NA") -> 9.804881266 | G14: =IFERROR((IF($C14="NA","NA",ROUND(VLOOKUP($A$3,'ALG-W'!$A$6:$AG$500,9,FALSE),0)&"% ("&IF(VLOOKUP($A$3,'ALG-W'!$A$6:$AG$500,8,FALSE)="",0,VLOOKUP($A$3,'ALG-W'!$A$6:$AG$500,8,FALSE))&")")),"NA") -> 1% (19) | H14: =IFERROR((IF($C14="NA","NA",VLOOKUP($A$3,'ALG-W'!$A$6:$AM$500,10,FALSE))),"NA") -> 1.858003518 | I14: =IFERROR((IF($C14="NA","NA",ROUND(VLOOKUP($A$3,'ALG-W'!$A$6:$AM$500,12,FALSE),0)&"% ("&IF(VLOOKUP($A$3,'ALG-W'!$A$6:$AM$500,11,FALSE)="",0,VLOOKUP($A$3,'ALG-W'!$A$6:$AM$500,11,FALSE))&")")),"NA") -> 3% (59) | J14: =IFERROR((IF($C14="NA","NA",VLOOKUP($A$3,'ALG-W'!$A$6:$AM$500,13,FALSE))),"NA") -> 4.952902375 | K14: =IFERROR((IF($C14="NA","NA",ROUND(VLOOKUP($A$3,'ALG-W'!$A$6:$AM$500,15,FALSE),0)&"% ("&IF(VLOOKUP($A$3,'ALG-W'!$A$6:$AM$500,14,FALSE)="",0,VLOOKUP($A$3,'ALG-W'!$A$6:$AM$500,14,FALSE))&")")),"NA") -> 2% (52) | Q14: =IFERROR(VLOOKUP($A$3,'ALG-W'!$A$6:$BX$500,3,FALSE),"not tested") -> 2274
A15: Black | B15: =IFERROR(VLOOKUP(TEXT($A$3,"0000"),'Alg Enrollment'!$A$2:$Q$500,11,FALSE),0) -> 7247 | C15: =IFERROR((IF(OR(B15<10,B15="",B15="NA"),"NA",((IF(VLOOKUP($A$3,'ALG-B'!$A$6:$AG$500,3,FALSE)>=B15,"100% ("&VLOOKUP($A$3,'ALG-B'!$A$6:$AG$500,3,FALSE)&")",(ROUND((VLOOKUP($A$3,'ALG-B'!$A$6:$AG$500,3,FALSE)/B15*100),0))&"% ("&IF(VLOOKUP($A$3,'ALG-B'!$A$6:$AG$500,3,FALSE)="",0,VLOOKUP($A$3,'ALG-B'!$A$6:$AG$500,3,FALSE))&")"))))),"0% (0)") -> 92% (6634) | D15: =IFERROR((IF($C15="NA","NA",VLOOKUP($A$3,'ALG-B'!$A$6:$AG$500,4,FALSE))),"NA") -> 14.39255351 | E15: =IFERROR((IF($C15="NA","NA",ROUND(VLOOKUP($A$3,'ALG-B'!$A$6:$AG$500,6,FALSE),0)&"% ("&IF(VLOOKUP($A$3,'ALG-B'!$A$6:$AG$500,5,FALSE)="",0,VLOOKUP($A$3,'ALG-B'!$A$6:$AG$500,5,FALSE))&")")),"NA") -> 0% (8) | F15: =IFERROR((IF($C15="NA","NA",VLOOKUP($A$3,'ALG-B'!$A$6:$AG$500,7,FALSE))),"NA") -> 8.178233343 | G15: =IFERROR((IF($C15="NA","NA",ROUND(VLOOKUP($A$3,'ALG-B'!$A$6:$AG$500,9,FALSE),0)&"% ("&IF(VLOOKUP($A$3,'ALG-B'!$A$6:$AG$500,8,FALSE)="",0,VLOOKUP($A$3,'ALG-B'!$A$6:$AG$500,8,FALSE))&")")),"NA") -> 0% (10) | H15: =IFERROR((IF($C15="NA","NA",VLOOKUP($A$3,'ALG-B'!$A$6:$AM$500,10,FALSE))),"NA") -> 1.957536931 | I15: =IFERROR((IF($C15="NA","NA",ROUND(VLOOKUP($A$3,'ALG-B'!$A$6:$AM$500,12,FALSE),0)&"% ("&IF(VLOOKUP($A$3,'ALG-B'!$A$6:$AM$500,11,FALSE)="",0,VLOOKUP($A$3,'ALG-B'!$A$6:$AM$500,11,FALSE))&")")),"NA") -> 3% (169) | J15: =IFERROR((IF($C15="NA","NA",VLOOKUP($A$3,'ALG-B'!$A$6:$AM$500,13,FALSE))),"NA") -> 4.254793488 | K15: =IFERROR((IF($C15="NA","NA",ROUND(VLOOKUP($A$3,'ALG-B'!$A$6:$AM$500,15,FALSE),0)&"% ("&IF(VLOOKUP($A$3,'ALG-B'!$A$6:$AM$500,14,FALSE)="",0,VLOOKUP($A$3,'ALG-B'!$A$6:$AM$500,14,FALSE))&")")),"NA") -> 1% (59) | Q15: =IFERROR(VLOOKUP($A$3,'ALG-B'!$A$6:$BX$500,3,FALSE),"not tested") -> 6634
A16: Hispanic | B16: =IFERROR(VLOOKUP(TEXT($A$3,"0000"),'Alg Enrollment'!$A$2:$Q$500,12,FALSE),0) -> 21823 | C16: =IFERROR((IF(OR(B16<10,B16="",B16="NA"),"NA",((IF(VLOOKUP($A$3,'ALG-H'!$A$6:$AG$500,3,FALSE)>=B16,"100% ("&VLOOKUP($A$3,'ALG-H'!$A$6:$AG$500,3,FALSE)&")",(ROUND((VLOOKUP($A$3,'ALG-H'!$A$6:$AG$500,3,FALSE)/B16*100),0))&"% ("&IF(VLOOKUP($A$3,'ALG-H'!$A$6:$AG$500,3,FALSE)="",0,VLOOKUP($A$3,'ALG-H'!$A$6:$AG$500,3,FALSE))&")"))))),"0% (0)") -> 95% (20688) | D16: =IFERROR((IF($C16="NA","NA",VLOOKUP($A$3,'ALG-H'!$A$6:$AG$500,4,FALSE))),"NA") -> 15.10082657 | E16: =IFERROR((IF($C16="NA","NA",ROUND(VLOOKUP($A$3,'ALG-H'!$A$6:$AG$500,6,FALSE),0)&"% ("&IF(VLOOKUP($A$3,'ALG-H'!$A$6:$AG$500,5,FALSE)="",0,VLOOKUP($A$3,'ALG-H'!$A$6:$AG$500,5,FALSE))&")")),"NA") -> 0% (37) | F16: =IFERROR((IF($C16="NA","NA",VLOOKUP($A$3,'ALG-H'!$A$6:$AG$500,7,FALSE))),"NA") -> 8.772152939 | G16: =IFERROR((IF($C16="NA","NA",ROUND(VLOOKUP($A$3,'ALG-H'!$A$6:$AG$500,9,FALSE),0)&"% ("&IF(VLOOKUP($A$3,'ALG-H'!$A$6:$AG$500,8,FALSE)="",0,VLOOKUP($A$3,'ALG-H'!$A$6:$AG$500,8,FALSE))&")")),"NA") -> 0% (77) | H16: =IFERROR((IF($C16="NA","NA",VLOOKUP($A$3,'ALG-H'!$A$6:$AM$500,10,FALSE))),"NA") -> 1.837263148 | I16: =IFERROR((IF($C16="NA","NA",ROUND(VLOOKUP($A$3,'ALG-H'!$A$6:$AM$500,12,FALSE),0)&"% ("&IF(VLOOKUP($A$3,'ALG-H'!$A$6:$AM$500,11,FALSE)="",0,VLOOKUP($A$3,'ALG-H'!$A$6:$AM$500,11,FALSE))&")")),"NA") -> 2% (440) | J16: =IFERROR((IF($C16="NA","NA",VLOOKUP($A$3,'ALG-H'!$A$6:$AM$500,13,FALSE))),"NA") -> 4.481859049 | K16: =IFERROR((IF($C16="NA","NA",ROUND(VLOOKUP($A$3,'ALG-H'!$A$6:$AM$500,15,FALSE),0)&"% ("&IF(VLOOKUP($A$3,'ALG-H'!$A$6:$AM$500,14,FALSE)="",0,VLOOKUP($A$3,'ALG-H'!$A$6:$AM$500,14,FALSE))&")")),"NA") -> 1% (260) | Q16: =IFERROR(VLOOKUP($A$3,'ALG-H'!$A$6:$BX$500,3,FALSE),"not tested") -> 20688
A17: Asian | B17: =IFERROR(VLOOKUP(TEXT($A$3,"0000"),'Alg Enrollment'!$A$2:$Q$500,13,FALSE),0) -> 329 | C17: =IFERROR((IF(OR(B17<10,B17="",B17="NA"),"NA",((IF(VLOOKUP($A$3,'ALG-A'!$A$6:$AG$500,3,FALSE)>=B17,"100% ("&VLOOKUP($A$3,'ALG-A'!$A$6:$AG$500,3,FALSE)&")",(ROUND((VLOOKUP($A$3,'ALG-A'!$A$6:$AG$500,3,FALSE)/B17*100),0))&"% ("&IF(VLOOKUP($A$3,'ALG-A'!$A$6:$AG$500,3,FALSE)="",0,VLOOKUP($A$3,'ALG-A'!$A$6:$AG$500,3,FALSE))&")"))))),"0% (0)") -> 91% (298) | D17: =IFERROR((IF($C17="NA","NA",VLOOKUP($A$3,'ALG-A'!$A$6:$AG$500,4,FALSE))),"NA") -> 18.64161074 | E17: =IFERROR((IF($C17="NA","NA",ROUND(VLOOKUP($A$3,'ALG-A'!$A$6:$AG$500,6,FALSE),0)&"% ("&IF(VLOOKUP($A$3,'ALG-A'!$A$6:$AG$500,5,FALSE)="",0,VLOOKUP($A$3,'ALG-A'!$A$6:$AG$500,5,FALSE))&")")),"NA") -> 2% (7) | F17: =IFERROR((IF($C17="NA","NA",VLOOKUP($A$3,'ALG-A'!$A$6:$AG$500,7,FALSE))),"NA") -> 10.91946309 | G17: =IFERROR((IF($C17="NA","NA",ROUND(VLOOKUP($A$3,'ALG-A'!$A$6:$AG$500,9,FALSE),0)&"% ("&IF(VLOOKUP($A$3,'ALG-A'!$A$6:$AG$500,8,FALSE)="",0,VLOOKUP($A$3,'ALG-A'!$A$6:$AG$500,8,FALSE))&")")),"NA") -> 3% (8) | H17: =IFERROR((IF($C17="NA","NA",VLOOKUP($A$3,'ALG-A'!$A$6:$AM$500,10,FALSE))),"NA") -> 2.050671141 | I17: =IFERROR((IF($C17="NA","NA",ROUND(VLOOKUP($A$3,'ALG-A'!$A$6:$AM$500,12,FALSE),0)&"% ("&IF(VLOOKUP($A$3,'ALG-A'!$A$6:$AM$500,11,FALSE)="",0,VLOOKUP($A$3,'ALG-A'!$A$6:$AM$500,11,FALSE))&")")),"NA") -> 6% (17) | J17: =IFERROR((IF($C17="NA","NA",VLOOKUP($A$3,'ALG-A'!$A$6:$AM$500,13,FALSE))),"NA") -> 5.668456376 | K17: =IFERROR((IF($C17="NA","NA",ROUND(VLOOKUP($A$3,'ALG-A'!$A$6:$AM$500,15,FALSE),0)&"% ("&IF(VLOOKUP($A$3,'ALG-A'!$A$6:$AM$500,14,FALSE)="",0,VLOOKUP($A$3,'ALG-A'!$A$6:$AM$500,14,FALSE))&")")),"NA") -> 4% (13) | Q17: =IFERROR(VLOOKUP($A$3,'ALG-A'!$A$6:$BX$500,3,FALSE),"not tested") -> 298
A18: Am. Indian | B18: =IFERROR(VLOOKUP(TEXT($A$3,"0000"),'Alg Enrollment'!$A$2:$Q$500,14,FALSE),0) -> 22 | C18: =IFERROR((IF(OR(B18<10,B18="",B18="NA"),"NA",((IF(VLOOKUP($A$3,'ALG-I'!$A$6:$AG$500,3,FALSE)>=B18,"100% ("&VLOOKUP($A$3,'ALG-I'!$A$6:$AG$500,3,FALSE)&")",(ROUND((VLOOKUP($A$3,'ALG-I'!$A$6:$AG$500,3,FALSE)/B18*100),0))&"% ("&IF(VLOOKUP($A$3,'ALG-I'!$A$6:$AG$500,3,FALSE)="",0,VLOOKUP($A$3,'ALG-I'!$A$6:$AG$500,3,FALSE))&")"))))),"0% (0)") -> 91% (20) | D18: =IFERROR((IF($C18="NA","NA",VLOOKUP($A$3,'ALG-I'!$A$6:$AG$500,4,FALSE))),"NA") -> 16.2 | E18: =IFERROR((IF($C18="NA","NA",ROUND(VLOOKUP($A$3,'ALG-I'!$A$6:$AG$500,6,FALSE),0)&"% ("&IF(VLOOKUP($A$3,'ALG-I'!$A$6:$AG$500,5,FALSE)="",0,VLOOKUP($A$3,'ALG-I'!$A$6:$AG$500,5,FALSE))&")")),"NA") -> 0% (0) | F18: =IFERROR((IF($C18="NA","NA",VLOOKUP($A$3,'ALG-I'!$A$6:$AG$500,7,FALSE))),"NA") -> 9.85 | G18: =IFERROR((IF($C18="NA","NA",ROUND(VLOOKUP($A$3,'ALG-I'!$A$6:$AG$500,9,FALSE),0)&"% ("&IF(VLOOKUP($A$3,'ALG-I'!$A$6:$AG$500,8,FALSE)="",0,VLOOKUP($A$3,'ALG-I'!$A$6:$AG$500,8,FALSE))&")")),"NA") -> 0% (0) | H18: =IFERROR((IF($C18="NA","NA",VLOOKUP($A$3,'ALG-I'!$A$6:$AM$500,10,FALSE))),"NA") -> 1.85 | I18: =IFERROR((IF($C18="NA","NA",ROUND(VLOOKUP($A$3,'ALG-I'!$A$6:$AM$500,12,FALSE),0)&"% ("&IF(VLOOKUP($A$3,'ALG-I'!$A$6:$AM$500,11,FALSE)="",0,VLOOKUP($A$3,'ALG-I'!$A$6:$AM$500,11,FALSE))&")")),"NA") -> 0% (0) | J18: =IFERROR((IF($C18="NA","NA",VLOOKUP($A$3,'ALG-I'!$A$6:$AM$500,13,FALSE))),"NA") -> 4.5 | K18: =IFERROR((IF($C18="NA","NA",ROUND(VLOOKUP($A$3,'ALG-I'!$A$6:$AM$500,15,FALSE),0)&"% ("&IF(VLOOKUP($A$3,'ALG-I'!$A$6:$AM$500,14,FALSE)="",0,VLOOKUP($A$3,'ALG-I'!$A$6:$AM$500,14,FALSE))&")")),"NA") -> 5% (1) | Q18: =IFERROR(VLOOKUP($A$3,'ALG-I'!$A$6:$BX$500,3,FALSE),"not tested") -> 20
A19: ED | B19: =IFERROR(VLOOKUP(TEXT($A$3,"0000"),'Alg Enrollment'!$A$2:$Q$500,15,FALSE),0) -> 24679 | C19: =IFERROR((IF(OR(B19<10,B19="",B19="NA"),"NA",((IF(VLOOKUP($A$3,'ALG-ED'!$A$6:$AG$500,3,FALSE)>=B19,"100% ("&VLOOKUP($A$3,'ALG-ED'!$A$6:$AG$500,3,FALSE)&")",(ROUND((VLOOKUP($A$3,'ALG-ED'!$A$6:$AG$500,3,FALSE)/B19*100),0))&"% ("&IF(VLOOKUP($A$3,'ALG-ED'!$A$6:$AG$500,3,FALSE)="",0,VLOOKUP($A$3,'ALG-ED'!$A$6:$AG$500,3,FALSE))&")"))))),"0% (0)") -> 96% (23592) | D19: =IFERROR((IF($C19="NA","NA",VLOOKUP($A$3,'ALG-ED'!$A$6:$AG$500,4,FALSE))),"NA") -> 14.6745846 | E19: =IFERROR((IF($C19="NA","NA",ROUND(VLOOKUP($A$3,'ALG-ED'!$A$6:$AG$500,6,FALSE),0)&"% ("&IF(VLOOKUP($A$3,'ALG-ED'!$A$6:$AG$500,5,FALSE)="",0,VLOOKUP($A$3,'ALG-ED'!$A$6:$AG$500,5,FALSE))&")")),"NA") -> 0% (32) | F19: =IFERROR((IF($C19="NA","NA",VLOOKUP($A$3,'ALG-ED'!$A$6:$AG$500,7,FALSE))),"NA") -> 8.463966599 | G19: =IFERROR((IF($C19="NA","NA",ROUND(VLOOKUP($A$3,'ALG-ED'!$A$6:$AG$500,9,FALSE),0)&"% ("&IF(VLOOKUP($A$3,'ALG-ED'!$A$6:$AG$500,8,FALSE)="",0,VLOOKUP($A$3,'ALG-ED'!$A$6:$AG$500,8,FALSE))&")")),"NA") -> 0% (62) | H19: =IFERROR((IF($C19="NA","NA",VLOOKUP($A$3,'ALG-ED'!$A$6:$AM$500,10,FALSE))),"NA") -> 1.850373008 | I19: =IFERROR((IF($C19="NA","NA",ROUND(VLOOKUP($A$3,'ALG-ED'!$A$6:$AM$500,12,FALSE),0)&"% ("&IF(VLOOKUP($A$3,'ALG-ED'!$A$6:$AM$500,11,FALSE)="",0,VLOOKUP($A$3,'ALG-ED'!$A$6:$AM$500,11,FALSE))&")")),"NA") -> 2% (508) | J19: =IFERROR((IF($C19="NA","NA",VLOOKUP($A$3,'ALG-ED'!$A$6:$AM$500,13,FALSE))),"NA") -> 4.357290607 | K19: =IFERROR((IF($C19="NA","NA",ROUND(VLOOKUP($A$3,'ALG-ED'!$A$6:$AM$500,15,FALSE),0)&"% ("&IF(VLOOKUP($A$3,'ALG-ED'!$A$6:$AM$500,14,FALSE)="",0,VLOOKUP($A$3,'ALG-ED'!$A$6:$AM$500,14,FALSE))&")")),"NA") -> 1% (252) | Q19: =IFERROR(VLOOKUP($A$3,'ALG-ED'!$A$6:$BX$500,3,FALSE),"not tested") -> 23592
A20: ELL | B20: =IFERROR(VLOOKUP(TEXT($A$3,"0000"),'Alg Enrollment'!$A$2:$Q$500,16,FALSE),0) -> 4587 | C20: =IFERROR((IF(OR(B20<10,B20="",B20="NA"),"NA",((IF(VLOOKUP($A$3,'ALG-ELL'!$A$6:$AG$500,3,FALSE)>=B20,"100% ("&VLOOKUP($A$3,'ALG-ELL'!$A$6:$AG$500,3,FALSE)&")",(ROUND((VLOOKUP($A$3,'ALG-ELL'!$A$6:$AG$500,3,FALSE)/B20*100),0))&"% ("&IF(VLOOKUP($A$3,'ALG-ELL'!$A$6:$AG$500,3,FALSE)="",0,VLOOKUP($A$3,'ALG-ELL'!$A$6:$AG$500,3,FALSE))&")"))))),"0% (0)") -> 95% (4361) | D20: =IFERROR((IF($C20="NA","NA",VLOOKUP($A$3,'ALG-ELL'!$A$6:$AG$500,4,FALSE))),"NA") -> 13.27700069 | E20: =IFERROR((IF($C20="NA","NA",ROUND(VLOOKUP($A$3,'ALG-ELL'!$A$6:$AG$500,6,FALSE),0)&"% ("&IF(VLOOKUP($A$3,'ALG-ELL'!$A$6:$AG$500,5,FALSE)="",0,VLOOKUP($A$3,'ALG-ELL'!$A$6:$AG$500,5,FALSE))&")")),"NA") -> 0% (6) | F20: =IFERROR((IF($C20="NA","NA",VLOOKUP($A$3,'ALG-ELL'!$A$6:$AG$500,7,FALSE))),"NA") -> 7.669571199 | G20: =IFERROR((IF($C20="NA","NA",ROUND(VLOOKUP($A$3,'ALG-ELL'!$A$6:$AG$500,9,FALSE),0)&"% ("&IF(VLOOKUP($A$3,'ALG-ELL'!$A$6:$AG$500,8,FALSE)="",0,VLOOKUP($A$3,'ALG-ELL'!$A$6:$AG$500,8,FALSE))&")")),"NA") -> 0% (4) | H20: =IFERROR((IF($C20="NA","NA",VLOOKUP($A$3,'ALG-ELL'!$A$6:$AM$500,10,FALSE))),"NA") -> 1.817473057 | I20: =IFERROR((IF($C20="NA","NA",ROUND(VLOOKUP($A$3,'ALG-ELL'!$A$6:$AM$500,12,FALSE),0)&"% ("&IF(VLOOKUP($A$3,'ALG-ELL'!$A$6:$AM$500,11,FALSE)="",0,VLOOKUP($A$3,'ALG-ELL'!$A$6:$AM$500,11,FALSE))&")")),"NA") -> 2% (88) | J20: =IFERROR((IF($C20="NA","NA",VLOOKUP($A$3,'ALG-ELL'!$A$6:$AM$500,13,FALSE))),"NA") -> 3.789956432 | K20: =IFERROR((IF($C20="NA","NA",ROUND(VLOOKUP($A$3,'ALG-ELL'!$A$6:$AM$500,15,FALSE),0)&"% ("&IF(VLOOKUP($A$3,'ALG-ELL'!$A$6:$AM$500,14,FALSE)="",0,VLOOKUP($A$3,'ALG-ELL'!$A$6:$AM$500,14,FALSE))&")")),"NA") -> 1% (35) | Q20: =IFERROR(VLOOKUP($A$3,'ALG-ELL'!$A$6:$BX$500,3,FALSE),"not tested") -> 4361
A21: SWD | B21: =IFERROR(VLOOKUP(TEXT($A$3,"0000"),'Alg Enrollment'!$A$2:$Q$500,17,FALSE),0) -> 2964 | C21: =IFERROR((IF(OR(B21<10,B21="",B21="NA"),"NA",((IF(VLOOKUP($A$3,'ALG-SWD'!$A$6:$AG$500,3,FALSE)>=B21,"100% ("&VLOOKUP($A$3,'ALG-SWD'!$A$6:$AG$500,3,FALSE)&")",(ROUND((VLOOKUP($A$3,'ALG-SWD'!$A$6:$AG$500,3,FALSE)/B21*100),0))&"% ("&IF(VLOOKUP($A$3,'ALG-SWD'!$A$6:$AG$500,3,FALSE)="",0,VLOOKUP($A$3,'ALG-SWD'!$A$6:$AG$500,3,FALSE))&")"))))),"0% (0)") -> 95% (2825) | D21: =IFERROR((IF($C21="NA","NA",VLOOKUP($A$3,'ALG-SWD'!$A$6:$AG$500,4,FALSE))),"NA") -> 12.96145133 | E21: =IFERROR((IF($C21="NA","NA",ROUND(VLOOKUP($A$3,'ALG-SWD'!$A$6:$AG$500,6,FALSE),0)&"% ("&IF(VLOOKUP($A$3,'ALG-SWD'!$A$6:$AG$500,5,FALSE)="",0,VLOOKUP($A$3,'ALG-SWD'!$A$6:$AG$500,5,FALSE))&")")),"NA") -> 0% (3) | F21: =IFERROR((IF($C21="NA","NA",VLOOKUP($A$3,'ALG-SWD'!$A$6:$AG$500,7,FALSE))),"NA") -> 7.443044248 | G21: =IFERROR((IF($C21="NA","NA",ROUND(VLOOKUP($A$3,'ALG-SWD'!$A$6:$AG$500,9,FALSE),0)&"% ("&IF(VLOOKUP($A$3,'ALG-SWD'!$A$6:$AG$500,8,FALSE)="",0,VLOOKUP($A$3,'ALG-SWD'!$A$6:$AG$500,8,FALSE))&")")),"NA") -> 0% (3) | H21: =IFERROR((IF($C21="NA","NA",VLOOKUP($A$3,'ALG-SWD'!$A$6:$AM$500,10,FALSE))),"NA") -> 1.777132743 | I21: =IFERROR((IF($C21="NA","NA",ROUND(VLOOKUP($A$3,'ALG-SWD'!$A$6:$AM$500,12,FALSE),0)&"% ("&IF(VLOOKUP($A$3,'ALG-SWD'!$A$6:$AM$500,11,FALSE)="",0,VLOOKUP($A$3,'ALG-SWD'!$A$6:$AM$500,11,FALSE))&")")),"NA") -> 2% (51) | J21: =IFERROR((IF($C21="NA","NA",VLOOKUP($A$3,'ALG-SWD'!$A$6:$AM$500,13,FALSE))),"NA") -> 3.73900885 | K21: =IFERROR((IF($C21="NA","NA",ROUND(VLOOKUP($A$3,'ALG-SWD'!$A$6:$AM$500,15,FALSE),0)&"% ("&IF(VLOOKUP($A$3,'ALG-SWD'!$A$6:$AM$500,14,FALSE)="",0,VLOOKUP($A$3,'ALG-SWD'!$A$6:$AM$500,14,FALSE))&")")),"NA") -> 1% (18) | Q21: =IFERROR(VLOOKUP($A$3,'ALG-SWD'!$A$6:$BX$500,3,FALSE),"not tested") -> 2825
A22: Geometry | Q22: Geometry
A23: Level of Proficiency at 70% or above | B23: Course Enrollment | C23: % and/or Number of Tested | D23: ='G9-10 Matrix'!C12&" ["&'G9-10 Matrix'!C13&"]" -> Overall [38] | F23: ='G9-10 Matrix'!D12&" ["&'G9-10 Matrix'!D13&"]" -> Two-Dimensional Geometry [28] | H23: ='G9-10 Matrix'!E12&" ["&'G9-10 Matrix'!E13&"]" -> Three-Dimensional Geometry [6] | J23: ='G9-10 Matrix'!F12&" ["&'G9-10 Matrix'!F13&"]" -> Trigonometry and Discrete Mathematics [4] | Q23: Number Tested
D24: Average Score | E24: % Proficient | F24: Average Score | G24: % Proficient | H24: Average Score | I24: % Proficient | J24: Average Score | K24: % Proficient
A25: All students | B25: =IFERROR(VLOOKUP(TEXT($A$3,"0000"),'Geo Enrollment'!$A$3:$Q$500,3,FALSE),0) -> 31005 | C25: =IFERROR((IF(OR(B25<10,B25="",B25="NA"),"NA",((IF(VLOOKUP($A$3,'GEO-ALL'!$A$6:$AM$500,3,FALSE)>=B25,"100% ("&VLOOKUP($A$3,'GEO-ALL'!$A$6:$AM$500,3,FALSE)&")",(ROUND((VLOOKUP($A$3,'GEO-ALL'!$A$6:$AM$500,3,FALSE)/B25*100),0))&"% ("&IF(VLOOKUP($A$3,'GEO-ALL'!$A$6:$AM$500,3,FALSE)="",0,VLOOKUP($A$3,'GEO-ALL'!$A$6:$AM$500,3,FALSE))&")"))))),"0% (0)") -> 92% (28676) | D25: =IFERROR((IF($C25="NA","NA",VLOOKUP($A$3,'GEO-ALL'!$A$6:$AM$500,4,FALSE))),"NA") -> 11.0248082 | E25: =IFERROR((IF($C25="NA","NA",ROUND(VLOOKUP($A$3,'GEO-ALL'!$A$6:$AM$500,6,FALSE),0)&"% ("&IF(VLOOKUP($A$3,'GEO-ALL'!$A$6:$AM$500,5,FALSE)="",0,VLOOKUP($A$3,'GEO-ALL'!$A$6:$AM$500,5,FALSE))&")")),"NA") -> 0% (38) | F25: =IFERROR((IF($C25="NA","NA",VLOOKUP($A$3,'GEO-ALL'!$A$6:$AM$500,7,FALSE))),"NA") -> 7.977995536 | G25: =IFERROR((IF($C25="NA","NA",ROUND(VLOOKUP($A$3,'GEO-ALL'!$A$6:$AM$500,9,FALSE),0)&"% ("&IF(VLOOKUP($A$3,'GEO-ALL'!$A$6:$AM$500,8,FALSE)="",0,VLOOKUP($A$3,'GEO-ALL'!$A$6:$AM$500,8,FALSE))&")")),"NA") -> 0% (46) | H25: =IFERROR((IF($C25="NA","NA",VLOOKUP($A$3,'GEO-ALL'!$A$6:$AM$500,10,FALSE))),"NA") -> 1.795700237 | I25: =IFERROR((IF($C25="NA","NA",ROUND(VLOOKUP($A$3,'GEO-ALL'!$A$6:$AM$500,12,FALSE),0)&"% ("&IF(VLOOKUP($A$3,'GEO-ALL'!$A$6:$AM$500,11,FALSE)="",0,VLOOKUP($A$3,'GEO-ALL'!$A$6:$AM$500,11,FALSE))&")")),"NA") -> 2% (507) | J25: =IFERROR((IF($C25="NA","NA",VLOOKUP($A$3,'GEO-ALL'!$A$6:$AM$500,13,FALSE))),"NA") -> 1.24920491 | K25: =IFERROR((IF($C25="NA","NA",ROUND(VLOOKUP($A$3,'GEO-ALL'!$A$6:$AM$500,15,FALSE),0)&"% ("&IF(VLOOKUP($A$3,'GEO-ALL'!$A$6:$AM$500,14,FALSE)="",0,VLOOKUP($A$3,'GEO-ALL'!$A$6:$AM$500,14,FALSE))&")")),"NA") -> 8% (2276) | Q25: =IFERROR(VLOOKUP($A$3,'GEO-ALL'!$A$6:$BX$500,3,FALSE),"not tested") -> 28676
A26: FCAT Level 1 | B26: NA | C26: =IFERROR((IF(OR(B26<10,B26="",B26="NA"),"NA",((IF(VLOOKUP($A$3,'GEO-L1'!$A$6:$AM$500,3,FALSE)>=B26,"100% ("&VLOOKUP($A$3,'GEO-L1'!$A$6:$AM$500,3,FALSE)&")",(ROUND((VLOOKUP($A$3,'GEO-L1'!$A$6:$AM$500,3,FALSE)/B26*100),0))&"% ("&IF(VLOOKUP($A$3,'GEO-L1'!$A$6:$AM$500,3,FALSE)="",0,VLOOKUP($A$3,'GEO-L1'!$A$6:$AM$500,3,FALSE))&")"))))),"0% (0)") -> NA | D26: NA | E26: NA | F26: NA | G26: NA | H26: NA | I26: NA | J26: NA | K26: NA | Q26: =IFERROR(VLOOKUP($A$3,'GEO-L1'!$A$6:$BX$500,3,FALSE),"not tested") -> 4922
A27: FCAT Level 2 | B27: NA | C27: =IFERROR((IF(OR(B27<10,B27="",B27="NA"),"NA",((IF(VLOOKUP($A$3,'GEO-L2'!$A$6:$AM$500,3,FALSE)>=B27,"100% ("&VLOOKUP($A$3,'GEO-L2'!$A$6:$AM$500,3,FALSE)&")",(ROUND((VLOOKUP($A$3,'GEO-L2'!$A$6:$AM$500,3,FALSE)/B27*100),0))&"% ("&IF(VLOOKUP($A$3,'GEO-L2'!$A$6:$AM$500,3,FALSE)="",0,VLOOKUP($A$3,'GEO-L2'!$A$6:$AM$500,3,FALSE))&")"))))),"0% (0)") -> NA | D27: NA | E27: NA | F27: NA | G27: NA | H27: NA | I27: NA | J27: NA | K27: NA | Q27: =IFERROR(VLOOKUP($A$3,'GEO-L2'!$A$6:$BX$500,3,FALSE),"not tested") -> 5302
A28: FCAT Level 3 | B28: NA | C28: =IFERROR((IF(OR(B28<10,B28="",B28="NA"),"NA",((IF(VLOOKUP($A$3,'GEO-L3'!$A$6:$AM$500,3,FALSE)>=B28,"100% ("&VLOOKUP($A$3,'GEO-L3'!$A$6:$AM$500,3,FALSE)&")",(ROUND((VLOOKUP($A$3,'GEO-L3'!$A$6:$AM$500,3,FALSE)/B28*100),0))&"% ("&IF(VLOOKUP($A$3,'GEO-L3'!$A$6:$AM$500,3,FALSE)="",0,VLOOKUP($A$3,'GEO-L3'!$A$6:$AM$500,3,FALSE))&")"))))),"0% (0)") -> NA | D28: NA | E28: NA | F28: NA | G28: NA | H28: NA | I28: NA | J28: NA | K28: NA | Q28: =IFERROR(VLOOKUP($A$3,'GEO-L3'!$A$6:$BX$500,3,FALSE),"not tested") -> 8722
A29: FCAT Level 4 | B29: NA | C29: =IFERROR((IF(OR(B29<10,B29="",B29="NA"),"NA",((IF(VLOOKUP($A$3,'GEO-L4'!$A$6:$AM$500,3,FALSE)>=B29,"100% ("&VLOOKUP($A$3,'GEO-L4'!$A$6:$AM$500,3,FALSE)&")",(ROUND((VLOOKUP($A$3,'GEO-L4'!$A$6:$AM$500,3,FALSE)/B29*100),0))&"% ("&IF(VLOOKUP($A$3,'GEO-L4'!$A$6:$AM$500,3,FALSE)="",0,VLOOKUP($A$3,'GEO-L4'!$A$6:$AM$500,3,FALSE))&")"))))),"0% (0)") -> NA | D29: NA | E29: NA | F29: NA | G29: NA | H29: NA | I29: NA | J29: NA | K29: NA | Q29: =IFERROR(VLOOKUP($A$3,'GEO-L4'!$A$6:$BX$500,3,FALSE),"not tested") -> 4960
A30: FCAT Level 5 | B30: NA | C30: =IFERROR((IF(OR(B30<10,B30="",B30="NA"),"NA",((IF(VLOOKUP($A$3,'GEO-L5'!$A$6:$AM$500,3,FALSE)>=B30,"100% ("&VLOOKUP($A$3,'GEO-L5'!$A$6:$AM$500,3,FALSE)&")",(ROUND((VLOOKUP($A$3,'GEO-L5'!$A$6:$AM$500,3,FALSE)/B30*100),0))&"% ("&IF(VLOOKUP($A$3,'GEO-L5'!$A$6:$AM$500,3,FALSE)="",0,VLOOKUP($A$3,'GEO-L5'!$A$6:$AM$500,3,FALSE))&")"))))),"0% (0)") -> NA | D30: NA | E30: NA | F30: NA | G30: NA | H30: NA | I30: NA | J30: NA | K30: NA | Q30: =IFERROR(VLOOKUP($A$3,'GEO-L5'!$A$6:$BX$500,3,FALSE),"not tested") -> 2545
A31: White | B31: =IFERROR(VLOOKUP(TEXT($A$3,"0000"),'Geo Enrollment'!$A$3:$Q$500,10,FALSE),0) -> 2452 | C31: =IFERROR((IF(OR(B31<10,B31="",B31="NA"),"NA",((IF(VLOOKUP($A$3,'GEO-W'!$A$6:$AG$500,3,FALSE)>=B31,"100% ("&VLOOKUP($A$3,'GEO-W'!$A$6:$AG$500,3,FALSE)&")",(ROUND((VLOOKUP($A$3,'GEO-W'!$A$6:$AG$500,3,FALSE)/B31*100),0))&"% ("&IF(VLOOKUP($A$3,'GEO-W'!$A$6:$AG$500,3,FALSE)="",0,VLOOKUP($A$3,'GEO-W'!$A$6:$AG$500,3,FALSE))&")"))))),"0% (0)") -> 95% (2336) | D31: =IFERROR((IF($C31="NA","NA",VLOOKUP($A$3,'GEO-W'!$A$6:$AM$500,4,FALSE))),"NA") -> 12.19499144 | E31: =IFERROR((IF($C31="NA","NA",ROUND(VLOOKUP($A$3,'GEO-W'!$A$6:$AG$500,6,FALSE),0)&"% ("&IF(VLOOKUP($A$3,'GEO-W'!$A$6:$AG$500,5,FALSE)="",0,VLOOKUP($A$3,'GEO-W'!$A$6:$AG$500,5,FALSE))&")")),"NA") -> 0% (11) | F31: =IFERROR((IF($C31="NA","NA",VLOOKUP($A$3,'GEO-W'!$A$6:$AG$500,7,FALSE))),"NA") -> 8.788484589 | G31: =IFERROR((IF($C31="NA","NA",ROUND(VLOOKUP($A$3,'GEO-W'!$A$6:$AG$500,9,FALSE),0)&"% ("&IF(VLOOKUP($A$3,'GEO-W'!$A$6:$AG$500,8,FALSE)="",0,VLOOKUP($A$3,'GEO-W'!$A$6:$AG$500,8,FALSE))&")")),"NA") -> 0% (11) | H31: =IFERROR((IF($C31="NA","NA",VLOOKUP($A$3,'GEO-W'!$A$6:$AM$500,10,FALSE))),"NA") -> 2.041652397 | I31: =IFERROR((IF($C31="NA","NA",ROUND(VLOOKUP($A$3,'GEO-W'!$A$6:$AM$500,12,FALSE),0)&"% ("&IF(VLOOKUP($A$3,'GEO-W'!$A$6:$AM$500,11,FALSE)="",0,VLOOKUP($A$3,'GEO-W'!$A$6:$AM$500,11,FALSE))&")")),"NA") -> 4% (87) | J31: =IFERROR((IF($C31="NA","NA",VLOOKUP($A$3,'GEO-W'!$A$6:$AM$500,13,FALSE))),"NA") -> 1.374871575 | K31: =IFERROR((IF($C31="NA","NA",ROUND(VLOOKUP($A$3,'GEO-W'!$A$6:$AM$500,15,FALSE),0)&"% ("&IF(VLOOKUP($A$3,'GEO-W'!$A$6:$AM$500,14,FALSE)="",0,VLOOKUP($A$3,'GEO-W'!$A$6:$AM$500,14,FALSE))&")")),"NA") -> 10% (228) | Q31: =IFERROR(VLOOKUP($A$3,'GEO-W'!$A$6:$BX$500,3,FALSE),"not tested") -> 2336
A32: Black | B32: =IFERROR(VLOOKUP(TEXT($A$3,"0000"),'Geo Enrollment'!$A$3:$Q$500,11,FALSE),0) -> 5933 | C32: =IFERROR((IF(OR(B32<10,B32="",B32="NA"),"NA",((IF(VLOOKUP($A$3,'GEO-B'!$A$6:$AG$500,3,FALSE)>=B32,"100% ("&VLOOKUP($A$3,'GEO-B'!$A$6:$AG$500,3,FALSE)&")",(ROUND((VLOOKUP($A$3,'GEO-B'!$A$6:$AG$500,3,FALSE)/B32*100),0))&"% ("&IF(VLOOKUP($A$3,'GEO-B'!$A$6:$AG$500,3,FALSE)="",0,VLOOKUP($A$3,'GEO-B'!$A$6:$AG$500,3,FALSE))&")"))))),"0% (0)") -> 100% (6271) | D32: =IFERROR((IF($C32="NA","NA",VLOOKUP($A$3,'GEO-B'!$A$6:$AM$500,4,FALSE))),"NA") -> 10.51036517 | E32: =IFERROR((IF($C32="NA","NA",ROUND(VLOOKUP($A$3,'GEO-B'!$A$6:$AG$500,6,FALSE),0)&"% ("&IF(VLOOKUP($A$3,'GEO-B'!$A$6:$AG$500,5,FALSE)="",0,VLOOKUP($A$3,'GEO-B'!$A$6:$AG$500,5,FALSE))&")")),"NA") -> 0% (3) | F32: =IFERROR((IF($C32="NA","NA",VLOOKUP($A$3,'GEO-B'!$A$6:$AG$500,7,FALSE))),"NA") -> 7.657359273 | G32: =IFERROR((IF($C32="NA","NA",ROUND(VLOOKUP($A$3,'GEO-B'!$A$6:$AG$500,9,FALSE),0)&"% ("&IF(VLOOKUP($A$3,'GEO-B'!$A$6:$AG$500,8,FALSE)="",0,VLOOKUP($A$3,'GEO-B'!$A$6:$AG$500,8,FALSE))&")")),"NA") -> 0% (3) | H32: =IFERROR((IF($C32="NA","NA",VLOOKUP($A$3,'GEO-B'!$A$6:$AM$500,10,FALSE))),"NA") -> 1.680417796 | I32: =IFERROR((IF($C32="NA","NA",ROUND(VLOOKUP($A$3,'GEO-B'!$A$6:$AM$500,12,FALSE),0)&"% ("&IF(VLOOKUP($A$3,'GEO-B'!$A$6:$AM$500,11,FALSE)="",0,VLOOKUP($A$3,'GEO-B'!$A$6:$AM$500,11,FALSE))&")")),"NA") -> 1% (63) | J32: =IFERROR((IF($C32="NA","NA",VLOOKUP($A$3,'GEO-B'!$A$6:$AM$500,13,FALSE))),"NA") -> 1.180513475 | K32: =IFERROR((IF($C32="NA","NA",ROUND(VLOOKUP($A$3,'GEO-B'!$A$6:$AM$500,15,FALSE),0)&"% ("&IF(VLOOKUP($A$3,'GEO-B'!$A$6:$AM$500,14,FALSE)="",0,VLOOKUP($A$3,'GEO-B'!$A$6:$AM$500,14,FALSE))&")")),"NA") -> 7% (432) | Q32: =IFERROR(VLOOKUP($A$3,'GEO-B'!$A$6:$BX$500,3,FALSE),"not tested") -> 6271
A33: Hispanic | B33: =IFERROR(VLOOKUP(TEXT($A$3,"0000"),'Geo Enrollment'!$A$3:$Q$500,12,FALSE),0) -> 19371 | C33: =IFERROR((IF(OR(B33<10,B33="",B33="NA"),"NA",((IF(VLOOKUP($A$3,'GEO-H'!$A$6:$AG$500,3,FALSE)>=B33,"100% ("&VLOOKUP($A$3,'GEO-H'!$A$6:$AG$500,3,FALSE)&")",(ROUND((VLOOKUP($A$3,'GEO-H'!$A$6:$AG$500,3,FALSE)/B33*100),0))&"% ("&IF(VLOOKUP($A$3,'GEO-H'!$A$6:$AG$500,3,FALSE)="",0,VLOOKUP($A$3,'GEO-H'!$A$6:$AG$500,3,FALSE))&")"))))),"0% (0)") -> 100% (19624) | D33: =IFERROR((IF($C33="NA","NA",VLOOKUP($A$3,'GEO-H'!$A$6:$AM$500,4,FALSE))),"NA") -> 10.99663677 | E33: =IFERROR((IF($C33="NA","NA",ROUND(VLOOKUP($A$3,'GEO-H'!$A$6:$AG$500,6,FALSE),0)&"% ("&IF(VLOOKUP($A$3,'GEO-H'!$A$6:$AG$500,5,FALSE)="",0,VLOOKUP($A$3,'GEO-H'!$A$6:$AG$500,5,FALSE))&")")),"NA") -> 0% (15) | F33: =IFERROR((IF($C33="NA","NA",VLOOKUP($A$3,'GEO-H'!$A$6:$AG$500,7,FALSE))),"NA") -> 7.949464941 | G33: =IFERROR((IF($C33="NA","NA",ROUND(VLOOKUP($A$3,'GEO-H'!$A$6:$AG$500,9,FALSE),0)&"% ("&IF(VLOOKUP($A$3,'GEO-H'!$A$6:$AG$500,8,FALSE)="",0,VLOOKUP($A$3,'GEO-H'!$A$6:$AG$500,8,FALSE))&")")),"NA") -> 0% (20) | H33: =IFERROR((IF($C33="NA","NA",VLOOKUP($A$3,'GEO-H'!$A$6:$AM$500,10,FALSE))),"NA") -> 1.795551366 | I33: =IFERROR((IF($C33="NA","NA",ROUND(VLOOKUP($A$3,'GEO-H'!$A$6:$AM$500,12,FALSE),0)&"% ("&IF(VLOOKUP($A$3,'GEO-H'!$A$6:$AM$500,11,FALSE)="",0,VLOOKUP($A$3,'GEO-H'!$A$6:$AM$500,11,FALSE))&")")),"NA") -> 2% (328) | J33: =IFERROR((IF($C33="NA","NA",VLOOKUP($A$3,'GEO-H'!$A$6:$AM$500,13,FALSE))),"NA") -> 1.243064615 | K33: =IFERROR((IF($C33="NA","NA",ROUND(VLOOKUP($A$3,'GEO-H'!$A$6:$AM$500,15,FALSE),0)&"% ("&IF(VLOOKUP($A$3,'GEO-H'!$A$6:$AM$500,14,FALSE)="",0,VLOOKUP($A$3,'GEO-H'!$A$6:$AM$500,14,FALSE))&")")),"NA") -> 8% (1573) | Q33: =IFERROR(VLOOKUP($A$3,'GEO-H'!$A$6:$BX$500,3,FALSE),"not tested") -> 19624
A34: Asian | B34: =IFERROR(VLOOKUP(TEXT($A$3,"0000"),'Geo Enrollment'!$A$3:$Q$500,13,FALSE),0) -> 348 | C34: =IFERROR((IF(OR(B34<10,B34="",B34="NA"),"NA",((IF(VLOOKUP($A$3,'GEO-A'!$A$6:$AG$500,3,FALSE)>=B34,"100% ("&VLOOKUP($A$3,'GEO-A'!$A$6:$AG$500,3,FALSE)&")",(ROUND((VLOOKUP($A$3,'GEO-A'!$A$6:$AG$500,3,FALSE)/B34*100),0))&"% ("&IF(VLOOKUP($A$3,'GEO-A'!$A$6:$AG$500,3,FALSE)="",0,VLOOKUP($A$3,'GEO-A'!$A$6:$AG$500,3,FALSE))&")"))))),"0% (0)") -> 98% (341) | D34: =IFERROR((IF($C34="NA","NA",VLOOKUP($A$3,'GEO-A'!$A$6:$AM$500,4,FALSE))),"NA") -> 13.68768328 | E34: =IFERROR((IF($C34="NA","NA",ROUND(VLOOKUP($A$3,'GEO-A'!$A$6:$AG$500,6,FALSE),0)&"% ("&IF(VLOOKUP($A$3,'GEO-A'!$A$6:$AG$500,5,FALSE)="",0,VLOOKUP($A$3,'GEO-A'!$A$6:$AG$500,5,FALSE))&")")),"NA") -> 3% (9) | F34: =IFERROR((IF($C34="NA","NA",VLOOKUP($A$3,'GEO-A'!$A$6:$AG$500,7,FALSE))),"NA") -> 9.956304985 | G34: =IFERROR((IF($C34="NA","NA",ROUND(VLOOKUP($A$3,'GEO-A'!$A$6:$AG$500,9,FALSE),0)&"% ("&IF(VLOOKUP($A$3,'GEO-A'!$A$6:$AG$500,8,FALSE)="",0,VLOOKUP($A$3,'GEO-A'!$A$6:$AG$500,8,FALSE))&")")),"NA") -> 4% (12) | H34: =IFERROR((IF($C34="NA","NA",VLOOKUP($A$3,'GEO-A'!$A$6:$AM$500,10,FALSE))),"NA") -> 2.357184751 | I34: =IFERROR((IF($C34="NA","NA",ROUND(VLOOKUP($A$3,'GEO-A'!$A$6:$AM$500,12,FALSE),0)&"% ("&IF(VLOOKUP($A$3,'GEO-A'!$A$6:$AM$500,11,FALSE)="",0,VLOOKUP($A$3,'GEO-A'!$A$6:$AM$500,11,FALSE))&")")),"NA") -> 7% (25) | J34: =IFERROR((IF($C34="NA","NA",VLOOKUP($A$3,'GEO-A'!$A$6:$AM$500,13,FALSE))),"NA") -> 1.382991202 | K34: =IFERROR((IF($C34="NA","NA",ROUND(VLOOKUP($A$3,'GEO-A'!$A$6:$AM$500,15,FALSE),0)&"% ("&IF(VLOOKUP($A$3,'GEO-A'!$A$6:$AM$500,14,FALSE)="",0,VLOOKUP($A$3,'GEO-A'!$A$6:$AM$500,14,FALSE))&")")),"NA") -> 9% (30) | Q34: =IFERROR(VLOOKUP($A$3,'GEO-A'!$A$6:$BX$500,3,FALSE),"not tested") -> 341
A35: Am. Indian | B35: =IFERROR(VLOOKUP(TEXT($A$3,"0000"),'Geo Enrollment'!$A$3:$Q$500,14,FALSE),0) -> 30 | C35: =IFERROR((IF(OR(B35<10,B35="",B35="NA"),"NA",((IF(VLOOKUP($A$3,'GEO-I'!$A$6:$AG$500,3,FALSE)>=B35,"100% ("&VLOOKUP($A$3,'GEO-I'!$A$6:$AG$500,3,FALSE)&")",(ROUND((VLOOKUP($A$3,'GEO-I'!$A$6:$AG$500,3,FALSE)/B35*100),0))&"% ("&IF(VLOOKUP($A$3,'GEO-I'!$A$6:$AG$500,3,FALSE)="",0,VLOOKUP($A$3,'GEO-I'!$A$6:$AG$500,3,FALSE))&")"))))),"0% (0)") -> 93% (28) | D35: =IFERROR((IF($C35="NA","NA",VLOOKUP($A$3,'GEO-I'!$A$6:$AM$500,4,FALSE))),"NA") -> 11.53571429 | E35: =IFERROR((IF($C35="NA","NA",ROUND(VLOOKUP($A$3,'GEO-I'!$A$6:$AG$500,6,FALSE),0)&"% ("&IF(VLOOKUP($A$3,'GEO-I'!$A$6:$AG$500,5,FALSE)="",0,VLOOKUP($A$3,'GEO-I'!$A$6:$AG$500,5,FALSE))&")")),"NA") -> 0% (0) | F35: =IFERROR((IF($C35="NA","NA",VLOOKUP($A$3,'GEO-I'!$A$6:$AG$500,7,FALSE))),"NA") -> 8.817857143 | G35: =IFERROR((IF($C35="NA","NA",ROUND(VLOOKUP($A$3,'GEO-I'!$A$6:$AG$500,9,FALSE),0)&"% ("&IF(VLOOKUP($A$3,'GEO-I'!$A$6:$AG$500,8,FALSE)="",0,VLOOKUP($A$3,'GEO-I'!$A$6:$AG$500,8,FALSE))&")")),"NA") -> 0% (0) | H35: =IFERROR((IF($C35="NA","NA",VLOOKUP($A$3,'GEO-I'!$A$6:$AM$500,10,FALSE))),"NA") -> 1.564285714 | I35: =IFERROR((IF($C35="NA","NA",ROUND(VLOOKUP($A$3,'GEO-I'!$A$6:$AM$500,12,FALSE),0)&"% ("&IF(VLOOKUP($A$3,'GEO-I'!$A$6:$AM$500,11,FALSE)="",0,VLOOKUP($A$3,'GEO-I'!$A$6:$AM$500,11,FALSE))&")")),"NA") -> 4% (1) | J35: =IFERROR((IF($C35="NA","NA",VLOOKUP($A$3,'GEO-I'!$A$6:$AM$500,13,FALSE))),"NA") -> 1.142857143 | K35: =IFERROR((IF($C35="NA","NA",ROUND(VLOOKUP($A$3,'GEO-I'!$A$6:$AM$500,15,FALSE),0)&"% ("&IF(VLOOKUP($A$3,'GEO-I'!$A$6:$AM$500,14,FALSE)="",0,VLOOKUP($A$3,'GEO-I'!$A$6:$AM$500,14,FALSE))&")")),"NA") -> 4% (1) | Q35: =IFERROR(VLOOKUP($A$3,'GEO-I'!$A$6:$BX$500,3,FALSE),"not tested") -> 28
A36: ED | B36: =IFERROR(VLOOKUP(TEXT($A$3,"0000"),'Geo Enrollment'!$A$3:$Q$500,15,FALSE),0) -> 21082 | C36: =IFERROR((IF(OR(B36<10,B36="",B36="NA"),"NA",((IF(VLOOKUP($A$3,'GEO-ED'!$A$6:$AG$500,3,FALSE)>=B36,"100% ("&VLOOKUP($A$3,'GEO-ED'!$A$6:$AG$500,3,FALSE)&")",(ROUND((VLOOKUP($A$3,'GEO-ED'!$A$6:$AG$500,3,FALSE)/B36*100),0))&"% ("&IF(VLOOKUP($A$3,'GEO-ED'!$A$6:$AG$500,3,FALSE)="",0,VLOOKUP($A$3,'GEO-ED'!$A$6:$AG$500,3,FALSE))&")"))))),"0% (0)") -> 100% (22041) | D36: =IFERROR((IF($C36="NA","NA",VLOOKUP($A$3,'GEO-ED'!$A$6:$AM$500,4,FALSE))),"NA") -> 10.74704868 | E36: =IFERROR((IF($C36="NA","NA",ROUND(VLOOKUP($A$3,'GEO-ED'!$A$6:$AG$500,6,FALSE),0)&"% ("&IF(VLOOKUP($A$3,'GEO-ED'!$A$6:$AG$500,5,FALSE)="",0,VLOOKUP($A$3,'GEO-ED'!$A$6:$AG$500,5,FALSE))&")")),"NA") -> 0% (12) | F36: =IFERROR((IF($C36="NA","NA",VLOOKUP($A$3,'GEO-ED'!$A$6:$AG$500,7,FALSE))),"NA") -> 7.800163332 | G36: =IFERROR((IF($C36="NA","NA",ROUND(VLOOKUP($A$3,'GEO-ED'!$A$6:$AG$500,9,FALSE),0)&"% ("&IF(VLOOKUP($A$3,'GEO-ED'!$A$6:$AG$500,8,FALSE)="",0,VLOOKUP($A$3,'GEO-ED'!$A$6:$AG$500,8,FALSE))&")")),"NA") -> 0% (14) | H36: =IFERROR((IF($C36="NA","NA",VLOOKUP($A$3,'GEO-ED'!$A$6:$AM$500,10,FALSE))),"NA") -> 1.722598793 | I36: =IFERROR((IF($C36="NA","NA",ROUND(VLOOKUP($A$3,'GEO-ED'!$A$6:$AM$500,12,FALSE),0)&"% ("&IF(VLOOKUP($A$3,'GEO-ED'!$A$6:$AM$500,11,FALSE)="",0,VLOOKUP($A$3,'GEO-ED'!$A$6:$AM$500,11,FALSE))&")")),"NA") -> 1% (289) | J36: =IFERROR((IF($C36="NA","NA",VLOOKUP($A$3,'GEO-ED'!$A$6:$AM$500,13,FALSE))),"NA") -> 1.209754548 | K36: =IFERROR((IF($C36="NA","NA",ROUND(VLOOKUP($A$3,'GEO-ED'!$A$6:$AM$500,15,FALSE),0)&"% ("&IF(VLOOKUP($A$3,'GEO-ED'!$A$6:$AM$500,14,FALSE)="",0,VLOOKUP($A$3,'GEO-ED'!$A$6:$AM$500,14,FALSE))&")")),"NA") -> 7% (1640) | Q36: =IFERROR(VLOOKUP($A$3,'GEO-ED'!$A$6:$BX$500,3,FALSE),"not tested") -> 22041
A37: ELL | B37: =IFERROR(VLOOKUP(TEXT($A$3,"0000"),'Geo Enrollment'!$A$3:$Q$500,16,FALSE),0) -> 4218 | C37: =IFERROR((IF(OR(B37<10,B37="",B37="NA"),"NA",((IF(VLOOKUP($A$3,'GEO-ELL'!$A$6:$AG$500,3,FALSE)>=B37,"100% ("&VLOOKUP($A$3,'GEO-ELL'!$A$6:$AG$500,3,FALSE)&")",(ROUND((VLOOKUP($A$3,'GEO-ELL'!$A$6:$AG$500,3,FALSE)/B37*100),0))&"% ("&IF(VLOOKUP($A$3,'GEO-ELL'!$A$6:$AG$500,3,FALSE)="",0,VLOOKUP($A$3,'GEO-ELL'!$A$6:$AG$500,3,FALSE))&")"))))),"0% (0)") -> 94% (3962) | D37: =IFERROR((IF($C37="NA","NA",VLOOKUP($A$3,'GEO-ELL'!$A$6:$AM$500,4,FALSE))),"NA") -> 9.765017668 | E37: =IFERROR((IF($C37="NA","NA",ROUND(VLOOKUP($A$3,'GEO-ELL'!$A$6:$AG$500,6,FALSE),0)&"% ("&IF(VLOOKUP($A$3,'GEO-ELL'!$A$6:$AG$500,5,FALSE)="",0,VLOOKUP($A$3,'GEO-ELL'!$A$6:$AG$500,5,FALSE))&")")),"NA") -> 0% (1) | F37: =IFERROR((IF($C37="NA","NA",VLOOKUP($A$3,'GEO-ELL'!$A$6:$AG$500,7,FALSE))),"NA") -> 7.177940434 | G37: =IFERROR((IF($C37="NA","NA",ROUND(VLOOKUP($A$3,'GEO-ELL'!$A$6:$AG$500,9,FALSE),0)&"% ("&IF(VLOOKUP($A$3,'GEO-ELL'!$A$6:$AG$500,8,FALSE)="",0,VLOOKUP($A$3,'GEO-ELL'!$A$6:$AG$500,8,FALSE))&")")),"NA") -> 0% (2) | H37: =IFERROR((IF($C37="NA","NA",VLOOKUP($A$3,'GEO-ELL'!$A$6:$AM$500,10,FALSE))),"NA") -> 1.490408884 | I37: =IFERROR((IF($C37="NA","NA",ROUND(VLOOKUP($A$3,'GEO-ELL'!$A$6:$AM$500,12,FALSE),0)&"% ("&IF(VLOOKUP($A$3,'GEO-ELL'!$A$6:$AM$500,11,FALSE)="",0,VLOOKUP($A$3,'GEO-ELL'!$A$6:$AM$500,11,FALSE))&")")),"NA") -> 1% (29) | J37: =IFERROR((IF($C37="NA","NA",VLOOKUP($A$3,'GEO-ELL'!$A$6:$AM$500,13,FALSE))),"NA") -> 1.096668349 | K37: =IFERROR((IF($C37="NA","NA",ROUND(VLOOKUP($A$3,'GEO-ELL'!$A$6:$AM$500,15,FALSE),0)&"% ("&IF(VLOOKUP($A$3,'GEO-ELL'!$A$6:$AM$500,14,FALSE)="",0,VLOOKUP($A$3,'GEO-ELL'!$A$6:$AM$500,14,FALSE))&")")),"NA") -> 6% (239) | Q37: =IFERROR(VLOOKUP($A$3,'GEO-ELL'!$A$6:$BX$500,3,FALSE),"not tested") -> 3962
A38: SWD | B38: =IFERROR(VLOOKUP(TEXT($A$3,"0000"),'Geo Enrollment'!$A$3:$Q$500,17,FALSE),0) -> 2043 | C38: =IFERROR((IF(OR(B38<10,B38="",B38="NA"),"NA",((IF(VLOOKUP($A$3,'GEO-SWD'!$A$6:$AG$500,3,FALSE)>=B38,"100% ("&VLOOKUP($A$3,'GEO-SWD'!$A$6:$AG$500,3,FALSE)&")",(ROUND((VLOOKUP($A$3,'GEO-SWD'!$A$6:$AG$500,3,FALSE)/B38*100),0))&"% ("&IF(VLOOKUP($A$3,'GEO-SWD'!$A$6:$AG$500,3,FALSE)="",0,VLOOKUP($A$3,'GEO-SWD'!$A$6:$AG$500,3,FALSE))&")"))))),"0% (0)") -> 100% (2449) | D38: =IFERROR((IF($C38="NA","NA",VLOOKUP($A$3,'GEO-SWD'!$A$6:$AM$500,4,FALSE))),"NA") -> 9.981625153 | E38: =IFERROR((IF($C38="NA","NA",ROUND(VLOOKUP($A$3,'GEO-SWD'!$A$6:$AG$500,6,FALSE),0)&"% ("&IF(VLOOKUP($A$3,'GEO-SWD'!$A$6:$AG$500,5,FALSE)="",0,VLOOKUP($A$3,'GEO-SWD'!$A$6:$AG$500,5,FALSE))&")")),"NA") -> 0% (1) | F38: =IFERROR((IF($C38="NA","NA",VLOOKUP($A$3,'GEO-SWD'!$A$6:$AG$500,7,FALSE))),"NA") -> 7.252633728 | G38: =IFERROR((IF($C38="NA","NA",ROUND(VLOOKUP($A$3,'GEO-SWD'!$A$6:$AG$500,9,FALSE),0)&"% ("&IF(VLOOKUP($A$3,'GEO-SWD'!$A$6:$AG$500,8,FALSE)="",0,VLOOKUP($A$3,'GEO-SWD'!$A$6:$AG$500,8,FALSE))&")")),"NA") -> 0% (2) | H38: =IFERROR((IF($C38="NA","NA",VLOOKUP($A$3,'GEO-SWD'!$A$6:$AM$500,10,FALSE))),"NA") -> 1.609269089 | I38: =IFERROR((IF($C38="NA","NA",ROUND(VLOOKUP($A$3,'GEO-SWD'!$A$6:$AM$500,12,FALSE),0)&"% ("&IF(VLOOKUP($A$3,'GEO-SWD'!$A$6:$AM$500,11,FALSE)="",0,VLOOKUP($A$3,'GEO-SWD'!$A$6:$AM$500,11,FALSE))&")")),"NA") -> 1% (26) | J38: =IFERROR((IF($C38="NA","NA",VLOOKUP($A$3,'GEO-SWD'!$A$6:$AM$500,13,FALSE))),"NA") -> 1.116945692 | K38: =IFERROR((IF($C38="NA","NA",ROUND(VLOOKUP($A$3,'GEO-SWD'!$A$6:$AM$500,15,FALSE),0)&"% ("&IF(VLOOKUP($A$3,'GEO-SWD'!$A$6:$AM$500,14,FALSE)="",0,VLOOKUP($A$3,'GEO-SWD'!$A$6:$AM$500,14,FALSE))&")")),"NA") -> 6% (143) | Q38: =IFERROR(VLOOKUP($A$3,'GEO-SWD'!$A$6:$BX$500,3,FALSE),"not tested") -> 2449
A39: Biology | Q39: Biology
A40: Level of Proficiency at 70% or above | B40: Course Enrollment | C40: % of Students Tested | D40: ='G9-10 Matrix'!C15&" ["&'G9-10 Matrix'!C16&"]" -> Overall [67] | F40: ='G9-10 Matrix'!D15&" ["&'G9-10 Matrix'!D16&"]" -> Molecular and Cellular Biology [23] | H40: ='G9-10 Matrix'!E15&" ["&'G9-10 Matrix'!E16&"]" -> Classification, Heredity, and Evolution [18] | J40: ='G9-10 Matrix'!F15&" ["&'G9-10 Matrix'!F16&"]" -> Organisms, Populations, and Ecosystems [26] | Q40: Number Tested
D41: Average Score | E41: % Proficient | F41: Average Score | G41: % Proficient | H41: Average Score | I41: % Proficient | J41: Average Score | K41: % Proficient
A42: All students | B42: =IFERROR(VLOOKUP(TEXT($A$3,"0000"),'Bio Enrollment'!$A$2:$C$497,3,FALSE),0) -> 29408 | C42: =IFERROR((IF(OR(B42<10,B42="",B42="NA"),"NA",((IF(VLOOKUP($A$3,'Bio-ALL'!$A$14:$AG$500,3,FALSE)>=B42,"100% ("&VLOOKUP($A$3,'Bio-ALL'!$A$14:$AG$500,3,FALSE)&")",(ROUND((VLOOKUP($A$3,'Bio-ALL'!$A$14:$AG$500,3,FALSE)/B42*100),0))&"% ("&VLOOKUP($A$3,'Bio-ALL'!$A$14:$AG$500,3,FALSE)&")"))))),"NA") -> 93% (27460) | D42: =IFERROR((IF($C42="NA","NA",VLOOKUP($A$3,'Bio-ALL'!$A$14:$AG$500,4,FALSE))),"NA") -> 23.09974546 | E42: =IFERROR((IF($C42="NA","NA",ROUND(VLOOKUP($A$3,'Bio-ALL'!$A$14:$AG$500,9,FALSE)*100,0)&"% ("&IF(VLOOKUP($A$3,'Bio-ALL'!$A$14:$AG$500,7,FALSE)="",0,VLOOKUP($A$3,'Bio-ALL'!$A$14:$AG$500,7,FALSE))&")")),"NA") -> 1% (215) | F42: =IFERROR((IF($C42="NA","NA",VLOOKUP($A$3,'Bio-ALL'!$A$14:$AG$500,10,FALSE))),"NA") -> 7.44987259 | G42: =IFERROR((IF($C42="NA","NA",ROUND(VLOOKUP($A$3,'Bio-ALL'!$A$14:$AG$500,15,FALSE)*100,0)&"% ("&IF(VLOOKUP($A$3,'Bio-ALL'!$A$14:$AG$500,13,FALSE)="",0,VLOOKUP($A$3,'Bio-ALL'!$A$14:$AG$500,13,FALSE))&")")),"NA") -> 1% (250) | H42: =IFERROR((IF($C42="NA","NA",VLOOKUP($A$3,'Bio-ALL'!$A$14:$AG$500,16,FALSE))),"NA") -> 6.250127459 | I42: =IFERROR((IF($C42="NA","NA",ROUND(VLOOKUP($A$3,'Bio-ALL'!$A$14:$AG$500,21,FALSE)*100,0)&"% ("&IF(VLOOKUP($A$3,'Bio-ALL'!$A$14:$AG$500,19,FALSE)="",0,VLOOKUP($A$3,'Bio-ALL'!$A$14:$AG$500,19,FALSE))&")")),"NA") -> 2% (462) | J42: =IFERROR((IF($C42="NA","NA",VLOOKUP($A$3,'Bio-ALL'!$A$14:$AG$500,22,FALSE))),"NA") -> 9.449872351 | K42: =IFERROR((IF($C42="NA","NA",ROUND(VLOOKUP($A$3,'Bio-ALL'!$A$14:$AG$500,27,FALSE)*100,0)&"% ("&IF(VLOOKUP($A$3,'Bio-ALL'!$A$14:$AG$500,25,FALSE)="",0,VLOOKUP($A$3,'Bio-ALL'!$A$14:$AG$500,25,FALSE))&")")),"NA") -> 1% (313) | Q42: =IFERROR(VLOOKUP($A$3,'Bio-ALL'!$A$14:$BR$500,3,FALSE),"not tested") -> 27460
A43: US History | Q43: US History
A44: Level of Proficiency at 70% or above | B44: Course Enrollment | C44: % of Students Tested | D44: ='G9-10 Matrix'!C18&" ["&'G9-10 Matrix'!C19&"]" -> Overall [57] | F44: ='G9-10 Matrix'!D18&" ["&'G9-10 Matrix'!D19&"]" -> Late Nineteenth and Early Twentieth Century, 1860-1910 [9] | H44: ='G9-10 Matrix'!E18&" ["&'G9-10 Matrix'!E19&"]" -> Global Military, Political, & Econ. Challenges [19] | J44: ='G9-10 Matrix'!F18&" ["&'G9-10 Matrix'!F19&"]" -> The U.S. & Defense of the International Peace [29] | Q44: Number Tested
D45: Average Score | E45: % Proficient | F45: Average Score | G45: % Proficient | H45: Average Score | I45: % Proficient | J45: Average Score | K45: % Proficient
A46: All students | B46: =IFERROR(VLOOKUP(TEXT($A$3,"0000"),'USH Enrollment'!$A$2:$C$497,3,FALSE),0) -> 20996 | C46: =IFERROR((IF(OR(B46<10,B46="",B46="NA"),"NA",((IF(VLOOKUP($A$3,'USH-ALL'!$A$14:$AG$500,3,FALSE)>=B46,"100% ("&VLOOKUP($A$3,'USH-ALL'!$A$14:$AG$500,3,FALSE)&")",(ROUND((VLOOKUP($A$3,'USH-ALL'!$A$14:$AG$500,3,FALSE)/B46*100),0))&"% ("&VLOOKUP($A$3,'USH-ALL'!$A$14:$AG$500,3,FALSE)&")"))))),"NA") -> 93% (19511) | D46: =IFERROR((IF($C46="NA","NA",VLOOKUP($A$3,'USH-ALL'!$A$14:$AG$500,5,FALSE))),"NA") -> 0.3157894737 | E46: =IFERROR((IF($C46="NA","NA",ROUND(VLOOKUP($A$3,'USH-ALL'!$A$14:$AG$500,9,FALSE)*100,0)&"% ("&IF(VLOOKUP($A$3,'USH-ALL'!$A$14:$AG$500,7,FALSE)="",0,VLOOKUP($A$3,'USH-ALL'!$A$14:$AG$500,7,FALSE))&")")),"NA") -> 0% (36) | F46: =IFERROR((IF($C46="NA","NA",VLOOKUP($A$3,'USH-ALL'!$A$14:$AG$500,10,FALSE))),"NA") -> 2.948249755 | G46: =IFERROR((IF($C46="NA","NA",ROUND(VLOOKUP($A$3,'USH-ALL'!$A$14:$AG$500,15,FALSE)*100,0)&"% ("&IF(VLOOKUP($A$3,'USH-ALL'!$A$14:$AG$500,13,FALSE)="",0,VLOOKUP($A$3,'USH-ALL'!$A$14:$AG$500,13,FALSE))&")")),"NA") -> 2% (367) | H46: =IFERROR((IF($C46="NA","NA",VLOOKUP($A$3,'USH-ALL'!$A$14:$AG$500,16,FALSE))),"NA") -> 6.148249564 | I46: =IFERROR((IF($C46="NA","NA",ROUND(VLOOKUP($A$3,'USH-ALL'!$A$14:$AG$500,21,FALSE)*100,0)&"% ("&IF(VLOOKUP($A$3,'USH-ALL'!$A$14:$AG$500,19,FALSE)="",0,VLOOKUP($A$3,'USH-ALL'!$A$14:$AG$500,19,FALSE))&")")),"NA") -> 1% (100) | J46: =IFERROR((IF($C46="NA","NA",VLOOKUP($A$3,'USH-ALL'!$A$14:$AG$500,22,FALSE))),"NA") -> 8.903500681 | K46: =IFERROR((IF($C46="NA","NA",ROUND(VLOOKUP($A$3,'USH-ALL'!$A$14:$AG$500,27,FALSE)*100,0)&"% ("&IF(VLOOKUP($A$3,'USH-ALL'!$A$14:$AG$500,25,FALSE)="",0,VLOOKUP($A$3,'USH-ALL'!$A$14:$AG$500,25,FALSE))&")")),"NA") -> 0% (24) | Q46: =IFERROR(VLOOKUP($A$3,'USH-ALL'!$A$14:$BR$500,3,FALSE),"not tested") -> 19511

Sheet G6-8 Matrix (hidden)
A2: Grade | B2: Reading | C2: Overall | D2: Vocabulary | E2: Reading Application | F2: Literary Analysis Fiction/Nonfiction | G2: Informational Text/ Research Process
A3: 6 | B3: N of Items | C3: =SUM(D3:G3) -> 33 | D3: 5 | E3: 14 | F3: 7 | G3: 7
A4: 6 | B4: 51% Cut | C4: =ROUND(0.505*C3,2) -> 16.67 | D4: =ROUND(0.505*D3,2) -> 2.53 | E4: 7.07 | F4: 3.54 | G4: 3.54
A5: 7 | B5: N of Items | C5: =SUM(D5:G5) -> 39 | D5: 7 | E5: 19 | F5: 6 | G5: 7
A6: 7 | B6: 51% Cut | C6: =ROUND(0.505*C5,2) -> 19.7 | D6: =ROUND(0.505*D5,2) -> 3.54 | E6: =ROUND(0.505*E5,2) -> 9.6 | F6: =ROUND(0.505*F5,2) -> 3.03 | G6: =ROUND(0.505*G5,2) -> 3.54
A7: 8 | B7: N of Items | C7: =SUM(D7:G7) -> 33 | D7: 6 | E7: 17 | F7: 6 | G7: 4
A8: 8 | B8: 51% Cut | C8: =ROUND(0.505*C7,2) -> 16.67 | D8: =ROUND(0.505*D7,2) -> 3.03 | E8: =ROUND(0.505*E7,2) -> 8.59 | F8: =ROUND(0.505*F7,2) -> 3.03 | G8: =ROUND(0.505*G7,2) -> 2.02
A10: 6 | B10: Math | C10: Overall | D10: Fractions, Ratios/ Proportional Relationships, and Statistics | E10: Expressions and Equations | F10: Geometry and Measurement
A11: 6 | B11: N of Items | C11: =SUM(D11:F11) -> 35 | D11: 20 | E11: 8 | F11: 7
A12: 6 | B12: 51% Cut | C12: =ROUND(0.505*C11,2) -> 17.68 | D12: =ROUND(0.505*D11,2) -> 10.1 | E12: 4.04 | F12: 3.54
A13: 7 | B13: Math | C13: Overall | D13: Number: Base Ten | E13: Ratios/Proportional Relationships | F13: Geometry and Measurement | G13: Statistics and Probability
A14: 7 | B14: N of Items | C14: =SUM(D14:G14) -> 42 | D14: 10 | E14: 12 | F14: 12 | G14: 8
A15: 7 | B15: 51% Cut | C15: =ROUND(0.505*C14,2) -> 21.21 | D15: =ROUND(0.505*D14,2) -> 5.05 | E15: 6.06 | F15: 6.06 | G15: 4.04
A16: 8 | B16: Math | C16: Overall | D16: Number: Operations, Problems, and Stat. | E16: Expressions, Equations, and Functions | F16: Geometry and Measurement
A17: 8 | B17: N of Items | C17: =SUM(D17:F17) -> 34 | D17: 10 | E17: 14 | F17: 10
A18: 8 | B18: 51% Cut | C18: =ROUND(0.505*C17,2) -> 17.17 | D18: =ROUND(0.505*D17,2) -> 5.05 | E18: =ROUND(0.505*E17,2) -> 7.07 | F18: =ROUND(0.505*F17,2) -> 5.05
A19: 8 | B19: Science | C19: Overall | D19: Nature of Science | E19: Earth & Space Science | F19: Physical Science | G19: Life Science
A20: 8 | B20: N of Items | C20: =SUM(D20:G20) -> 73 | D20: 12 | E20: 22 | F20: 20 | G20: 19
A21: 8 | B21: 51% Cut | C21: =ROUND(0.505*C20,2) -> 36.87 | D21: =ROUND(0.505*D20,2) -> 6.06 | E21: =ROUND(0.505*E20,2) -> 11.11 | F21: =ROUND(0.505*F20,2) -> 10.1 | G21: =ROUND(0.505*G20,2) -> 9.6
A22: 8 | B22: Civics EOC | C22: Overall | D22: Government Policies and Political Processes | E22: Organization and Function of Government | F22: Origins and Purposes of Law and Government | G22: Roles, Rights, and Responsibilities
A23: 8 | B23: N of Items | C23: =SUM(D23:G23) -> 39 | D23: 8 | E23: 12 | F23: 11 | G23: 8
A24: 8 | B24: 51% Cut | C24: =ROUND(0.505*C23,2) -> 19.7 | D24: =ROUND(0.505*D23,2) -> 4.04 | E24: =ROUND(0.505*E23,2) -> 6.06 | F24: =ROUND(0.505*F23,2) -> 5.56 | G24: =ROUND(0.505*G23,2) -> 4.04

Sheet G9-10 Matrix (hidden)
A2: Grade | B2: Reading | C2: Overall | D2: Vocabulary | E2: Reading Application | F2: Literary Analysis Fiction/Nonfiction | G2: Informational Text/ Research Process
A3: 9 | B3: N of Items | C3: =SUM(D3:G3) -> 43 | D3: 7 | E3: 22 | F3: 6 | G3: 8
A4: 9 | B4: 51% Cut | C4: =ROUND(0.505*C3,2) -> 21.72 | D4: =ROUND(0.505*D3,2) -> 3.54 | E4: 11.11 | F4: 3.03 | G4: 4.04
A5: 10 | B5: N of Items | C5: =SUM(D5:G5) -> 34 | D5: 5 | E5: 15 | F5: 4 | G5: 10
A6: 10 | B6: 51% Cut | C6: =ROUND(0.505*C5,2) -> 17.17 | D6: =ROUND(0.505*D5,2) -> 2.53 | E6: 7.58 | F6: 2.02 | G6: 5.05
A8: Algebra | B8: Algebra | C8: Overall | D8: Functions, Linear Equations, and Inequalities | E8: Polynomials | F8: Rationals, Radicals, Quadratics, and Discrete Mathematics
B9: N of Items | C9: =SUM(D9:G9) -> 48 | D9: 28 | E9: 7 | F9: 13
B10: 51% Cut | C10: =ROUND(0.505*C9,2) -> 24.24 | D10: =ROUND(0.505*D9,2) -> 14.14 | E10: 3.54 | F10: 6.57
A12: Geometry | B12: Geometry | C12: Overall | D12: Two-Dimensional Geometry | E12: Three-Dimensional Geometry | F12: Trigonometry and Discrete Mathematics
B13: N of Items | C13: =SUM(D13:F13) -> 38 | D13: 28 | E13: 6 | F13: 4
B14: 51% Cut | C14: =ROUND(0.505*C13,2) -> 19.19 | D14: =ROUND(0.505*D13,2) -> 14.14 | E14: 3.03 | F14: 2.02
A15: Biology | B15: Biology | C15: Overall | D15: Molecular and Cellular Biology | E15: Classification, Heredity, and Evolution | F15: Organisms, Populations, and Ecosystems
B16: N of Items | C16: =SUM(D16:G16) -> 67 | D16: 23 | E16: 18 | F16: 26
B17: 51% Cut | C17: =ROUND(0.505*C16,2) -> 33.84 | D17: =ROUND(0.505*D16,2) -> 11.62 | E17: 9.09 | F17: 13.13
A18: US History | B18: US History | C18: Overall | D18: Late Nineteenth and Early Twentieth Century, 1860-1910 | E18: Global Military, Political, & Econ. Challenges | F18: The U.S. & Defense of the International Peace
B19: N of Items | C19: =SUM(D19:G19) -> 57 | D19: 9 | E19: 19 | F19: 29
B20: 51% Cut | C20: =ROUND(0.505*C19,2) -> 28.79 | D20: =ROUND(0.505*D19,2) -> 4.55 | E20: 9.6 | F20: 14.65

Sheet Geo Gr08 (hidden)
A1: 1 | B1: 2 | C1: 3 | D1: 4 | E1: 5 | F1: 6 | G1: 7 | H1: 8 | I1: 9 | J1: 10 | K1: 11 | L1: 12 | M1: 13 | N1: 14 | O1: 15 | P1: 16 | Q1: 17
A2: 08 | B2: SchName | C2: Total | D2: ML1 | E2: ML2 | F2: ML3 | G2: ML4 | H2: ML5 | I2: ML0 | J2: W | K2: B | L2: H | M2: A | N2: I | O2: ED | P2: ELL | Q2: SWD
A3: 0070 | B3: CORAL REEF MONTESSORI ACAD CH | C3: 6 | D3: 0 | E3: 0 | F3: 0 | G3: 0 | H3: 1 | I3: 5 | J3: 0 | K3: 0 | L3: 5 | M3: 1 | N3: 0 | O3: 1 | P3: 0 | Q3: 0
A4: 0071 | B4: EUGENIA B. THOMAS K-8 CENTER | C4: 16 | D4: 0 | E4: 0 | F4: 0 | G4: 0 | H4: 0 | I4: 16 | J4: 1 | K4: 0 | L4: 14 | M4: 1 | N4: 0 | O4: 11 | P4: 0 | Q4: 0
A5: 0092 | B5: NORMAN S. EDELCUP/SUNNY ISLES | C5: 24 | D5: 0 | E5: 0 | F5: 0 | G5: 0 | H5: 0 | I5: 24 | J5: 13 | K5: 0 | L5: 10 | M5: 1 | N5: 0 | O5: 7 | P5: 0 | Q5: 0
A6: 0231 | B6: AVENTURA WATERWAYS K-8 CENTER | C6: 22 | D6: 0 | E6: 0 | F6: 0 | G6: 0 | H6: 1 | I6: 21 | J6: 8 | K6: 1 | L6: 13 | M6: 0 | N6: 0 | O6: 7 | P6: 0 | Q6: 1
A7: 0241 | B7: RUTH K BROAD/BAY HARBOR K-8 | C7: 13 | D7: 0 | E7: 0 | F7: 0 | G7: 0 | H7: 0 | I7: 13 | J7: 6 | K7: 1 | L7: 6 | M7: 0 | N7: 0 | O7: 4 | P7: 0 | Q7: 1
A8: 0332 | B8: SOMERSET ACADEMY(SILVER PALMS) | C8: 9 | D8: 0 | E8: 0 | F8: 0 | G8: 3 | H8: 5 | I8: 1 | J8: 0 | K8: 2 | L8: 6 | M8: 1 | N8: 0 | O8: 7 | P8: 0 | Q8: 0
A9: 0950 | B9: AVENTURA CITY OF EXCELLENCE | C9: 25 | D9: 0 | E9: 0 | F9: 0 | G9: 0 | H9: 1 | I9: 24 | J9: 12 | K9: 0 | L9: 12 | M9: 1 | N9: 0 | O9: 1 | P9: 0 | Q9: 0
A10: 0961 | B10: CORAL GABLES PREPARATORY ACAD | C10: 35 | D10: 0 | E10: 0 | F10: 0 | G10: 0 | H10: 0 | I10: 35 | J10: 3 | K10: 0 | L10: 32 | M10: 0 | N10: 0 | O10: 14 | P10: 1 | Q10: 0
A11: 1020 | B11: YOUTH CO-OP CHARTER SCHOOL | C11: 22 | D11: 0 | E11: 0 | F11: 0 | G11: 0 | H11: 0 | I11: 21 | J11: 0 | K11: 1 | L11: 19 | M11: 0 | N11: 1 | O11: 16 | P11: 0 | Q11: 0
A12: 1331 | B12: DEVON AIRE K-8 CENTER | C12: 24 | D12: 0 | E12: 0 | F12: 0 | G12: 0 | H12: 0 | I12: 24 | J12: 9 | K12: 0 | L12: 11 | M12: 3 | N12: 0 | O12: 8 | P12: 0 | Q12: 0
A13: 1681 | B13: LILLIE C. EVANS K-8 CENTER | C13: 2 | D13: 0 | E13: 0 | F13: 0 | G13: 2 | H13: 0 | I13: 0 | J13: 0 | K13: 2 | L13: 0 | M13: 0 | N13: 0 | O13: 2 | P13: 0 | Q13: 0
A14: 1721 | B14: EVERGLADES K-8 CENTER | C14: 19 | D14: 0 | E14: 0 | F14: 1 | G14: 0 | H14: 1 | I14: 17 | J14: 0 | K14: 0 | L14: 19 | M14: 0 | N14: 0 | O14: 10 | P14: 0 | Q14: 0
A15: 2060 | B15: GIBSON CHARTER SCHOOL | C15: 1 | D15: 0 | E15: 0 | F15: 0 | G15: 1 | H15: 0 | I15: 0 | J15: 0 | K15: 1 | L15: 0 | M15: 0 | N15: 0 | O15: 1 | P15: 0 | Q15: 1
A16: 2741 | B16: KEY BISCAYNE K-8 CENTER | C16: 16 | D16: 0 | E16: 0 | F16: 0 | G16: 0 | H16: 0 | I16: 16 | J16: 5 | K16: 1 | L16: 10 | M16: 0 | N16: 0 | O16: 3 | P16: 1 | Q16: 1
A17: 2911 | B17: LINDA LENTIN K-8 CENTER | C17: 1 | D17: 0 | E17: 0 | F17: 0 | G17: 0 | H17: 0 | I17: 1 | J17: 0 | K17: 0 | L17: 1 | M17: 0 | N17: 0 | O17: 0 | P17: 0 | Q17: 0
A18: 3029 | B18: DORAL ACADEMY OF TECHNOLOGY | C18: 28 | D18: 0 | E18: 0 | F18: 0 | G18: 0 | H18: 0 | I18: 28 | J18: 1 | K18: 2 | L18: 25 | M18: 0 | N18: 0 | O18: 9 | P18: 0 | Q18: 0
A19: 3101 | B19: FRANK C. MARTIN K-8 CENTER | C19: 48 | D19: 0 | E19: 0 | F19: 0 | G19: 0 | H19: 0 | I19: 48 | J19: 4 | K19: 18 | L19: 19 | M19: 3 | N19: 0 | O19: 21 | P19: 0 | Q19: 0
A20: 3191 | B20: ADA MERRITT K-8 CENTER | C20: 17 | D20: 0 | E20: 0 | F20: 0 | G20: 0 | H20: 0 | I20: 17 | J20: 6 | K20: 0 | L20: 10 | M20: 1 | N20: 0 | O20: 3 | P20: 0 | Q20: 0
A21: 3281 | B21: MIAMI LAKES K-8 CENTER | C21: 29 | D21: 0 | E21: 0 | F21: 0 | G21: 0 | H21: 0 | I21: 29 | J21: 4 | K21: 0 | L21: 24 | M21: 1 | N21: 0 | O21: 3 | P21: 0 | Q21: 0
A22: 3610 | B22: KEYS GATE CHARTER SCHOOL | C22: 66 | D22: 0 | E22: 0 | F22: 0 | G22: 0 | H22: 0 | I22: 66 | J22: 14 | K22: 9 | L22: 40 | M22: 3 | N22: 0 | O22: 41 | P22: 0 | Q22: 1
A23: 3621 | B23: COCONUT PALM K-8 ACADEMY | C23: 39 | D23: 0 | E23: 0 | F23: 0 | G23: 0 | H23: 0 | I23: 36 | J23: 0 | K23: 15 | L23: 19 | M23: 2 | N23: 0 | O23: 30 | P23: 2 | Q23: 0
A24: 4031 | B24: GATEWAY ENVIRONMENTAL K-8 | C24: 1 | D24: 0 | E24: 0 | F24: 0 | G24: 0 | H24: 0 | I24: 1 | J24: 0 | K24: 1 | L24: 0 | M24: 0 | N24: 0 | O24: 1 | P24: 0 | Q24: 0
A25: 5005 | B25: DAVID LAWRENCE JR K-8 CENTER | C25: 12 | D25: 0 | E25: 0 | F25: 0 | G25: 1 | H25: 0 | I25: 11 | J25: 4 | K25: 2 | L25: 4 | M25: 1 | N25: 0 | O25: 5 | P25: 0 | Q25: 0
A26: 5006 | B26: EVERGLADES PREPARATORY ACADEMY | C26: 24 | D26: 0 | E26: 0 | F26: 0 | G26: 1 | H26: 0 | I26: 23 | J26: 3 | K26: 2 | L26: 19 | M26: 0 | N26: 0 | O26: 18 | P26: 0 | Q26: 1
A27: 5010 | B27: OXFORD ACADEMY OF MIAMI | C27: 1 | D27: 0 | E27: 0 | F27: 0 | G27: 0 | H27: 0 | I27: 1 | J27: 0 | K27: 1 | L27: 0 | M27: 0 | N27: 0 | O27: 1 | P27: 0 | Q27: 0
A28: 5101 | B28: JOHN I. SMITH K-8 CENTER | C28: 13 | D28: 0 | E28: 0 | F28: 0 | G28: 0 | H28: 0 | I28: 13 | J28: 2 | K28: 0 | L28: 10 | M28: 1 | N28: 0 | O28: 4 | P28: 1 | Q28: 0
A29: 5961 | B29: WINSTON PARK K-8 CENTER | C29: 23 | D29: 0 | E29: 0 | F29: 0 | G29: 1 | H29: 1 | I29: 21 | J29: 1 | K29: 0 | L29: 21 | M29: 1 | N29: 0 | O29: 15 | P29: 0 | Q29: 1
A30: 6001 | B30: HERBERT A. AMMONS MIDDLE | C30: 99 | D30: 0 | E30: 0 | F30: 0 | G30: 0 | H30: 2 | I30: 97 | J30: 18 | K30: 8 | L30: 63 | M30: 7 | N30: 1 | O30: 37 | P30: 0 | Q30: 1
A31: 6004 | B31: SOMERSET ACADEMY MIDDLE | C31: 26 | D31: 0 | E31: 0 | F31: 0 | G31: 0 | H31: 0 | I31: 26 | J31: 3 | K31: 1 | L31: 22 | M31: 0 | N31: 0 | O31: 14 | P31: 0 | Q31: 0
A32: 6006 | B32: ARCHIMEDEAN CONSERVATORY | C32: 114 | D32: 1 | E32: 7 | F32: 25 | G32: 32 | H32: 46 | I32: 1 | J32: 13 | K32: 2 | L32: 85 | M32: 12 | N32: 0 | O32: 55 | P32: 4 | Q32: 5
A33: 6009 | B33: MATER ACADEMY EAST MIDDLE | C33: 2 | D33: 0 | E33: 0 | F33: 0 | G33: 0 | H33: 0 | I33: 2 | J33: 0 | K33: 2 | L33: 0 | M33: 0 | N33: 0 | O33: 2 | P33: 0 | Q33: 0
A34: 6010 | B34: FLORIDA INTERNATIONAL ACADEMY | C34: 17 | D34: 0 | E34: 0 | F34: 1 | G34: 0 | H34: 0 | I34: 16 | J34: 0 | K34: 16 | L34: 1 | M34: 0 | N34: 0 | O34: 17 | P34: 1 | Q34: 1
A35: 6011 | B35: ALLAPATTAH MIDDLE | C35: 2 | D35: 0 | E35: 1 | F35: 0 | G35: 0 | H35: 1 | I35: 0 | J35: 0 | K35: 2 | L35: 0 | M35: 0 | N35: 0 | O35: 2 | P35: 0 | Q35: 0
A36: 6012 | B36: MATER ACADEMY CHARTER MIDDLE | C36: 56 | D36: 0 | E36: 0 | F36: 1 | G36: 6 | H36: 44 | I36: 5 | J36: 1 | K36: 2 | L36: 53 | M36: 0 | N36: 0 | O36: 44 | P36: 2 | Q36: 0
A37: 6013 | B37: SOMERSET ACADEMY MIDDLE-SOUTH | C37: 2 | D37: 0 | E37: 0 | F37: 0 | G37: 0 | H37: 0 | I37: 2 | J37: 1 | K37: 0 | L37: 1 | M37: 0 | N37: 0 | O37: 2 | P37: 0 | Q37: 0
A38: 6014 | B38: IMATER ACADEMY MIDDLE SCHOOL | C38: 1 | D38: 0 | E38: 0 | F38: 0 | G38: 0 | H38: 0 | I38: 0 | J38: 0 | K38: 0 | L38: 0 | M38: 0 | N38: 0 | O38: 0 | P38: 0 | Q38: 0
A39: 6021 | B39: ARVIDA MIDDLE SCHOOL | C39: 47 | D39: 0 | E39: 0 | F39: 0 | G39: 1 | H39: 0 | I39: 45 | J39: 5 | K39: 3 | L39: 32 | M39: 6 | N39: 0 | O39: 16 | P39: 0 | Q39: 0
A40: 6022 | B40: PINECREST ACADEMY CHARTER MIDD | C40: 20 | D40: 0 | E40: 0 | F40: 0 | G40: 0 | H40: 0 | I40: 19 | J40: 0 | K40: 0 | L40: 19 | M40: 0 | N40: 0 | O40: 6 | P40: 0 | Q40: 0
A41: 6023 | B41: ANDOVER MIDDLE SCHOOL | C41: 48 | D41: 0 | E41: 0 | F41: 0 | G41: 0 | H41: 0 | I41: 48 | J41: 0 | K41: 45 | L41: 0 | M41: 2 | N41: 0 | O41: 38 | P41: 1 | Q41: 0
A42: 6030 | B42: DORAL ACADEMY CHARTER MIDDLE | C42: 61 | D42: 0 | E42: 0 | F42: 0 | G42: 1 | H42: 0 | I42: 60 | J42: 4 | K42: 1 | L42: 52 | M42: 4 | N42: 0 | O42: 28 | P42: 0 | Q42: 0
A43: 6031 | B43: BROWNSVILLE MIDDLE | C43: 9 | D43: 0 | E43: 1 | F43: 6 | G43: 2 | H43: 0 | I43: 0 | J43: 0 | K43: 5 | L43: 4 | M43: 0 | N43: 0 | O43: 9 | P43: 0 | Q43: 0
A44: 6033 | B44: MATER ACADEMY LAKES MIDDLE | C44: 4 | D44: 0 | E44: 0 | F44: 0 | G44: 0 | H44: 2 | I44: 2 | J44: 0 | K44: 0 | L44: 4 | M44: 0 | N44: 0 | O44: 2 | P44: 0 | Q44: 0
A45: 6040 | B45: DOCTORS CHARTER/MIAMI SHORES | C45: 3 | D45: 0 | E45: 0 | F45: 0 | G45: 0 | H45: 0 | I45: 3 | J45: 2 | K45: 0 | L45: 1 | M45: 0 | N45: 0 | O45: 0 | P45: 0 | Q45: 0
A46: 6041 | B46: PAUL W. BELL MIDDLE | C46: 6 | D46: 0 | E46: 0 | F46: 0 | G46: 0 | H46: 0 | I46: 6 | J46: 0 | K46: 0 | L46: 6 | M46: 0 | N46: 0 | O46: 6 | P46: 1 | Q46: 0
A47: 6045 | B47: INTL. STUDIES CHARTER MIDDLE | C47: 10 | D47: 0 | E47: 0 | F47: 0 | G47: 0 | H47: 0 | I47: 9 | J47: 0 | K47: 0 | L47: 9 | M47: 0 | N47: 0 | O47: 8 | P47: 0 | Q47: 0
A48: 6052 | B48: ZELDA GLAZER MIDDLE SCHOOL | C48: 91 | D48: 0 | E48: 0 | F48: 0 | G48: 0 | H48: 0 | I48: 89 | J48: 2 | K48: 1 | L48: 85 | M48: 1 | N48: 0 | O48: 62 | P48: 0 | Q48: 0
A49: 6060 | B49: ASPIRA SOUTH YOUTH LEADERSHIP | C49: 3 | D49: 0 | E49: 0 | F49: 0 | G49: 0 | H49: 1 | I49: 2 | J49: 0 | K49: 0 | L49: 3 | M49: 0 | N49: 0 | O49: 3 | P49: 0 | Q49: 0
A50: 6071 | B50: GEORGE WASHINGTON CARVER | C50: 42 | D50: 0 | E50: 0 | F50: 0 | G50: 0 | H50: 1 | I50: 41 | J50: 15 | K50: 1 | L50: 24 | M50: 2 | N50: 0 | O50: 4 | P50: 1 | Q50: 0
A51: 6081 | B51: CUTLER BAY ACAD OF ADV STUDIES | C51: 3 | D51: 0 | E51: 0 | F51: 0 | G51: 0 | H51: 0 | I51: 3 | J51: 2 | K51: 0 | L51: 1 | M51: 0 | N51: 0 | O51: 0 | P51: 0 | Q51: 0
A52: 6111 | B52: CUTLER BAY ACAD - CUTLER RIDGE | C52: 7 | D52: 0 | E52: 0 | F52: 1 | G52: 0 | H52: 0 | I52: 6 | J52: 1 | K52: 3 | L52: 2 | M52: 1 | N52: 0 | O52: 6 | P52: 0 | Q52: 0
A53: 6121 | B53: RUBEN DARIO MIDDLE | C53: 0 | D53: 0 | E53: 0 | F53: 0 | G53: 0 | H53: 0 | I53: 0 | J53: 0 | K53: 0 | L53: 0 | M53: 0 | N53: 0 | O53: 0 | P53: 0 | Q53: 0
A54: 6161 | B54: LAWTON CHILES MIDDLE SCHOOL | C54: 2 | D54: 0 | E54: 0 | F54: 0 | G54: 0 | H54: 0 | I54: 2 | J54: 0 | K54: 1 | L54: 1 | M54: 0 | N54: 0 | O54: 2 | P54: 0 | Q54: 0
A55: 6211 | B55: GLADES MIDDLE | C55: 52 | D55: 0 | E55: 0 | F55: 0 | G55: 0 | H55: 0 | I55: 51 | J55: 4 | K55: 1 | L55: 43 | M55: 3 | N55: 0 | O55: 23 | P55: 0 | Q55: 0
A56: 6221 | B56: HAMMOCKS MIDDLE | C56: 1 | D56: 0 | E56: 0 | F56: 0 | G56: 0 | H56: 0 | I56: 1 | J56: 0 | K56: 0 | L56: 1 | M56: 0 | N56: 0 | O56: 1 | P56: 0 | Q56: 0
A57: 6241 | B57: HIGHLAND OAKS MIDDLE | C57: 99 | D57: 0 | E57: 0 | F57: 0 | G57: 0 | H57: 0 | I57: 97 | J57: 46 | K57: 25 | L57: 24 | M57: 2 | N57: 0 | O57: 47 | P57: 2 | Q57: 1
A58: 6281 | B58: THOMAS JEFFERSON MIDDLE | C58: 2 | D58: 0 | E58: 0 | F58: 0 | G58: 0 | H58: 0 | I58: 2 | J58: 0 | K58: 2 | L58: 0 | M58: 0 | N58: 0 | O58: 1 | P58: 0 | Q58: 0
A59: 6301 | B59: JOHN F. KENNEDY MIDDLE | C59: 85 | D59: 0 | E59: 0 | F59: 0 | G59: 0 | H59: 0 | I59: 85 | J59: 6 | K59: 57 | L59: 16 | M59: 4 | N59: 0 | O59: 72 | P59: 0 | Q59: 0
A60: 6351 | B60: LAKE STEVENS MIDDLE | C60: 1 | D60: 0 | E60: 0 | F60: 0 | G60: 0 | H60: 1 | I60: 0 | J60: 0 | K60: 1 | L60: 0 | M60: 0 | N60: 0 | O60: 1 | P60: 0 | Q60: 0
A61: 6441 | B61: HOWARD D. MCMILLAN MIDDLE | C61: 51 | D61: 0 | E61: 0 | F61: 0 | G61: 0 | H61: 0 | I61: 51 | J61: 3 | K61: 2 | L61: 43 | M61: 3 | N61: 0 | O61: 42 | P61: 1 | Q61: 0
A62: 6501 | B62: MIAMI LAKES MIDDLE | C62: 17 | D62: 0 | E62: 1 | F62: 2 | G62: 0 | H62: 2 | I62: 12 | J62: 0 | K62: 0 | L62: 16 | M62: 1 | N62: 0 | O62: 15 | P62: 0 | Q62: 0
A63: 6521 | B63: MIAMI SPRINGS MIDDLE | C63: 52 | D63: 0 | E63: 0 | F63: 0 | G63: 0 | H63: 0 | I63: 52 | J63: 3 | K63: 4 | L63: 41 | M63: 4 | N63: 0 | O63: 36 | P63: 0 | Q63: 1
A64: 6541 | B64: NAUTILUS MIDDLE | C64: 52 | D64: 0 | E64: 0 | F64: 0 | G64: 0 | H64: 1 | I64: 51 | J64: 23 | K64: 1 | L64: 27 | M64: 0 | N64: 0 | O64: 25 | P64: 1 | Q64: 0
A65: 6571 | B65: NORLAND MIDDLE | C65: 6 | D65: 0 | E65: 0 | F65: 0 | G65: 3 | H65: 2 | I65: 0 | J65: 0 | K65: 5 | L65: 0 | M65: 0 | N65: 0 | O65: 5 | P65: 0 | Q65: 0
A66: 6591 | B66: NORTH DADE MIDDLE | C66: 24 | D66: 0 | E66: 0 | F66: 1 | G66: 0 | H66: 0 | I66: 23 | J66: 0 | K66: 18 | L66: 6 | M66: 0 | N66: 0 | O66: 17 | P66: 1 | Q66: 0
A67: 6611 | B67: COUNTRY CLUB MIDDLE SCHOOL | C67: 19 | D67: 0 | E67: 0 | F67: 0 | G67: 0 | H67: 0 | I67: 19 | J67: 0 | K67: 2 | L67: 16 | M67: 0 | N67: 0 | O67: 17 | P67: 0 | Q67: 0
A68: 6701 | B68: PALMETTO MIDDLE | C68: 30 | D68: 0 | E68: 0 | F68: 0 | G68: 0 | H68: 2 | I68: 28 | J68: 13 | K68: 3 | L68: 7 | M68: 6 | N68: 0 | O68: 3 | P68: 0 | Q68: 1
A69: 6741 | B69: PONCE DE LEON MIDDLE | C69: 56 | D69: 0 | E69: 0 | F69: 0 | G69: 4 | H69: 0 | I69: 52 | J69: 6 | K69: 3 | L69: 44 | M69: 2 | N69: 1 | O69: 42 | P69: 0 | Q69: 0
A70: 6751 | B70: HIALEAH GARDENS MIDDLE SCHOOL | C70: 233 | D70: 0 | E70: 1 | F70: 0 | G70: 0 | H70: 0 | I70: 230 | J70: 2 | K70: 0 | L70: 227 | M70: 2 | N70: 0 | O70: 196 | P70: 8 | Q70: 2
A71: 6771 | B71: JORGE MAS CANOSA MIDDLE | C71: 56 | D71: 0 | E71: 0 | F71: 1 | G71: 0 | H71: 0 | I71: 54 | J71: 8 | K71: 1 | L71: 45 | M71: 1 | N71: 0 | O71: 33 | P71: 0 | Q71: 1
A72: 6781 | B72: RICHMOND HEIGHTS MIDDLE | C72: 9 | D72: 0 | E72: 0 | F72: 0 | G72: 0 | H72: 0 | I72: 9 | J72: 1 | K72: 2 | L72: 5 | M72: 1 | N72: 0 | O72: 5 | P72: 0 | Q72: 0
A73: 6801 | B73: RIVIERA MIDDLE | C73: 65 | D73: 0 | E73: 0 | F73: 0 | G73: 0 | H73: 0 | I73: 64 | J73: 8 | K73: 1 | L73: 54 | M73: 1 | N73: 0 | O73: 49 | P73: 0 | Q73: 1
A74: 6821 | B74: ROCKWAY MIDDLE | C74: 24 | D74: 0 | E74: 0 | F74: 0 | G74: 0 | H74: 0 | I74: 24 | J74: 3 | K74: 0 | L74: 19 | M74: 2 | N74: 0 | O74: 19 | P74: 0 | Q74: 0
A75: 6841 | B75: SHENANDOAH MIDDLE | C75: 14 | D75: 0 | E75: 0 | F75: 0 | G75: 0 | H75: 0 | I75: 14 | J75: 0 | K75: 1 | L75: 13 | M75: 0 | N75: 0 | O75: 11 | P75: 0 | Q75: 0
A76: 6861 | B76: SOUTHWOOD MIDDLE | C76: 26 | D76: 0 | E76: 0 | F76: 1 | G76: 0 | H76: 1 | I76: 24 | J76: 12 | K76: 1 | L76: 6 | M76: 6 | N76: 0 | O76: 4 | P76: 0 | Q76: 0
A77: 6881 | B77: SOUTH MIAMI MIDDLE SCHOOL | C77: 1 | D77: 0 | E77: 0 | F77: 0 | G77: 0 | H77: 0 | I77: 1 | J77: 0 | K77: 0 | L77: 1 | M77: 0 | N77: 0 | O77: 0 | P77: 0 | Q77: 0
A78: 6901 | B78: W. R. THOMAS MIDDLE | C78: 157 | D78: 0 | E78: 0 | F78: 0 | G78: 0 | H78: 0 | I78: 149 | J78: 7 | K78: 1 | L78: 134 | M78: 7 | N78: 0 | O78: 104 | P78: 2 | Q78: 5
A79: 6921 | B79: LAMAR LOUISE CURRY MIDDLE SCH | C79: 58 | D79: 0 | E79: 0 | F79: 0 | G79: 0 | H79: 0 | I79: 56 | J79: 2 | K79: 1 | L79: 50 | M79: 3 | N79: 0 | O79: 32 | P79: 1 | Q79: 1
A80: 6997 | B80: MATER VIRTUAL ACADEMY CHARTER | C80: 1 | D80: 0 | E80: 0 | F80: 0 | G80: 0 | H80: 0 | I80: 1 | J80: 0 | K80: 0 | L80: 1 | M80: 0 | N80: 0 | O80: 0 | P80: 0 | Q80: 0
A81: 7001 | B81: MIAMI-DADE ONLINE ACADEMY 7001 | C81: 4 | D81: 0 | E81: 0 | F81: 0 | G81: 0 | H81: 0 | I81: 4 | J81: 1 | K81: 0 | L81: 3 | M81: 0 | N81: 0 | O81: 1 | P81: 0 | Q81: 0
A82: 7007 | B82: INTL. STUDIES CHARTER SENIOR | C82: 0 | D82: 0 | E82: 0 | F82: 0 | G82: 0 | H82: 0 | I82: 0 | J82: 0 | K82: 0 | L82: 0 | M82: 0 | N82: 0 | O82: 0 | P82: 0 | Q82: 0
A83: 7009 | B83: DORAL PERFORMING ARTS ACADEMY | C83: 0 | D83: 0 | E83: 0 | F83: 0 | G83: 0 | H83: 0 | I83: 0 | J83: 0 | K83: 0 | L83: 0 | M83: 0 | N83: 0 | O83: 0 | P83: 0 | Q83: 0
A84: 7011 | B84: AMERICAN SENIOR | C84: 0 | D84: 0 | E84: 0 | F84: 0 | G84: 0 | H84: 0 | I84: 0 | J84: 0 | K84: 0 | L84: 0 | M84: 0 | N84: 0 | O84: 0 | P84: 0 | Q84: 0
A85: 7014 | B85: MATER PERFORMING ARTS ACADEMY | C85: 0 | D85: 0 | E85: 0 | F85: 0 | G85: 0 | H85: 0 | I85: 0 | J85: 0 | K85: 0 | L85: 0 | M85: 0 | N85: 0 | O85: 0 | P85: 0 | Q85: 0
A86: 7015 | B86: STELLAR LEADERSHIP ACADEMY | C86: 0 | D86: 0 | E86: 0 | F86: 0 | G86: 0 | H86: 0 | I86: 0 | J86: 0 | K86: 0 | L86: 0 | M86: 0 | N86: 0 | O86: 0 | P86: 0 | Q86: 0
A87: 7016 | B87: SPORTS LEADERSHIP OF MIAMI CHS | C87: 0 | D87: 0 | E87: 0 | F87: 0 | G87: 0 | H87: 0 | I87: 0 | J87: 0 | K87: 0 | L87: 0 | M87: 0 | N87: 0 | O87: 0 | P87: 0 | Q87: 0
A88: 7018 | B88: MATER ACADEMY LAKES HIGH SCH | C88: 0 | D88: 0 | E88: 0 | F88: 0 | G88: 0 | H88: 0 | I88: 0 | J88: 0 | K88: 0 | L88: 0 | M88: 0 | N88: 0 | O88: 0 | P88: 0 | Q88: 0
A89: 7020 | B89: DORAL ACADEMY HIGH SCHOOL | C89: 0 | D89: 0 | E89: 0 | F89: 0 | G89: 0 | H89: 0 | I89: 0 | J89: 0 | K89: 0 | L89: 0 | M89: 0 | N89: 0 | O89: 0 | P89: 0 | Q89: 0
A90: 7022 | B90: ACADEMY OF ARTS AND MINDS | C90: 0 | D90: 0 | E90: 0 | F90: 0 | G90: 0 | H90: 0 | I90: 0 | J90: 0 | K90: 0 | L90: 0 | M90: 0 | N90: 0 | O90: 0 | P90: 0 | Q90: 0
A91: 7024 | B91: MATER ACADEMY HIGH-INTL STUDIE | C91: 0 | D91: 0 | E91: 0 | F91: 0 | G91: 0 | H91: 0 | I91: 0 | J91: 0 | K91: 0 | L91: 0 | M91: 0 | N91: 0 | O91: 0 | P91: 0 | Q91: 0
A92: 7029 | B92: TERRA ENVIRONMENTAL RESEARCH | C92: 0 | D92: 0 | E92: 0 | F92: 0 | G92: 0 | H92: 0 | I92: 0 | J92: 0 | K92: 0 | L92: 0 | M92: 0 | N92: 0 | O92: 0 | P92: 0 | Q92: 0
A93: 7030 | B93: INTEGRATED ACADEMICS (SIATECH) | C93: 0 | D93: 0 | E93: 0 | F93: 0 | G93: 0 | H93: 0 | I93: 0 | J93: 0 | K93: 0 | L93: 0 | M93: 0 | N93: 0 | O93: 0 | P93: 0 | Q93: 0
A94: 7031 | B94: MAST @ FIU BISCAYNE BAY CAMPUS | C94: 0 | D94: 0 | E94: 0 | F94: 0 | G94: 0 | H94: 0 | I94: 0 | J94: 0 | K94: 0 | L94: 0 | M94: 0 | N94: 0 | O94: 0 | P94: 0 | Q94: 0
A95: 7032 | B95: PALM GLADES PREP HIGH SCHOOL | C95: 0 | D95: 0 | E95: 0 | F95: 0 | G95: 0 | H95: 0 | I95: 0 | J95: 0 | K95: 0 | L95: 0 | M95: 0 | N95: 0 | O95: 0 | P95: 0 | Q95: 0
A96: 7033 | B96: LAW ENFORCEMENT OFFICERS HS | C96: 0 | D96: 0 | E96: 0 | F96: 0 | G96: 0 | H96: 0 | I96: 0 | J96: 0 | K96: 0 | L96: 0 | M96: 0 | N96: 0 | O96: 0 | P96: 0 | Q96: 0
A97: 7034 | B97: SOMERSET ACAD HIGH SOUTH-HMSTD | C97: 0 | D97: 0 | E97: 0 | F97: 0 | G97: 0 | H97: 0 | I97: 0 | J97: 0 | K97: 0 | L97: 0 | M97: 0 | N97: 0 | O97: 0 | P97: 0 | Q97: 0
A98: 7036 | B98: LAWRENCE ACADEMY SENIOR | C98: 0 | D98: 0 | E98: 0 | F98: 0 | G98: 0 | H98: 0 | I98: 0 | J98: 0 | K98: 0 | L98: 0 | M98: 0 | N98: 0 | O98: 0 | P98: 0 | Q98: 0
A99: 7037 | B99: MATER ACADEMY EAST HIGH SCHOOL | C99: 0 | D99: 0 | E99: 0 | F99: 0 | G99: 0 | H99: 0 | I99: 0 | J99: 0 | K99: 0 | L99: 0 | M99: 0 | N99: 0 | O99: 0 | P99: 0 | Q99: 0
A100: 7038 | B100: SOMERSET ACADEMY HIGH (SOUTH) | C100: 0 | D100: 0 | E100: 0 | F100: 0 | G100: 0 | H100: 0 | I100: 0 | J100: 0 | K100: 0 | L100: 0 | M100: 0 | N100: 0 | O100: 0 | P100: 0 | Q100: 0
A101: 7042 | B101: SOMERSET ACADEMY CHARTER HIGH | C101: 0 | D101: 0 | E101: 0 | F101: 0 | G101: 0 | H101: 0 | I101: 0 | J101: 0 | K101: 0 | L101: 0 | M101: 0 | N101: 0 | O101: 0 | P101: 0 | Q101: 0
A102: 7048 | B102: ALONZO & TRACY MOURNING SH | C102: 0 | D102: 0 | E102: 0 | F102: 0 | G102: 0 | H102: 0 | I102: 0 | J102: 0 | K102: 0 | L102: 0 | M102: 0 | N102: 0 | O102: 0 | P102: 0 | Q102: 0
A103: 7049 | B103: WESTLAND HIALEAH SENIOR HIGH | C103: 0 | D103: 0 | E103: 0 | F103: 0 | G103: 0 | H103: 0 | I103: 0 | J103: 0 | K103: 0 | L103: 0 | M103: 0 | N103: 0 | O103: 0 | P103: 0 | Q103: 0
A104: 7050 | B104: KEYS GATE CHARTER HIGH SCHL | C104: 0 | D104: 0 | E104: 0 | F104: 0 | G104: 0 | H104: 0 | I104: 0 | J104: 0 | K104: 0 | L104: 0 | M104: 0 | N104: 0 | O104: 0 | P104: 0 | Q104: 0
A105: 7051 | B105: G. HOLMES BRADDOCK SENIOR HIGH | C105: 0 | D105: 0 | E105: 0 | F105: 0 | G105: 0 | H105: 0 | I105: 0 | J105: 0 | K105: 0 | L105: 0 | M105: 0 | N105: 0 | O105: 0 | P105: 0 | Q105: 0
A106: 7053 | B106: PINECREST ACADEMY CHARTER HIGH | C106: 0 | D106: 0 | E106: 0 | F106: 0 | G106: 0 | H106: 0 | I106: 0 | J106: 0 | K106: 0 | L106: 0 | M106: 0 | N106: 0 | O106: 0 | P106: 0 | Q106: 0
A107: 7055 | B107: YOUNG WOMEN'S PREPARATORY ACAD | C107: 0 | D107: 0 | E107: 0 | F107: 0 | G107: 0 | H107: 0 | I107: 0 | J107: 0 | K107: 0 | L107: 0 | M107: 0 | N107: 0 | O107: 0 | P107: 0 | Q107: 0
A108: 7056 | B108: YOUNG MENS PREPARATORY ACADEMY | C108: 0 | D108: 0 | E108: 0 | F108: 0 | G108: 0 | H108: 0 | I108: 0 | J108: 0 | K108: 0 | L108: 0 | M108: 0 | N108: 0 | O108: 0 | P108: 0 | Q108: 0
A109: 7058 | B109: MIAMI COMMUNITY CH HIGH SCHOOL | C109: 0 | D109: 0 | E109: 0 | F109: 0 | G109: 0 | H109: 0 | I109: 0 | J109: 0 | K109: 0 | L109: 0 | M109: 0 | N109: 0 | O109: 0 | P109: 0 | Q109: 0
A110: 7059 | B110: MIAMI ARTS CHARTER | C110: 4 | D110: 0 | E110: 0 | F110: 0 | G110: 0 | H110: 0 | I110: 4 | J110: 0 | K110: 1 | L110: 3 | M110: 0 | N110: 0 | O110: 1 | P110: 0 | Q110: 0
A111: 7060 | B111: EVERGLADES PREP ACADEMY HIGH | C111: 0 | D111: 0 | E111: 0 | F111: 0 | G111: 0 | H111: 0 | I111: 0 | J111: 0 | K111: 0 | L111: 0 | M111: 0 | N111: 0 | O111: 0 | P111: 0 | Q111: 0
A112: 7062 | B112: MAVERICKS HIGH OF NORTH M-DADE | C112: 0 | D112: 0 | E112: 0 | F112: 0 | G112: 0 | H112: 0 | I112: 0 | J112: 0 | K112: 0 | L112: 0 | M112: 0 | N112: 0 | O112: 0 | P112: 0 | Q112: 0
A113: 7065 | B113: MAVERICKS HIGH OF SOUTH M-DADE | C113: 0 | D113: 0 | E113: 0 | F113: 0 | G113: 0 | H113: 0 | I113: 0 | J113: 0 | K113: 0 | L113: 0 | M113: 0 | N113: 0 | O113: 0 | P113: 0 | Q113: 0
A114: 7066 | B114: LBA CONSTR & BUS MGMT ACAD | C114: 0 | D114: 0 | E114: 0 | F114: 0 | G114: 0 | H114: 0 | I114: 0 | J114: 0 | K114: 0 | L114: 0 | M114: 0 | N114: 0 | O114: 0 | P114: 0 | Q114: 0
A115: 7067 | B115: GREEN SPRINGS HIGH SCHOOL | C115: 0 | D115: 0 | E115: 0 | F115: 0 | G115: 0 | H115: 0 | I115: 0 | J115: 0 | K115: 0 | L115: 0 | M115: 0 | N115: 0 | O115: 0 | P115: 0 | Q115: 0
A116: 7068 | B116: NORTH GARDENS HIGH SCHOOL | C116: 0 | D116: 0 | E116: 0 | F116: 0 | G116: 0 | H116: 0 | I116: 0 | J116: 0 | K116: 0 | L116: 0 | M116: 0 | N116: 0 | O116: 0 | P116: 0 | Q116: 0
A117: 7069 | B117: NORTH PARK HIGH SCHOOL | C117: 0 | D117: 0 | E117: 0 | F117: 0 | G117: 0 | H117: 0 | I117: 0 | J117: 0 | K117: 0 | L117: 0 | M117: 0 | N117: 0 | O117: 0 | P117: 0 | Q117: 0
A118: 7070 | B118: YOUTH CO-OP PREP HIGH SCHOOL | C118: 0 | D118: 0 | E118: 0 | F118: 0 | G118: 0 | H118: 0 | I118: 0 | J118: 0 | K118: 0 | L118: 0 | M118: 0 | N118: 0 | O118: 0 | P118: 0 | Q118: 0
A119: 7071 | B119: CORAL GABLES SENIOR HIGH | C119: 0 | D119: 0 | E119: 0 | F119: 0 | G119: 0 | H119: 0 | I119: 0 | J119: 0 | K119: 0 | L119: 0 | M119: 0 | N119: 0 | O119: 0 | P119: 0 | Q119: 0
A120: 7080 | B120: CHARTER HS OF THE AMERICAS | C120: 0 | D120: 0 | E120: 0 | F120: 0 | G120: 0 | H120: 0 | I120: 0 | J120: 0 | K120: 0 | L120: 0 | M120: 0 | N120: 0 | O120: 0 | P120: 0 | Q120: 0
A121: 7081 | B121: DESIGN & ARCHITECTURE SENIOR | C121: 0 | D121: 0 | E121: 0 | F121: 0 | G121: 0 | H121: 0 | I121: 0 | J121: 0 | K121: 0 | L121: 0 | M121: 0 | N121: 0 | O121: 0 | P121: 0 | Q121: 0
A122: 7090 | B122: IMATER PREP ACADEMY HIGH | C122: 0 | D122: 0 | E122: 0 | F122: 0 | G122: 0 | H122: 0 | I122: 0 | J122: 0 | K122: 0 | L122: 0 | M122: 0 | N122: 0 | O122: 0 | P122: 0 | Q122: 0
A123: 7101 | B123: CORAL REEF SENIOR HIGH | C123: 0 | D123: 0 | E123: 0 | F123: 0 | G123: 0 | H123: 0 | I123: 0 | J123: 0 | K123: 0 | L123: 0 | M123: 0 | N123: 0 | O123: 0 | P123: 0 | Q123: 0
A124: 7111 | B124: HIALEAH SENIOR | C124: 0 | D124: 0 | E124: 0 | F124: 0 | G124: 0 | H124: 0 | I124: 0 | J124: 0 | K124: 0 | L124: 0 | M124: 0 | N124: 0 | O124: 0 | P124: 0 | Q124: 0
A125: 7121 | B125: JOHN A FERGUSON SENIOR HIGH | C125: 0 | D125: 0 | E125: 0 | F125: 0 | G125: 0 | H125: 0 | I125: 0 | J125: 0 | K125: 0 | L125: 0 | M125: 0 | N125: 0 | O125: 0 | P125: 0 | Q125: 0
A126: 7131 | B126: HIALEAH-MIAMI LAKES SENIOR | C126: 0 | D126: 0 | E126: 0 | F126: 0 | G126: 0 | H126: 0 | I126: 0 | J126: 0 | K126: 0 | L126: 0 | M126: 0 | N126: 0 | O126: 0 | P126: 0 | Q126: 0
A127: 7141 | B127: DR MICHAEL M KROP SENIOR HIGH | C127: 0 | D127: 0 | E127: 0 | F127: 0 | G127: 0 | H127: 0 | I127: 0 | J127: 0 | K127: 0 | L127: 0 | M127: 0 | N127: 0 | O127: 0 | P127: 0 | Q127: 0
A128: 7151 | B128: HOMESTEAD SENIOR HIGH | C128: 0 | D128: 0 | E128: 0 | F128: 0 | G128: 0 | H128: 0 | I128: 0 | J128: 0 | K128: 0 | L128: 0 | M128: 0 | N128: 0 | O128: 0 | P128: 0 | Q128: 0
A129: 7160 | B129: MATER ACADEMY CHARTER HIGH | C129: 0 | D129: 0 | E129: 0 | F129: 0 | G129: 0 | H129: 0 | I129: 0 | J129: 0 | K129: 0 | L129: 0 | M129: 0 | N129: 0 | O129: 0 | P129: 0 | Q129: 0
A130: 7161 | B130: MARITIME & SCIENCE TECH ACAD | C130: 56 | D130: 0 | E130: 0 | F130: 0 | G130: 1 | H130: 0 | I130: 55 | J130: 19 | K130: 1 | L130: 34 | M130: 2 | N130: 0 | O130: 6 | P130: 5 | Q130: 0
A131: 7171 | B131: MED ACAD SCIENCE & TECHNOLOGY | C131: 0 | D131: 0 | E131: 0 | F131: 0 | G131: 0 | H131: 0 | I131: 0 | J131: 0 | K131: 0 | L131: 0 | M131: 0 | N131: 0 | O131: 0 | P131: 0 | Q131: 0
A132: 7191 | B132: HIALEAH GARDENS SENIOR | C132: 0 | D132: 0 | E132: 0 | F132: 0 | G132: 0 | H132: 0 | I132: 0 | J132: 0 | K132: 0 | L132: 0 | M132: 0 | N132: 0 | O132: 0 | P132: 0 | Q132: 0
A133: 7201 | B133: MIAMI BEACH SENIOR HIGH | C133: 0 | D133: 0 | E133: 0 | F133: 0 | G133: 0 | H133: 0 | I133: 0 | J133: 0 | K133: 0 | L133: 0 | M133: 0 | N133: 0 | O133: 0 | P133: 0 | Q133: 0
A134: 7231 | B134: MIAMI CAROL CITY SENIOR HIGH | C134: 0 | D134: 0 | E134: 0 | F134: 0 | G134: 0 | H134: 0 | I134: 0 | J134: 0 | K134: 0 | L134: 0 | M134: 0 | N134: 0 | O134: 0 | P134: 0 | Q134: 0
A135: 7241 | B135: RONALD W REAGAN/DORAL SENIOR | C135: 0 | D135: 0 | E135: 0 | F135: 0 | G135: 0 | H135: 0 | I135: 0 | J135: 0 | K135: 0 | L135: 0 | M135: 0 | N135: 0 | O135: 0 | P135: 0 | Q135: 0
A136: 7251 | B136: MIAMI CENTRAL SENIOR HIGH | C136: 0 | D136: 0 | E136: 0 | F136: 0 | G136: 0 | H136: 0 | I136: 0 | J136: 0 | K136: 0 | L136: 0 | M136: 0 | N136: 0 | O136: 0 | P136: 0 | Q136: 0
A137: 7262 | B137: CITY OF HIALEAH EDUCATION ACAD | C137: 1 | D137: 0 | E137: 0 | F137: 0 | G137: 0 | H137: 0 | I137: 1 | J137: 0 | K137: 0 | L137: 1 | M137: 0 | N137: 0 | O137: 1 | P137: 1 | Q137: 0
A138: 7265 | B138: ARCHIMEDEAN UPPER CONSERV CHAR | C138: 0 | D138: 0 | E138: 0 | F138: 0 | G138: 0 | H138: 0 | I138: 0 | J138: 0 | K138: 0 | L138: 0 | M138: 0 | N138: 0 | O138: 0 | P138: 0 | Q138: 0
A139: 7271 | B139: MIAMI CORAL PARK SENIOR HIGH | C139: 0 | D139: 0 | E139: 0 | F139: 0 | G139: 0 | H139: 0 | I139: 0 | J139: 0 | K139: 0 | L139: 0 | M139: 0 | N139: 0 | O139: 0 | P139: 0 | Q139: 0
A140: 7291 | B140: JOSE MARTI MAST 6-12 ACADEMY | C140: 20 | D140: 0 | E140: 0 | F140: 0 | G140: 1 | H140: 0 | I140: 19 | J140: 2 | K140: 4 | L140: 14 | M140: 0 | N140: 0 | O140: 15 | P140: 0 | Q140: 0
A141: 7301 | B141: MIAMI EDISON SENIOR HIGH | C141: 0 | D141: 0 | E141: 0 | F141: 0 | G141: 0 | H141: 0 | I141: 0 | J141: 0 | K141: 0 | L141: 0 | M141: 0 | N141: 0 | O141: 0 | P141: 0 | Q141: 0
A142: 7341 | B142: MIAMI JACKSON SENIOR HIGH | C142: 0 | D142: 0 | E142: 0 | F142: 0 | G142: 0 | H142: 0 | I142: 0 | J142: 0 | K142: 0 | L142: 0 | M142: 0 | N142: 0 | O142: 0 | P142: 0 | Q142: 0
A143: 7351 | B143: ARTHUR AND POLLY MAYS CONSERVA | C143: 15 | D143: 0 | E143: 2 | F143: 6 | G143: 5 | H143: 0 | I143: 1 | J143: 1 | K143: 5 | L143: 7 | M143: 1 | N143: 0 | O143: 12 | P143: 0 | Q143: 0
A144: 7361 | B144: MIAMI KILLIAN SENIOR HIGH | C144: 0 | D144: 0 | E144: 0 | F144: 0 | G144: 0 | H144: 0 | I144: 0 | J144: 0 | K144: 0 | L144: 0 | M144: 0 | N144: 0 | O144: 0 | P144: 0 | Q144: 0
A145: 7371 | B145: ROBERT MORGAN EDUCATIONAL CTR | C145: 0 | D145: 0 | E145: 0 | F145: 0 | G145: 0 | H145: 0 | I145: 0 | J145: 0 | K145: 0 | L145: 0 | M145: 0 | N145: 0 | O145: 0 | P145: 0 | Q145: 0
A146: 7381 | B146: MIAMI NORLAND SENIOR HIGH | C146: 0 | D146: 0 | E146: 0 | F146: 0 | G146: 0 | H146: 0 | I146: 0 | J146: 0 | K146: 0 | L146: 0 | M146: 0 | N146: 0 | O146: 0 | P146: 0 | Q146: 0
A147: 7391 | B147: MIAMI LAKES EDUCATIONAL CENTER | C147: 0 | D147: 0 | E147: 0 | F147: 0 | G147: 0 | H147: 0 | I147: 0 | J147: 0 | K147: 0 | L147: 0 | M147: 0 | N147: 0 | O147: 0 | P147: 0 | Q147: 0
A148: 7411 | B148: MIAMI NORTHWESTERN SENIOR HIGH | C148: 0 | D148: 0 | E148: 0 | F148: 0 | G148: 0 | H148: 0 | I148: 0 | J148: 0 | K148: 0 | L148: 0 | M148: 0 | N148: 0 | O148: 0 | P148: 0 | Q148: 0
A149: 7431 | B149: MIAMI PALMETTO SENIOR HIGH | C149: 0 | D149: 0 | E149: 0 | F149: 0 | G149: 0 | H149: 0 | I149: 0 | J149: 0 | K149: 0 | L149: 0 | M149: 0 | N149: 0 | O149: 0 | P149: 0 | Q149: 0
A150: 7461 | B150: MIAMI SENIOR HIGH | C150: 0 | D150: 0 | E150: 0 | F150: 0 | G150: 0 | H150: 0 | I150: 0 | J150: 0 | K150: 0 | L150: 0 | M150: 0 | N150: 0 | O150: 0 | P150: 0 | Q150: 0
A151: 7511 | B151: MIAMI SPRINGS SENIOR HIGH | C151: 0 | D151: 0 | E151: 0 | F151: 0 | G151: 0 | H151: 0 | I151: 0 | J151: 0 | K151: 0 | L151: 0 | M151: 0 | N151: 0 | O151: 0 | P151: 0 | Q151: 0
A152: 7531 | B152: MIAMI SUNSET SENIOR HIGH | C152: 0 | D152: 0 | E152: 0 | F152: 0 | G152: 0 | H152: 0 | I152: 0 | J152: 0 | K152: 0 | L152: 0 | M152: 0 | N152: 0 | O152: 0 | P152: 0 | Q152: 0
A153: 7541 | B153: NORTH MIAMI BEACH SENIOR HIGH | C153: 0 | D153: 0 | E153: 0 | F153: 0 | G153: 0 | H153: 0 | I153: 0 | J153: 0 | K153: 0 | L153: 0 | M153: 0 | N153: 0 | O153: 0 | P153: 0 | Q153: 0
A154: 7571 | B154: INTL STUDIES PREP ACADEMY | C154: 0 | D154: 0 | E154: 0 | F154: 0 | G154: 0 | H154: 0 | I154: 0 | J154: 0 | K154: 0 | L154: 0 | M154: 0 | N154: 0 | O154: 0 | P154: 0 | Q154: 0
A155: 7581 | B155: IPREPARATORY ACADEMY | C155: 0 | D155: 0 | E155: 0 | F155: 0 | G155: 0 | H155: 0 | I155: 0 | J155: 0 | K155: 0 | L155: 0 | M155: 0 | N155: 0 | O155: 0 | P155: 0 | Q155: 0
A156: 7591 | B156: NORTH MIAMI SENIOR HIGH | C156: 0 | D156: 0 | E156: 0 | F156: 0 | G156: 0 | H156: 0 | I156: 0 | J156: 0 | K156: 0 | L156: 0 | M156: 0 | N156: 0 | O156: 0 | P156: 0 | Q156: 0
A157: 7601 | B157: WILLIAM H. TURNER TECHNICAL | C157: 0 | D157: 0 | E157: 0 | F157: 0 | G157: 0 | H157: 0 | I157: 0 | J157: 0 | K157: 0 | L157: 0 | M157: 0 | N157: 0 | O157: 0 | P157: 0 | Q157: 0
A158: 7631 | B158: MIAMI MACARTHUR SOUTH | C158: 0 | D158: 0 | E158: 0 | F158: 0 | G158: 0 | H158: 0 | I158: 0 | J158: 0 | K158: 0 | L158: 0 | M158: 0 | N158: 0 | O158: 0 | P158: 0 | Q158: 0
A159: 7701 | B159: SOUTH DADE SENIOR HIGH | C159: 0 | D159: 0 | E159: 0 | F159: 0 | G159: 0 | H159: 0 | I159: 0 | J159: 0 | K159: 0 | L159: 0 | M159: 0 | N159: 0 | O159: 0 | P159: 0 | Q159: 0
A160: 7721 | B160: SOUTH MIAMI SENIOR HIGH | C160: 0 | D160: 0 | E160: 0 | F160: 0 | G160: 0 | H160: 0 | I160: 0 | J160: 0 | K160: 0 | L160: 0 | M160: 0 | N160: 0 | O160: 0 | P160: 0 | Q160: 0
A161: 7731 | B161: MIAMI SOUTHRIDGE SENIOR HIGH | C161: 0 | D161: 0 | E161: 0 | F161: 0 | G161: 0 | H161: 0 | I161: 0 | J161: 0 | K161: 0 | L161: 0 | M161: 0 | N161: 0 | O161: 0 | P161: 0 | Q161: 0
A162: 7741 | B162: SOUTHWEST MIAMI SENIOR HIGH | C162: 0 | D162: 0 | E162: 0 | F162: 0 | G162: 0 | H162: 0 | I162: 0 | J162: 0 | K162: 0 | L162: 0 | M162: 0 | N162: 0 | O162: 0 | P162: 0 | Q162: 0
A163: 7751 | B163: BARBARA GOLEMAN SENIOR HIGH | C163: 0 | D163: 0 | E163: 0 | F163: 0 | G163: 0 | H163: 0 | I163: 0 | J163: 0 | K163: 0 | L163: 0 | M163: 0 | N163: 0 | O163: 0 | P163: 0 | Q163: 0
A164: 7781 | B164: FELIX VARELA SENIOR HIGH | C164: 0 | D164: 0 | E164: 0 | F164: 0 | G164: 0 | H164: 0 | I164: 0 | J164: 0 | K164: 0 | L164: 0 | M164: 0 | N164: 0 | O164: 0 | P164: 0 | Q164: 0
A165: 7791 | B165: BOOKER T. WASHINGTON SR. HIGH | C165: 0 | D165: 0 | E165: 0 | F165: 0 | G165: 0 | H165: 0 | I165: 0 | J165: 0 | K165: 0 | L165: 0 | M165: 0 | N165: 0 | O165: 0 | P165: 0 | Q165: 0
A166: 7901 | B166: NEW WORLD SCHOOL OF THE ARTS | C166: 0 | D166: 0 | E166: 0 | F166: 0 | G166: 0 | H166: 0 | I166: 0 | J166: 0 | K166: 0 | L166: 0 | M166: 0 | N166: 0 | O166: 0 | P166: 0 | Q166: 0
A167: 8014 | B167: ALTERNATIVE OUTREACH-EXT. YR | C167: 0 | D167: 0 | E167: 0 | F167: 0 | G167: 0 | H167: 0 | I167: 0 | J167: 0 | K167: 0 | L167: 0 | M167: 0 | N167: 0 | O167: 0 | P167: 0 | Q167: 0
A168: 8017 | B168: ALTERNATIVE OUTREACH PROGRAM | C168: 0 | D168: 0 | E168: 0 | F168: 0 | G168: 0 | H168: 0 | I168: 0 | J168: 0 | K168: 0 | L168: 0 | M168: 0 | N168: 0 | O168: 0 | P168: 0 | Q168: 0
A169: 8019 | B169: ACADEMY FOR COMMUNITY ED | C169: 0 | D169: 0 | E169: 0 | F169: 0 | G169: 0 | H169: 0 | I169: 0 | J169: 0 | K169: 0 | L169: 0 | M169: 0 | N169: 0 | O169: 0 | P169: 0 | Q169: 0
A170: 8101 | B170: JAN MANN OPPORTUNITY SCHOOL | C170: 1 | D170: 0 | E170: 0 | F170: 0 | G170: 0 | H170: 0 | I170: 1 | J170: 0 | K170: 1 | L170: 0 | M170: 0 | N170: 0 | O170: 1 | P170: 0 | Q170: 1
A171: 8121 | B171: COPE CENTER NORTH | C171: 0 | D171: 0 | E171: 0 | F171: 0 | G171: 0 | H171: 0 | I171: 0 | J171: 0 | K171: 0 | L171: 0 | M171: 0 | N171: 0 | O171: 0 | P171: 0 | Q171: 0
A172: 8131 | B172: DOROTHY M WALLACE COPE CENTER | C172: 0 | D172: 0 | E172: 0 | F172: 0 | G172: 0 | H172: 0 | I172: 0 | J172: 0 | K172: 0 | L172: 0 | M172: 0 | N172: 0 | O172: 0 | P172: 0 | Q172: 0
A173: 8141 | B173: JUVENILE JUSTICE CENTER | C173: 0 | D173: 0 | E173: 0 | F173: 0 | G173: 0 | H173: 0 | I173: 0 | J173: 0 | K173: 0 | L173: 0 | M173: 0 | N173: 0 | O173: 0 | P173: 0 | Q173: 0
A174: 8151 | B174: ROBERT RENICK EDUCATION CTR | C174: 0 | D174: 0 | E174: 0 | F174: 0 | G174: 0 | H174: 0 | I174: 0 | J174: 0 | K174: 0 | L174: 0 | M174: 0 | N174: 0 | O174: 0 | P174: 0 | Q174: 0
A175: 8181 | B175: RUTH OWENS KRUSE' EDUC CENTER | C175: 0 | D175: 0 | E175: 0 | F175: 0 | G175: 0 | H175: 0 | I175: 0 | J175: 0 | K175: 0 | L175: 0 | M175: 0 | N175: 0 | O175: 0 | P175: 0 | Q175: 0
A176: 9732 | B176: BRUCIE BALL EDUCATIONAL CENTER | C176: 1 | D176: 0 | E176: 0 | F176: 0 | G176: 0 | H176: 0 | I176: 1 | J176: 0 | K176: 0 | L176: 1 | M176: 0 | N176: 0 | O176: 1 | P176: 0 | Q176: 1
A177: 9999 | B177: District | C177: 2504 | D177: 1 | E177: 13 | F177: 46 | G177: 65 | H177: 116 | I177: 2232 | J177: 333 | K177: 296 | L177: 1719 | M177: 107 | N177: 3 | O177: 1444 | P177: 37 | Q177: 29

Sheet ALG Gr06 (hidden)
A1: 1 | B1: 2 | C1: 3 | D1: 4 | E1: 5 | F1: 6 | G1: 7 | H1: 8 | I1: 9 | J1: 10 | K1: 11 | L1: 12 | M1: 13 | N1: 14 | O1: 15 | P1: 16 | Q1: 17
A2: 06 | B2: SchName | C2: Total | D2: ML1 | E2: ML2 | F2: ML3 | G2: ML4 | H2: ML5 | I2: ML0 | J2: W | K2: B | L2: H | M2: A | N2: I | O2: ED | P2: ELL | Q2: SWD
A3: 0070 | B3: CORAL REEF MONTESSORI ACAD CH | C3: 0 | D3: 0 | E3: 0 | F3: 0 | G3: 0 | H3: 0 | I3: 0 | J3: 0 | K3: 0 | L3: 0 | M3: 0 | N3: 0 | O3: 0 | P3: 0 | Q3: 0
A4: 0071 | B4: EUGENIA B. THOMAS K-8 CENTER | C4: 0 | D4: 0 | E4: 0 | F4: 0 | G4: 0 | H4: 0 | I4: 0 | J4: 0 | K4: 0 | L4: 0 | M4: 0 | N4: 0 | O4: 0 | P4: 0 | Q4: 0
A5: 0073 | B5: MANDARIN LAKES K-8 CENTER | C5: 0 | D5: 0 | E5: 0 | F5: 0 | G5: 0 | H5: 0 | I5: 0 | J5: 0 | K5: 0 | L5: 0 | M5: 0 | N5: 0 | O5: 0 | P5: 0 | Q5: 0
A6: 0091 | B6: BOB GRAHAM EDUCATION CTR | C6: 0 | D6: 0 | E6: 0 | F6: 0 | G6: 0 | H6: 0 | I6: 0 | J6: 0 | K6: 0 | L6: 0 | M6: 0 | N6: 0 | O6: 0 | P6: 0 | Q6: 0
A7: 0092 | B7: NORMAN S. EDELCUP/SUNNY ISLES | C7: 0 | D7: 0 | E7: 0 | F7: 0 | G7: 0 | H7: 0 | I7: 0 | J7: 0 | K7: 0 | L7: 0 | M7: 0 | N7: 0 | O7: 0 | P7: 0 | Q7: 0
A8: 0122 | B8: DR ROLANDO ESPINOSA K-8 | C8: 0 | D8: 0 | E8: 0 | F8: 0 | G8: 0 | H8: 0 | I8: 0 | J8: 0 | K8: 0 | L8: 0 | M8: 0 | N8: 0 | O8: 0 | P8: 0 | Q8: 0
A9: 0231 | B9: AVENTURA WATERWAYS K-8 CENTER | C9: 1 | D9: 0 | E9: 0 | F9: 0 | G9: 0 | H9: 1 | I9: 0 | J9: 1 | K9: 0 | L9: 0 | M9: 0 | N9: 0 | O9: 0 | P9: 0 | Q9: 0
A10: 0241 | B10: RUTH K BROAD/BAY HARBOR K-8 | C10: 0 | D10: 0 | E10: 0 | F10: 0 | G10: 0 | H10: 0 | I10: 0 | J10: 0 | K10: 0 | L10: 0 | M10: 0 | N10: 0 | O10: 0 | P10: 0 | Q10: 0
A11: 0332 | B11: SOMERSET ACADEMY(SILVER PALMS) | C11: 0 | D11: 0 | E11: 0 | F11: 0 | G11: 0 | H11: 0 | I11: 0 | J11: 0 | K11: 0 | L11: 0 | M11: 0 | N11: 0 | O11: 0 | P11: 0 | Q11: 0
A12: 0451 | B12: BOWMAN ASHE/DOOLIN K-8 ACAD | C12: 0 | D12: 0 | E12: 0 | F12: 0 | G12: 0 | H12: 0 | I12: 0 | J12: 0 | K12: 0 | L12: 0 | M12: 0 | N12: 0 | O12: 0 | P12: 0 | Q12: 0
A13: 0651 | B13: CAMPBELL DRIVE K-8 CENTER | C13: 0 | D13: 0 | E13: 0 | F13: 0 | G13: 0 | H13: 0 | I13: 0 | J13: 0 | K13: 0 | L13: 0 | M13: 0 | N13: 0 | O13: 0 | P13: 0 | Q13: 0
A14: 0761 | B14: FIENBERG/FISHER K-8 CENTER | C14: 0 | D14: 0 | E14: 0 | F14: 0 | G14: 0 | H14: 0 | I14: 0 | J14: 0 | K14: 0 | L14: 0 | M14: 0 | N14: 0 | O14: 0 | P14: 0 | Q14: 0
A15: 0950 | B15: AVENTURA CITY OF EXCELLENCE | C15: 0 | D15: 0 | E15: 0 | F15: 0 | G15: 0 | H15: 0 | I15: 0 | J15: 0 | K15: 0 | L15: 0 | M15: 0 | N15: 0 | O15: 0 | P15: 0 | Q15: 0
A16: 0961 | B16: CORAL GABLES PREPARATORY ACAD | C16: 0 | D16: 0 | E16: 0 | F16: 0 | G16: 0 | H16: 0 | I16: 0 | J16: 0 | K16: 0 | L16: 0 | M16: 0 | N16: 0 | O16: 0 | P16: 0 | Q16: 0
A17: 1020 | B17: YOUTH CO-OP CHARTER SCHOOL | C17: 0 | D17: 0 | E17: 0 | F17: 0 | G17: 0 | H17: 0 | I17: 0 | J17: 0 | K17: 0 | L17: 0 | M17: 0 | N17: 0 | O17: 0 | P17: 0 | Q17: 0
A18: 1121 | B18: CORAL WAY K-8 CENTER | C18: 0 | D18: 0 | E18: 0 | F18: 0 | G18: 0 | H18: 0 | I18: 0 | J18: 0 | K18: 0 | L18: 0 | M18: 0 | N18: 0 | O18: 0 | P18: 0 | Q18: 0
A19: 1331 | B19: DEVON AIRE K-8 CENTER | C19: 0 | D19: 0 | E19: 0 | F19: 0 | G19: 0 | H19: 0 | I19: 0 | J19: 0 | K19: 0 | L19: 0 | M19: 0 | N19: 0 | O19: 0 | P19: 0 | Q19: 0
A20: 1681 | B20: LILLIE C. EVANS K-8 CENTER | C20: 0 | D20: 0 | E20: 0 | F20: 0 | G20: 0 | H20: 0 | I20: 0 | J20: 0 | K20: 0 | L20: 0 | M20: 0 | N20: 0 | O20: 0 | P20: 0 | Q20: 0
A21: 1721 | B21: EVERGLADES K-8 CENTER | C21: 0 | D21: 0 | E21: 0 | F21: 0 | G21: 0 | H21: 0 | I21: 0 | J21: 0 | K21: 0 | L21: 0 | M21: 0 | N21: 0 | O21: 0 | P21: 0 | Q21: 0
A22: 2041 | B22: BENJAMIN FRANKLIN K-8 CENTER | C22: 0 | D22: 0 | E22: 0 | F22: 0 | G22: 0 | H22: 0 | I22: 0 | J22: 0 | K22: 0 | L22: 0 | M22: 0 | N22: 0 | O22: 0 | P22: 0 | Q22: 0
A23: 2060 | B23: GIBSON CHARTER SCHOOL | C23: 0 | D23: 0 | E23: 0 | F23: 0 | G23: 0 | H23: 0 | I23: 0 | J23: 0 | K23: 0 | L23: 0 | M23: 0 | N23: 0 | O23: 0 | P23: 0 | Q23: 0
A24: 2701 | B24: KENWOOD K-8 CENTER | C24: 0 | D24: 0 | E24: 0 | F24: 0 | G24: 0 | H24: 0 | I24: 0 | J24: 0 | K24: 0 | L24: 0 | M24: 0 | N24: 0 | O24: 0 | P24: 0 | Q24: 0
A25: 2741 | B25: KEY BISCAYNE K-8 CENTER | C25: 0 | D25: 0 | E25: 0 | F25: 0 | G25: 0 | H25: 0 | I25: 0 | J25: 0 | K25: 0 | L25: 0 | M25: 0 | N25: 0 | O25: 0 | P25: 0 | Q25: 0
A26: 2881 | B26: LEEWOOD K-8 CENTER | C26: 0 | D26: 0 | E26: 0 | F26: 0 | G26: 0 | H26: 0 | I26: 0 | J26: 0 | K26: 0 | L26: 0 | M26: 0 | N26: 0 | O26: 0 | P26: 0 | Q26: 0
A27: 2901 | B27: LEISURE CITY K-8 CENTER | C27: 0 | D27: 0 | E27: 0 | F27: 0 | G27: 0 | H27: 0 | I27: 0 | J27: 0 | K27: 0 | L27: 0 | M27: 0 | N27: 0 | O27: 0 | P27: 0 | Q27: 0
A28: 2911 | B28: LINDA LENTIN K-8 CENTER | C28: 0 | D28: 0 | E28: 0 | F28: 0 | G28: 0 | H28: 0 | I28: 0 | J28: 0 | K28: 0 | L28: 0 | M28: 0 | N28: 0 | O28: 0 | P28: 0 | Q28: 0
A29: 3029 | B29: DORAL ACADEMY OF TECHNOLOGY | C29: 11 | D29: 0 | E29: 0 | F29: 1 | G29: 1 | H29: 9 | I29: 0 | J29: 2 | K29: 0 | L29: 8 | M29: 1 | N29: 0 | O29: 5 | P29: 0 | Q29: 0
A30: 3032 | B30: PALM GLADES PREPATORY ACADEMY | C30: 0 | D30: 0 | E30: 0 | F30: 0 | G30: 0 | H30: 0 | I30: 0 | J30: 0 | K30: 0 | L30: 0 | M30: 0 | N30: 0 | O30: 0 | P30: 0 | Q30: 0
A31: 3101 | B31: FRANK C. MARTIN K-8 CENTER | C31: 0 | D31: 0 | E31: 0 | F31: 0 | G31: 0 | H31: 0 | I31: 0 | J31: 0 | K31: 0 | L31: 0 | M31: 0 | N31: 0 | O31: 0 | P31: 0 | Q31: 0
A32: 3191 | B32: ADA MERRITT K-8 CENTER | C32: 0 | D32: 0 | E32: 0 | F32: 0 | G32: 0 | H32: 0 | I32: 0 | J32: 0 | K32: 0 | L32: 0 | M32: 0 | N32: 0 | O32: 0 | P32: 0 | Q32: 0
A33: 3281 | B33: MIAMI LAKES K-8 CENTER | C33: 0 | D33: 0 | E33: 0 | F33: 0 | G33: 0 | H33: 0 | I33: 0 | J33: 0 | K33: 0 | L33: 0 | M33: 0 | N33: 0 | O33: 0 | P33: 0 | Q33: 0
A34: 3421 | B34: M.A. MILAM K-8 CENTER | C34: 0 | D34: 0 | E34: 0 | F34: 0 | G34: 0 | H34: 0 | I34: 0 | J34: 0 | K34: 0 | L34: 0 | M34: 0 | N34: 0 | O34: 0 | P34: 0 | Q34: 0
A35: 3610 | B35: KEYS GATE CHARTER SCHOOL | C35: 0 | D35: 0 | E35: 0 | F35: 0 | G35: 0 | H35: 0 | I35: 0 | J35: 0 | K35: 0 | L35: 0 | M35: 0 | N35: 0 | O35: 0 | P35: 0 | Q35: 0
A36: 3621 | B36: COCONUT PALM K-8 ACADEMY | C36: 0 | D36: 0 | E36: 0 | F36: 0 | G36: 0 | H36: 0 | I36: 0 | J36: 0 | K36: 0 | L36: 0 | M36: 0 | N36: 0 | O36: 0 | P36: 0 | Q36: 0
A37: 3821 | B37: NORTH COUNTY K-8 CENTER | C37: 0 | D37: 0 | E37: 0 | F37: 0 | G37: 0 | H37: 0 | I37: 0 | J37: 0 | K37: 0 | L37: 0 | M37: 0 | N37: 0 | O37: 0 | P37: 0 | Q37: 0
A38: 4031 | B38: GATEWAY ENVIRONMENTAL K-8 | C38: 0 | D38: 0 | E38: 0 | F38: 0 | G38: 0 | H38: 0 | I38: 0 | J38: 0 | K38: 0 | L38: 0 | M38: 0 | N38: 0 | O38: 0 | P38: 0 | Q38: 0
A39: 4391 | B39: IRVING & BEATRICE PESKOE K-8 | C39: 0 | D39: 0 | E39: 0 | F39: 0 | G39: 0 | H39: 0 | I39: 0 | J39: 0 | K39: 0 | L39: 0 | M39: 0 | N39: 0 | O39: 0 | P39: 0 | Q39: 0
A40: 4691 | B40: JANE ROBERTS K-8 CENTER | C40: 0 | D40: 0 | E40: 0 | F40: 0 | G40: 0 | H40: 0 | I40: 0 | J40: 0 | K40: 0 | L40: 0 | M40: 0 | N40: 0 | O40: 0 | P40: 0 | Q40: 0
A41: 5003 | B41: SOUTH DADE MIDDLE SCHOOL | C41: 0 | D41: 0 | E41: 0 | F41: 0 | G41: 0 | H41: 0 | I41: 0 | J41: 0 | K41: 0 | L41: 0 | M41: 0 | N41: 0 | O41: 0 | P41: 0 | Q41: 0
A42: 5005 | B42: DAVID LAWRENCE JR K-8 CENTER | C42: 0 | D42: 0 | E42: 0 | F42: 0 | G42: 0 | H42: 0 | I42: 0 | J42: 0 | K42: 0 | L42: 0 | M42: 0 | N42: 0 | O42: 0 | P42: 0 | Q42: 0
A43: 5006 | B43: EVERGLADES PREPARATORY ACADEMY | C43: 0 | D43: 0 | E43: 0 | F43: 0 | G43: 0 | H43: 0 | I43: 0 | J43: 0 | K43: 0 | L43: 0 | M43: 0 | N43: 0 | O43: 0 | P43: 0 | Q43: 0
A44: 5025 | B44: LINCOLN-MARTI CS LITTLE HAVANA | C44: 0 | D44: 0 | E44: 0 | F44: 0 | G44: 0 | H44: 0 | I44: 0 | J44: 0 | K44: 0 | L44: 0 | M44: 0 | N44: 0 | O44: 0 | P44: 0 | Q44: 0
A45: 5032 | B45: EXCELSIOR CHARTER ACADEMY | C45: 0 | D45: 0 | E45: 0 | F45: 0 | G45: 0 | H45: 0 | I45: 0 | J45: 0 | K45: 0 | L45: 0 | M45: 0 | N45: 0 | O45: 0 | P45: 0 | Q45: 0
A46: 5044 | B46: ACADEMY FOR INT'L EDUCATION CH | C46: 0 | D46: 0 | E46: 0 | F46: 0 | G46: 0 | H46: 0 | I46: 0 | J46: 0 | K46: 0 | L46: 0 | M46: 0 | N46: 0 | O46: 0 | P46: 0 | Q46: 0
A47: 5049 | B47: PINECREST COVE ACADEMY | C47: 0 | D47: 0 | E47: 0 | F47: 0 | G47: 0 | H47: 0 | I47: 0 | J47: 0 | K47: 0 | L47: 0 | M47: 0 | N47: 0 | O47: 0 | P47: 0 | Q47: 0
A48: 5051 | B48: ERNEST R GRAHAM K-8 CENTER | C48: 0 | D48: 0 | E48: 0 | F48: 0 | G48: 0 | H48: 0 | I48: 0 | J48: 0 | K48: 0 | L48: 0 | M48: 0 | N48: 0 | O48: 0 | P48: 0 | Q48: 0
A49: 5101 | B49: JOHN I. SMITH K-8 CENTER | C49: 0 | D49: 0 | E49: 0 | F49: 0 | G49: 0 | H49: 0 | I49: 0 | J49: 0 | K49: 0 | L49: 0 | M49: 0 | N49: 0 | O49: 0 | P49: 0 | Q49: 0
A50: 5141 | B50: HUBERT O. SIBLEY K-8 CENTER | C50: 0 | D50: 0 | E50: 0 | F50: 0 | G50: 0 | H50: 0 | I50: 0 | J50: 0 | K50: 0 | L50: 0 | M50: 0 | N50: 0 | O50: 0 | P50: 0 | Q50: 0
A51: 5241 | B51: SOUTH MIAMI K-8 CENTER | C51: 0 | D51: 0 | E51: 0 | F51: 0 | G51: 0 | H51: 0 | I51: 0 | J51: 0 | K51: 0 | L51: 0 | M51: 0 | N51: 0 | O51: 0 | P51: 0 | Q51: 0
A52: 5671 | B52: VINELAND K-8 CENTER | C52: 0 | D52: 0 | E52: 0 | F52: 0 | G52: 0 | H52: 0 | I52: 0 | J52: 0 | K52: 0 | L52: 0 | M52: 0 | N52: 0 | O52: 0 | P52: 0 | Q52: 0
A53: 5861 | B53: DR H W MACK/W LITTLE RIVER K8 | C53: 0 | D53: 0 | E53: 0 | F53: 0 | G53: 0 | H53: 0 | I53: 0 | J53: 0 | K53: 0 | L53: 0 | M53: 0 | N53: 0 | O53: 0 | P53: 0 | Q53: 0
A54: 5901 | B54: CARRIE P MEEK/WESTVIEW K-8 CTR | C54: 0 | D54: 0 | E54: 0 | F54: 0 | G54: 0 | H54: 0 | I54: 0 | J54: 0 | K54: 0 | L54: 0 | M54: 0 | N54: 0 | O54: 0 | P54: 0 | Q54: 0
A55: 5961 | B55: WINSTON PARK K-8 CENTER | C55: 1 | D55: 0 | E55: 0 | F55: 0 | G55: 0 | H55: 1 | I55: 0 | J55: 0 | K55: 0 | L55: 0 | M55: 1 | N55: 0 | O55: 0 | P55: 0 | Q55: 0
A56: 6001 | B56: HERBERT A. AMMONS MIDDLE | C56: 0 | D56: 0 | E56: 0 | F56: 0 | G56: 0 | H56: 0 | I56: 0 | J56: 0 | K56: 0 | L56: 0 | M56: 0 | N56: 0 | O56: 0 | P56: 0 | Q56: 0
A57: 6004 | B57: SOMERSET ACADEMY MIDDLE | C57: 0 | D57: 0 | E57: 0 | F57: 0 | G57: 0 | H57: 0 | I57: 0 | J57: 0 | K57: 0 | L57: 0 | M57: 0 | N57: 0 | O57: 0 | P57: 0 | Q57: 0
A58: 6005 | B58: RAMZ ACAD MIDDLE MIAMI CAMPUS | C58: 0 | D58: 0 | E58: 0 | F58: 0 | G58: 0 | H58: 0 | I58: 0 | J58: 0 | K58: 0 | L58: 0 | M58: 0 | N58: 0 | O58: 0 | P58: 0 | Q58: 0
A59: 6006 | B59: ARCHIMEDEAN CONSERVATORY | C59: 0 | D59: 0 | E59: 0 | F59: 0 | G59: 0 | H59: 0 | I59: 0 | J59: 0 | K59: 0 | L59: 0 | M59: 0 | N59: 0 | O59: 0 | P59: 0 | Q59: 0
A60: 6009 | B60: MATER ACADEMY EAST MIDDLE | C60: 0 | D60: 0 | E60: 0 | F60: 0 | G60: 0 | H60: 0 | I60: 0 | J60: 0 | K60: 0 | L60: 0 | M60: 0 | N60: 0 | O60: 0 | P60: 0 | Q60: 0
A61: 6010 | B61: FLORIDA INTERNATIONAL ACADEMY | C61: 0 | D61: 0 | E61: 0 | F61: 0 | G61: 0 | H61: 0 | I61: 0 | J61: 0 | K61: 0 | L61: 0 | M61: 0 | N61: 0 | O61: 0 | P61: 0 | Q61: 0
A62: 6011 | B62: ALLAPATTAH MIDDLE | C62: 0 | D62: 0 | E62: 0 | F62: 0 | G62: 0 | H62: 0 | I62: 0 | J62: 0 | K62: 0 | L62: 0 | M62: 0 | N62: 0 | O62: 0 | P62: 0 | Q62: 0
A63: 6012 | B63: MATER ACADEMY CHARTER MIDDLE | C63: 0 | D63: 0 | E63: 0 | F63: 0 | G63: 0 | H63: 0 | I63: 0 | J63: 0 | K63: 0 | L63: 0 | M63: 0 | N63: 0 | O63: 0 | P63: 0 | Q63: 0
A64: 6013 | B64: SOMERSET ACADEMY MIDDLE-SOUTH | C64: 0 | D64: 0 | E64: 0 | F64: 0 | G64: 0 | H64: 0 | I64: 0 | J64: 0 | K64: 0 | L64: 0 | M64: 0 | N64: 0 | O64: 0 | P64: 0 | Q64: 0
A65: 6014 | B65: IMATER ACADEMY MIDDLE SCHOOL | C65: 0 | D65: 0 | E65: 0 | F65: 0 | G65: 0 | H65: 0 | I65: 0 | J65: 0 | K65: 0 | L65: 0 | M65: 0 | N65: 0 | O65: 0 | P65: 0 | Q65: 0
A66: 6015 | B66: SPORTS LEADERSHIP AND MGMT CMS | C66: 0 | D66: 0 | E66: 0 | F66: 0 | G66: 0 | H66: 0 | I66: 0 | J66: 0 | K66: 0 | L66: 0 | M66: 0 | N66: 0 | O66: 0 | P66: 0 | Q66: 0
A67: 6020 | B67: ASPIRA RAUL A. MARTINEZ CHTR | C67: 0 | D67: 0 | E67: 0 | F67: 0 | G67: 0 | H67: 0 | I67: 0 | J67: 0 | K67: 0 | L67: 0 | M67: 0 | N67: 0 | O67: 0 | P67: 0 | Q67: 0
A68: 6021 | B68: ARVIDA MIDDLE SCHOOL | C68: 0 | D68: 0 | E68: 0 | F68: 0 | G68: 0 | H68: 0 | I68: 0 | J68: 0 | K68: 0 | L68: 0 | M68: 0 | N68: 0 | O68: 0 | P68: 0 | Q68: 0
A69: 6022 | B69: PINECREST ACADEMY CHARTER MIDD | C69: 0 | D69: 0 | E69: 0 | F69: 0 | G69: 0 | H69: 0 | I69: 0 | J69: 0 | K69: 0 | L69: 0 | M69: 0 | N69: 0 | O69: 0 | P69: 0 | Q69: 0
A70: 6023 | B70: ANDOVER MIDDLE SCHOOL | C70: 0 | D70: 0 | E70: 0 | F70: 0 | G70: 0 | H70: 0 | I70: 0 | J70: 0 | K70: 0 | L70: 0 | M70: 0 | N70: 0 | O70: 0 | P70: 0 | Q70: 0
A71: 6028 | B71: RENAISSANCE MIDDLE CHARTER | C71: 0 | D71: 0 | E71: 0 | F71: 0 | G71: 0 | H71: 0 | I71: 0 | J71: 0 | K71: 0 | L71: 0 | M71: 0 | N71: 0 | O71: 0 | P71: 0 | Q71: 0
A72: 6030 | B72: DORAL ACADEMY CHARTER MIDDLE | C72: 7 | D72: 0 | E72: 0 | F72: 0 | G72: 1 | H72: 6 | I72: 0 | J72: 0 | K72: 0 | L72: 6 | M72: 1 | N72: 0 | O72: 2 | P72: 0 | Q72: 0
A73: 6031 | B73: BROWNSVILLE MIDDLE | C73: 0 | D73: 0 | E73: 0 | F73: 0 | G73: 0 | H73: 0 | I73: 0 | J73: 0 | K73: 0 | L73: 0 | M73: 0 | N73: 0 | O73: 0 | P73: 0 | Q73: 0
A74: 6033 | B74: MATER ACADEMY LAKES MIDDLE | C74: 0 | D74: 0 | E74: 0 | F74: 0 | G74: 0 | H74: 0 | I74: 0 | J74: 0 | K74: 0 | L74: 0 | M74: 0 | N74: 0 | O74: 0 | P74: 0 | Q74: 0
A75: 6040 | B75: DOCTORS CHARTER/MIAMI SHORES | C75: 0 | D75: 0 | E75: 0 | F75: 0 | G75: 0 | H75: 0 | I75: 0 | J75: 0 | K75: 0 | L75: 0 | M75: 0 | N75: 0 | O75: 0 | P75: 0 | Q75: 0
A76: 6041 | B76: PAUL W. BELL MIDDLE | C76: 0 | D76: 0 | E76: 0 | F76: 0 | G76: 0 | H76: 0 | I76: 0 | J76: 0 | K76: 0 | L76: 0 | M76: 0 | N76: 0 | O76: 0 | P76: 0 | Q76: 0
A77: 6042 | B77: MATER GARDENS ACADEMY MIDDLE | C77: 0 | D77: 0 | E77: 0 | F77: 0 | G77: 0 | H77: 0 | I77: 0 | J77: 0 | K77: 0 | L77: 0 | M77: 0 | N77: 0 | O77: 0 | P77: 0 | Q77: 0
A78: 6045 | B78: INTL. STUDIES CHARTER MIDDLE | C78: 0 | D78: 0 | E78: 0 | F78: 0 | G78: 0 | H78: 0 | I78: 0 | J78: 0 | K78: 0 | L78: 0 | M78: 0 | N78: 0 | O78: 0 | P78: 0 | Q78: 0
A79: 6047 | B79: MATER ACADEMY MIDDLE-INTL STUD | C79: 0 | D79: 0 | E79: 0 | F79: 0 | G79: 0 | H79: 0 | I79: 0 | J79: 0 | K79: 0 | L79: 0 | M79: 0 | N79: 0 | O79: 0 | P79: 0 | Q79: 0
A80: 6048 | B80: MIAMI COMMUNITY CHARTER MIDDLE | C80: 0 | D80: 0 | E80: 0 | F80: 0 | G80: 0 | H80: 0 | I80: 0 | J80: 0 | K80: 0 | L80: 0 | M80: 0 | N80: 0 | O80: 0 | P80: 0 | Q80: 0
A81: 6049 | B81: RIVER CITIES COMMUNITY CHARTER | C81: 0 | D81: 0 | E81: 0 | F81: 0 | G81: 0 | H81: 0 | I81: 0 | J81: 0 | K81: 0 | L81: 0 | M81: 0 | N81: 0 | O81: 0 | P81: 0 | Q81: 0
A82: 6051 | B82: CAROL CITY MIDDLE | C82: 0 | D82: 0 | E82: 0 | F82: 0 | G82: 0 | H82: 0 | I82: 0 | J82: 0 | K82: 0 | L82: 0 | M82: 0 | N82: 0 | O82: 0 | P82: 0 | Q82: 0
A83: 6052 | B83: ZELDA GLAZER MIDDLE SCHOOL | C83: 0 | D83: 0 | E83: 0 | F83: 0 | G83: 0 | H83: 0 | I83: 0 | J83: 0 | K83: 0 | L83: 0 | M83: 0 | N83: 0 | O83: 0 | P83: 0 | Q83: 0
A84: 6053 | B84: SOMERSET ACAD MIDDLE (S-MIAMI) | C84: 0 | D84: 0 | E84: 0 | F84: 0 | G84: 0 | H84: 0 | I84: 0 | J84: 0 | K84: 0 | L84: 0 | M84: 0 | N84: 0 | O84: 0 | P84: 0 | Q84: 0
A85: 6060 | B85: ASPIRA SOUTH YOUTH LEADERSHIP | C85: 0 | D85: 0 | E85: 0 | F85: 0 | G85: 0 | H85: 0 | I85: 0 | J85: 0 | K85: 0 | L85: 0 | M85: 0 | N85: 0 | O85: 0 | P85: 0 | Q85: 0
A86: 6061 | B86: CAMPBELL DRIVE MIDDLE | C86: 0 | D86: 0 | E86: 0 | F86: 0 | G86: 0 | H86: 0 | I86: 0 | J86: 0 | K86: 0 | L86: 0 | M86: 0 | N86: 0 | O86: 0 | P86: 0 | Q86: 0
A87: 6070 | B87: ASPIRA EUGENIO MARIA DE HOSTOS | C87: 0 | D87: 0 | E87: 0 | F87: 0 | G87: 0 | H87: 0 | I87: 0 | J87: 0 | K87: 0 | L87: 0 | M87: 0 | N87: 0 | O87: 0 | P87: 0 | Q87: 0
A88: 6071 | B88: GEORGE WASHINGTON CARVER | C88: 0 | D88: 0 | E88: 0 | F88: 0 | G88: 0 | H88: 0 | I88: 0 | J88: 0 | K88: 0 | L88: 0 | M88: 0 | N88: 0 | O88: 0 | P88: 0 | Q88: 0
A89: 6081 | B89: CUTLER BAY ACAD OF ADV STUDIES | C89: 0 | D89: 0 | E89: 0 | F89: 0 | G89: 0 | H89: 0 | I89: 0 | J89: 0 | K89: 0 | L89: 0 | M89: 0 | N89: 0 | O89: 0 | P89: 0 | Q89: 0
A90: 6091 | B90: CITRUS GROVE MIDDLE SCHOOL | C90: 0 | D90: 0 | E90: 0 | F90: 0 | G90: 0 | H90: 0 | I90: 0 | J90: 0 | K90: 0 | L90: 0 | M90: 0 | N90: 0 | O90: 0 | P90: 0 | Q90: 0
A91: 6111 | B91: CUTLER BAY ACAD - CUTLER RIDGE | C91: 1 | D91: 0 | E91: 0 | F91: 1 | G91: 0 | H91: 0 | I91: 0 | J91: 0 | K91: 0 | L91: 1 | M91: 0 | N91: 0 | O91: 1 | P91: 1 | Q91: 0
A92: 6121 | B92: RUBEN DARIO MIDDLE | C92: 0 | D92: 0 | E92: 0 | F92: 0 | G92: 0 | H92: 0 | I92: 0 | J92: 0 | K92: 0 | L92: 0 | M92: 0 | N92: 0 | O92: 0 | P92: 0 | Q92: 0
A93: 6141 | B93: CHARLES R. DREW MIDDLE | C93: 0 | D93: 0 | E93: 0 | F93: 0 | G93: 0 | H93: 0 | I93: 0 | J93: 0 | K93: 0 | L93: 0 | M93: 0 | N93: 0 | O93: 0 | P93: 0 | Q93: 0
A94: 6161 | B94: LAWTON CHILES MIDDLE SCHOOL | C94: 0 | D94: 0 | E94: 0 | F94: 0 | G94: 0 | H94: 0 | I94: 0 | J94: 0 | K94: 0 | L94: 0 | M94: 0 | N94: 0 | O94: 0 | P94: 0 | Q94: 0
A95: 6171 | B95: HENRY H. FILER MIDDLE | C95: 0 | D95: 0 | E95: 0 | F95: 0 | G95: 0 | H95: 0 | I95: 0 | J95: 0 | K95: 0 | L95: 0 | M95: 0 | N95: 0 | O95: 0 | P95: 0 | Q95: 0
A96: 6211 | B96: GLADES MIDDLE | C96: 0 | D96: 0 | E96: 0 | F96: 0 | G96: 0 | H96: 0 | I96: 0 | J96: 0 | K96: 0 | L96: 0 | M96: 0 | N96: 0 | O96: 0 | P96: 0 | Q96: 0
A97: 6221 | B97: HAMMOCKS MIDDLE | C97: 0 | D97: 0 | E97: 0 | F97: 0 | G97: 0 | H97: 0 | I97: 0 | J97: 0 | K97: 0 | L97: 0 | M97: 0 | N97: 0 | O97: 0 | P97: 0 | Q97: 0
A98: 6231 | B98: HIALEAH MIDDLE | C98: 0 | D98: 0 | E98: 0 | F98: 0 | G98: 0 | H98: 0 | I98: 0 | J98: 0 | K98: 0 | L98: 0 | M98: 0 | N98: 0 | O98: 0 | P98: 0 | Q98: 0
A99: 6241 | B99: HIGHLAND OAKS MIDDLE | C99: 0 | D99: 0 | E99: 0 | F99: 0 | G99: 0 | H99: 0 | I99: 0 | J99: 0 | K99: 0 | L99: 0 | M99: 0 | N99: 0 | O99: 0 | P99: 0 | Q99: 0
A100: 6251 | B100: HOMESTEAD MIDDLE | C100: 0 | D100: 0 | E100: 0 | F100: 0 | G100: 0 | H100: 0 | I100: 0 | J100: 0 | K100: 0 | L100: 0 | M100: 0 | N100: 0 | O100: 0 | P100: 0 | Q100: 0
A101: 6281 | B101: THOMAS JEFFERSON MIDDLE | C101: 0 | D101: 0 | E101: 0 | F101: 0 | G101: 0 | H101: 0 | I101: 0 | J101: 0 | K101: 0 | L101: 0 | M101: 0 | N101: 0 | O101: 0 | P101: 0 | Q101: 0
A102: 6301 | B102: JOHN F. KENNEDY MIDDLE | C102: 0 | D102: 0 | E102: 0 | F102: 0 | G102: 0 | H102: 0 | I102: 0 | J102: 0 | K102: 0 | L102: 0 | M102: 0 | N102: 0 | O102: 0 | P102: 0 | Q102: 0
A103: 6331 | B103: KINLOCH PARK MIDDLE | C103: 0 | D103: 0 | E103: 0 | F103: 0 | G103: 0 | H103: 0 | I103: 0 | J103: 0 | K103: 0 | L103: 0 | M103: 0 | N103: 0 | O103: 0 | P103: 0 | Q103: 0
A104: 6351 | B104: LAKE STEVENS MIDDLE | C104: 0 | D104: 0 | E104: 0 | F104: 0 | G104: 0 | H104: 0 | I104: 0 | J104: 0 | K104: 0 | L104: 0 | M104: 0 | N104: 0 | O104: 0 | P104: 0 | Q104: 0
